Workbook

Sheet Information
A1: Information
B2: This is the information sheet containing the list of worksheets. The toggle buttons assist navigation by hiding particular sheets
A4: Prior to using this model
B5: The Excel VBA macro must be enabled prior to opening this model to allow the use of macro to perform computation.
B6: (File -> Option -> Trust Centre -> Trust Centre Setting -> Macro Setting)
B8: Sheets in Workbook | C8: Status | D8: Description
B9: Information | C9: Visible | D9: Summary of workbook and protection
B10: Range_Names | C10: Hidden | D10: Contains named ranges for workbook
B11: Dashboard | C11: Visible (Protected) | D11: Main sheet to run different scenarios, uses macros to generate information
B12: Outputs>>
B13: Incenta | C13: Visible | D13: Sheet for generating macro outputs, contains output data for the user to view
B14: User Output | C14: Visible | D14: Sheet for generating macro outputs, contains output data for the user to view
B15: Depn Summary | C15: Visible | D15: Sheet for generating macro outputs, contains output data for the user to view
B16: ACIL Output>>
B17: Summary | C17: Visible | D17: Collated forecast information for pricing and demand
B18: Forecasts | C18: Visible | D18: Provide forecast customer choice information post 2025
B19: ACIL inputs>>
B20: Control | C20: Visible | D20: Appliance and customer preference inputs
B21: Scenarios | C21: Visible | D21: Gas and electricity pricing information and forecasts
B22: DNSP data | C22: Visible | D22: Distribution network provider historical information
B23: Census | C23: Visible | D23: Census data, including income distribution
B24: ACIL Calcs>>
B25: Prices | C25: Visible | D25: Calculation of electricity and gas forecast prices
B26: Appliance costs | C26: Visible | D26: Calculation of forecast appliance costs and switching decision
B27: CustomersRes | C27: Visible | D27: Residential forecast customers and appliance distribution
B28: CustomersCOM | C28: Visible | D28: Commercial forecast customers and appliance distribution
B29: RES S curve-connect | C29: Visible | D29: Residential forecast connection NPV analysis
B30: RES S curve-disconnect | C30: Visible | D30: Residential forecast disconnection NPV analysis
B31: COM S curve-connect | C31: Visible | D31: Commercial forecast connection NPV analysis
B32: COM S curve-disconnect | C32: Visible | D32: Commercial forecast disconnection NPV analysis
B33: ATCO Inputs>>
B34: Price to ACIL | C34: Visible | D34: Price outputs output from the PTRM model for input to the ACIL Allen consumer choice model with a one year lag
B35: Capex_On_off | C35: Visible | D35: Calculates the capex to be deducted from the capex forecast to exclude capex programmes selected
B36: GR_ACIL | C36: Visible | D36: Contain the outputs from the ACIL Allen consumer choice model for Gas Retained
B37: EH_ACIL | C37: Visible | D37: Contain the outputs from the ACIL Allen consumer choice model for Energy Hybrid
B38: HF_ACIL | C38: Visible | D38: Contain the outputs from the ACIL Allen consumer choice model for Hydrogen Future
B39: ED_ACIL | C39: Visible | D39: Contain the outputs from the ACIL Allen consumer choice model for Electricity Dominates
B40: Capex Scenarios | C40: Very Hidden | D40: Shows the rate at which capex is assumed to change relative to scenarios
B41: PTRM>>
B42: Active_Scenario | C42: Visible (Protected) | D42: Contains the relevant scenario information to feed into the PTRM, UAFG Unit Rates are hidden
B43: WACC | C43: Visible | D43: Contains the relevant parameters related to computing the WACC
B44: PTRM expenditure | C44: Visible (Protected) | D44: Contains the relevant scenario information to feed into the PTRM, UAFG Unit Rates are hidden
B45: 2019 Capex NGR 77(2)(a) | C45: Visible | D45: Calculation of the benefit or loss due to the difference between AA5 forecast capex and actual 2019 capex
B46: CoS | C46: Visible | D46: Computations of total revenue building block (cost of service), inflationary gain and Credit Foncier Check
B47: Price_path_AA6 | C47: Visible | D47: Contains the macro to calculate the price path necessary to equate in NPV terms the cost of service and expected tariff revenue
B48: Load_Demand | C48: Visible | D48: Uses the customer choice demadn to upload into the PTRM calculation
B49: Revenue | C49: Visible | D49: Contains calculation of tariffs and revenue
B50: Working_Capital | C50: Visible | D50: Contains calculation of working capital
B51: Tax_CoRE | C51: Visible | D51: Contains calculation of tax, imputation credit and cost of raising equity
B52: RAB total | C52: Visible | D52: Contains regulatory asset base. Includes initial capital base, capital expenditure account, Vines and Westnet. Computations in Real 31-Dec-2019 $m
B53: RAB close 2024 SL | C53: Visible | D53: Updates the RAB for Straight-line depreciation
B54: RAB close 2024 AD | C54: Visible | D54: Updates the RAB for Accelerated depreciation
B55: RAB Post 2024 | C55: Visible | D55: RAB outcomes
B56: Tax RAB total | C56: Visible | D56: Tax imputations
B57: Tax_Asset close 2024 | C57: Visible | D57: Tax imputations
B58: Years>>
B59: 2025 | C59: Hidden | D59: 2025 to 2074 handle year specific information and are hidden for navigation
B60: 2026 | C60: Hidden
B61: 2027 | C61: Hidden
B62: 2028 | C62: Hidden
B63: 2029 | C63: Hidden
B64: 2030 | C64: Hidden
B65: 2031 | C65: Hidden
B66: 2032 | C66: Hidden
B67: 2033 | C67: Hidden
B68: 2034 | C68: Hidden
B69: 2035 | C69: Hidden
B70: 2036 | C70: Hidden
B71: 2037 | C71: Hidden
B72: 2038 | C72: Hidden
B73: 2039 | C73: Hidden
B74: 2040 | C74: Hidden
B75: 2041 | C75: Hidden
B76: 2042 | C76: Hidden
B77: 2043 | C77: Hidden
B78: 2044 | C78: Hidden
B79: 2045 | C79: Hidden
B80: 2046 | C80: Hidden
B81: 2047 | C81: Hidden
B82: 2048 | C82: Hidden
B83: 2049 | C83: Hidden
B84: 2050 | C84: Hidden
B85: 2051 | C85: Hidden
B86: 2052 | C86: Hidden
B87: 2053 | C87: Hidden
B88: 2054 | C88: Hidden
B89: 2055 | C89: Hidden
B90: 2056 | C90: Hidden
B91: 2057 | C91: Hidden
B92: 2058 | C92: Hidden
B93: 2059 | C93: Hidden
B94: 2060 | C94: Hidden
B95: 2061 | C95: Hidden
B96: 2062 | C96: Hidden
B97: 2063 | C97: Hidden
B98: 2064 | C98: Hidden
B99: 2065 | C99: Hidden
B100: 2066 | C100: Hidden
B101: 2067 | C101: Hidden
B102: 2068 | C102: Hidden
B103: 2069 | C103: Hidden
B104: 2070 | C104: Hidden
B105: 2071 | C105: Hidden
B106: 2072 | C106: Hidden
B107: 2073 | C107: Hidden
B108: 2074 | C108: Hidden
A112: Colour codes:
D113: Contains hard coded customer choice information
B114: Number | D114: Hard coded data
B115: Number | D115: Number or texts that are linked to other sheet
B116: Number | D116: Contains formula that is not consistent with the others in the same row
B117: -Number | D117: Excel formatting for negative number
A119: Tariff model method: Principles
B120: End of year cashflow assumption
B121: Unless otherwise stated all real dollars are in real $ December 2023
A123: Depreciation
B124: For AA1 period depreciation began in the year of acquisition but the ERA has modified the asset life in subsequent AA periods to
B125: assume asset depreciation began in the year after acquisition effectively adding one year to asset life for capex 2000 to 2004
B126: For all subsequent AA periods depreciation began in the year after acquisition
B127: Regulatory depreciation is rolled forward on forecast basis
B128: ICB tax assets as at 30 June 2000 (not 1 Jan 2000)
A130: Tax Depreciation
B131: Tax Depreciation is in nominal straight line.
A133: Taxation
B134: Revenue is based on cost of service or unsmoothed revenue
A136: Other
B137: AA4 Equity raising costs per last ERA tariff variation model (1 January 2019)
B138: Input data from 2019 onwards are forecast.

Sheet Range_Names (hidden)
A1: Range Names
C4: Demand | E4: Customerbase | G4: OPEX scenarios | I4: CAPEX scenarios | K4: Depreciation Scenario
E5: =Active_Scenario!B226 -> Base no change | G5: =Active_Scenario!B282 -> Base no change | I5: =Active_Scenario!B399 -> Base no change | K5: Straight line depreciation
C6: =Active_Scenario!B63 -> Natural Gas Retained | E6: =Active_Scenario!B234 -> Natural Gas Retained | G6: =Active_Scenario!B292 -> Natural Gas Retained | I6: =Active_Scenario!B418 -> Natural Gas Retained | K6: Accelerated depreciation
C7: =Active_Scenario!B71 -> Energy Hybrid | E7: =Active_Scenario!B242 -> Energy Hybrid | G7: =Active_Scenario!B302 -> Energy Hybrid | I7: =Active_Scenario!B437 -> Energy Hybrid
C8: =Active_Scenario!B79 -> Hydrogen Future | E8: =Active_Scenario!B250 -> Hydrogen Future | G8: =Active_Scenario!B312 -> Hydrogen Future | I8: =Active_Scenario!B456 -> Hydrogen Future
C9: =Active_Scenario!B87 -> Electricity Dominates | E9: =Active_Scenario!B258 -> Electricity Dominates | G9: =Active_Scenario!B322 -> Electricity Dominates | I9: =Active_Scenario!B475 -> Electricity Dominates
A12: Customer impact scenarios
C13: Data used
C14: AverageAA6
C15: Average 2022
C16: Spare scenario
A18: Valid year end dates
C20: Valid year end dates | E20: Tilt Amount | G20: Customer base reduction
C21: 2035 | E21: 0.005 | G21: 0
C22: 2036 | E22: 0.01 | G22: -5000
C23: 2037 | E23: 0.015 | G23: -10000
C24: 2038 | E24: 0.02 | G24: -15000
C25: 2039 | E25: 0.03 | G25: -20000
C26: 2040 | E26: 0.04 | G26: -30000
C27: 2041 | E27: 0.05 | G27: -40000
C28: 2042 | E28: 0.06 | G28: -50000
C29: 2043 | E29: 0.07 | G29: -60000
C30: 2044 | E30: 0.08 | G30: -75000
C31: 2045 | E31: 0.09 | G31: -100000
C32: 2046 | E32: 0.1
C33: 2047
C34: 2048
C35: 2049
C36: 2050
C37: 2051
C38: 2052
C39: 2053
C40: 2054
C41: 2055
C42: 2056
C43: 2057
C44: 2058
C45: 2059
C46: 2060
C47: 2061
C48: 2062
C49: 2063
C50: 2064
C51: 2065
C52: 2066
C53: 2067
C54: 2068
C55: 2069
C56: 2070
C57: 2071
C58: 2072
C59: 2073
C60: 2074

Sheet Dashboard
A1: AA6 ACCELERATED DEPRECIATION CONSUMER CHOICE AND TARIFF AND REVENUE MODEL
B4: Scenario Levers | H4: Model Component | I4: Function | J4: Value | K4: Start year | L4: End year | M4: No. Years | N4: Switch
B5: 1. Choose the Scenario | C5: Electricity Dominates
H6: 4. Depreciation Profiles
H7: Tilt Depreciation | O7: -1.764861446e+160
B8: 2. Price cap factor | C8: 2 | D8: index multiple of 2029 tariff | H8: 3. Existing RAB tilt | J8: 0.02 | K8: 2030 | L8: 2074 | M8: =L8-K8+1 -> 45
H9: 4. New (Post 2024) Capex tilt | J9: 0.02 | K9: 2030 | L9: 2074 | M9: 45
H12: Capex Sensitivities
H13: Cap asset life
H14: Asset life cap year | L14: 2074
D15: go to outputs
H16: ="Capex to turn off "&" (End year must be less than "&$L$14&")" -> Capex to turn off (End year must be less than 2074)
H17: EOL Replacement - PVC mains | K17: 2030 | L17: 2074 | M17: =L17-K17+1 -> 45
B18: Choose depreciation scenario | C18: Accelerated depreciation | H18: Small Asset Replacement - SPY Transfers | K18: 2030 | L18: 2074 | M18: 45
H19: Network Reinforcement - Secret Harbour | K19: 2030 | L19: 2074 | M19: 45
H20: Network Reinforcement - Inglewood | K20: 2030 | L20: 2074 | M20: 45
B21: Cost reduction triggers | H21: Network Reinforcement - Pearsall | K21: 2030 | L21: 2074 | M21: 45
H22: Pressure Monitoring Device Installation | K22: 2030 | L22: 2074 | M22: 45
H23: Reconnection after Disconnection (SNB) | K23: 2030 | L23: 2074 | M23: 45
B24: Customer base reduction | C24: -40000 | D24: must be a negative number | H24: Re-lay Service / SNB (SNR) | K24: 2030 | L24: 2074 | M24: 45
B26: Opex reduction factor | C26: 35000 | D26: $/1,000 connections
H27: Demand Sensitivities
H28: Average consumption reduction | I28: Linear | K28: 2035 | L28: 2074 | M28: =L28-K28+1 -> 40
H29: Reduce new connections | I29: Log | K29: 2035 | L29: 2074 | M29: 40
H30: Reduce customer base | I30: Scaled log | K30: 2035 | L30: 2074 | M30: 40
B45: Scenarios
B46: selected scenario | C46: =Scenarios!A69 -> Electricity Dominates | D46: check (Scenarios TAB)
B47: check box links
B48: Existing RAB tilt | C48: TRUE | D48: =N(C48) -> 1
B49: Capex tilt | C49: TRUE | D49: =N(C49) -> 1
B51: Straight line or accelerated depreciaiton combo box
B52: Straight line depreciation
B53: Accelerated depreciation
B54: selected scenarion (1=SL, 2=AD) | C54: =IF(C18=Range_Names!K5,1,2) -> 2
B56: CAP asset life at 2063
B57: Cap asset life | C57: FALSE | D57: =-C57 -> 0
B58: Deduct CAPEX reduction | C58: TRUE | D58: =-C58 -> -1
B60: Average consumption reduction | C60: FALSE | D60: =-C60 -> 0
B62: Reduce connections | C62: FALSE | D62: 0
B63: Reduce customer base | C63: FALSE | D63: 0
B65: Capex to switch off
B66: EOL Replacement - PVC mains | C66: FALSE
B67: Small Asset Replacement - SPY Transfers | C67: FALSE
B68: Network Reinforcement - Secret Harbour | C68: FALSE
B69: Network Reinforcement - Inglewood | C69: FALSE
B70: Network Reinforcement - Pearsall | C70: FALSE
B71: Pressure Monitoring Device Installation | C71: FALSE
B72: Reconnection after Disconnection (SNB) | C72: FALSE
B73: Re-lay Service / SNB (SNR) | C73: FALSE
B75: Apply price cap switch
B76: Apply price cap | C76: FALSE

Sheet Outputs>>

Sheet Incenta
A1: Consolidated User Output | F1: ="col "&COLUMN() -> col 6 | G1: ="col "&COLUMN() -> col 7 | H1: col 8 | I1: col 9 | J1: col 10 | K1: col 11 | L1: col 12 | M1: col 13 | N1: col 14 | O1: col 15 | P1: col 16 | Q1: col 17 | R1: col 18 | S1: col 19 | T1: col 20 | U1: col 21 | V1: col 22 | W1: col 23 | X1: col 24 | Y1: col 25
E2: Live values / checks
E3: AA6 solved | F3: =IF(ABS(CoS!F38)<0.1,"OK","ERROR: Solve for AA6") -> OK
E4: Scenario | F4: =ScenarioChoice -> Electricity Dominates
E5: Depreciation choice
E6: Tilt factors | F6: Rate | G6: From | H6: To | I6: Applied | L6: =IF(OR(F3<>"OK",F9<>"OK"),"ERROR TO FIX","") -> 
E7: Opening RAB | F7: =TIlt_Ex -> 0.02 | G7: =StartYear1 -> 2030 | H7: =EndYear1 -> 2074 | I7: =Tilt1 -> TRUE
E8: Capex | F8: =Tilt_New -> 0.02 | G8: =StartYear2 -> 2030 | H8: =EndYear2 -> 2074 | I8: =Tilt2 -> TRUE
E9: Box check check | F9: =IF(AND(F4=Dashboard!A79,Dashboard!B73=FALSE,Dashboard!B74=FALSE),"ERROR: Inconsistent choices - no acceleration chosen","OK") -> OK
E10: Price cap index | F10: =Dashboard!R26 -> 0
E11: Year | G11: 2025 | H11: =G11+1 -> 2026 | I11: =H11+1 -> 2027 | J11: 2028 | K11: 2029 | L11: 2030 | M11: =L11+1 -> 2031 | N11: =M11+1 -> 2032 | O11: 2033 | P11: 2034 | Q11: 2035 | R11: 2036 | S11: 2037 | T11: 2038 | U11: 2039 | V11: 2040 | W11: 2041 | X11: 2042 | Y11: 2043 | Z11: 2044 | AA11: 2045 | AB11: 2046 | AC11: 2047 | AD11: 2048 | AE11: 2049 | AF11: 2050 | AG11: 2051 | AH11: 2052 | AI11: 2053 | AJ11: 2054 | AK11: 2055 | AL11: 2056 | AM11: 2057 | AN11: 2058 | AO11: 2059 | AP11: 2060 | AQ11: 2061 | AR11: 2062 | AS11: 2063 | AT11: 2064 | AU11: 2065 | AV11: 2066 | AW11: 2067 | AX11: 2068 | AY11: 2069 | AZ11: 2070 | BA11: 2071 | BB11: 2072 | BC11: 2073 | BD11: 2074
E12: WACC | G12: =CoS!O14 -> 0.04705053166 | H12: =CoS!P14 -> 0.04705053166 | I12: =CoS!Q14 -> 0.04705053166 | J12: =CoS!R14 -> 0.04705053166 | K12: =CoS!S14 -> 0.04705053166 | L12: =CoS!T14 -> 0.04705053166 | M12: =CoS!U14 -> 0.04705053166 | N12: =CoS!V14 -> 0.04705053166 | O12: =CoS!W14 -> 0.04705053166 | P12: =CoS!X14 -> 0.04705053166 | Q12: =CoS!Y14 -> 0.04705053166 | R12: =CoS!Z14 -> 0.04705053166 | S12: =CoS!AA14 -> 0.04705053166 | T12: =CoS!AB14 -> 0.04705053166 | U12: =CoS!AC14 -> 0.04705053166 | V12: =CoS!AD14 -> 0.04705053166 | W12: =CoS!AE14 -> 0.04705053166 | X12: =CoS!AF14 -> 0.04705053166 | Y12: =CoS!AG14 -> 0.04705053166 | Z12: =CoS!AH14 -> 0.04705053166 | AA12: =CoS!AI14 -> 0.04705053166 | AB12: =CoS!AJ14 -> 0.04705053166 | AC12: =CoS!AK14 -> 0.04705053166 | AD12: =CoS!AL14 -> 0.04705053166 | AE12: =CoS!AM14 -> 0.04705053166 | AF12: =CoS!AN14 -> 0.04705053166 | AG12: =CoS!AO14 -> 0.04705053166 | AH12: =CoS!AP14 -> 0.04705053166 | AI12: =CoS!AQ14 -> 0.04705053166 | AJ12: =CoS!AR14 -> 0.04705053166 | AK12: =CoS!AS14 -> 0.04705053166 | AL12: =CoS!AT14 -> 0.04705053166 | AM12: =CoS!AU14 -> 0.04705053166 | AN12: =CoS!AV14 -> 0.04705053166 | AO12: =CoS!AW14 -> 0.04705053166 | AP12: =CoS!AX14 -> 0.04705053166 | AQ12: =CoS!AY14 -> 0.04705053166 | AR12: =CoS!AZ14 -> 0.04705053166 | AS12: =CoS!BA14 -> 0.04705053166 | AT12: =CoS!BB14 -> 0.04705053166 | AU12: =CoS!BC14 -> 0.04705053166 | AV12: =CoS!BD14 -> 0.04705053166 | AW12: =CoS!BE14 -> 0.04705053166 | AX12: =CoS!BF14 -> 0.04705053166 | AY12: =CoS!BG14 -> 0.04705053166 | AZ12: =CoS!BH14 -> 0.04705053166 | BA12: =CoS!BI14 -> 0.04705053166 | BB12: =CoS!BJ14 -> 0.04705053166 | BC12: =CoS!BK14 -> 0.04705053166 | BD12: =CoS!BL14 -> 0.04705053166
E13: Discount factor (end of year) | F13: 1 | G13: =F13/(1+G12) -> 0.9550637431 | H13: =G13/(1+H12) -> 0.9121467534 | I13: 0.8711582926 | J13: 0.8320116998 | K13: 0.7946242083 | L13: 0.7589167708 | M13: 0.7248138918 | N13: 0.6922434686 | O13: 0.6611366383 | P13: 0.6314276324 | Q13: 0.6030536382 | R13: 0.575954665 | S13: 0.5500734182 | T13: 0.5253551778 | U13: 0.5017476825 | V13: 0.4792010198 | W13: 0.4576675197 | X13: 0.4371016544 | Y13: 0.4174599422 | Z13: 0.398700855 | AA13: 0.380784731 | AB13: 0.3636736905 | AC13: 0.3473315561 | AD13: 0.3317237761 | AE13: 0.3168173513 | AF13: 0.3025807654 | AG13: 0.2889839184 | AH13: 0.2759980628 | AI13: 0.2635957429 | AJ13: 0.2517507369 | AK13: 0.2404380011 | AL13: 0.2296336174 | AM13: 0.2193147421 | AN13: 0.2094595586 | AO13: 0.20004723 | AP13: 0.1910578563 | AQ13: 0.1824724314 | AR13: 0.1742728034 | AS13: 0.1664416359 | AT13: 0.1589623718 | AU13: 0.1518191978 | AV13: 0.1449970113 | AW13: 0.1384813884 | AX13: 0.1322585532 | AY13: 0.1263153488 | AZ13: 0.1206392099 | BA13: 0.1152181353 | BB13: 0.1100406636 | BC13: 0.1050958481 | BD13: 0.1003732341
E14: Under-recovery flag | G14: =(ROUND(G16-G15,0)<0)*(G11>$K$11) -> 0 | H14: =(ROUND(H16-H15,0)<0)*(H11>$K$11) -> 0 | I14: 0 | J14: 0 | K14: 0 | L14: 0 | M14: 0 | N14: 0 | O14: 0 | P14: 0 | Q14: 0 | R14: 0 | S14: 0 | T14: 0 | U14: 0 | V14: 0 | W14: 0 | X14: 0 | Y14: 0 | Z14: 0 | AA14: 0 | AB14: 0 | AC14: 1 | AD14: 1 | AE14: 1 | AF14: 1 | AG14: 1 | AH14: 1 | AI14: 1 | AJ14: 1 | AK14: 1 | AL14: 1 | AM14: 1 | AN14: 1 | AO14: 1 | AP14: 1 | AQ14: 1 | AR14: 1 | AS14: 1 | AT14: 1 | AU14: 1 | AV14: 1 | AW14: 1 | AX14: 1 | AY14: 1 | AZ14: 1 | BA14: 1 | BB14: 1 | BC14: 1 | BD14: 1
E15: Cost of service | G15: =Price_path_AA6!O24 -> 216.3765879 | H15: =Price_path_AA6!P24 -> 235.7137896 | I15: =Price_path_AA6!Q24 -> 245.76571 | J15: =Price_path_AA6!R24 -> 254.2161596 | K15: =Price_path_AA6!S24 -> 254.6037439 | L15: =Price_path_AA6!T24 -> 274.513149 | M15: =Price_path_AA6!U24 -> 272.7985402 | N15: =Price_path_AA6!V24 -> 265.0252603 | O15: =Price_path_AA6!W24 -> 263.103151 | P15: =Price_path_AA6!X24 -> 262.1144199 | Q15: =Price_path_AA6!Y24 -> 261.5475854 | R15: =Price_path_AA6!Z24 -> 258.6541841 | S15: =Price_path_AA6!AA24 -> 255.2671944 | T15: =Price_path_AA6!AB24 -> 251.8602004 | U15: =Price_path_AA6!AC24 -> 244.0408846 | V15: =Price_path_AA6!AD24 -> 228.0111319 | W15: =Price_path_AA6!AE24 -> 216.297232 | X15: =Price_path_AA6!AF24 -> 203.9171821 | Y15: =Price_path_AA6!AG24 -> 191.3179593 | Z15: =Price_path_AA6!AH24 -> 178.8975579 | AA15: =Price_path_AA6!AI24 -> 168.5304805 | AB15: =Price_path_AA6!AJ24 -> 159.0219335 | AC15: =Price_path_AA6!AK24 -> 149.4343805 | AD15: =Price_path_AA6!AL24 -> 140.2616823 | AE15: =Price_path_AA6!AM24 -> 130.9738678 | AF15: =Price_path_AA6!AN24 -> 119.2850498 | AG15: =Price_path_AA6!AO24 -> 113.8490011 | AH15: =Price_path_AA6!AP24 -> 108.7319361 | AI15: =Price_path_AA6!AQ24 -> 103.4498474 | AJ15: =Price_path_AA6!AR24 -> 92.59442698 | AK15: =Price_path_AA6!AS24 -> 86.88700961 | AL15: =Price_path_AA6!AT24 -> 82.87443299 | AM15: =Price_path_AA6!AU24 -> 79.4369429 | AN15: =Price_path_AA6!AV24 -> 76.08837236 | AO15: =Price_path_AA6!AW24 -> 70.28623963 | AP15: =Price_path_AA6!AX24 -> 67.23109474 | AQ15: =Price_path_AA6!AY24 -> 64.40594383 | AR15: =Price_path_AA6!AZ24 -> 61.58932405 | AS15: =Price_path_AA6!BA24 -> 59.0657876 | AT15: =Price_path_AA6!BB24 -> 56.73285659 | AU15: =Price_path_AA6!BC24 -> 54.30597876 | AV15: =Price_path_AA6!BD24 -> 50.19393397 | AW15: =Price_path_AA6!BE24 -> 47.62141852 | AX15: =Price_path_AA6!BF24 -> 45.6274464 | AY15: =Price_path_AA6!BG24 -> 43.70250978 | AZ15: =Price_path_AA6!BH24 -> 41.83304283 | BA15: =Price_path_AA6!BI24 -> 40.12725698 | BB15: =Price_path_AA6!BJ24 -> 38.45996163 | BC15: =Price_path_AA6!BK24 -> 36.76626483 | BD15: =Price_path_AA6!BL24 -> 35.09741096
E16: Reference tariff revenue (total) | G16: =Price_path_AA6!O25 -> 239.5384297 | H16: =Price_path_AA6!P25 -> 239.7402632 | I16: =Price_path_AA6!Q25 -> 240.257838 | J16: =Price_path_AA6!R25 -> 241.01835 | K16: =Price_path_AA6!S25 -> 241.938434 | L16: =Price_path_AA6!T25 -> 274.513149 | M16: =Price_path_AA6!U25 -> 272.7985402 | N16: =Price_path_AA6!V25 -> 265.0252603 | O16: =Price_path_AA6!W25 -> 263.103151 | P16: =Price_path_AA6!X25 -> 262.1144199 | Q16: =Price_path_AA6!Y25 -> 261.5475854 | R16: =Price_path_AA6!Z25 -> 258.6541841 | S16: =Price_path_AA6!AA25 -> 255.2671944 | T16: =Price_path_AA6!AB25 -> 251.8602004 | U16: =Price_path_AA6!AC25 -> 244.0408846 | V16: =Price_path_AA6!AD25 -> 228.0111319 | W16: =Price_path_AA6!AE25 -> 216.297232 | X16: =Price_path_AA6!AF25 -> 203.9171821 | Y16: =Price_path_AA6!AG25 -> 191.3179593 | Z16: =Price_path_AA6!AH25 -> 178.8975579 | AA16: =Price_path_AA6!AI25 -> 168.5304805 | AB16: =Price_path_AA6!AJ25 -> 159.0219335 | AC16: =Price_path_AA6!AK25 -> 140.1719504 | AD16: =Price_path_AA6!AL25 -> 112.0611 | AE16: =Price_path_AA6!AM25 -> 82.80090967 | AF16: =Price_path_AA6!AN25 -> 61.55137054 | AG16: =Price_path_AA6!AO25 -> 48.63080244 | AH16: =Price_path_AA6!AP25 -> 40.81812595 | AI16: =Price_path_AA6!AQ25 -> 39.38498735 | AJ16: =Price_path_AA6!AR25 -> 36.46848757 | AK16: =Price_path_AA6!AS25 -> 32.99390542 | AL16: =Price_path_AA6!AT25 -> 29.72540618 | AM16: =Price_path_AA6!AU25 -> 28.86468278 | AN16: =Price_path_AA6!AV25 -> 30.03118031 | AO16: =Price_path_AA6!AW25 -> 25.67176022 | AP16: =Price_path_AA6!AX25 -> 24.16512996 | AQ16: =Price_path_AA6!AY25 -> 21.73333556 | AR16: =Price_path_AA6!AZ25 -> 19.05149349 | AS16: =Price_path_AA6!BA25 -> 18.49236593 | AT16: =Price_path_AA6!BB25 -> 18.14475308 | AU16: =Price_path_AA6!BC25 -> 16.59421023 | AV16: =Price_path_AA6!BD25 -> 13.22691214 | AW16: =Price_path_AA6!BE25 -> 0 | AX16: =Price_path_AA6!BF25 -> 0 | AY16: =Price_path_AA6!BG25 -> 0 | AZ16: =Price_path_AA6!BH25 -> 0 | BA16: =Price_path_AA6!BI25 -> 0 | BB16: =Price_path_AA6!BJ25 -> 0 | BC16: =Price_path_AA6!BK25 -> 0 | BD16: =Price_path_AA6!BL25 -> 0
E17: Real distribution price (B3) | G17: =IFERROR(Price_path_AA6!O63,0) -> 20.22222648 | H17: =IFERROR(Price_path_AA6!P63,0) -> 20.67054662 | I17: =IFERROR(Price_path_AA6!Q63,0) -> 21.11717083 | J17: =IFERROR(Price_path_AA6!R63,0) -> 21.55887206 | K17: =IFERROR(Price_path_AA6!S63,0) -> 21.99471183 | L17: =IFERROR(Price_path_AA6!T63,0) -> 26.02978037 | M17: =IFERROR(Price_path_AA6!U63,0) -> 27.08864232 | N17: =IFERROR(Price_path_AA6!V63,0) -> 27.00554553 | O17: =IFERROR(Price_path_AA6!W63,0) -> 27.49140724 | P17: =IFERROR(Price_path_AA6!X63,0) -> 28.20355604 | Q17: =IFERROR(Price_path_AA6!Y63,0) -> 28.76349863 | R17: =IFERROR(Price_path_AA6!Z63,0) -> 29.42944865 | S17: =IFERROR(Price_path_AA6!AA63,0) -> 30.34100558 | T17: =IFERROR(Price_path_AA6!AB63,0) -> 31.69245703 | U17: =IFERROR(Price_path_AA6!AC63,0) -> 33.42459148 | V17: =IFERROR(Price_path_AA6!AD63,0) -> 34.58360823 | W17: =IFERROR(Price_path_AA6!AE63,0) -> 36.76825998 | X17: =IFERROR(Price_path_AA6!AF63,0) -> 39.73888038 | Y17: =IFERROR(Price_path_AA6!AG63,0) -> 43.50783645 | Z17: =IFERROR(Price_path_AA6!AH63,0) -> 48.22502604 | AA17: =IFERROR(Price_path_AA6!AI63,0) -> 53.04718827 | AB17: =IFERROR(Price_path_AA6!AJ63,0) -> 59.12208358 | AC17: =IFERROR(Price_path_AA6!AK63,0) -> 62.81057246 | AD17: =IFERROR(Price_path_AA6!AL63,0) -> 60.92924725 | AE17: =IFERROR(Price_path_AA6!AM63,0) -> 55.64374259 | AF17: =IFERROR(Price_path_AA6!AN63,0) -> 51.75911532 | AG17: =IFERROR(Price_path_AA6!AO63,0) -> 51.91238623 | AH17: =IFERROR(Price_path_AA6!AP63,0) -> 55.09982523 | AI17: =IFERROR(Price_path_AA6!AQ63,0) -> 58.75114389 | AJ17: =IFERROR(Price_path_AA6!AR63,0) -> 59.22004314 | AK17: =IFERROR(Price_path_AA6!AS63,0) -> 55.4268013 | AL17: =IFERROR(Price_path_AA6!AT63,0) -> 50.79357722 | AM17: =IFERROR(Price_path_AA6!AU63,0) -> 49.92377871 | AN17: =IFERROR(Price_path_AA6!AV63,0) -> 53.78276674 | AO17: =IFERROR(Price_path_AA6!AW63,0) -> 57.65988729 | AP17: =IFERROR(Price_path_AA6!AX63,0) -> 58.14637305 | AQ17: =IFERROR(Price_path_AA6!AY63,0) -> 54.20565669 | AR17: =IFERROR(Price_path_AA6!AZ63,0) -> 49.69663258 | AS17: =IFERROR(Price_path_AA6!BA63,0) -> 48.90099004 | AT17: =IFERROR(Price_path_AA6!BB63,0) -> 52.37436623 | AU17: =IFERROR(Price_path_AA6!BC63,0) -> 56.26955342 | AV17: =IFERROR(Price_path_AA6!BD63,0) -> 57.21208799 | AW17: =IFERROR(Price_path_AA6!BE63,0) -> 0 | AX17: =IFERROR(Price_path_AA6!BF63,0) -> 0 | AY17: =IFERROR(Price_path_AA6!BG63,0) -> 0 | AZ17: =IFERROR(Price_path_AA6!BH63,0) -> 0 | BA17: =IFERROR(Price_path_AA6!BI63,0) -> 0 | BB17: =IFERROR(Price_path_AA6!BJ63,0) -> 0 | BC17: =IFERROR(Price_path_AA6!BK63,0) -> 0 | BD17: =IFERROR(Price_path_AA6!BL63,0) -> 0
E18: Quantity sold (B3) | G18: =Price_path_AA6!O58 -> 9806.466293 | H18: =Price_path_AA6!P58 -> 9598.915543 | I18: =Price_path_AA6!Q58 -> 9419.878709 | J18: =Price_path_AA6!R58 -> 9261.973567 | K18: =Price_path_AA6!S58 -> 9120.188063 | L18: =Price_path_AA6!T58 -> 8756.712408 | M18: =Price_path_AA6!U58 -> 8380.050269 | N18: =Price_path_AA6!V58 -> 8166.11696 | O18: =Price_path_AA6!W58 -> 7965.787352 | P18: =Price_path_AA6!X58 -> 7734.385589 | Q18: =Price_path_AA6!Y58 -> 7555.59996 | R18: =Price_path_AA6!Z58 -> 7294.612701 | S18: =Price_path_AA6!AA58 -> 6972.616949 | T18: =Price_path_AA6!AB58 -> 6572.52778 | U18: =Price_path_AA6!AC58 -> 6016.466218 | V18: =Price_path_AA6!AD58 -> 5405.572328 | W18: =Price_path_AA6!AE58 -> 4788.400458 | X18: =Price_path_AA6!AF58 -> 4139.444427 | Y18: =Price_path_AA6!AG58 -> 3505.896824 | Z18: =Price_path_AA6!AH58 -> 2913.812482 | AA18: =Price_path_AA6!AI58 -> 2459.093606 | AB18: =Price_path_AA6!AJ58 -> 2046.459289 | AC18: =Price_path_AA6!AK58 -> 1662.254355 | AD18: =Price_path_AA6!AL58 -> 1333.873276 | AE18: =Price_path_AA6!AM58 -> 1034.629711 | AF18: =Price_path_AA6!AN58 -> 776.0542267 | AG18: =Price_path_AA6!AO58 -> 558.3467178 | AH18: =Price_path_AA6!AP58 -> 394.7355295 | AI18: =Price_path_AA6!AQ58 -> 346.0525703 | AJ18: =Price_path_AA6!AR58 -> 312.9695106 | AK18: =Price_path_AA6!AS58 -> 306.7287068 | AL18: =Price_path_AA6!AT58 -> 304.6569828 | AM18: =Price_path_AA6!AU58 -> 303.4327928 | AN18: =Price_path_AA6!AV58 -> 293.6778405 | AO18: =Price_path_AA6!AW58 -> 205.2989261 | AP18: =Price_path_AA6!AX58 -> 191.0786389 | AQ18: =Price_path_AA6!AY58 -> 186.7291987 | AR18: =Price_path_AA6!AZ58 -> 175.6212204 | AS18: =Price_path_AA6!BA58 -> 174.652715 | AT18: =Price_path_AA6!BB58 -> 152.5604723 | AU18: =Price_path_AA6!BC58 -> 116.0278278 | AV18: =Price_path_AA6!BD58 -> 68.98291035 | AW18: =Price_path_AA6!BE58 -> 0 | AX18: =Price_path_AA6!BF58 -> 0 | AY18: =Price_path_AA6!BG58 -> 0 | AZ18: =Price_path_AA6!BH58 -> 0 | BA18: =Price_path_AA6!BI58 -> 0 | BB18: =Price_path_AA6!BJ58 -> 0 | BC18: =Price_path_AA6!BK58 -> 0 | BD18: =Price_path_AA6!BL58 -> 0
E19: Real distribution price (B1 + B2) | G19: =(Revenue!O112+Revenue!O111)/(Load_Demand!O31+Load_Demand!O32)*1000 -> 7.684750527 | H19: =(Revenue!P112+Revenue!P111)/(Load_Demand!P31+Load_Demand!P32)*1000 -> 7.738694007 | I19: =(Revenue!Q112+Revenue!Q111)/(Load_Demand!Q31+Load_Demand!Q32)*1000 -> 7.793981801 | J19: =(Revenue!R112+Revenue!R111)/(Load_Demand!R31+Load_Demand!R32)*1000 -> 7.852409358 | K19: =(Revenue!S112+Revenue!S111)/(Load_Demand!S31+Load_Demand!S32)*1000 -> 7.913690912 | L19: =(Revenue!T112+Revenue!T111)/(Load_Demand!T31+Load_Demand!T32)*1000 -> 9.205390839 | M19: =(Revenue!U112+Revenue!U111)/(Load_Demand!U31+Load_Demand!U32)*1000 -> 9.45429797 | N19: =(Revenue!V112+Revenue!V111)/(Load_Demand!V31+Load_Demand!V32)*1000 -> 9.402790851 | O19: =(Revenue!W112+Revenue!W111)/(Load_Demand!W31+Load_Demand!W32)*1000 -> 9.574778752 | P19: =(Revenue!X112+Revenue!X111)/(Load_Demand!X31+Load_Demand!X32)*1000 -> 9.81454657 | Q19: =(Revenue!Y112+Revenue!Y111)/(Load_Demand!Y31+Load_Demand!Y32)*1000 -> 10.01036225 | R19: =(Revenue!Z112+Revenue!Z111)/(Load_Demand!Z31+Load_Demand!Z32)*1000 -> 10.23483659 | S19: =(Revenue!AA112+Revenue!AA111)/(Load_Demand!AA31+Load_Demand!AA32)*1000 -> 10.54994716 | T19: =(Revenue!AB112+Revenue!AB111)/(Load_Demand!AB31+Load_Demand!AB32)*1000 -> 11.02570094 | U19: =(Revenue!AC112+Revenue!AC111)/(Load_Demand!AC31+Load_Demand!AC32)*1000 -> 11.649406 | V19: =(Revenue!AD112+Revenue!AD111)/(Load_Demand!AD31+Load_Demand!AD32)*1000 -> 12.08804333 | W19: =(Revenue!AE112+Revenue!AE111)/(Load_Demand!AE31+Load_Demand!AE32)*1000 -> 12.95471696 | X19: =(Revenue!AF112+Revenue!AF111)/(Load_Demand!AF31+Load_Demand!AF32)*1000 -> 14.07856906 | Y19: =(Revenue!AG112+Revenue!AG111)/(Load_Demand!AG31+Load_Demand!AG32)*1000 -> 15.50241143 | Z19: =(Revenue!AH112+Revenue!AH111)/(Load_Demand!AH31+Load_Demand!AH32)*1000 -> 17.27479856 | AA19: =(Revenue!AI112+Revenue!AI111)/(Load_Demand!AI31+Load_Demand!AI32)*1000 -> 19.0218324 | AB19: =(Revenue!AJ112+Revenue!AJ111)/(Load_Demand!AJ31+Load_Demand!AJ32)*1000 -> 21.230081 | AC19: =(Revenue!AK112+Revenue!AK111)/(Load_Demand!AK31+Load_Demand!AK32)*1000 -> 22.54896993 | AD19: =(Revenue!AL112+Revenue!AL111)/(Load_Demand!AL31+Load_Demand!AL32)*1000 -> 21.97639642 | AE19: =(Revenue!AM112+Revenue!AM111)/(Load_Demand!AM31+Load_Demand!AM32)*1000 -> 20.40504065 | AF19: =(Revenue!AN112+Revenue!AN111)/(Load_Demand!AN31+Load_Demand!AN32)*1000 -> 19.42494886 | AG19: =(Revenue!AO112+Revenue!AO111)/(Load_Demand!AO31+Load_Demand!AO32)*1000 -> 19.88562708 | AH19: =(Revenue!AP112+Revenue!AP111)/(Load_Demand!AP31+Load_Demand!AP32)*1000 -> 21.31202237 | AI19: =(Revenue!AQ112+Revenue!AQ111)/(Load_Demand!AQ31+Load_Demand!AQ32)*1000 -> 22.59420533 | AJ19: =(Revenue!AR112+Revenue!AR111)/(Load_Demand!AR31+Load_Demand!AR32)*1000 -> 22.59859172 | AK19: =(Revenue!AS112+Revenue!AS111)/(Load_Demand!AS31+Load_Demand!AS32)*1000 -> 21.06849531 | AL19: =(Revenue!AT112+Revenue!AT111)/(Load_Demand!AT31+Load_Demand!AT32)*1000 -> 19.38306887 | AM19: =(Revenue!AU112+Revenue!AU111)/(Load_Demand!AU31+Load_Demand!AU32)*1000 -> 19.16981927 | AN19: =(Revenue!AV112+Revenue!AV111)/(Load_Demand!AV31+Load_Demand!AV32)*1000 -> 20.64862069 | AO19: =(Revenue!AW112+Revenue!AW111)/(Load_Demand!AW31+Load_Demand!AW32)*1000 -> 22.09238177 | AP19: =(Revenue!AX112+Revenue!AX111)/(Load_Demand!AX31+Load_Demand!AX32)*1000 -> 22.07805447 | AQ19: =(Revenue!AY112+Revenue!AY111)/(Load_Demand!AY31+Load_Demand!AY32)*1000 -> 20.52078174 | AR19: =(Revenue!AZ112+Revenue!AZ111)/(Load_Demand!AZ31+Load_Demand!AZ32)*1000 -> 18.94036835 | AS19: =(Revenue!BA112+Revenue!BA111)/(Load_Demand!BA31+Load_Demand!BA32)*1000 -> 18.77520773 | AT19: =(Revenue!BB112+Revenue!BB111)/(Load_Demand!BB31+Load_Demand!BB32)*1000 -> 20.15700165 | AU19: =(Revenue!BC112+Revenue!BC111)/(Load_Demand!BC31+Load_Demand!BC32)*1000 -> 21.54155066 | AV19: =(Revenue!BD112+Revenue!BD111)/(Load_Demand!BD31+Load_Demand!BD32)*1000 -> 21.81879254 | AW19: =(Revenue!BE112+Revenue!BE111)/(Load_Demand!BE31+Load_Demand!BE32)*1000 -> 0 | AX19: =(Revenue!BF112+Revenue!BF111)/(Load_Demand!BF31+Load_Demand!BF32)*1000 -> 0 | AY19: =(Revenue!BG112+Revenue!BG111)/(Load_Demand!BG31+Load_Demand!BG32)*1000 -> 0 | AZ19: =(Revenue!BH112+Revenue!BH111)/(Load_Demand!BH31+Load_Demand!BH32)*1000 -> 0 | BA19: =(Revenue!BI112+Revenue!BI111)/(Load_Demand!BI31+Load_Demand!BI32)*1000 -> 0 | BB19: =(Revenue!BJ112+Revenue!BJ111)/(Load_Demand!BJ31+Load_Demand!BJ32)*1000 -> 0 | BC19: =(Revenue!BK112+Revenue!BK111)/(Load_Demand!BK31+Load_Demand!BK32)*1000 -> 0 | BD19: =(Revenue!BL112+Revenue!BL111)/(Load_Demand!BL31+Load_Demand!BL32)*1000 -> 0
E20: Quantity sold (B1 + B2) | G20: =Load_Demand!O31+Load_Demand!O32 -> 3454.784763 | H20: =Load_Demand!P31+Load_Demand!P32 -> 3434.706712 | I20: =Load_Demand!Q31+Load_Demand!Q32 -> 3414.770891 | J20: =Load_Demand!R31+Load_Demand!R32 -> 3398.231981 | K20: =Load_Demand!S31+Load_Demand!S32 -> 3384.920815 | L20: =Load_Demand!T31+Load_Demand!T32 -> 3221.243086 | M20: =Load_Demand!U31+Load_Demand!U32 -> 3120.44802 | N20: =Load_Demand!V31+Load_Demand!V32 -> 3060.763235 | O20: =Load_Demand!W31+Load_Demand!W32 -> 2992.43853 | P20: =Load_Demand!X31+Load_Demand!X32 -> 2924.570739 | Q20: =Load_Demand!Y31+Load_Demand!Y32 -> 2886.722197 | R20: =Load_Demand!Z31+Load_Demand!Z32 -> 2811.361117 | S20: =Load_Demand!AA31+Load_Demand!AA32 -> 2717.562775 | T20: =Load_Demand!AB31+Load_Demand!AB32 -> 2602.839687 | U20: =Load_Demand!AC31+Load_Demand!AC32 -> 2450.004918 | V20: =Load_Demand!AD31+Load_Demand!AD32 -> 2284.235046 | W20: =Load_Demand!AE31+Load_Demand!AE32 -> 2122.50893 | X20: =Load_Demand!AF31+Load_Demand!AF32 -> 1950.224276 | Y20: =Load_Demand!AG31+Load_Demand!AG32 -> 1782.340714 | Z20: =Load_Demand!AH31+Load_Demand!AH32 -> 1623.541133 | AA20: =Load_Demand!AI31+Load_Demand!AI32 -> 1494.630055 | AB20: =Load_Demand!AJ31+Load_Demand!AJ32 -> 1367.450274 | AC20: =Load_Demand!AK31+Load_Demand!AK32 -> 1239.640265 | AD20: =Load_Demand!AL31+Load_Demand!AL32 -> 1122.572681 | AE20: =Load_Demand!AM31+Load_Demand!AM32 -> 1022.675656 | AF20: =Load_Demand!AN31+Load_Demand!AN32 -> 943.1554419 | AG20: =Load_Demand!AO31+Load_Demand!AO32 -> 876.1294811 | AH20: =Load_Demand!AP31+Load_Demand!AP32 -> 815.9634853 | AI20: =Load_Demand!AQ31+Load_Demand!AQ32 -> 773.4254399 | AJ20: =Load_Demand!AR31+Load_Demand!AR32 -> 729.4753627 | AK20: =Load_Demand!AS31+Load_Demand!AS32 -> 695.5475602 | AL20: =Load_Demand!AT31+Load_Demand!AT32 -> 671.9091647 | AM20: =Load_Demand!AU31+Load_Demand!AU32 -> 652.4191775 | AN20: =Load_Demand!AV31+Load_Demand!AV32 -> 627.9703152 | AO20: =Load_Demand!AW31+Load_Demand!AW32 -> 582.8092046 | AP20: =Load_Demand!AX31+Load_Demand!AX32 -> 550.2201693 | AQ20: =Load_Demand!AY31+Load_Demand!AY32 -> 525.2647689 | AR20: =Load_Demand!AZ31+Load_Demand!AZ32 -> 506.8537611 | AS20: =Load_Demand!BA31+Load_Demand!BA32 -> 492.0316915 | AT20: =Load_Demand!BB31+Load_Demand!BB32 -> 470.3803391 | AU20: =Load_Demand!BC31+Load_Demand!BC32 -> 441.5016442 | AV20: =Load_Demand!BD31+Load_Demand!BD32 -> 409.8222149 | AW20: =Load_Demand!BE31+Load_Demand!BE32 -> 378.5942974 | AX20: =Load_Demand!BF31+Load_Demand!BF32 -> 400.1419136 | AY20: =Load_Demand!BG31+Load_Demand!BG32 -> 388.4771728 | AZ20: =Load_Demand!BH31+Load_Demand!BH32 -> 376.9233428 | BA20: =Load_Demand!BI31+Load_Demand!BI32 -> 365.479215 | BB20: =Load_Demand!BJ31+Load_Demand!BJ32 -> 354.1436039 | BC20: =Load_Demand!BK31+Load_Demand!BK32 -> 342.9153465 | BD20: =Load_Demand!BL31+Load_Demand!BL32 -> 331.7933011
E21: Stranding year | G21: =IFERROR(INDEX($G$11:$BD$11,MATCH(0,$G$16:$BD$16,0)),"n/a") -> 2067
E22: RAB at stranding (closing of the year before) | G22: =IFERROR(INDEX(CoS!$O$25:$BL$25,MATCH(G21,CoS!$O$5:$BL$5,0)-1),0) -> 441.1534873
K23: Scenarios | M23: =COUNTA(L26:L65) -> 20
E24: Stranding loss | F24: Undiscounted | G24: NPV | T24: Present value | W24: Sum (undiscounted)
E25: Under-recovery of COS whilst operating | F25: =SUMPRODUCT($G$15:$BD$15-$G$16:$BD$16,--($G$14:$BD$14=1),--($G$11:$BD$11<$G$21)) -> 927.0952398 | G25: =SUMPRODUCT($G$13:$BD$13,$G$15:$BD$15-$G$16:$BD$16,--($G$14:$BD$14=1),--($G$11:$BD$11<$G$21)) -> 216.137741 | K25: Scenario | L25: SL / ACC | M25: Check RAB | N25: Check capex | O25: Price cap | P25: Tilt RAB | Q25: Tilt capex | R25: Start - RAB | S25: Start - capex | T25: COS under-recovery | U25: RAB at closure | V25: Total | W25: COS under-recovery | X25: RAB at closure | Y25: Total
E26: Unrecovered RAB | F26: =G22 -> 441.1534873 | G26: =IFERROR(G22*INDEX($G$13:$BD$13,MATCH(G21,$G$11:$BD$11,0)-1),0) -> 63.9659372 | J26: 1 | K26: Natural Gas Retained | L26: Straight line depreciation | M26: FALSE | N26: FALSE | O26: 2 | P26: 0.02 | Q26: =P26 -> 0.02 | R26: 2025 | S26: =R26 -> 2025 | T26: 0 | U26: 0 | V26: =T26+U26 -> 0 | W26: 0 | X26: 0 | Y26: =W26+X26 -> 0
E27: Total loss | G27: =G25+G26 -> 280.1036782 | J27: =J26+1 -> 2 | K27: =K26 -> Natural Gas Retained | L27: Accelerated depreciation | M27: TRUE | N27: TRUE | O27: 2 | P27: 0.02 | Q27: =P27 -> 0.02 | R27: 2025 | S27: =R27 -> 2025 | T27: 0 | U27: 0 | V27: =T27+U27 -> 0 | W27: 0 | X27: 0 | Y27: =W27+X27 -> 0
J28: =J27+1 -> 3 | K28: =K27 -> Natural Gas Retained | L28: Accelerated depreciation | M28: TRUE | N28: TRUE | O28: 2 | P28: 0.05 | Q28: 0.05 | R28: 2025 | S28: 2025 | T28: 0 | U28: 0 | V28: 0 | W28: 0 | X28: 0 | Y28: 0
J29: 4 | K29: Natural Gas Retained | L29: Accelerated depreciation | M29: =M27 -> TRUE | N29: TRUE | O29: 2 | P29: 0.02 | Q29: 0.02 | R29: 2030 | S29: 2030 | T29: 0 | U29: 0 | V29: 0 | W29: 0 | X29: 0 | Y29: 0
J30: 5 | K30: Natural Gas Retained | L30: Accelerated depreciation | M30: TRUE | N30: TRUE | O30: 2 | P30: 0.05 | Q30: 0.05 | R30: 2030 | S30: 2030 | T30: 60.00287886 | U30: 22.28990171 | V30: 82.29278056 | W30: 334.7035232 | X30: 193.458275 | Y30: 528.1617981
J31: 6 | K31: Energy Hybrid | L31: Straight line depreciation | M31: =M26 -> FALSE | N31: FALSE | O31: 2 | P31: 0.02 | Q31: =P31 -> 0.02 | R31: 2025 | S31: 2025 | T31: 118.6158193 | U31: 0 | V31: 118.6158193 | W31: 773.1579194 | X31: 0 | Y31: 773.1579194
J32: 7 | K32: Energy Hybrid | L32: Accelerated depreciation | M32: TRUE | N32: TRUE | O32: 2 | P32: 0.02 | Q32: =P32 -> 0.02 | R32: 2025 | S32: 2025 | T32: 71.35615841 | U32: 0 | V32: 71.35615841 | W32: 463.5578056 | X32: 0 | Y32: 463.5578056
J33: 8 | K33: Energy Hybrid | L33: Accelerated depreciation | M33: TRUE | N33: TRUE | O33: 2 | P33: 0.05 | Q33: 0.05 | R33: 2025 | S33: 2025 | T33: 20.91513985 | U33: 0 | V33: 20.91513985 | W33: 147.762788 | X33: 0 | Y33: 147.762788
J34: 9 | K34: Energy Hybrid | L34: Accelerated depreciation | M34: TRUE | N34: TRUE | O34: 2 | P34: 0.02 | Q34: 0.02 | R34: 2030 | S34: 2030 | T34: 99.7578905 | U34: 0 | V34: 99.7578905 | W34: 596.7413964 | X34: 0 | Y34: 596.7413964
J35: 10 | K35: Energy Hybrid | L35: Accelerated depreciation | M35: TRUE | N35: TRUE | O35: 2 | P35: 0.05 | Q35: 0.05 | R35: 2030 | S35: 2030 | T35: 149.3737439 | U35: 52.88543771 | V35: =T35+U35 -> 202.2591816 | W35: 497.7537208 | X35: 289.8270018 | Y35: 787.5807226
J36: 11 | K36: Hydrogen Future | L36: Straight line depreciation | M36: FALSE | N36: FALSE | O36: 2 | P36: 0.02 | Q36: 0.02 | R36: 2025 | S36: 2025 | T36: 397.9157129 | U36: 0 | V36: 397.9157129 | W36: 2256.825491 | X36: 0 | Y36: 2256.825491
J37: 12 | K37: =K36 -> Hydrogen Future | L37: Accelerated depreciation | M37: TRUE | N37: TRUE | O37: 2 | P37: 0.02 | Q37: 0.02 | R37: 2025 | S37: 2025 | T37: 305.2462446 | U37: 0 | V37: 305.2462446 | W37: 1717.068496 | X37: 0 | Y37: 1717.068496
J38: 13 | K38: =K37 -> Hydrogen Future | L38: Accelerated depreciation | M38: TRUE | N38: TRUE | O38: 2 | P38: 0.05 | Q38: 0.05 | R38: 2025 | S38: 2025 | T38: 148.9599767 | U38: 0 | V38: 148.9599767 | W38: 847.0527016 | X38: 0 | Y38: 847.0527016
J39: 14 | K39: Hydrogen Future | L39: Accelerated depreciation | M39: TRUE | N39: TRUE | O39: 2 | P39: 0.02 | Q39: 0.02 | R39: 2030 | S39: 2030 | T39: 406.8910585 | U39: 0 | V39: 406.8910585 | W39: 2095.64446 | X39: 0 | Y39: 2095.64446
J40: 15 | K40: Hydrogen Future | L40: Accelerated depreciation | M40: TRUE | N40: TRUE | O40: 2 | P40: 0.05 | Q40: 0.05 | R40: 2030 | S40: 2030 | T40: 384.5943743 | U40: 0 | V40: 384.5943743 | W40: 1612.217945 | X40: 0 | Y40: 1612.217945
J41: 16 | K41: Electricity Dominates | L41: Straight line depreciation | M41: FALSE | N41: FALSE | O41: 2 | P41: 0.02 | Q41: 0.02 | R41: 2025 | S41: 2025 | T41: 244.6261197 | U41: 81.96339488 | V41: 326.5895146 | W41: 1154.913003 | X41: 619.72094 | Y41: 1774.633943
J42: 17 | K42: Electricity Dominates | L42: Accelerated depreciation | M42: TRUE | N42: TRUE | O42: 2 | P42: 0.02 | Q42: 0.02 | R42: 2025 | S42: 2025 | T42: 158.4414626 | U42: 51.74273127 | V42: 210.1841939 | W42: 760.8721521 | X42: 391.2240837 | Y42: 1152.096236
J43: 18 | K43: =K42 -> Electricity Dominates | L43: Accelerated depreciation | M43: TRUE | N43: TRUE | O43: 2 | P43: 0.05 | Q43: 0.05 | R43: 2025 | S43: 2025 | T43: 72.89885716 | U43: 23.98370043 | V43: 96.88255759 | W43: 354.4499469 | X43: 181.339504 | Y43: 535.7894509
J44: 19 | K44: Electricity Dominates | L44: Accelerated depreciation | M44: TRUE | N44: TRUE | O44: 2 | P44: 0.02 | Q44: 0.02 | R44: 2030 | S44: 2030 | T44: 216.137741 | U44: 63.9659372 | V44: 280.1036782 | W44: 927.0952398 | X44: 441.1534873 | Y44: 1368.248727
J45: 20 | K45: Electricity Dominates | L45: Accelerated depreciation | M45: TRUE | N45: TRUE | O45: 2 | P45: 0.05 | Q45: 0.05 | R45: 2030 | S45: 2030 | T45: 196.2724306 | U45: 53.02671546 | V45: 249.2991461 | W45: 652.0142773 | X45: 277.5427113 | Y45: 929.5569886
J46: 21 | V46: =T46+U46 -> 0 | Y46: =W46+X46 -> 0
J47: 22 | V47: 0 | Y47: 0
J48: 23 | V48: 0 | Y48: 0
J49: 24 | V49: 0 | Y49: 0
J50: 25 | V50: 0 | Y50: 0
J51: 26 | V51: 0 | Y51: 0
J52: 27 | V52: 0 | Y52: 0
J53: 28 | V53: 0 | Y53: 0
J54: 29 | V54: 0 | Y54: 0
J55: 30 | V55: 0 | Y55: 0
J56: 31 | V56: 0 | Y56: 0
J57: 32 | V57: 0 | Y57: 0
J58: 33 | V58: 0 | Y58: 0
J59: 34 | V59: 0 | Y59: 0
J60: 35 | V60: 0 | Y60: 0
J61: 36 | V61: =T61+U61 -> 0 | Y61: =W61+X61 -> 0
J62: 37 | V62: 0 | Y62: 0
J63: 38 | V63: 0 | Y63: 0
J64: 39 | V64: 0 | Y64: 0
J65: 40 | V65: 0 | Y65: 0

Sheet User Output
A1: Back to Dashboard
C2: Mid West and South West Gas Distribution Systems | I2: 2019 | J2: 2020 | K2: 2021 | L2: 2022 | M2: 2023 | N2: 2024 | O2: 2025 | P2: 2026 | Q2: 2027 | R2: 2028 | S2: 2029 | T2: 2030 | U2: 2031 | V2: 2032 | W2: 2033 | X2: 2034 | Y2: 2035 | Z2: 2036 | AA2: 2037 | AB2: 2038 | AC2: 2039 | AD2: 2040 | AE2: 2041 | AF2: 2042 | AG2: 2043 | AH2: 2044 | AI2: 2045 | AJ2: 2046 | AK2: 2047 | AL2: 2048 | AM2: 2049 | AN2: 2050 | AO2: 2051 | AP2: 2052 | AQ2: 2053 | AR2: 2054 | AS2: 2055 | AT2: 2056 | AU2: 2057 | AV2: 2058 | AW2: 2059 | AX2: 2060 | AY2: 2061 | AZ2: 2062 | BA2: 2063 | BB2: 2064 | BC2: 2065 | BD2: 2066 | BE2: 2067 | BF2: 2068 | BG2: 2069 | BH2: 2070 | BI2: 2071 | BJ2: 2072 | BK2: 2073 | BL2: 2074
A4: Scenario | C4: Electricity Dominates
A5: Price Cap | C5: 2
A6: Tilt value for Existing RAB | C6: 0.06
A7: Tilt value for New RAB | C7: 0.06
A8: Total Accelerated Depn | C8: -281.6742478
A10: Straight line depreciation
A11: Depreciation (SL) | C11: $M real 2023 december | O11: -60.18524682 | P11: -72.85088533 | Q11: -78.39395398 | R11: -79.67588411 | S11: -79.94638155 | T11: -80.03999662 | U11: -79.95162011 | V11: -75.71158751 | W11: -76.73496483 | X11: -78.7402433 | Y11: -81.10389971 | Z11: -81.33084293 | AA11: -81.23937157 | AB11: -81.37055952 | AC11: -81.08362789 | AD11: -75.43949195 | AE11: -75.04006637 | AF11: -73.78776678 | AG11: -72.16265535 | AH11: -70.27290475 | AI11: -68.02131016 | AJ11: -65.91575206 | AK11: -63.94916294 | AL11: -62.10185597 | AM11: -60.20141457 | AN11: -52.3777056 | AO11: -50.47402111 | AP11: -48.60414048 | AQ11: -46.67191423 | AR11: -44.56205599 | AS11: -41.60606394 | AT11: -39.74095736 | AU11: -38.21967583 | AV11: -36.87517155 | AW11: -35.49395398 | AX11: -34.57063668 | AY11: -33.54404491 | AZ11: -32.73157726 | BA11: -32.04639103 | BB11: -31.35456751 | BC11: -30.69397642 | BD11: -29.99998509 | BE11: -29.31651277 | BF11: -28.64684802 | BG11: -28.02707276 | BH11: -27.40277344 | BI11: -26.94554316 | BJ11: -26.47143594 | BK11: -25.8756013 | BL11: -25.23169681
A12: RAB (SL) | C12: $M real 2023 december | O12: 1623.729003 | P12: 1664.481184 | Q12: 1681.874522 | R12: 1693.766965 | S12: 1703.055403 | T12: 1719.159183 | U12: 1717.933707 | V12: 1712.658548 | W12: 1703.43405 | X12: 1689.897298 | Y12: 1674.430355 | Z12: 1657.473223 | AA12: 1640.113793 | AB12: 1622.386567 | AC12: 1604.670027 | AD12: 1592.979947 | AE12: 1568.199497 | AF12: 1537.392889 | AG12: 1502.908685 | AH12: 1466.074791 | AI12: 1427.909774 | AJ12: 1388.706739 | AK12: 1348.634955 | AL12: 1307.797723 | AM12: 1266.410901 | AN12: 1230.864289 | AO12: 1194.625835 | AP12: 1158.065796 | AQ12: 1121.278485 | AR12: 1084.45189 | AS12: 1048.422112 | AT12: 1012.068053 | AU12: 974.9947678 | AV12: 938.1195962 | AW12: 902.6256423 | AX12: 868.0550056 | AY12: 834.5109607 | AZ12: 801.7793834 | BA12: 769.7329924 | BB12: 738.3784249 | BC12: 707.6844484 | BD12: 677.6844634 | BE12: 648.3679506 | BF12: 619.7211026 | BG12: 591.6940298 | BH12: 564.2912564 | BI12: 537.3457132 | BJ12: 510.8742773 | BK12: 484.998676 | BL12: 459.7669792
A13: Capex (SL) | C13: $M real 2023 december | O13: 99.79602979 | P13: 113.6030667 | Q13: 95.78729205 | R13: 91.5683269 | S13: 89.23481994 | T13: 96.14377631 | U13: 78.72614405 | V13: 70.43642833 | W13: 67.51046756 | X13: 65.20349117 | Y13: 65.63695672 | Z13: 64.37371111 | AA13: 63.87994153 | AB13: 63.64333294 | AC13: 63.36708809 | AD13: 63.74941193 | AE13: 50.25961652 | AF13: 42.98115871 | AG13: 37.67845158 | AH13: 33.4390101 | AI13: 29.85629363 | AJ13: 26.7127172 | AK13: 23.87737824 | AL13: 21.26462451 | AM13: 18.81459287 | AN13: 16.83109268 | AO13: 14.23556737 | AP13: 12.04410183 | AQ13: 9.884602798 | AR13: 7.735461019 | AS13: 5.576286266 | AT13: 3.38689816 | AU13: 1.146390755 | AV13: 0 | AW13: 0 | AX13: 0 | AY13: 0 | AZ13: 0 | BA13: 0 | BB13: 0 | BC13: 0 | BD13: 0 | BE13: 0 | BF13: 0 | BG13: 0 | BH13: 0 | BI13: 0 | BJ13: 0 | BK13: 0 | BL13: 0
A14: Opex (SL) | C14: $M real 2023 december | O14: 77.61080488 | P14: 80.60477872 | Q14: 82.86260081 | R14: 88.96429519 | S14: 88.26861057 | T14: 85.74147157 | U14: 85.65486947 | V14: 85.49106285 | W14: 85.25981286 | X14: 84.93719143 | Y14: 84.67478911 | Z14: 84.27468705 | AA14: 83.73605967 | AB14: 83.00350076 | AC14: 81.78913464 | AD14: 80.11715712 | AE14: 73.46356134 | AF14: 66.21553635 | AG14: 58.74938411 | AH14: 51.5420909 | AI14: 45.27130126 | AJ14: 39.41085271 | AK14: 33.77550658 | AL14: 28.43338646 | AM14: 23.0387499 | AN14: 18.00120007 | AO14: 13.4533711 | AP14: 12.00178073 | AQ14: 11.0107681 | AR14: 10.18167049 | AS14: 9.519479961 | AT14: 9.414072248 | AU14: 9.322114783 | AV14: 9.278708419 | AW14: 9.038485086 | AX14: 8.949581582 | AY14: 8.818217516 | AZ14: 8.542356642 | BA14: 8.473785517 | BB14: 8.39794883 | BC14: 8.280212366 | BD14: 8.095486249 | BE14: 4.944643251 | BF14: 4.097848685 | BG14: 3.531228955 | BH14: 3.538325139 | BI14: 3.531901868 | BJ14: 3.525532533 | BK14: 3.51921659 | BL14: 3.512953505
A15: Cost of service (SL) | C15: $M real 2023 december | O15: 216.3765879 | P15: 235.7137896 | Q15: 245.76571 | R15: 254.2161596 | S15: 254.6037439 | T15: 252.9014742 | U15: 253.2393258 | V15: 248.6418401 | W15: 249.4686085 | X15: 250.9862833 | Y15: 252.7266554 | Z15: 252.0246839 | AA15: 250.755227 | AB15: 249.5263757 | AC15: 247.3440458 | AD15: 238.3295424 | AE15: 230.7668259 | AF15: 221.2266957 | AG15: 210.8341892 | AH15: 200.2537963 | AI15: 190.1205058 | AJ15: 180.5390093 | AK15: 171.1716228 | AL15: 162.1604954 | AM15: 152.966256 | AN15: 137.1239423 | AO15: 128.9542321 | AP15: 123.9023983 | AQ15: 119.2258122 | AR15: 108.3570344 | AS15: 102.1167273 | AT15: 98.45525541 | AU15: 95.13453477 | AV15: 92.00530686 | AW15: 88.65041205 | AX15: 85.96877881 | AY15: 83.18450849 | AZ15: 80.51826152 | BA15: 78.22513555 | BB15: 75.94987734 | BC15: 73.69651766 | BD15: 71.37394158 | BE15: 66.12856772 | BF15: 63.23978497 | BG15: 60.70744146 | BH15: 58.77282275 | BI15: 57.01985771 | BJ15: 55.27161227 | BK15: 53.42399952 | BL15: 51.55640384
A16: Tariff revenue (SL) | C16: $M real 2023 december | O16: 239.5577198 | P16: 239.7595696 | Q16: 240.277186 | R16: 241.0377593 | S16: 241.9579174 | T16: 252.9014742 | U16: 253.2393258 | V16: 248.6418401 | W16: 249.4686085 | X16: 250.9862833 | Y16: 252.7266554 | Z16: 252.0246839 | AA16: 250.755227 | AB16: 249.5263757 | AC16: 247.3440458 | AD16: 238.3295424 | AE16: 230.7668259 | AF16: 221.2266957 | AG16: 210.8341892 | AH16: 200.2537963 | AI16: 190.1205058 | AJ16: 180.5390093 | AK16: 171.1716228 | AL16: 157.3809838 | AM16: 129.1964521 | AN16: 96.65099275 | AO16: 70.42959079 | AP16: 53.67853178 | AQ16: 45.3969892 | AR16: 38.33150827 | AS16: 36.45207078 | AT16: 33.69222978 | AU16: 30.1308383 | AV16: 28.07477463 | AW16: 26.63800307 | AX16: 27.4294607 | AY16: 27.25117223 | AZ16: 24.595104 | BA16: 21.5503591 | BB16: 19.50292067 | BC16: 19.34753348 | BD16: 19.167248 | BE16: 15.07394966 | BF16: 12.56441968 | BG16: 0 | BH16: 0 | BI16: 0 | BJ16: 0 | BK16: 0 | BL16: 0
A17: Consumption (SL) | C17: TJ | O17: 28226.88538 | P17: 28189.6661 | Q17: 28488.22 | R17: 28289.93598 | S17: 28099.92648 | T17: 26582.3385 | U17: 26246.99233 | V17: 26067.48066 | W17: 25779.72043 | X17: 25470.03881 | Y17: 25419.95024 | Z17: 25036.93562 | AA17: 24516.48267 | AB17: 23835.22195 | AC17: 22790.24244 | AD17: 21490.52717 | AE17: 19788.30839 | AF17: 17828.59277 | AG17: 15839.39914 | AH17: 13933.15999 | AI17: 12278.28856 | AJ17: 10703.64583 | AK17: 9218.98224 | AL17: 7817.191709 | AM17: 6454.199345 | AN17: 5263.773392 | AO17: 4221.573823 | AP17: 3290.444225 | AQ17: 2627.520965 | AR17: 2052.369724 | AS17: 1908.325099 | AT17: 1863.19435 | AU17: 1838.051094 | AV17: 1814.133736 | AW17: 1651.265039 | AX17: 1575.111381 | AY17: 1523.270435 | AZ17: 1460.182264 | BA17: 1444.526599 | BB17: 1400.335305 | BC17: 1320.310506 | BD17: 1182.069333 | BE17: 856.7351784 | BF17: 731.5125467 | BG17: 350.9435134 | BH17: 369.128305 | BI17: 357.9379248 | BJ17: 346.8536497 | BK17: 335.8743424 | BL17: 324.9988866
A18: Customers (SL) | C18: number | O18: 807356.9482 | P18: 816408.9411 | Q18: 826373.2563 | R18: 836834.5155 | S18: 847545.2085 | T18: 855811.422 | U18: 856699.1481 | V18: 854451.0626 | W18: 850605.6709 | X18: 844510.0724 | Y18: 838949.098 | Z18: 830982.9564 | AA18: 819717.1044 | AB18: 803704.7297 | AC18: 775858.6187 | AD18: 736407.6755 | AE18: 678546.9757 | AF18: 615949.2932 | AG18: 551487.1966 | AH18: 489011.3122 | AI18: 433995.5491 | AJ18: 382270.1889 | AK18: 332276.177 | AL18: 284591.9075 | AM18: 236379.3251 | AN18: 190736.2406 | AO18: 148709.5463 | AP18: 111675.7831 | AQ18: 86590.15938 | AR18: 65770.60141 | AS18: 61709.53416 | AT18: 61133.5187 | AU18: 60608.76997 | AV18: 59701.61747 | AW18: 53725.60487 | AX18: 51788.51167 | AY18: 51119.87262 | AZ18: 49607.3185 | BA18: 49253.69396 | BB18: 47411.78968 | BC18: 44521.74364 | BD18: 39990.91639 | BE18: 28177.7222 | BF18: 23866.85601 | BG18: 9115.978837 | BH18: 9079.514922 | BI18: 9043.196862 | BJ18: 9007.024075 | BK18: 8970.995979 | BL18: 8935.111995
A19: Residential Prices (SL) | C19: $/GJ | O19: 32.93120211 | P19: 33.15898342 | Q19: 34.69703262 | R19: 35.42826573 | S19: 34.08485893 | T19: 39.44184765 | U19: 41.53583168 | V19: 42.05033841 | W19: 42.69445297 | X19: 43.28286828 | Y19: 42.88726553 | Z19: 43.56794409 | AA19: 44.47712736 | AB19: 45.6730642 | AC19: 47.07665371 | AD19: 48.38191458 | AE19: 49.32391333 | AF19: 51.26144513 | AG19: 53.69170999 | AH19: 56.56638654 | AI19: 59.72905221 | AJ19: 63.64974192 | AK19: 68.14020113 | AL19: 73.69724508 | AM19: 78.97501825 | AN19: 79.08342112 | AO19: 74.22325623 | AP19: 69.02970123 | AQ19: 67.61984471 | AR19: 70.21148366 | AS19: 73.8475082 | AT19: 75.56755831 | AU19: 73.11127725 | AV19: 68.39026862 | AW19: 65.9498647 | AX19: 67.98401725 | AY19: 72.50463755 | AZ19: 74.79110137 | BA19: 71.92115071 | BB19: 66.02338284 | BC19: 62.94408387 | BD19: 65.47786675 | BE19: 70.57142904 | BF19: 72.65476381 | BG19: 70.22280746 | BH19: 0 | BI19: 0 | BJ19: 0 | BK19: 0 | BL19: 0
A21: Accelerated depreciation
A22: Depreciation | C22: $M real 2023 december | O22: -130.2560018 | P22: -131.692351 | Q22: -133.7519462 | R22: -129.7093588 | S22: -127.3841644 | T22: -124.3887009 | U22: -119.3573728 | V22: -111.6004195 | W22: -108.8421413 | X22: -107.159115 | Y22: -105.6199724 | Z22: -102.7754076 | AA22: -99.92646114 | AB22: -97.428519 | AC22: -94.8330237 | AD22: -89.39735999 | AE22: -86.02164752 | AF22: -82.04443984 | AG22: -77.84360422 | AH22: -73.52720071 | AI22: -69.08465871 | AJ22: -65.20112296 | AK22: -61.45265246 | AL22: -57.86301013 | AM22: -54.35849421 | AN22: -48.11110547 | AO22: -45.05888542 | AP22: -42.06957099 | AQ22: -39.12595381 | AR22: -36.18436613 | AS22: -33.31920937 | AT22: -30.91428201 | AU22: -28.52174094 | AV22: -26.12195486 | AW22: -23.90959036 | AX22: -21.99211739 | AY22: -20.22263657 | AZ22: -18.66964779 | BA22: -17.25286219 | BB22: -16.01274175 | BC22: -14.80554633 | BD22: -13.71769048 | BE22: -12.70948146 | BF22: -11.78095083 | BG22: -10.92079813 | BH22: -10.12857984 | BI22: -9.406659247 | BJ22: -8.731431829 | BK22: -8.082464596 | BL22: -7.47044649
A23: RAB (AD) | C23: $M real 2023 december | O23: 1553.658248 | P23: 1535.568963 | Q23: 1497.604309 | R23: 1459.463277 | S23: 1421.313933 | T23: 1363.33497 | U23: 1307.838438 | V23: 1260.076355 | W23: 1215.030908 | X23: 1171.591605 | Y23: 1129.857138 | Z23: 1090.86657 | AA23: 1054.59153 | AB23: 1020.66696 | AC23: 989.0883883 | AD23: 951.1096208 | AE23: 908.2277118 | AF23: 864.0712713 | AG23: 819.9218276 | AH23: 776.5493301 | AI23: 734.5184499 | AJ23: 693.578991 | AK23: 653.8199681 | AL23: 615.2475813 | AM23: 577.8982744 | AN23: 544.9157571 | AO23: 512.5399851 | AP23: 481.0587054 | AQ23: 450.4436306 | AR23: 420.6912129 | AS23: 391.7051183 | AT23: 362.9865518 | AU23: 334.4648109 | AV23: 308.342856 | AW23: 284.4332657 | AX23: 262.4411483 | AY23: 242.2185117 | AZ23: 223.5488639 | BA23: 206.2960017 | BB23: 190.28326 | BC23: 175.4777137 | BD23: 161.7600232 | BE23: 149.0505417 | BF23: 137.2695909 | BG23: 126.3487928 | BH23: 116.2202129 | BI23: 106.8135537 | BJ23: 98.08212186 | BK23: 89.99965726 | BL23: 82.52921077
A24: Capex (AD) | C24: $M real 2023 december | O24: 99.79602979 | P24: 113.6030667 | Q24: 95.78729205 | R24: 91.5683269 | S24: 89.23481994 | T24: 66.40973789 | U24: 63.86084085 | V24: 63.8383368 | W24: 63.79669361 | X24: 63.71981258 | Y24: 63.88550565 | Z24: 63.7848395 | AA24: 63.65142074 | AB24: 63.50394867 | AC24: 63.25445247 | AD24: 51.41859245 | AE24: 43.1397386 | AF24: 37.88799929 | AG24: 33.69416057 | AH24: 30.15470315 | AI24: 27.05377857 | AJ24: 24.26166407 | AK24: 21.69362957 | AL24: 19.29062326 | AM24: 17.00918735 | AN24: 15.12858815 | AO24: 12.68311341 | AP24: 10.58829128 | AQ24: 8.510879069 | AR24: 6.43194845 | AS24: 4.333114762 | AT24: 2.195715525 | AU24: 0 | AV24: 0 | AW24: 0 | AX24: 0 | AY24: 0 | AZ24: 0 | BA24: 0 | BB24: 0 | BC24: 0 | BD24: 0 | BE24: 0 | BF24: 0 | BG24: 0 | BH24: 0 | BI24: 0 | BJ24: 0 | BK24: 0 | BL24: 0
A25: Opex (AD) | C25: $M real 2023 december | O25: 77.61080488 | P25: 80.60477872 | Q25: 82.86260081 | R25: 88.96429519 | S25: 88.26861057 | T25: 85.01935135 | U25: 84.46790366 | V25: 83.91964223 | W25: 83.35763158 | X25: 82.72858151 | Y25: 82.23221109 | Z25: 81.62338319 | AA25: 80.8731913 | AB25: 79.93472491 | AC25: 78.51398313 | AD25: 73.34527988 | AE25: 66.30688436 | AF25: 58.79755708 | AG25: 51.06587341 | AH25: 45.90068304 | AI25: 40.97783464 | AJ25: 36.11337544 | AK25: 31.29404238 | AL25: 29.68471928 | AM25: 24.21628598 | AN25: 22.60160131 | AO25: 21.11735696 | AP25: 15.03047808 | AQ25: 11.60027941 | AR25: 8.765726993 | AS25: 8.609386102 | AT25: 8.56726943 | AU25: 8.523467716 | AV25: 4.823473124 | AW25: 4.651663735 | AX25: 4.535100677 | AY25: 4.502228156 | AZ25: 4.457168258 | BA25: 4.428112249 | BB25: 4.198164754 | BC25: 3.786521421 | BD25: 3.231980504 | BE25: 2.789929522 | BF25: 2.687256805 | BG25: 2.358633468 | BH25: 2.363236057 | BI25: 2.359629417 | BJ25: 2.356053056 | BK25: 2.352506669 | BL25: 2.348989956
A26: Cost of service (AD) | C26: $M real 2023 december | O26: 298.8127702 | P26: 302.2196083 | Q26: 305.1459142 | R26: 304.5521074 | S26: 299.3468904 | T26: 290.9071364 | U26: 281.5496362 | V26: 269.8039263 | W26: 263.743753 | X26: 258.8152834 | Y26: 254.2023417 | Z26: 248.3365953 | AA26: 242.4744303 | AB26: 236.9656861 | AC26: 231.0165806 | AD26: 218.0257364 | AE26: 205.4440329 | AF26: 191.5880268 | AG26: 177.2625485 | AH26: 165.4003313 | AI26: 153.7273727 | AJ26: 142.6275633 | AK26: 131.7710668 | AL26: 124.3969655 | AM26: 113.3309492 | AN26: 102.937592 | AO26: 96.56598319 | AP26: 85.72429187 | AQ26: 77.61547982 | AR26: 66.6885696 | AS26: 61.69433537 | AT26: 57.88649636 | AU26: 54.1017057 | AV26: 46.66278676 | AW26: 43.05800526 | AX26: 39.89942684 | AY26: 37.06262241 | AZ26: 34.51318774 | BA26: 32.18905595 | BB26: 29.90732187 | BC26: 27.53561382 | BD26: 25.19754931 | BE26: 23.10311885 | BF26: 21.47492607 | BG26: 19.73209254 | BH26: 18.43138754 | BI26: 17.22930793 | BJ26: 16.10793654 | BK26: 15.04462495 | BL26: 14.04882624
A27: Tariff revenue (AD) | C27: $M real 2023 december | O27: 300.8540913 | P27: 301.107589 | Q27: 301.7576496 | R27: 302.7128331 | S27: 303.8684348 | T27: 290.9071364 | U27: 281.5496362 | V27: 269.8039263 | W27: 263.743753 | X27: 258.8152834 | Y27: 254.2023417 | Z27: 248.3365953 | AA27: 242.4744303 | AB27: 236.9656861 | AC27: 231.0165806 | AD27: 218.0257364 | AE27: 205.4440329 | AF27: 191.5880268 | AG27: 177.2625485 | AH27: 165.4003313 | AI27: 153.7273727 | AJ27: 142.6275633 | AK27: 131.7710668 | AL27: 124.3969655 | AM27: 113.3309492 | AN27: 102.937592 | AO27: 94.10110889 | AP27: 76.24930127 | AQ27: 58.21493888 | AR27: 41.77505259 | AS27: 35.12268689 | AT27: 35.25937949 | AU27: 39.1936746 | AV27: 29.78999506 | AW27: 26.73734786 | AX27: 22.17556839 | AY27: 19.04333549 | AZ27: 19.03310772 | BA27: 21.29837087 | BB27: 21.55353243 | BC27: 18.44551513 | BD27: 13.9960475 | BE27: 8.802025994 | BF27: 7.783991778 | BG27: 0 | BH27: 0 | BI27: 0 | BJ27: 0 | BK27: 0 | BL27: 0
A28: Consumption (AD) | C28: TJ | O28: 28226.88538 | P28: 28189.6661 | Q28: 28488.22 | R28: 28289.93598 | S28: 28099.92648 | T28: 26169.09475 | U28: 25681.11341 | V28: 25279.23691 | W28: 24794.93708 | X28: 24299.90301 | Y28: 24096.29173 | Z28: 23601.99893 | AA28: 22960.25406 | AB28: 22154.68763 | AC28: 20974.95696 | AD28: 19558.9416 | AE28: 17815.86158 | AF28: 15870.46674 | AG28: 13891.72633 | AH28: 12498.59453 | AI28: 11227.37856 | AJ28: 9944.35389 | AK28: 8695.955966 | AL28: 7509.055628 | AM28: 6249.62332 | AN28: 5073.280828 | AO28: 3997.762371 | AP28: 3044.956028 | AQ28: 2465.518294 | AR28: 2006.648252 | AS28: 1917.095735 | AT28: 1900.451848 | AU28: 1852.219546 | AV28: 1273.909767 | AW28: 1200.142636 | AX28: 1158.559169 | AY28: 1143.887935 | AZ28: 1119.811654 | BA28: 1088.591029 | BB28: 1005.372204 | BC28: 898.0591673 | BD28: 786.2984757 | BE28: 498.3521419 | BF28: 428.3245992 | BG28: 201.8583927 | BH28: 213.4032212 | BI28: 207.1115163 | BJ28: 200.8794109 | BK28: 194.7062654 | BL28: 188.5914515
A29: Customers (AD) | C29: number | O29: 807356.9482 | P29: 816408.9411 | Q29: 826373.2563 | R29: 836834.5155 | S29: 847545.2085 | T29: 837590.8073 | U29: 825865.7817 | V29: 813769.0291 | W29: 801490.5432 | X29: 787554.5891 | Y29: 776001.4892 | Z29: 762528.389 | AA29: 745736.3942 | AB29: 724378.3587 | AC29: 691228.9675 | AD29: 647951.2099 | AE29: 589520.967 | AF29: 527546.4776 | AG29: 463796.4796 | AH29: 419934.7026 | AI29: 377862.4931 | AJ29: 336239.0698 | AK29: 294906.278 | AL29: 255343.4913 | AM29: 213485.9694 | AN29: 173558.2802 | AO29: 136856.2861 | AP29: 104549.5001 | AQ29: 84083.89365 | AR29: 66531.5651 | AS29: 62809.65039 | AT29: 61945.90067 | AU29: 61301.43708 | AV29: 41238.20706 | AW29: 39960.66193 | AX29: 39098.14915 | AY29: 38493.06236 | AZ29: 37493.60544 | BA29: 37050.77124 | BB29: 35290.21821 | BC29: 32079.83362 | BD29: 27760.59135 | BE29: 16199.81639 | BF29: 13584.67531 | BG29: 5091.005838 | BH29: 5070.641815 | BI29: 5050.359247 | BJ29: 5030.15781 | BK29: 5010.037179 | BL29: 4989.99703
A30: Residential Prices (AD) | C30: $/GJ | O30: 38.07384297 | P30: 38.33817879 | Q30: 39.99098931 | R30: 40.83655028 | S30: 39.60621211 | T30: 45.07015551 | U30: 45.62898113 | V30: 45.51897147 | W30: 45.74882215 | X30: 45.9201509 | Y30: 45.1306821 | Z30: 45.33800807 | AA30: 45.86711349 | AB30: 46.74819376 | AC30: 47.87428342 | AD30: 48.9963421 | AE30: 49.64408541 | AF30: 51.03352314 | AG30: 52.84364163 | AH30: 55.0410028 | AI30: 56.44422454 | AJ30: 58.36850688 | AK30: 60.55104838 | AL30: 63.21671896 | AM30: 67.69754995 | AN30: 72.63444593 | AO30: 79.36987044 | AP30: 89.46944681 | AQ30: 94.25538372 | AR30: 90.06662833 | AS30: 81.23955954 | AT30: 73.99559117 | AU30: 75.32644751 | AV30: 84.37061011 | AW30: 90.115068 | AX30: 88.03325775 | AY30: 79.03197527 | AZ30: 71.66155282 | BA30: 73.41734119 | BB30: 82.98158879 | BC30: 90.75071578 | BD30: 88.46602048 | BE30: 78.45007849 | BF30: 73.46621085 | BG30: 73.60214748 | BH30: 0 | BI30: 0 | BJ30: 0 | BK30: 0 | BL30: 0
A32: Change (AD minus straight line)
A33: Depreciation | C33: $M real 2023 december | O33: =O22-O11 -> -70.07075496 | P33: -58.84146568 | Q33: -55.35799222 | R33: -50.03347469 | S33: -47.43778283 | T33: -44.34870428 | U33: -39.4057527 | V33: -35.88883196 | W33: -32.10717646 | X33: -28.41887173 | Y33: -24.51607266 | Z33: -21.44456467 | AA33: -18.68708956 | AB33: -16.05795948 | AC33: -13.74939581 | AD33: -13.95786804 | AE33: -10.98158115 | AF33: -8.256673066 | AG33: -5.680948877 | AH33: -3.254295966 | AI33: -1.063348549 | AJ33: 0.7146290987 | AK33: 2.496510484 | AL33: 4.238845831 | AM33: 5.842920355 | AN33: 4.266600127 | AO33: 5.415135695 | AP33: 6.534569482 | AQ33: 7.545960413 | AR33: 8.377689856 | AS33: 8.286854571 | AT33: 8.826675351 | AU33: =AU22-AU11 -> 9.697934886 | AV33: 10.75321669 | AW33: 11.58436362 | AX33: 12.57851929 | AY33: 13.32140834 | AZ33: 14.06192947 | BA33: 14.79352884 | BB33: 15.34182577 | BC33: 15.88843009 | BD33: 16.28229461 | BE33: 16.60703131 | BF33: 16.86589719 | BG33: 17.10627463 | BH33: 17.2741936 | BI33: 17.53888391 | BJ33: 17.74000411 | BK33: 17.7931367 | BL33: 17.76125032
A34: RAB | C34: $M real 2023 december | O34: =O23-O12 -> -70.07075496 | P34: -128.9122206 | Q34: -184.2702129 | R34: -234.3036876 | S34: -281.7414704 | T34: -355.8242131 | U34: -410.095269 | V34: -452.5821925 | W34: -488.4031429 | X34: -518.3056932 | Y34: -544.5732169 | Z34: -566.6066532 | AA34: -585.5222636 | AB34: -601.7196073 | AC34: -615.5816387 | AD34: -641.8703263 | AE34: -659.9717853 | AF34: -673.3216178 | AG34: -682.9868577 | AH34: -689.5254606 | AI34: -693.3913242 | AJ34: -695.1277483 | AK34: -694.8149864 | AL34: -692.5501419 | AM34: -688.512627 | AN34: -685.9485314 | AO34: -682.0858497 | AP34: -677.0070908 | AQ34: -670.8348541 | AR34: -663.7606768 | AS34: =AS23-AS12 -> -656.7169937 | AT34: -649.081501 | AU34: =AU23-AU12 -> -640.5299569 | AV34: -629.7767402 | AW34: -618.1923766 | AX34: -605.6138573 | AY34: -592.292449 | AZ34: -578.2305195 | BA34: -563.4369906 | BB34: -548.0951649 | BC34: -532.2067348 | BD34: -515.9244402 | BE34: -499.3174089 | BF34: -482.4515117 | BG34: -465.345237 | BH34: -448.0710434 | BI34: -430.5321595 | BJ34: -412.7921554 | BK34: -394.9990187 | BL34: -377.2377684
A35: Capex | C35: $M real 2023 december | O35: =O24-O13 -> 0 | P35: 0 | Q35: 0 | R35: 0 | S35: 0 | T35: -29.73403842 | U35: -14.86530321 | V35: -6.59809153 | W35: -3.713773951 | X35: -1.483678589 | Y35: -1.751451067 | Z35: -0.5888716018 | AA35: -0.2285207831 | AB35: -0.1393842668 | AC35: -0.1126356206 | AD35: -12.33081948 | AE35: -7.119877917 | AF35: -5.093159427 | AG35: -3.984291015 | AH35: -3.284306943 | AI35: -2.80251506 | AJ35: -2.451053132 | AK35: -2.183748673 | AL35: -1.974001248 | AM35: -1.805405515 | AN35: -1.70250453 | AO35: -1.552453968 | AP35: -1.455810555 | AQ35: -1.373723729 | AR35: -1.303512569 | AS35: -1.243171504 | AT35: -1.191182635 | AU35: =AU24-AU13 -> -1.146390755 | AV35: 0 | AW35: 0 | AX35: 0 | AY35: 0 | AZ35: 0 | BA35: 0 | BB35: 0 | BC35: 0 | BD35: 0 | BE35: 0 | BF35: 0 | BG35: 0 | BH35: 0 | BI35: 0 | BJ35: 0 | BK35: 0 | BL35: 0
A36: Opex | C36: $M real 2023 december | O36: =O25-O14 -> 0 | P36: =P25-P14 -> 0 | Q36: 0 | R36: 0 | S36: 0 | T36: -0.7221202181 | U36: -1.186965809 | V36: -1.571420613 | W36: -1.902181288 | X36: -2.208609923 | Y36: -2.442578024 | Z36: -2.651303863 | AA36: -2.862868373 | AB36: -3.068775844 | AC36: -3.275151511 | AD36: -6.771877238 | AE36: -7.156676983 | AF36: -7.417979271 | AG36: -7.683510695 | AH36: -5.641407858 | AI36: -4.293466612 | AJ36: -3.29747727 | AK36: -2.481464199 | AL36: 1.251332826 | AM36: 1.177536081 | AN36: 4.600401245 | AO36: 7.663985852 | AP36: 3.028697358 | AQ36: 0.5895113132 | AR36: -1.415943496 | AS36: -0.9100938595 | AT36: -0.8468028182 | AU36: -0.7986470664 | AV36: -4.455235295 | AW36: -4.386821351 | AX36: -4.414480905 | AY36: -4.31598936 | AZ36: -4.085188383 | BA36: -4.045673268 | BB36: -4.199784076 | BC36: -4.493690945 | BD36: -4.863505745 | BE36: -2.154713729 | BF36: -1.410591879 | BG36: -1.172595487 | BH36: -1.175089082 | BI36: -1.172272451 | BJ36: -1.169479477 | BK36: -1.166709921 | BL36: -1.163963549
A37: Cost of service | C37: $M real 2023 december | O37: =O26-O15 -> 82.43618231 | P37: 66.50581868 | Q37: 59.38020413 | R37: =R26-R15 -> 50.33594774 | S37: 44.74314651 | T37: 38.00566212 | U37: 28.31031041 | V37: 21.16208617 | W37: 14.27514453 | X37: 7.82900015 | Y37: 1.47568634 | Z37: -3.688088662 | AA37: -8.280796663 | AB37: -12.5606896 | AC37: -16.32746512 | AD37: -20.30380596 | AE37: -25.32279302 | AF37: -29.63866894 | AG37: -33.57164072 | AH37: -34.85346501 | AI37: -36.3931331 | AJ37: -37.911446 | AK37: -39.400556 | AL37: -37.76352989 | AM37: -39.63530672 | AN37: -34.18635025 | AO37: -32.38824895 | AP37: -38.17810645 | AQ37: -41.61033241 | AR37: -41.66846485 | AS37: -40.42239197 | AT37: -40.56875904 | AU37: -41.03282907 | AV37: -45.3425201 | AW37: -45.59240679 | AX37: -46.06935197 | AY37: -46.12188608 | AZ37: -46.00507378 | BA37: -46.0360796 | BB37: -46.04255547 | BC37: -46.16090385 | BD37: -46.17639227 | BE37: -43.02544887 | BF37: -41.7648589 | BG37: -40.97534892 | BH37: -40.34143521 | BI37: -39.79054978 | BJ37: -39.16367573 | BK37: -38.37937458 | BL37: -37.5075776
A38: Tariff revenue | C38: $M real 2023 december | O38: =O27-O16 -> 61.29637151 | P38: 61.34801942 | Q38: 61.48046355 | R38: 61.67507377 | S38: 61.91051746 | T38: 38.00566212 | U38: 28.31031041 | V38: 21.16208617 | W38: 14.27514453 | X38: 7.82900015 | Y38: 1.47568634 | Z38: -3.688088662 | AA38: -8.280796663 | AB38: -12.5606896 | AC38: -16.32746512 | AD38: -20.30380596 | AE38: -25.32279302 | AF38: -29.63866894 | AG38: -33.57164072 | AH38: -34.85346501 | AI38: -36.3931331 | AJ38: -37.911446 | AK38: -39.400556 | AL38: -32.98401825 | AM38: -15.86550285 | AN38: 6.286599299 | AO38: 23.6715181 | AP38: 22.57076949 | AQ38: 12.81794968 | AR38: 3.443544321 | AS38: -1.329383888 | AT38: 1.567149712 | AU38: 9.062836308 | AV38: 1.715220434 | AW38: 0.09934479101 | AX38: -5.253892307 | AY38: -8.207836736 | AZ38: -5.561996285 | BA38: -0.251988226 | BB38: 2.050611758 | BC38: -0.9020183503 | BD38: -5.171200495 | BE38: -6.27192367 | BF38: -4.780427901 | BG38: 0 | BH38: 0 | BI38: 0 | BJ38: 0 | BK38: 0 | BL38: 0
A39: Consumption | C39: TJ | O39: =O28-O17 -> 0 | P39: 0 | Q39: 0 | R39: 0 | S39: 0 | T39: -413.2437436 | U39: -565.8789174 | V39: -788.2437453 | W39: -984.7833498 | X39: -1170.135799 | Y39: -1323.658514 | Z39: -1434.936689 | AA39: -1556.228619 | AB39: -1680.534317 | AC39: -1815.285474 | AD39: -1931.585578 | AE39: -1972.446808 | AF39: -1958.126034 | AG39: -1947.672805 | AH39: -1434.565468 | AI39: -1050.910003 | AJ39: -759.2919441 | AK39: -523.0262736 | AL39: -308.1360804 | AM39: -204.5760251 | AN39: -190.4925645 | AO39: -223.8114521 | AP39: -245.4881971 | AQ39: -162.0026706 | AR39: -45.72147206 | AS39: 8.7706354 | AT39: 37.25749775 | AU39: 14.16845191 | AV39: -540.2239686 | AW39: -451.1224031 | AX39: -416.5522121 | AY39: -379.3825005 | AZ39: -340.3706101 | BA39: -355.9355701 | BB39: -394.9631011 | BC39: -422.2513386 | BD39: -395.7708576 | BE39: -358.3830365 | BF39: -303.1879475 | BG39: -149.0851207 | BH39: -155.7250837 | BI39: -150.8264085 | BJ39: -145.9742388 | BK39: -141.1680771 | BL39: -136.407435
A40: Customers | C40: number | O40: =O29-O18 -> 0 | P40: 0 | Q40: 0 | R40: 0 | S40: 0 | T40: -18220.61466 | U40: -30833.36644 | V40: -40682.03351 | W40: -49115.12773 | X40: -56955.48335 | Y40: -62947.60872 | Z40: -68454.56734 | AA40: -73980.71017 | AB40: -79326.37107 | AC40: -84629.65119 | AD40: -88456.46553 | AE40: -89026.00873 | AF40: -88402.81566 | AG40: -87690.71702 | AH40: -69076.60968 | AI40: -56133.05605 | AJ40: -46031.11903 | AK40: -37369.89902 | AL40: -29248.41624 | AM40: -22893.35565 | AN40: -17177.9604 | AO40: -11853.26022 | AP40: -7126.283012 | AQ40: -2506.26573 | AR40: 760.9636966 | AS40: 1100.116221 | AT40: 812.3819705 | AU40: 692.6671086 | AV40: -18463.41041 | AW40: -13764.94294 | AX40: -12690.36252 | AY40: -12626.81026 | AZ40: -12113.71306 | BA40: -12202.92272 | BB40: -12121.57147 | BC40: -12441.91001 | BD40: -12230.32504 | BE40: -11977.90581 | BF40: -10282.18071 | BG40: -4024.973 | BH40: -4008.873108 | BI40: -3992.837615 | BJ40: -3976.866265 | BK40: -3960.9588 | BL40: -3945.114964
A41: Residential Prices | C41: $/GJ | O41: =O30-O19 -> 5.142640862 | P41: 5.179195362 | Q41: 5.293956692 | R41: 5.408284558 | S41: 5.521353187 | T41: 5.628307864 | U41: 4.093149449 | V41: 3.468633054 | W41: 3.054369186 | X41: 2.637282615 | Y41: 2.243416573 | Z41: 1.770063985 | AA41: 1.389986122 | AB41: 1.07512956 | AC41: 0.7976297103 | AD41: 0.6144275162 | AE41: 0.3201720805 | AF41: -0.2279219987 | AG41: -0.8480683569 | AH41: -1.525383744 | AI41: -3.284827675 | AJ41: -5.281235044 | AK41: -7.589152755 | AL41: -10.48052612 | AM41: -11.27746829 | AN41: -6.4489752 | AO41: 5.146614217 | AP41: 20.43974558 | AQ41: 26.63553902 | AR41: 19.85514467 | AS41: 7.39205134 | AT41: -1.57196714 | AU41: 2.215170256 | AV41: 15.98034148 | AW41: 24.16520329 | AX41: 20.04924049 | AY41: 6.527337716 | AZ41: -3.12954855 | BA41: 1.496190484 | BB41: 16.95820595 | BC41: 27.80663191 | BD41: 22.98815373 | BE41: 7.878649455 | BF41: 0.8114470349 | BG41: 3.37934002 | BH41: 0 | BI41: 0 | BJ41: 0 | BK41: 0 | BL41: 0
A43: Diff CoS and Revenue SL | S43: =SUM(O15:S15-O16:S16) -> 4.08583899 | T43: =T16-T15 -> -3.97903932e-13 | U43: =U16-U15 -> 0 | V43: 2.842170943e-13 | W43: 0 | X43: 0 | Y43: 0 | Z43: -2.842170943e-13 | AA43: 2.842170943e-13 | AB43: -2.273736754e-13 | AC43: 0 | AD43: -2.557953849e-13 | AE43: 0 | AF43: 0 | AG43: -2.557953849e-13 | AH43: 0 | AI43: 0 | AJ43: 0 | AK43: 0 | AL43: -4.779511636 | AM43: -23.76980387 | AN43: -40.47294954 | AO43: -58.52464135 | AP43: -70.22386653 | AQ43: -73.82882303 | AR43: -70.02552618 | AS43: -65.66465656 | AT43: -64.76302563 | AU43: -65.00369648 | AV43: -63.93053223 | AW43: -62.01240897 | AX43: -58.53931811 | AY43: -55.93333626 | AZ43: -55.92315751 | BA43: -56.67477646 | BB43: -56.44695667 | BC43: -54.34898418 | BD43: -52.20669358 | BE43: -51.05461806 | BF43: -50.67536529 | BG43: -60.70744146 | BH43: -58.77282275 | BI43: -57.01985771 | BJ43: -55.27161227 | BK43: -53.42399952 | BL43: -51.55640384 | BM43: =SUM(T43:BL43) -> -1491.554786 | BN43: =BM43/50 -> -29.83109571 | BO43: =BN43*5 -> -149.1554786
BM44: 860 | BN44: =BM44/50 -> 17.2 | BO44: =BN44*5 -> 86
O73: -4.069522471 | P73: -3.90152956 | Q73: -3.736896507 | R73: -3.575556115 | S73: -3.417442531
O74: -8.399645568 | P74: -8.231652656 | Q74: -8.067019603 | R74: -7.905679211 | S74: -7.747565627
O133: 0 | P133: -0.1339087805 | Q133: -0.2989747433 | R133: -0.6544689996 | S133: -0.9312619986

Sheet Depn Summary
A1: Back to Dashboard
A2: Depreciation summary | O2: 2025 | P2: 2026 | Q2: 2027 | R2: 2028 | S2: 2029 | T2: 2030 | U2: 2031 | V2: 2032 | W2: 2033 | X2: 2034 | Y2: 2035 | Z2: 2036 | AA2: 2037 | AB2: 2038 | AC2: 2039 | AD2: 2040 | AE2: 2041 | AF2: 2042 | AG2: 2043 | AH2: 2044 | AI2: 2045 | AJ2: 2046 | AK2: 2047 | AL2: 2048 | AM2: 2049 | AN2: 2050 | AO2: 2051 | AP2: 2052 | AQ2: 2053 | AR2: 2054 | AS2: 2055 | AT2: 2056 | AU2: 2057 | AV2: 2058 | AW2: 2059 | AX2: 2060 | AY2: 2061 | AZ2: 2062 | BA2: 2063 | BB2: 2064 | BC2: 2065 | BD2: 2066 | BE2: 2067 | BF2: 2068 | BG2: 2069 | BH2: 2070 | BI2: 2071 | BJ2: 2072 | BK2: 2073 | BL2: 2074
A4: Capital base at 31 December 2024
A5: Straight line depreciation (Macro Dependent)
A6: High Pressure Mains - Steel | O6: -4.330123096 | P6: -4.330123096 | Q6: -4.330123096 | R6: -4.330123096 | S6: -4.330123096 | T6: -4.327719814 | U6: -4.327719814 | V6: -4.327719814 | W6: -4.327719814 | X6: -4.327719814 | Y6: -4.327719814 | Z6: -4.327719814 | AA6: -4.327719814 | AB6: -4.327719814 | AC6: -4.327719814 | AD6: -4.327719814 | AE6: -4.327719814 | AF6: -4.327719814 | AG6: -4.327719814 | AH6: -4.327719814 | AI6: -4.327719814 | AJ6: -4.327719814 | AK6: -4.327719814 | AL6: -4.327719814 | AM6: -4.327719814 | AN6: -4.327719814 | AO6: -4.327719814 | AP6: -4.327719814 | AQ6: -4.327719814 | AR6: -4.327719814 | AS6: -4.327719814 | AT6: -4.327719814 | AU6: -4.327719814 | AV6: -4.327719814 | AW6: -4.327719814 | AX6: -4.327719814 | AY6: -4.327719814 | AZ6: -4.327719814 | BA6: -4.327719814 | BB6: -4.327719814 | BC6: -4.327719814 | BD6: -4.327719814 | BE6: -4.327719814 | BF6: -4.327719814 | BG6: -4.327719814 | BH6: -4.327719814 | BI6: -4.327719814 | BJ6: -4.327719814 | BK6: -4.327719814 | BL6: -4.327719814
A7: High Pressure Mains - PE | O7: 0.1483536916 | P7: -0.09777900807 | Q7: -0.09777900807 | R7: -0.09777900807 | S7: -0.09777900807 | T7: -0.09777900807 | U7: -0.09777900807 | V7: -0.09777900807 | W7: -0.09777900807 | X7: -0.09777900807 | Y7: -0.09777900807 | Z7: -0.09777900807 | AA7: -0.09777900807 | AB7: -0.09777900807 | AC7: -0.09777900807 | AD7: -0.09777900807 | AE7: -0.09777900807 | AF7: -0.09777900807 | AG7: -0.09777900807 | AH7: -0.09777900807 | AI7: -0.09777900807 | AJ7: -0.09777900807 | AK7: -0.09777900807 | AL7: -0.09777900807 | AM7: -0.09777900807 | AN7: -0.09777900807 | AO7: -0.09777900807 | AP7: -0.09777900807 | AQ7: -0.09777900807 | AR7: -0.09777900807 | AS7: -0.09777900807 | AT7: -0.09777900807 | AU7: -0.09777900807 | AV7: -0.09777900807 | AW7: -0.09777900807 | AX7: -0.09777900807 | AY7: -0.09777900807 | AZ7: -0.09777900807 | BA7: -0.09777900807 | BB7: -0.09777900807 | BC7: -0.09777900807 | BD7: -0.09777900807 | BE7: -0.09777900807 | BF7: -0.09777900807 | BG7: -0.09777900807 | BH7: -0.09777900807 | BI7: -0.09777900807 | BJ7: -0.09777900807 | BK7: -0.09777900807 | BL7: -0.09777900807
A8: Medium Pressure Mains | O8: -7.008466763 | P8: -7.008466763 | Q8: -7.008466763 | R8: -7.008466763 | S8: -7.008466763 | T8: -7.008466763 | U8: -7.008466763 | V8: -7.008466763 | W8: -7.008466763 | X8: -7.008466763 | Y8: -7.008466763 | Z8: -7.008466763 | AA8: -7.008466763 | AB8: -7.008466763 | AC8: -7.008466763 | AD8: -7.008466763 | AE8: -7.008466763 | AF8: -7.008466763 | AG8: -7.008466763 | AH8: -7.008466763 | AI8: -7.008466763 | AJ8: -7.008466763 | AK8: -7.008466763 | AL8: -7.008466763 | AM8: -7.008466763 | AN8: 0 | AO8: 0 | AP8: 0 | AQ8: 0 | AR8: 0 | AS8: 0 | AT8: 0 | AU8: 0 | AV8: 0 | AW8: 0 | AX8: 0 | AY8: 0 | AZ8: 0 | BA8: 0 | BB8: 0 | BC8: 0 | BD8: 0 | BE8: 0 | BF8: 0 | BG8: 0 | BH8: 0 | BI8: 0 | BJ8: 0 | BK8: 0 | BL8: 0
A9: Medium / Low Pressure Mains | O9: -14.63890554 | P9: -14.63890554 | Q9: -14.63890554 | R9: -14.63890554 | S9: -14.63890554 | T9: -14.58896367 | U9: -14.58896367 | V9: -14.58896367 | W9: -14.58896367 | X9: -14.58896367 | Y9: -14.58896367 | Z9: -14.58896367 | AA9: -14.58896367 | AB9: -14.58896367 | AC9: -14.58896367 | AD9: -9.850110349 | AE9: -9.850110349 | AF9: -9.850110349 | AG9: -9.850110349 | AH9: -9.850110349 | AI9: -9.850110349 | AJ9: -9.850110349 | AK9: -9.850110349 | AL9: -9.850110349 | AM9: -9.850110349 | AN9: -9.850110349 | AO9: -9.850110349 | AP9: -9.850110349 | AQ9: -9.850110349 | AR9: -9.850110349 | AS9: -9.850110349 | AT9: -9.850110349 | AU9: -9.850110349 | AV9: -9.850110349 | AW9: -9.850110349 | AX9: -9.841986504 | AY9: -9.635677835 | AZ9: -9.493098334 | BA9: -9.367574564 | BB9: -9.170877316 | BC9: -8.916733715 | BD9: -8.716781401 | BE9: -8.493234297 | BF9: -8.167263898 | BG9: -7.884079915 | BH9: -7.622047015 | BI9: -7.458116622 | BJ9: -7.228825946 | BK9: -6.863803998 | BL9: -6.437807693
A10: Low Pressure Mains | O10: -1.679651143 | P10: -1.680030856 | Q10: -1.680030856 | R10: -1.680030856 | S10: -1.680030856 | T10: -1.680030856 | U10: -1.680030856 | V10: 0 | W10: 0 | X10: 0 | Y10: 0 | Z10: 0 | AA10: 0 | AB10: 0 | AC10: 0 | AD10: 0 | AE10: 0 | AF10: 0 | AG10: 0 | AH10: 0 | AI10: 0 | AJ10: 0 | AK10: 0 | AL10: 0 | AM10: 0 | AN10: 0 | AO10: 0 | AP10: 0 | AQ10: 0 | AR10: 0 | AS10: 0 | AT10: 0 | AU10: 0 | AV10: 0 | AW10: 0 | AX10: 0 | AY10: 0 | AZ10: 0 | BA10: 0 | BB10: 0 | BC10: 0 | BD10: 0 | BE10: 0 | BF10: 0 | BG10: 0 | BH10: 0 | BI10: 0 | BJ10: 0 | BK10: 0 | BL10: 0
A11: Regulators | O11: -1.576234044 | P11: -1.576234044 | Q11: -0.8411694191 | R11: -0.8411694191 | S11: -0.8411694191 | T11: -0.8348028176 | U11: -0.8348028176 | V11: -0.8348028176 | W11: -0.8348028176 | X11: -0.8348028176 | Y11: -0.8348028176 | Z11: -0.8348028176 | AA11: -0.8348028176 | AB11: -0.8348028176 | AC11: -0.8348028176 | AD11: -0.8348028176 | AE11: -0.8348028176 | AF11: -0.8287450287 | AG11: -0.8287450287 | AH11: -0.8287450287 | AI11: -0.8286165038 | AJ11: -0.8244603342 | AK11: -0.7935676481 | AL11: -0.7688818468 | AM11: -0.7621199727 | AN11: -0.7323079249 | AO11: -0.7248735384 | AP11: -0.713439641 | AQ11: -0.6855578167 | AR11: -0.6548177217 | AS11: -0.5999193515 | AT11: -0.5243372293 | AU11: -0.3996983696 | AV11: -0.2545609042 | AW11: -0.2116594021 | AX11: -0.1997593401 | AY11: -0.1578377953 | AZ11: -0.1267107007 | BA11: -0.08406938077 | BB11: -0.04456621057 | BC11: -0.04456621057 | BD11: -0.04456621057 | BE11: -0.04456621057 | BF11: -0.04456621057 | BG11: -0.04456621057 | BH11: 0 | BI11: 0 | BJ11: 0 | BK11: 0 | BL11: 0
A12: Secondary Gate Stations | O12: 1.266512156 | P12: -0.1628332814 | Q12: -0.1628332814 | R12: -0.1628332814 | S12: -0.1628332814 | T12: -0.1622480081 | U12: -0.1622480081 | V12: -0.1622480081 | W12: -0.1622480081 | X12: -0.1622480081 | Y12: -0.1622480081 | Z12: -0.1622480081 | AA12: -0.1622480081 | AB12: -0.1622480081 | AC12: -0.1622480081 | AD12: -0.1622480081 | AE12: -0.1622480081 | AF12: -0.1622480081 | AG12: -0.1622480081 | AH12: -0.1622480081 | AI12: -0.1622480081 | AJ12: -0.1622480081 | AK12: -0.1622480081 | AL12: -0.1622480081 | AM12: -0.1617919062 | AN12: -0.07264696653 | AO12: -0.04065544203 | AP12: -0.03380065342 | AQ12: -0.02958654778 | AR12: -0.02951048481 | AS12: -0.02925380887 | AT12: -0.02852518193 | AU12: -0.02852518193 | AV12: -0.02852518193 | AW12: -0.01170482118 | AX12: -0.01170482118 | AY12: -0.009605523419 | AZ12: -0.009605523419 | BA12: -0.008739000722 | BB12: -0.004096913075 | BC12: -0.004096913075 | BD12: -0.004096913075 | BE12: -0.004096913075 | BF12: -0.004096913075 | BG12: -0.004096913075 | BH12: 0 | BI12: 0 | BJ12: 0 | BK12: 0 | BL12: 0
A13: Buildings | O13: -0.9537855774 | P13: -0.9596411867 | Q13: -0.9596411867 | R13: -0.9596411867 | S13: -0.9596411867 | T13: -0.9578836181 | U13: -0.9578836181 | V13: -0.9578836181 | W13: -0.9578836181 | X13: -0.9578836181 | Y13: -0.9578836181 | Z13: -0.9578836181 | AA13: -0.9578836181 | AB13: -0.9578836181 | AC13: -0.9578836181 | AD13: -0.9578836181 | AE13: -0.9578836181 | AF13: -0.9556018334 | AG13: -0.9556018334 | AH13: -0.9556018334 | AI13: -0.9556018334 | AJ13: -0.9556018334 | AK13: -0.9556018334 | AL13: -0.9540398454 | AM13: -0.9497288681 | AN13: -0.943113895 | AO13: -0.924547493 | AP13: -0.9003012168 | AQ13: -0.8202564058 | AR13: -0.5933323004 | AS13: -0.4349111432 | AT13: -0.4349111432 | AU13: -0.4149662456 | AV13: -0.371242915 | AW13: -0.08603618417 | AX13: -0.051469575 | AY13: -0.04699320813 | AZ13: -0.03877546747 | BA13: -0.02927112425 | BB13: -0.0123029805 | BC13: -0.0123029805 | BD13: -0.0123029805 | BE13: -0.0123029805 | BF13: -0.0123029805 | BG13: -0.0123029805 | BH13: 0 | BI13: 0 | BJ13: 0 | BK13: 0 | BL13: 0
A14: Meter and Services Pipes | O14: -28.65176023 | P14: -27.79484026 | Q14: -27.08220509 | R14: -25.73582763 | S14: -24.50412752 | T14: -23.21643278 | U14: -22.18451482 | V14: -20.91597844 | W14: -19.78106563 | X14: -18.76367274 | Y14: -17.4195917 | Z14: -16.65206086 | AA14: -15.66803816 | AB14: -14.67717685 | AC14: -13.37010132 | AD14: -11.75013953 | AE14: -10.38049812 | AF14: -8.985255804 | AG14: -7.678869138 | AH14: -6.450266086 | AI14: -5.133709885 | AJ14: -4.198572057 | AK14: -3.132711591 | AL14: -2.065928934 | AM14: -0.8824296689 | AN14: -0.8824296689 | AO14: -0.8824296689 | AP14: -0.8824296689 | AQ14: -0.8824296689 | AR14: -0.8824296689 | AS14: 0 | AT14: 0 | AU14: 0 | AV14: 0 | AW14: 0 | AX14: 0 | AY14: 0 | AZ14: 0 | BA14: 0 | BB14: 0 | BC14: 0 | BD14: 0 | BE14: 0 | BF14: 0 | BG14: 0 | BH14: 0 | BI14: 0 | BJ14: 0 | BK14: 0 | BL14: 0
A15: Equipment & Vehicles | O15: -1.000265804 | P15: -0.9190835411 | Q15: -0.8504177917 | R15: -0.7353907991 | S15: -0.5408092554 | T15: -0.3966657112 | U15: -0.2818944218 | V15: -0.2070455432 | W15: -0.1238220695 | X15: -0.06356202754 | Y15: -0.06356202754 | Z15: -0.06356202754 | AA15: -0.06356202754 | AB15: -0.06356202754 | AC15: -0.06356202754 | AD15: 0 | AE15: 0 | AF15: 0 | AG15: 0 | AH15: 0 | AI15: 0 | AJ15: 0 | AK15: 0 | AL15: 0 | AM15: 0 | AN15: 0 | AO15: 0 | AP15: 0 | AQ15: 0 | AR15: 0 | AS15: 0 | AT15: 0 | AU15: 0 | AV15: 0 | AW15: 0 | AX15: 0 | AY15: 0 | AZ15: 0 | BA15: 0 | BB15: 0 | BC15: 0 | BD15: 0 | BE15: 0 | BF15: 0 | BG15: 0 | BH15: 0 | BI15: 0 | BJ15: 0 | BK15: 0 | BL15: 0
A16: Vehicle | O16: -1.535171047 | P16: -1.543738143 | Q16: -1.261037421 | R16: -1.072894348 | S16: -0.8234767631 | T16: -0.57746719 | U16: -0.400788853 | V16: -0.3502032175 | W16: -0.2506069183 | X16: -0.1594949063 | Y16: -0.1594949063 | Z16: -0.1594949063 | AA16: -0.1594949063 | AB16: -0.1594949063 | AC16: -0.1594949063 | AD16: 0 | AE16: 0 | AF16: 0 | AG16: 0 | AH16: 0 | AI16: 0 | AJ16: 0 | AK16: 0 | AL16: 0 | AM16: 0 | AN16: 0 | AO16: 0 | AP16: 0 | AQ16: 0 | AR16: 0 | AS16: 0 | AT16: 0 | AU16: 0 | AV16: 0 | AW16: 0 | AX16: 0 | AY16: 0 | AZ16: 0 | BA16: 0 | BB16: 0 | BC16: 0 | BD16: 0 | BE16: 0 | BF16: 0 | BG16: 0 | BH16: 0 | BI16: 0 | BJ16: 0 | BK16: 0 | BL16: 0
A17: Information Technology | O17: 0.03371367418 | P17: -5.304678722 | Q17: -4.231076422 | R17: -2.762552574 | S17: -1.22710798 | T17: 0 | U17: 0 | V17: 0 | W17: 0 | X17: 0 | Y17: 0 | Z17: 0 | AA17: 0 | AB17: 0 | AC17: 0 | AD17: 0 | AE17: 0 | AF17: 0 | AG17: 0 | AH17: 0 | AI17: 0 | AJ17: 0 | AK17: 0 | AL17: 0 | AM17: 0 | AN17: 0 | AO17: 0 | AP17: 0 | AQ17: 0 | AR17: 0 | AS17: 0 | AT17: 0 | AU17: 0 | AV17: 0 | AW17: 0 | AX17: 0 | AY17: 0 | AZ17: 0 | BA17: 0 | BB17: 0 | BC17: 0 | BD17: 0 | BE17: 0 | BF17: 0 | BG17: 0 | BH17: 0 | BI17: 0 | BJ17: 0 | BK17: 0 | BL17: 0
A18: Telemetry and Monitoring | O18: -0.4101176768 | P18: -0.4101176768 | Q18: -0.4101176768 | R18: -0.4101176768 | S18: -0.3037719228 | T18: -0.2614131303 | U18: -0.2284870463 | V18: -0.1803399414 | W18: -0.1090703595 | X18: -0.02714464397 | Y18: -0.02714464397 | Z18: -0.02714464397 | AA18: -0.02714464397 | AB18: -0.02714464397 | AC18: -0.02714464397 | AD18: 0 | AE18: 0 | AF18: 0 | AG18: 0 | AH18: 0 | AI18: 0 | AJ18: 0 | AK18: 0 | AL18: 0 | AM18: 0 | AN18: 0 | AO18: 0 | AP18: 0 | AQ18: 0 | AR18: 0 | AS18: 0 | AT18: 0 | AU18: 0 | AV18: 0 | AW18: 0 | AX18: 0 | AY18: 0 | AZ18: 0 | BA18: 0 | BB18: 0 | BC18: 0 | BD18: 0 | BE18: 0 | BF18: 0 | BG18: 0 | BH18: 0 | BI18: 0 | BJ18: 0 | BK18: 0 | BL18: 0
A19: FRC | O19: 0.1678114037 | P19: 0 | Q19: 0 | R19: 0 | S19: 0 | T19: 0 | U19: 0 | V19: 0 | W19: 0 | X19: 0 | Y19: 0 | Z19: 0 | AA19: 0 | AB19: 0 | AC19: 0 | AD19: 0 | AE19: 0 | AF19: 0 | AG19: 0 | AH19: 0 | AI19: 0 | AJ19: 0 | AK19: 0 | AL19: 0 | AM19: 0 | AN19: 0 | AO19: 0 | AP19: 0 | AQ19: 0 | AR19: 0 | AS19: 0 | AT19: 0 | AU19: 0 | AV19: 0 | AW19: 0 | AX19: 0 | AY19: 0 | AZ19: 0 | BA19: 0 | BB19: 0 | BC19: 0 | BD19: 0 | BE19: 0 | BF19: 0 | BG19: 0 | BH19: 0 | BI19: 0 | BJ19: 0 | BK19: 0 | BL19: 0
A20: Land | O20: 0 | P20: 0 | Q20: 0 | R20: 0 | S20: 0 | T20: 0 | U20: 0 | V20: 0 | W20: 0 | X20: 0 | Y20: 0 | Z20: 0 | AA20: 0 | AB20: 0 | AC20: 0 | AD20: 0 | AE20: 0 | AF20: 0 | AG20: 0 | AH20: 0 | AI20: 0 | AJ20: 0 | AK20: 0 | AL20: 0 | AM20: 0 | AN20: 0 | AO20: 0 | AP20: 0 | AQ20: 0 | AR20: 0 | AS20: 0 | AT20: 0 | AU20: 0 | AV20: 0 | AW20: 0 | AX20: 0 | AY20: 0 | AZ20: 0 | BA20: 0 | BB20: 0 | BC20: 0 | BD20: 0 | BE20: 0 | BF20: 0 | BG20: 0 | BH20: 0 | BI20: 0 | BJ20: 0 | BK20: 0 | BL20: 0
A21: Equity Raising Cost | O21: -0.01715682022 | P21: -0.01715682022 | Q21: -0.01715682022 | R21: -0.01715682022 | S21: -0.01715682022 | T21: -0.01715682022 | U21: -0.01715682022 | V21: -0.01715682022 | W21: -0.01715682022 | X21: -0.01715682022 | Y21: -0.01715682022 | Z21: -0.01715682022 | AA21: -0.01715682022 | AB21: -0.01715682022 | AC21: -0.01715682022 | AD21: -0.01715682022 | AE21: -0.01715682022 | AF21: -0.01715682022 | AG21: -0.01715682022 | AH21: -0.01715682022 | AI21: -0.01715682022 | AJ21: -0.01715682022 | AK21: -0.01715682022 | AL21: -0.01715682022 | AM21: -0.01715682022 | AN21: -0.01715682022 | AO21: -0.01715682022 | AP21: -0.01715682022 | AQ21: -0.01715682022 | AR21: -0.01715682022 | AS21: -0.01715682022 | AT21: -0.01715682022 | AU21: -0.01715682022 | AV21: -0.01715682022 | AW21: -0.01715682022 | AX21: -0.01715682022 | AY21: -0.01715682022 | AZ21: -0.01715682022 | BA21: -0.01715682022 | BB21: -0.01715682022 | BC21: -0.01715682022 | BD21: -0.01715682022 | BE21: -0.01715682022 | BF21: -0.01715682022 | BG21: -0.01715682022 | BH21: -0.01715682022 | BI21: -0.01715682022 | BJ21: -0.01715682022 | BK21: -0.01715682022 | BL21: -0.01715682022
A22: Total | O22: =SUM(O6:O21) -> -60.18524682 | P22: =SUM(P6:P21) -> -66.44362894 | Q22: =SUM(Q6:Q21) -> -63.57096037 | R22: =SUM(R6:R21) -> -60.452889 | S22: =SUM(S6:S21) -> -57.13539942 | T22: -54.12703018 | U22: -52.77073651 | V22: -49.64858766 | W22: -48.25958549 | X22: -47.00889484 | Y22: -45.6648138 | Z22: -44.89728295 | AA22: -43.91326026 | AB22: -42.92239894 | AC22: -41.61532342 | AD22: -35.00630673 | AE22: -33.63666532 | AF22: -32.23308343 | AG22: -30.92669676 | AH22: -29.69809371 | AI22: -28.38140898 | AJ22: -27.44211499 | AK22: -26.34536184 | AL22: -25.25233139 | AM22: -24.05730317 | AN22: -16.92326445 | AO22: -16.86527213 | AP22: -16.82273717 | AQ22: -16.71059643 | AR22: -16.45285617 | AS22: -15.35685029 | AT22: -15.28053955 | AU22: -15.13595579 | AV22: -14.94709499 | AW22: -14.6021664 | AX22: -14.54757588 | AY22: -14.29277 | AZ22: -14.11084567 | BA22: -13.93230971 | BB22: -13.67449906 | BC22: -13.42035546 | BD22: -13.22040315 | BE22: -12.99685604 | BF22: -12.67088564 | BG22: -12.38770166 | BH22: -12.06470266 | BI22: -11.90077226 | BJ22: -11.67148159 | BK22: -11.30645964 | BL22: -10.88046334
A24: Total accelerated depreciation ICB Account (Macro Dependent)
A25: High Pressure Mains - Steel | O25: -13.54362043 | P25: -12.7310032 | Q25: -11.96714301 | R25: -11.24911443 | S25: -10.57416756 | T25: -9.939717511 | U25: -9.34333446 | V25: -8.782734393 | W25: -8.255770329 | X25: -7.760424109 | Y25: -7.294798663 | Z25: -6.857110743 | AA25: -6.445684098 | AB25: -6.058943053 | AC25: -5.695406469 | AD25: -5.353682081 | AE25: -5.032461156 | AF25: -4.730513487 | AG25: -4.446682678 | AH25: -4.179881717 | AI25: -3.929088814 | AJ25: -3.693343485 | AK25: -3.471742876 | AL25: -3.263438304 | AM25: -3.067632005 | AN25: -2.883574085 | AO25: -2.71055964 | AP25: -2.547926061 | AQ25: -2.395050498 | AR25: -2.251347468 | AS25: -2.11626662 | AT25: -1.989290623 | AU25: -1.869933185 | AV25: -1.757737194 | AW25: -1.652272963 | AX25: -1.553136585 | AY25: -1.45994839 | AZ25: -1.372351486 | BA25: -1.290010397 | BB25: -1.212609773 | BC25: -1.139853187 | BD25: -1.071461996 | BE25: -1.007174276 | BF25: -0.9467438194 | BG25: -0.8899391902 | BH25: -0.8365428388 | BI25: -0.7863502685 | BJ25: -0.7391692524 | BK25: -0.6948190972 | BL25: -0.6531299514
A26: High Pressure Mains - PE | O26: 0 | P26: 0 | Q26: 0 | R26: 0 | S26: 0 | T26: 0 | U26: 0 | V26: 0 | W26: 0 | X26: 0 | Y26: 0 | Z26: 0 | AA26: 0 | AB26: 0 | AC26: 0 | AD26: 0 | AE26: 0 | AF26: 0 | AG26: 0 | AH26: 0 | AI26: 0 | AJ26: 0 | AK26: 0 | AL26: 0 | AM26: 0 | AN26: 0 | AO26: 0 | AP26: 0 | AQ26: 0 | AR26: 0 | AS26: 0 | AT26: 0 | AU26: 0 | AV26: 0 | AW26: 0 | AX26: 0 | AY26: 0 | AZ26: 0 | BA26: 0 | BB26: 0 | BC26: 0 | BD26: 0 | BE26: 0 | BF26: 0 | BG26: 0 | BH26: 0 | BI26: 0 | BJ26: 0 | BK26: 0 | BL26: 0
A27: Medium Pressure Mains | O27: -13.35641665 | P27: -12.55503165 | Q27: -11.80172975 | R27: -11.09362596 | S27: -10.42800841 | T27: -9.802327902 | U27: -9.214188228 | V27: -8.661336934 | W27: -8.141656718 | X27: -7.653157315 | Y27: -7.193967876 | Z27: -6.762329804 | AA27: -6.356590016 | AB27: -5.975194615 | AC27: -5.616682938 | AD27: -5.279681961 | AE27: -4.962901044 | AF27: -4.665126981 | AG27: -4.385219362 | AH27: -4.122106201 | AI27: -3.874779829 | AJ27: -3.642293039 | AK27: -3.423755456 | AL27: -3.218330129 | AM27: -3.025230321 | AN27: 0 | AO27: 0 | AP27: 0 | AQ27: 0 | AR27: 0 | AS27: 0 | AT27: 0 | AU27: 0 | AV27: 0 | AW27: 0 | AX27: 0 | AY27: 0 | AZ27: 0 | BA27: 0 | BB27: 0 | BC27: 0 | BD27: 0 | BE27: 0 | BF27: 0 | BG27: 0 | BH27: 0 | BI27: 0 | BJ27: 0 | BK27: 0 | BL27: 0
A28: Medium / Low Pressure Mains | O28: -7.052935579 | P28: -6.629759444 | Q28: -6.231973877 | R28: -5.858055445 | S28: -5.506572118 | T28: -5.176177791 | U28: -4.865607124 | V28: -4.573670696 | W28: -4.299250454 | X28: -4.041295427 | Y28: -3.798817701 | Z28: -3.570888639 | AA28: -3.356635321 | AB28: -3.155237202 | AC28: -2.96592297 | AD28: 0 | AE28: 0 | AF28: 0 | AG28: 0 | AH28: 0 | AI28: 0 | AJ28: 0 | AK28: 0 | AL28: 0 | AM28: 0 | AN28: 0 | AO28: 0 | AP28: 0 | AQ28: 0 | AR28: 0 | AS28: 0 | AT28: 0 | AU28: 0 | AV28: 0 | AW28: 0 | AX28: 0 | AY28: 0 | AZ28: 0 | BA28: 0 | BB28: 0 | BC28: 0 | BD28: 0 | BE28: 0 | BF28: 0 | BG28: 0 | BH28: 0 | BI28: 0 | BJ28: 0 | BK28: 0 | BL28: 0
A29: Low Pressure Mains | O29: -2.007305787 | P29: -1.88686744 | Q29: -1.773655393 | R29: -1.66723607 | S29: -1.567201906 | T29: -1.473169791 | U29: -1.384779604 | V29: 0 | W29: 0 | X29: 0 | Y29: 0 | Z29: 0 | AA29: 0 | AB29: 0 | AC29: 0 | AD29: 0 | AE29: 0 | AF29: 0 | AG29: 0 | AH29: 0 | AI29: 0 | AJ29: 0 | AK29: 0 | AL29: 0 | AM29: 0 | AN29: 0 | AO29: 0 | AP29: 0 | AQ29: 0 | AR29: 0 | AS29: 0 | AT29: 0 | AU29: 0 | AV29: 0 | AW29: 0 | AX29: 0 | AY29: 0 | AZ29: 0 | BA29: 0 | BB29: 0 | BC29: 0 | BD29: 0 | BE29: 0 | BF29: 0 | BG29: 0 | BH29: 0 | BI29: 0 | BJ29: 0 | BK29: 0 | BL29: 0
A30: Regulators | O30: -0.7577985826 | P30: -0.7123306677 | Q30: 0 | R30: 0 | S30: 0 | T30: 0 | U30: 0 | V30: 0 | W30: 0 | X30: 0 | Y30: 0 | Z30: 0 | AA30: 0 | AB30: 0 | AC30: 0 | AD30: 0 | AE30: 0 | AF30: 0 | AG30: 0 | AH30: 0 | AI30: 0 | AJ30: 0 | AK30: 0 | AL30: 0 | AM30: 0 | AN30: 0 | AO30: 0 | AP30: 0 | AQ30: 0 | AR30: 0 | AS30: 0 | AT30: 0 | AU30: 0 | AV30: 0 | AW30: 0 | AX30: 0 | AY30: 0 | AZ30: 0 | BA30: 0 | BB30: 0 | BC30: 0 | BD30: 0 | BE30: 0 | BF30: 0 | BG30: 0 | BH30: 0 | BI30: 0 | BJ30: 0 | BK30: 0 | BL30: 0
A31: Secondary Gate Stations | O31: 0 | P31: 0 | Q31: 0 | R31: 0 | S31: 0 | T31: 0 | U31: 0 | V31: 0 | W31: 0 | X31: 0 | Y31: 0 | Z31: 0 | AA31: 0 | AB31: 0 | AC31: 0 | AD31: 0 | AE31: 0 | AF31: 0 | AG31: 0 | AH31: 0 | AI31: 0 | AJ31: 0 | AK31: 0 | AL31: 0 | AM31: 0 | AN31: 0 | AO31: 0 | AP31: 0 | AQ31: 0 | AR31: 0 | AS31: 0 | AT31: 0 | AU31: 0 | AV31: 0 | AW31: 0 | AX31: 0 | AY31: 0 | AZ31: 0 | BA31: 0 | BB31: 0 | BC31: 0 | BD31: 0 | BE31: 0 | BF31: 0 | BG31: 0 | BH31: 0 | BI31: 0 | BJ31: 0 | BK31: 0 | BL31: 0
A32: Buildings | O32: 0 | P32: 0 | Q32: 0 | R32: 0 | S32: 0 | T32: 0 | U32: 0 | V32: 0 | W32: 0 | X32: 0 | Y32: 0 | Z32: 0 | AA32: 0 | AB32: 0 | AC32: 0 | AD32: 0 | AE32: 0 | AF32: 0 | AG32: 0 | AH32: 0 | AI32: 0 | AJ32: 0 | AK32: 0 | AL32: 0 | AM32: 0 | AN32: 0 | AO32: 0 | AP32: 0 | AQ32: 0 | AR32: 0 | AS32: 0 | AT32: 0 | AU32: 0 | AV32: 0 | AW32: 0 | AX32: 0 | AY32: 0 | AZ32: 0 | BA32: 0 | BB32: 0 | BC32: 0 | BD32: 0 | BE32: 0 | BF32: 0 | BG32: 0 | BH32: 0 | BI32: 0 | BJ32: 0 | BK32: 0 | BL32: 0
A33: Meter and Services Pipes | O33: 0 | P33: 0 | Q33: 0 | R33: 0 | S33: 0 | T33: 0 | U33: 0 | V33: 0 | W33: 0 | X33: 0 | Y33: 0 | Z33: 0 | AA33: 0 | AB33: 0 | AC33: 0 | AD33: 0 | AE33: 0 | AF33: 0 | AG33: 0 | AH33: 0 | AI33: 0 | AJ33: 0 | AK33: 0 | AL33: 0 | AM33: 0 | AN33: 0 | AO33: 0 | AP33: 0 | AQ33: 0 | AR33: 0 | AS33: 0 | AT33: 0 | AU33: 0 | AV33: 0 | AW33: 0 | AX33: 0 | AY33: 0 | AZ33: 0 | BA33: 0 | BB33: 0 | BC33: 0 | BD33: 0 | BE33: 0 | BF33: 0 | BG33: 0 | BH33: 0 | BI33: 0 | BJ33: 0 | BK33: 0 | BL33: 0
A34: Equipment & Vehicles | O34: 0 | P34: 0 | Q34: 0 | R34: 0 | S34: 0 | T34: 0 | U34: 0 | V34: 0 | W34: 0 | X34: 0 | Y34: 0 | Z34: 0 | AA34: 0 | AB34: 0 | AC34: 0 | AD34: 0 | AE34: 0 | AF34: 0 | AG34: 0 | AH34: 0 | AI34: 0 | AJ34: 0 | AK34: 0 | AL34: 0 | AM34: 0 | AN34: 0 | AO34: 0 | AP34: 0 | AQ34: 0 | AR34: 0 | AS34: 0 | AT34: 0 | AU34: 0 | AV34: 0 | AW34: 0 | AX34: 0 | AY34: 0 | AZ34: 0 | BA34: 0 | BB34: 0 | BC34: 0 | BD34: 0 | BE34: 0 | BF34: 0 | BG34: 0 | BH34: 0 | BI34: 0 | BJ34: 0 | BK34: 0 | BL34: 0
A35: Vehicle | O35: 0 | P35: 0 | Q35: 0 | R35: 0 | S35: 0 | T35: 0 | U35: 0 | V35: 0 | W35: 0 | X35: 0 | Y35: 0 | Z35: 0 | AA35: 0 | AB35: 0 | AC35: 0 | AD35: 0 | AE35: 0 | AF35: 0 | AG35: 0 | AH35: 0 | AI35: 0 | AJ35: 0 | AK35: 0 | AL35: 0 | AM35: 0 | AN35: 0 | AO35: 0 | AP35: 0 | AQ35: 0 | AR35: 0 | AS35: 0 | AT35: 0 | AU35: 0 | AV35: 0 | AW35: 0 | AX35: 0 | AY35: 0 | AZ35: 0 | BA35: 0 | BB35: 0 | BC35: 0 | BD35: 0 | BE35: 0 | BF35: 0 | BG35: 0 | BH35: 0 | BI35: 0 | BJ35: 0 | BK35: 0 | BL35: 0
A36: Information Technology | O36: 0 | P36: 0 | Q36: 0 | R36: 0 | S36: 0 | T36: 0 | U36: 0 | V36: 0 | W36: 0 | X36: 0 | Y36: 0 | Z36: 0 | AA36: 0 | AB36: 0 | AC36: 0 | AD36: 0 | AE36: 0 | AF36: 0 | AG36: 0 | AH36: 0 | AI36: 0 | AJ36: 0 | AK36: 0 | AL36: 0 | AM36: 0 | AN36: 0 | AO36: 0 | AP36: 0 | AQ36: 0 | AR36: 0 | AS36: 0 | AT36: 0 | AU36: 0 | AV36: 0 | AW36: 0 | AX36: 0 | AY36: 0 | AZ36: 0 | BA36: 0 | BB36: 0 | BC36: 0 | BD36: 0 | BE36: 0 | BF36: 0 | BG36: 0 | BH36: 0 | BI36: 0 | BJ36: 0 | BK36: 0 | BL36: 0
A37: Telemetry and Monitoring | O37: 0 | P37: 0 | Q37: 0 | R37: 0 | S37: 0 | T37: 0 | U37: 0 | V37: 0 | W37: 0 | X37: 0 | Y37: 0 | Z37: 0 | AA37: 0 | AB37: 0 | AC37: 0 | AD37: 0 | AE37: 0 | AF37: 0 | AG37: 0 | AH37: 0 | AI37: 0 | AJ37: 0 | AK37: 0 | AL37: 0 | AM37: 0 | AN37: 0 | AO37: 0 | AP37: 0 | AQ37: 0 | AR37: 0 | AS37: 0 | AT37: 0 | AU37: 0 | AV37: 0 | AW37: 0 | AX37: 0 | AY37: 0 | AZ37: 0 | BA37: 0 | BB37: 0 | BC37: 0 | BD37: 0 | BE37: 0 | BF37: 0 | BG37: 0 | BH37: 0 | BI37: 0 | BJ37: 0 | BK37: 0 | BL37: 0
A38: FRC | O38: 0 | P38: 0 | Q38: 0 | R38: 0 | S38: 0 | T38: 0 | U38: 0 | V38: 0 | W38: 0 | X38: 0 | Y38: 0 | Z38: 0 | AA38: 0 | AB38: 0 | AC38: 0 | AD38: 0 | AE38: 0 | AF38: 0 | AG38: 0 | AH38: 0 | AI38: 0 | AJ38: 0 | AK38: 0 | AL38: 0 | AM38: 0 | AN38: 0 | AO38: 0 | AP38: 0 | AQ38: 0 | AR38: 0 | AS38: 0 | AT38: 0 | AU38: 0 | AV38: 0 | AW38: 0 | AX38: 0 | AY38: 0 | AZ38: 0 | BA38: 0 | BB38: 0 | BC38: 0 | BD38: 0 | BE38: 0 | BF38: 0 | BG38: 0 | BH38: 0 | BI38: 0 | BJ38: 0 | BK38: 0 | BL38: 0
A39: Land | O39: 0 | P39: 0 | Q39: 0 | R39: 0 | S39: 0 | T39: 0 | U39: 0 | V39: 0 | W39: 0 | X39: 0 | Y39: 0 | Z39: 0 | AA39: 0 | AB39: 0 | AC39: 0 | AD39: 0 | AE39: 0 | AF39: 0 | AG39: 0 | AH39: 0 | AI39: 0 | AJ39: 0 | AK39: 0 | AL39: 0 | AM39: 0 | AN39: 0 | AO39: 0 | AP39: 0 | AQ39: 0 | AR39: 0 | AS39: 0 | AT39: 0 | AU39: 0 | AV39: 0 | AW39: 0 | AX39: 0 | AY39: 0 | AZ39: 0 | BA39: 0 | BB39: 0 | BC39: 0 | BD39: 0 | BE39: 0 | BF39: 0 | BG39: 0 | BH39: 0 | BI39: 0 | BJ39: 0 | BK39: 0 | BL39: 0
A40: Equity Raising Cost | O40: 0 | P40: 0 | Q40: 0 | R40: 0 | S40: 0 | T40: 0 | U40: 0 | V40: 0 | W40: 0 | X40: 0 | Y40: 0 | Z40: 0 | AA40: 0 | AB40: 0 | AC40: 0 | AD40: 0 | AE40: 0 | AF40: 0 | AG40: 0 | AH40: 0 | AI40: 0 | AJ40: 0 | AK40: 0 | AL40: 0 | AM40: 0 | AN40: 0 | AO40: 0 | AP40: 0 | AQ40: 0 | AR40: 0 | AS40: 0 | AT40: 0 | AU40: 0 | AV40: 0 | AW40: 0 | AX40: 0 | AY40: 0 | AZ40: 0 | BA40: 0 | BB40: 0 | BC40: 0 | BD40: 0 | BE40: 0 | BF40: 0 | BG40: 0 | BH40: 0 | BI40: 0 | BJ40: 0 | BK40: 0 | BL40: 0
A41: Total | O41: =SUM(O25:O40) -> -36.71807702 | P41: =SUM(P25:P40) -> -34.5149924 | Q41: -31.77450203 | R41: -29.86803191 | S41: -28.07595 | T41: =SUM(T25:T40) -> -26.391393 | U41: =SUM(U25:U40) -> -24.80790942 | V41: =SUM(V25:V40) -> -22.01774202 | W41: =SUM(W25:W40) -> -20.6966775 | X41: =SUM(X25:X40) -> -19.45487685 | Y41: =SUM(Y25:Y40) -> -18.28758424 | Z41: =SUM(Z25:Z40) -> -17.19032919 | AA41: =SUM(AA25:AA40) -> -16.15890943 | AB41: =SUM(AB25:AB40) -> -15.18937487 | AC41: =SUM(AC25:AC40) -> -14.27801238 | AD41: =SUM(AD25:AD40) -> -10.63336404 | AE41: =SUM(AE25:AE40) -> -9.9953622 | AF41: =SUM(AF25:AF40) -> -9.395640468 | AG41: =SUM(AG25:AG40) -> -8.83190204 | AH41: =SUM(AH25:AH40) -> -8.301987918 | AI41: =SUM(AI25:AI40) -> -7.803868643 | AJ41: =SUM(AJ25:AJ40) -> -7.335636524 | AK41: =SUM(AK25:AK40) -> -6.895498333 | AL41: =SUM(AL25:AL40) -> -6.481768433 | AM41: =SUM(AM25:AM40) -> -6.092862327 | AN41: =SUM(AN25:AN40) -> -2.883574085 | AO41: =SUM(AO25:AO40) -> -2.71055964 | AP41: =SUM(AP25:AP40) -> -2.547926061 | AQ41: =SUM(AQ25:AQ40) -> -2.395050498 | AR41: =SUM(AR25:AR40) -> -2.251347468 | AS41: =SUM(AS25:AS40) -> -2.11626662 | AT41: =SUM(AT25:AT40) -> -1.989290623 | AU41: =SUM(AU25:AU40) -> -1.869933185 | AV41: =SUM(AV25:AV40) -> -1.757737194 | AW41: =SUM(AW25:AW40) -> -1.652272963 | AX41: =SUM(AX25:AX40) -> -1.553136585 | AY41: =SUM(AY25:AY40) -> -1.45994839 | AZ41: =SUM(AZ25:AZ40) -> -1.372351486 | BA41: =SUM(BA25:BA40) -> -1.290010397 | BB41: =SUM(BB25:BB40) -> -1.212609773 | BC41: =SUM(BC25:BC40) -> -1.139853187 | BD41: =SUM(BD25:BD40) -> -1.071461996 | BE41: =SUM(BE25:BE40) -> -1.007174276 | BF41: =SUM(BF25:BF40) -> -0.9467438194 | BG41: =SUM(BG25:BG40) -> -0.8899391902 | BH41: =SUM(BH25:BH40) -> -0.8365428388 | BI41: =SUM(BI25:BI40) -> -0.7863502685 | BJ41: =SUM(BJ25:BJ40) -> -0.7391692524 | BK41: =SUM(BK25:BK40) -> -0.6948190972 | BL41: =SUM(BL25:BL40) -> -0.6531299514
A43: Total accelerated depreciation Capex Account (Macro Dependent)
A44: High Pressure Mains - Steel | O44: -6.418162583 | P44: -6.033072828 | Q44: -5.671088459 | R44: -5.330823151 | S44: -5.010973762 | T44: -4.710315336 | U44: -4.427696416 | V44: -4.162034631 | W44: -3.912312553 | X44: -3.6775738 | Y44: -3.456919372 | Z44: -3.24950421 | AA44: -3.054533957 | AB44: -2.87126192 | AC44: -2.698986205 | AD44: -2.537047032 | AE44: -2.38482421 | AF44: -2.241734758 | AG44: -2.107230672 | AH44: -1.980796832 | AI44: -1.861949022 | AJ44: -1.750232081 | AK44: -1.645218156 | AL44: -1.546505067 | AM44: -1.453714763 | AN44: -1.366491877 | AO44: -1.284502364 | AP44: -1.207432222 | AQ44: -1.134986289 | AR44: -1.066887112 | AS44: -1.002873885 | AT44: -0.9427014519 | AU44: -0.8861393647 | AV44: -0.8329710029 | AW44: -0.7829927427 | AX44: -0.7360131781 | AY44: -0.6918523874 | AZ44: -0.6503412442 | BA44: -0.6113207695 | BB44: -0.5746415234 | BC44: -0.540163032 | BD44: -0.50775325 | BE44: -0.477288055 | BF44: -0.4486507717 | BG44: -0.4217317254 | BH44: -0.3964278219 | BI44: -0.3726421526 | BJ44: -0.3502836234 | BK44: -0.329266606 | BL44: -0.3095106097
A45: High Pressure Mains - PE | O45: -0.3182298292 | P45: -0.2991360395 | Q45: -0.2811878771 | R45: -0.2643166045 | S45: -0.2484576082 | T45: -0.2335501517 | U45: -0.2195371426 | V45: -0.2063649141 | W45: -0.1939830192 | X45: -0.1823440381 | Y45: -0.1714033958 | Z45: -0.161119192 | AA45: -0.1514520405 | AB45: -0.1423649181 | AC45: -0.133823023 | AD45: -0.1257936416 | AE45: -0.1182460231 | AF45: -0.1111512617 | AG45: -0.104482186 | AH45: -0.09821325487 | AI45: -0.09232045958 | AJ45: -0.086781232 | AK45: -0.08157435808 | AL45: -0.0766798966 | AM45: -0.0720791028 | AN45: -0.06775435663 | AO45: -0.06368909524 | AP45: -0.05986774952 | AQ45: -0.05627568455 | AR45: -0.05289914348 | AS45: -0.04972519487 | AT45: -0.04674168318 | AU45: -0.04393718219 | AV45: -0.04130095125 | AW45: -0.03882289418 | AX45: -0.03649352053 | AY45: -0.0343039093 | AZ45: -0.03224567474 | BA45: -0.03031093425 | BB45: -0.0284922782 | BC45: -0.02678274151 | BD45: -0.02517577702 | BE45: -0.0236652304 | BF45: -0.02224531657 | BG45: -0.02091059758 | BH45: -0.01965596172 | BI45: -0.01847660402 | BJ45: -0.01736800778 | BK45: -0.01632592731 | BL45: -0.01534637167
A46: Medium Pressure Mains | O46: 0 | P46: 0 | Q46: 0 | R46: 0 | S46: 0 | T46: 0 | U46: 0 | V46: 0 | W46: 0 | X46: 0 | Y46: 0 | Z46: 0 | AA46: 0 | AB46: 0 | AC46: 0 | AD46: 0 | AE46: 0 | AF46: 0 | AG46: 0 | AH46: 0 | AI46: 0 | AJ46: 0 | AK46: 0 | AL46: 0 | AM46: 0 | AN46: 0 | AO46: 0 | AP46: 0 | AQ46: 0 | AR46: 0 | AS46: 0 | AT46: 0 | AU46: 0 | AV46: 0 | AW46: 0 | AX46: 0 | AY46: 0 | AZ46: 0 | BA46: 0 | BB46: 0 | BC46: 0 | BD46: 0 | BE46: 0 | BF46: 0 | BG46: 0 | BH46: 0 | BI46: 0 | BJ46: 0 | BK46: 0 | BL46: 0
A47: Medium / Low Pressure Mains | O47: -31.71349227 | P47: -29.81068273 | Q47: -28.02204177 | R47: -26.34071926 | S47: -24.7602761 | T47: -23.27465954 | U47: -21.87817997 | V47: -20.56548917 | W47: -19.33155982 | X47: -18.17166623 | Y47: -17.08136626 | Z47: -16.05648428 | AA47: -15.09309522 | AB47: -14.18750951 | AC47: -13.33625894 | AD47: -12.5360834 | AE47: -11.7839184 | AF47: -11.07688329 | AG47: -10.4122703 | AH47: -9.787534079 | AI47: -9.200282034 | AJ47: -8.648265112 | AK47: -8.129369206 | AL47: -7.641607053 | AM47: -7.18311063 | AN47: -6.752123992 | AO47: -6.346996553 | AP47: -5.96617676 | AQ47: -5.608206154 | AR47: -5.271713785 | AS47: -4.955410958 | AT47: -4.6580863 | AU47: -4.378601122 | AV47: -4.115885055 | AW47: -3.868931952 | AX47: -3.636796034 | AY47: -3.36583985 | AZ47: -3.128200033 | BA47: -2.861923142 | BB47: -2.690207753 | BC47: -2.472743983 | BD47: -2.282122536 | BE47: -2.099936723 | BF47: -1.910733186 | BG47: -1.743509743 | BH47: -1.59238638 | BI47: -1.469018819 | BJ47: -1.343567072 | BK47: -1.206242531 | BL47: -1.070352839
A48: Low Pressure Mains | O48: 0 | P48: 0 | Q48: 0 | R48: 0 | S48: 0 | T48: 0 | U48: 0 | V48: 0 | W48: 0 | X48: 0 | Y48: 0 | Z48: 0 | AA48: 0 | AB48: 0 | AC48: 0 | AD48: 0 | AE48: 0 | AF48: 0 | AG48: 0 | AH48: 0 | AI48: 0 | AJ48: 0 | AK48: 0 | AL48: 0 | AM48: 0 | AN48: 0 | AO48: 0 | AP48: 0 | AQ48: 0 | AR48: 0 | AS48: 0 | AT48: 0 | AU48: 0 | AV48: 0 | AW48: 0 | AX48: 0 | AY48: 0 | AZ48: 0 | BA48: 0 | BB48: 0 | BC48: 0 | BD48: 0 | BE48: 0 | BF48: 0 | BG48: 0 | BH48: 0 | BI48: 0 | BJ48: 0 | BK48: 0 | BL48: 0
A49: Regulators | O49: -1.882918881 | P49: -1.769943748 | Q49: -1.663747123 | R49: -1.563922296 | S49: -1.470086958 | T49: -1.38188174 | U49: -1.298968836 | V49: -1.221030706 | W49: -1.147768864 | X49: -1.078902732 | Y49: -1.014168568 | Z49: -0.9533184538 | AA49: -0.8961193465 | AB49: -0.8423521857 | AC49: -0.7918110546 | AD49: -0.7443023913 | AE49: -0.6996442478 | AF49: -0.6543489895 | AG49: -0.6150880501 | AH49: -0.5781827671 | AI49: -0.5434287733 | AJ49: -0.5088595281 | AK49: -0.4642717955 | AL49: -0.4256011255 | AM49: -0.3972137915 | AN49: -0.361290375 | AO49: -0.3367119502 | AP49: -0.3122234709 | AQ49: -0.2834481188 | AR49: -0.2557638286 | AS49: -0.2221025033 | AT49: -0.1845724446 | AU49: -0.1351651048 | AV49: -0.08419674136 | AW49: -0.066984382 | AX49: -0.05972832831 | AY49: -0.04520431925 | AZ49: -0.03470056038 | BA49: -0.02238336662 | BB49: -0.01195023244 | BC49: -1.042568809e-15 | BD49: 0 | BE49: 0 | BF49: 0 | BG49: 0 | BH49: 0 | BI49: 0 | BJ49: 0 | BK49: 0 | BL49: 0
A50: Secondary Gate Stations | O50: -0.3282485323 | P50: -0.3085536203 | Q50: -0.2900404031 | R50: -0.2726379789 | S50: -0.2562797002 | T50: -0.2409029182 | U50: -0.2264487431 | V50: -0.2128618185 | W50: -0.2000901094 | X50: -0.1880847028 | Y50: -0.1767996207 | Z50: -0.1661916434 | AA50: -0.1562201448 | AB50: -0.1468469361 | AC50: -0.13803612 | AD50: -0.1297539528 | AE50: -0.1219687156 | AF50: -0.1146505927 | AG50: -0.1077715571 | AH50: -0.1013052637 | AI50: -0.09522694785 | AJ50: -0.08951333098 | AK50: -0.08414253112 | AL50: -0.07909397926 | AM50: -0.07415601689 | AN50: -0.03358304888 | AO50: -0.01904136371 | AP50: -0.01532828696 | AQ50: -0.01288160559 | AR50: -0.01208224022 | AS50: -0.01127172926 | AT50: -0.01036209493 | AU50: -0.009740369233 | AV50: -0.009155947079 | AW50: -0.003838810337 | AX50: -0.003608481717 | AY50: -0.002844116882 | AZ50: -0.00267346987 | BA50: -0.002305070964 | BB50: -0.001098569138 | BC50: -6.591949209e-17 | BD50: 0 | BE50: 0 | BF50: 0 | BG50: 0 | BH50: 0 | BI50: 0 | BJ50: 0 | BK50: 0 | BL50: 0
A51: Buildings | O51: -2.110626271 | P51: -1.983988695 | Q51: -1.864949373 | R51: -1.753052411 | S51: -1.647869266 | T51: -1.54899711 | U51: -1.456057283 | V51: -1.368693846 | W51: -1.286572216 | X51: -1.209377883 | Y51: -1.13681521 | Z51: -1.068606297 | AA51: -1.004489919 | AB51: -0.9442205242 | AC51: -0.8875672928 | AD51: -0.8343132552 | AE51: -0.7842544599 | AF51: -0.7359499287 | AG51: -0.691792933 | AH51: -0.650285357 | AI51: -0.6112682356 | AJ51: -0.5745921414 | AK51: -0.5401166129 | AL51: -0.5070253401 | AM51: -0.4747860181 | AN51: -0.4436167119 | AO51: -0.409778906 | AP51: -0.3760754937 | AQ51: -0.3247277005 | AR51: -0.2266571227 | AS51: -0.1600235332 | AT51: -0.1504221212 | AU51: -0.1352626908 | AV51: -0.1142356215 | AW51: -0.02653881121 | AX51: -0.01554385971 | AY51: -0.01344302599 | AZ51: -0.01057944153 | BA51: -0.007663355527 | BB51: -0.003298989857 | BC51: -3.486794187e-16 | BD51: 0 | BE51: 0 | BF51: 0 | BG51: 0 | BH51: 0 | BI51: 0 | BJ51: 0 | BK51: 0 | BL51: 0
A52: Meter and Services Pipes | O52: -41.57752902 | P52: -38.28271009 | Q52: -35.33658827 | R52: -30.5789938 | S52: -28.74425417 | T52: -26.13667725 | U52: -23.74211391 | V52: -21.33472138 | W52: -19.20412265 | X52: -17.31465042 | Y52: -15.33462912 | Z52: -13.89547061 | AA52: -12.41837114 | AB52: -11.04781101 | AC52: -9.588622102 | AD52: -8.059241843 | AE52: -6.798242064 | AF52: -5.626460651 | AG52: -4.599210832 | AH52: -3.698040652 | AI52: -2.830527231 | AJ52: -2.218904022 | AK52: -1.60080366 | AL52: -1.037419016 | AM52: -0.4761299941 | AN52: -1.226796442e-14 | AO52: 0 | AP52: 0 | AQ52: 0 | AR52: 0 | AS52: 0 | AT52: 0 | AU52: 0 | AV52: 0 | AW52: 0 | AX52: 0 | AY52: 0 | AZ52: 0 | BA52: 0 | BB52: 0 | BC52: 0 | BD52: 0 | BE52: 0 | BF52: 0 | BG52: 0 | BH52: 0 | BI52: 0 | BJ52: 0 | BK52: 0 | BL52: 0
A53: Equipment & Vehicles | O53: -1.168392514 | P53: -0.9995412868 | Q53: -0.8770192672 | R53: -0.7228898455 | S53: -0.5132201349 | T53: -0.4157527519 | U53: -0.2988984266 | V53: -0.2229713907 | W53: -0.1472245721 | X53: -0.09472536924 | Y53: -5.689893001e-16 | Z53: 0 | AA53: 0 | AB53: 0 | AC53: 0 | AD53: 0 | AE53: 0 | AF53: 0 | AG53: 0 | AH53: 0 | AI53: 0 | AJ53: 0 | AK53: 0 | AL53: 0 | AM53: 0 | AN53: 0 | AO53: 0 | AP53: 0 | AQ53: 0 | AR53: 0 | AS53: 0 | AT53: 0 | AU53: 0 | AV53: 0 | AW53: 0 | AX53: 0 | AY53: 0 | AZ53: 0 | BA53: 0 | BB53: 0 | BC53: 0 | BD53: 0 | BE53: 0 | BF53: 0 | BG53: 0 | BH53: 0 | BI53: 0 | BJ53: 0 | BK53: 0 | BL53: 0
A54: Vehicle | O54: -1.779920465 | P54: -1.673125237 | Q54: -1.315217767 | R54: -1.070273436 | S54: -0.7928958751 | T54: -0.6737387836 | U54: -0.4918299647 | V54: -0.4231262683 | W54: -0.3231001917 | X54: -0.2376924475 | Y54: -1.221245327e-15 | Z54: 0 | AA54: 0 | AB54: 0 | AC54: 0 | AD54: 0 | AE54: 0 | AF54: 0 | AG54: 0 | AH54: 0 | AI54: 0 | AJ54: 0 | AK54: 0 | AL54: 0 | AM54: 0 | AN54: 0 | AO54: 0 | AP54: 0 | AQ54: 0 | AR54: 0 | AS54: 0 | AT54: 0 | AU54: 0 | AV54: 0 | AW54: 0 | AX54: 0 | AY54: 0 | AZ54: 0 | BA54: 0 | BB54: 0 | BC54: 0 | BD54: 0 | BE54: 0 | BF54: 0 | BG54: 0 | BH54: 0 | BI54: 0 | BJ54: 0 | BK54: 0 | BL54: 0
A55: Information Technology | O55: -5.731283627 | P55: -5.387406609 | Q55: -4.086187994 | R55: -2.545083425 | S55: -1.080132764 | T55: -3.774758284e-15 | U55: 0 | V55: 0 | W55: 0 | X55: 0 | Y55: 0 | Z55: 0 | AA55: 0 | AB55: 0 | AC55: 0 | AD55: 0 | AE55: 0 | AF55: 0 | AG55: 0 | AH55: 0 | AI55: 0 | AJ55: 0 | AK55: 0 | AL55: 0 | AM55: 0 | AN55: 0 | AO55: 0 | AP55: 0 | AQ55: 0 | AR55: 0 | AS55: 0 | AT55: 0 | AU55: 0 | AV55: 0 | AW55: 0 | AX55: 0 | AY55: 0 | AZ55: 0 | BA55: 0 | BB55: 0 | BC55: 0 | BD55: 0 | BE55: 0 | BF55: 0 | BG55: 0 | BH55: 0 | BI55: 0 | BJ55: 0 | BK55: 0 | BL55: 0
A56: Telemetry and Monitoring | O56: -0.4911336262 | P56: -0.4616656086 | Q56: -0.4339656721 | R56: -0.4079277318 | S56: -0.2925651975 | T56: -0.2624229051 | U56: -0.2203102334 | V56: -0.1697871015 | W56: -0.1061897109 | X56: -0.04045318443 | Y56: -2.289834988e-16 | Z56: 0 | AA56: 0 | AB56: 0 | AC56: 0 | AD56: 0 | AE56: 0 | AF56: 0 | AG56: 0 | AH56: 0 | AI56: 0 | AJ56: 0 | AK56: 0 | AL56: 0 | AM56: 0 | AN56: 0 | AO56: 0 | AP56: 0 | AQ56: 0 | AR56: 0 | AS56: 0 | AT56: 0 | AU56: 0 | AV56: 0 | AW56: 0 | AX56: 0 | AY56: 0 | AZ56: 0 | BA56: 0 | BB56: 0 | BC56: 0 | BD56: 0 | BE56: 0 | BF56: 0 | BG56: 0 | BH56: 0 | BI56: 0 | BJ56: 0 | BK56: 0 | BL56: 0
A57: FRC | O57: 0 | P57: 0 | Q57: 0 | R57: 0 | S57: 0 | T57: 0 | U57: 0 | V57: 0 | W57: 0 | X57: 0 | Y57: 0 | Z57: 0 | AA57: 0 | AB57: 0 | AC57: 0 | AD57: 0 | AE57: 0 | AF57: 0 | AG57: 0 | AH57: 0 | AI57: 0 | AJ57: 0 | AK57: 0 | AL57: 0 | AM57: 0 | AN57: 0 | AO57: 0 | AP57: 0 | AQ57: 0 | AR57: 0 | AS57: 0 | AT57: 0 | AU57: 0 | AV57: 0 | AW57: 0 | AX57: 0 | AY57: 0 | AZ57: 0 | BA57: 0 | BB57: 0 | BC57: 0 | BD57: 0 | BE57: 0 | BF57: 0 | BG57: 0 | BH57: 0 | BI57: 0 | BJ57: 0 | BK57: 0 | BL57: 0
A58: Land | O58: 0 | P58: 0 | Q58: 0 | R58: 0 | S58: 0 | T58: 0 | U58: 0 | V58: 0 | W58: 0 | X58: 0 | Y58: 0 | Z58: 0 | AA58: 0 | AB58: 0 | AC58: 0 | AD58: 0 | AE58: 0 | AF58: 0 | AG58: 0 | AH58: 0 | AI58: 0 | AJ58: 0 | AK58: 0 | AL58: 0 | AM58: 0 | AN58: 0 | AO58: 0 | AP58: 0 | AQ58: 0 | AR58: 0 | AS58: 0 | AT58: 0 | AU58: 0 | AV58: 0 | AW58: 0 | AX58: 0 | AY58: 0 | AZ58: 0 | BA58: 0 | BB58: 0 | BC58: 0 | BD58: 0 | BE58: 0 | BF58: 0 | BG58: 0 | BH58: 0 | BI58: 0 | BJ58: 0 | BK58: 0 | BL58: 0
A59: Equity Raising Cost
A60: Total | O60: =SUM(O44:O59) -> -93.51993761 | P60: =SUM(P44:P59) -> -87.0098265 | Q60: =SUM(Q44:Q59) -> -79.84203397 | R60: =SUM(R44:R59) -> -70.85063994 | S60: =SUM(S44:S59) -> -64.81701154 | T60: =SUM(T44:T59) -> -58.87889848 | U60: -54.26004092 | V60: -49.88708122 | W60: -45.8529237 | X60: -42.19547081 | Y60: -38.37210154 | Z60: -35.55069468 | AA60: -32.77428177 | AB60: -30.182367 | AC60: -27.57510474 | AD60: -24.96653552 | AE60: -22.69109812 | AF60: -20.56117948 | AG60: -18.63784653 | AH60: -16.89435821 | AI60: -15.2350027 | AJ60: -13.87714745 | AK60: -12.54549632 | AL60: -11.31393148 | AM60: -10.13119032 | AN60: -9.024860361 | AO60: -8.460720232 | AP60: -7.937103983 | AQ60: -7.420525552 | AR60: -6.886003231 | AS60: -6.401407803 | AT60: -5.992886096 | AU60: -5.588845834 | AV60: -5.197745319 | AW60: -4.788109592 | AX60: -4.488183403 | AY60: -4.153487609 | AZ60: -3.858740424 | BA60: -3.535906639 | BB60: -3.309689346 | BC60: -3.039689757 | BD60: -2.815051563 | BE60: -2.600890009 | BF60: -2.381629274 | BG60: -2.186152066 | BH60: -2.008470164 | BI60: -1.860137576 | BJ60: -1.711218704 | BK60: -1.551835064 | BL60: -1.39520982
A62: Total accelerated depreciation Combined (Formula)
A63: High Pressure Mains - Steel | O63: =O25+O44 -> -19.96178301 | P63: =P25+P44 -> -18.76407603 | Q63: -17.63823147 | R63: -16.57993758 | S63: -15.58514133 | T63: -14.65003285 | U63: -13.77103088 | V63: -12.94476902 | W63: -12.16808288 | X63: -11.43799791 | Y63: -10.75171803 | Z63: -10.10661495 | AA63: -9.500218056 | AB63: -8.930204972 | AC63: -8.394392674 | AD63: -7.890729114 | AE63: -7.417285367 | AF63: -6.972248245 | AG63: -6.55391335 | AH63: -6.160678549 | AI63: -5.791037836 | AJ63: -5.443575566 | AK63: -5.116961032 | AL63: -4.80994337 | AM63: -4.521346768 | AN63: -4.250065962 | AO63: -3.995062004 | AP63: -3.755358284 | AQ63: -3.530036787 | AR63: -3.31823458 | AS63: -3.119140505 | AT63: -2.931992075 | AU63: -2.75607255 | AV63: -2.590708197 | AW63: -2.435265705 | AX63: -2.289149763 | AY63: -2.151800777 | AZ63: -2.022692731 | BA63: -1.901331167 | BB63: -1.787251297 | BC63: -1.680016219 | BD63: -1.579215246 | BE63: -1.484462331 | BF63: -1.395394591 | BG63: -1.311670916 | BH63: -1.232970661 | BI63: -1.158992421 | BJ63: -1.089452876 | BK63: -1.024085703 | BL63: -0.9626405611
A64: High Pressure Mains - PE | O64: =O26+O45 -> -0.3182298292 | P64: -0.2991360395 | Q64: -0.2811878771 | R64: -0.2643166045 | S64: -0.2484576082 | T64: -0.2335501517 | U64: -0.2195371426 | V64: -0.2063649141 | W64: -0.1939830192 | X64: -0.1823440381 | Y64: -0.1714033958 | Z64: -0.161119192 | AA64: -0.1514520405 | AB64: -0.1423649181 | AC64: -0.133823023 | AD64: -0.1257936416 | AE64: -0.1182460231 | AF64: -0.1111512617 | AG64: -0.104482186 | AH64: -0.09821325487 | AI64: -0.09232045958 | AJ64: -0.086781232 | AK64: -0.08157435808 | AL64: -0.0766798966 | AM64: -0.0720791028 | AN64: -0.06775435663 | AO64: -0.06368909524 | AP64: -0.05986774952 | AQ64: -0.05627568455 | AR64: -0.05289914348 | AS64: -0.04972519487 | AT64: -0.04674168318 | AU64: -0.04393718219 | AV64: -0.04130095125 | AW64: -0.03882289418 | AX64: -0.03649352053 | AY64: -0.0343039093 | AZ64: -0.03224567474 | BA64: -0.03031093425 | BB64: -0.0284922782 | BC64: -0.02678274151 | BD64: -0.02517577702 | BE64: -0.0236652304 | BF64: -0.02224531657 | BG64: -0.02091059758 | BH64: -0.01965596172 | BI64: -0.01847660402 | BJ64: -0.01736800778 | BK64: -0.01632592731 | BL64: -0.01534637167
A65: Medium Pressure Mains | O65: =O27+O46 -> -13.35641665 | P65: -12.55503165 | Q65: -11.80172975 | R65: -11.09362596 | S65: -10.42800841 | T65: -9.802327902 | U65: -9.214188228 | V65: -8.661336934 | W65: -8.141656718 | X65: -7.653157315 | Y65: -7.193967876 | Z65: -6.762329804 | AA65: -6.356590016 | AB65: -5.975194615 | AC65: -5.616682938 | AD65: -5.279681961 | AE65: -4.962901044 | AF65: -4.665126981 | AG65: -4.385219362 | AH65: -4.122106201 | AI65: -3.874779829 | AJ65: -3.642293039 | AK65: -3.423755456 | AL65: -3.218330129 | AM65: -3.025230321 | AN65: 0 | AO65: 0 | AP65: 0 | AQ65: 0 | AR65: 0 | AS65: 0 | AT65: 0 | AU65: 0 | AV65: 0 | AW65: 0 | AX65: 0 | AY65: 0 | AZ65: 0 | BA65: 0 | BB65: 0 | BC65: 0 | BD65: 0 | BE65: 0 | BF65: 0 | BG65: 0 | BH65: 0 | BI65: 0 | BJ65: 0 | BK65: 0 | BL65: 0
A66: Medium / Low Pressure Mains | O66: =O28+O47 -> -38.76642784 | P66: -36.44044217 | Q66: -34.25401564 | R66: -32.19877471 | S66: -30.26684822 | T66: -28.45083733 | U66: -26.74378709 | V66: -25.13915986 | W66: -23.63081027 | X66: -22.21296166 | Y66: -20.88018396 | Z66: -19.62737292 | AA66: -18.44973054 | AB66: -17.34274671 | AC66: -16.30218191 | AD66: -12.5360834 | AE66: -11.7839184 | AF66: -11.07688329 | AG66: -10.4122703 | AH66: -9.787534079 | AI66: -9.200282034 | AJ66: -8.648265112 | AK66: -8.129369206 | AL66: -7.641607053 | AM66: -7.18311063 | AN66: -6.752123992 | AO66: -6.346996553 | AP66: -5.96617676 | AQ66: -5.608206154 | AR66: -5.271713785 | AS66: -4.955410958 | AT66: -4.6580863 | AU66: -4.378601122 | AV66: -4.115885055 | AW66: -3.868931952 | AX66: -3.636796034 | AY66: -3.36583985 | AZ66: -3.128200033 | BA66: -2.861923142 | BB66: -2.690207753 | BC66: -2.472743983 | BD66: -2.282122536 | BE66: -2.099936723 | BF66: -1.910733186 | BG66: -1.743509743 | BH66: -1.59238638 | BI66: -1.469018819 | BJ66: -1.343567072 | BK66: -1.206242531 | BL66: -1.070352839
A67: Low Pressure Mains | O67: =O29+O48 -> -2.007305787 | P67: -1.88686744 | Q67: -1.773655393 | R67: -1.66723607 | S67: -1.567201906 | T67: -1.473169791 | U67: -1.384779604 | V67: 0 | W67: 0 | X67: 0 | Y67: 0 | Z67: 0 | AA67: 0 | AB67: 0 | AC67: 0 | AD67: 0 | AE67: 0 | AF67: 0 | AG67: 0 | AH67: 0 | AI67: 0 | AJ67: 0 | AK67: 0 | AL67: 0 | AM67: 0 | AN67: 0 | AO67: 0 | AP67: 0 | AQ67: 0 | AR67: 0 | AS67: 0 | AT67: 0 | AU67: 0 | AV67: 0 | AW67: 0 | AX67: 0 | AY67: 0 | AZ67: 0 | BA67: 0 | BB67: 0 | BC67: 0 | BD67: 0 | BE67: 0 | BF67: 0 | BG67: 0 | BH67: 0 | BI67: 0 | BJ67: 0 | BK67: 0 | BL67: 0
A68: Regulators | O68: =O30+O49 -> -2.640717463 | P68: -2.482274416 | Q68: -1.663747123 | R68: -1.563922296 | S68: -1.470086958 | T68: -1.38188174 | U68: -1.298968836 | V68: -1.221030706 | W68: -1.147768864 | X68: -1.078902732 | Y68: -1.014168568 | Z68: -0.9533184538 | AA68: -0.8961193465 | AB68: -0.8423521857 | AC68: -0.7918110546 | AD68: -0.7443023913 | AE68: -0.6996442478 | AF68: -0.6543489895 | AG68: -0.6150880501 | AH68: -0.5781827671 | AI68: -0.5434287733 | AJ68: -0.5088595281 | AK68: -0.4642717955 | AL68: -0.4256011255 | AM68: -0.3972137915 | AN68: -0.361290375 | AO68: -0.3367119502 | AP68: -0.3122234709 | AQ68: -0.2834481188 | AR68: -0.2557638286 | AS68: -0.2221025033 | AT68: -0.1845724446 | AU68: -0.1351651048 | AV68: -0.08419674136 | AW68: -0.066984382 | AX68: -0.05972832831 | AY68: -0.04520431925 | AZ68: -0.03470056038 | BA68: -0.02238336662 | BB68: -0.01195023244 | BC68: -1.042568809e-15 | BD68: 0 | BE68: 0 | BF68: 0 | BG68: 0 | BH68: 0 | BI68: 0 | BJ68: 0 | BK68: 0 | BL68: 0
A69: Secondary Gate Stations | O69: =O31+O50 -> -0.3282485323 | P69: -0.3085536203 | Q69: -0.2900404031 | R69: -0.2726379789 | S69: -0.2562797002 | T69: -0.2409029182 | U69: -0.2264487431 | V69: -0.2128618185 | W69: -0.2000901094 | X69: -0.1880847028 | Y69: -0.1767996207 | Z69: -0.1661916434 | AA69: -0.1562201448 | AB69: -0.1468469361 | AC69: -0.13803612 | AD69: -0.1297539528 | AE69: -0.1219687156 | AF69: -0.1146505927 | AG69: -0.1077715571 | AH69: -0.1013052637 | AI69: -0.09522694785 | AJ69: -0.08951333098 | AK69: -0.08414253112 | AL69: -0.07909397926 | AM69: -0.07415601689 | AN69: -0.03358304888 | AO69: -0.01904136371 | AP69: -0.01532828696 | AQ69: -0.01288160559 | AR69: -0.01208224022 | AS69: -0.01127172926 | AT69: -0.01036209493 | AU69: -0.009740369233 | AV69: -0.009155947079 | AW69: -0.003838810337 | AX69: -0.003608481717 | AY69: -0.002844116882 | AZ69: -0.00267346987 | BA69: -0.002305070964 | BB69: -0.001098569138 | BC69: -6.591949209e-17 | BD69: 0 | BE69: 0 | BF69: 0 | BG69: 0 | BH69: 0 | BI69: 0 | BJ69: 0 | BK69: 0 | BL69: 0
A70: Buildings | O70: =O32+O51 -> -2.110626271 | P70: -1.983988695 | Q70: -1.864949373 | R70: -1.753052411 | S70: -1.647869266 | T70: -1.54899711 | U70: -1.456057283 | V70: -1.368693846 | W70: -1.286572216 | X70: -1.209377883 | Y70: -1.13681521 | Z70: -1.068606297 | AA70: -1.004489919 | AB70: -0.9442205242 | AC70: -0.8875672928 | AD70: -0.8343132552 | AE70: -0.7842544599 | AF70: -0.7359499287 | AG70: -0.691792933 | AH70: -0.650285357 | AI70: -0.6112682356 | AJ70: -0.5745921414 | AK70: -0.5401166129 | AL70: -0.5070253401 | AM70: -0.4747860181 | AN70: -0.4436167119 | AO70: -0.409778906 | AP70: -0.3760754937 | AQ70: -0.3247277005 | AR70: -0.2266571227 | AS70: -0.1600235332 | AT70: -0.1504221212 | AU70: -0.1352626908 | AV70: -0.1142356215 | AW70: -0.02653881121 | AX70: -0.01554385971 | AY70: -0.01344302599 | AZ70: -0.01057944153 | BA70: -0.007663355527 | BB70: -0.003298989857 | BC70: -3.486794187e-16 | BD70: 0 | BE70: 0 | BF70: 0 | BG70: 0 | BH70: 0 | BI70: 0 | BJ70: 0 | BK70: 0 | BL70: 0
A71: Meter and Services Pipes | O71: =O33+O52 -> -41.57752902 | P71: -38.28271009 | Q71: -35.33658827 | R71: -30.5789938 | S71: -28.74425417 | T71: -26.13667725 | U71: -23.74211391 | V71: -21.33472138 | W71: -19.20412265 | X71: -17.31465042 | Y71: -15.33462912 | Z71: -13.89547061 | AA71: -12.41837114 | AB71: -11.04781101 | AC71: -9.588622102 | AD71: -8.059241843 | AE71: -6.798242064 | AF71: -5.626460651 | AG71: -4.599210832 | AH71: -3.698040652 | AI71: -2.830527231 | AJ71: -2.218904022 | AK71: -1.60080366 | AL71: -1.037419016 | AM71: -0.4761299941 | AN71: -1.226796442e-14 | AO71: 0 | AP71: 0 | AQ71: 0 | AR71: 0 | AS71: 0 | AT71: 0 | AU71: 0 | AV71: 0 | AW71: 0 | AX71: 0 | AY71: 0 | AZ71: 0 | BA71: 0 | BB71: 0 | BC71: 0 | BD71: 0 | BE71: 0 | BF71: 0 | BG71: 0 | BH71: 0 | BI71: 0 | BJ71: 0 | BK71: 0 | BL71: 0
A72: Equipment & Vehicles | O72: =O34+O53 -> -1.168392514 | P72: -0.9995412868 | Q72: -0.8770192672 | R72: -0.7228898455 | S72: -0.5132201349 | T72: -0.4157527519 | U72: -0.2988984266 | V72: -0.2229713907 | W72: -0.1472245721 | X72: -0.09472536924 | Y72: -5.689893001e-16 | Z72: 0 | AA72: 0 | AB72: 0 | AC72: 0 | AD72: 0 | AE72: 0 | AF72: 0 | AG72: 0 | AH72: 0 | AI72: 0 | AJ72: 0 | AK72: 0 | AL72: 0 | AM72: 0 | AN72: 0 | AO72: 0 | AP72: 0 | AQ72: 0 | AR72: 0 | AS72: 0 | AT72: 0 | AU72: 0 | AV72: 0 | AW72: 0 | AX72: 0 | AY72: 0 | AZ72: 0 | BA72: 0 | BB72: 0 | BC72: 0 | BD72: 0 | BE72: 0 | BF72: 0 | BG72: 0 | BH72: 0 | BI72: 0 | BJ72: 0 | BK72: 0 | BL72: 0
A73: Vehicle | O73: =O35+O54 -> -1.779920465 | P73: -1.673125237 | Q73: -1.315217767 | R73: -1.070273436 | S73: -0.7928958751 | T73: -0.6737387836 | U73: -0.4918299647 | V73: -0.4231262683 | W73: -0.3231001917 | X73: -0.2376924475 | Y73: -1.221245327e-15 | Z73: 0 | AA73: 0 | AB73: 0 | AC73: 0 | AD73: 0 | AE73: 0 | AF73: 0 | AG73: 0 | AH73: 0 | AI73: 0 | AJ73: 0 | AK73: 0 | AL73: 0 | AM73: 0 | AN73: 0 | AO73: 0 | AP73: 0 | AQ73: 0 | AR73: 0 | AS73: 0 | AT73: 0 | AU73: 0 | AV73: 0 | AW73: 0 | AX73: 0 | AY73: 0 | AZ73: 0 | BA73: 0 | BB73: 0 | BC73: 0 | BD73: 0 | BE73: 0 | BF73: 0 | BG73: 0 | BH73: 0 | BI73: 0 | BJ73: 0 | BK73: 0 | BL73: 0
A74: Information Technology | O74: =O36+O55 -> -5.731283627 | P74: -5.387406609 | Q74: -4.086187994 | R74: -2.545083425 | S74: -1.080132764 | T74: -3.774758284e-15 | U74: 0 | V74: 0 | W74: 0 | X74: 0 | Y74: 0 | Z74: 0 | AA74: 0 | AB74: 0 | AC74: 0 | AD74: 0 | AE74: 0 | AF74: 0 | AG74: 0 | AH74: 0 | AI74: 0 | AJ74: 0 | AK74: 0 | AL74: 0 | AM74: 0 | AN74: 0 | AO74: 0 | AP74: 0 | AQ74: 0 | AR74: 0 | AS74: 0 | AT74: 0 | AU74: 0 | AV74: 0 | AW74: 0 | AX74: 0 | AY74: 0 | AZ74: 0 | BA74: 0 | BB74: 0 | BC74: 0 | BD74: 0 | BE74: 0 | BF74: 0 | BG74: 0 | BH74: 0 | BI74: 0 | BJ74: 0 | BK74: 0 | BL74: 0
A75: Telemetry and Monitoring | O75: =O37+O56 -> -0.4911336262 | P75: -0.4616656086 | Q75: -0.4339656721 | R75: -0.4079277318 | S75: -0.2925651975 | T75: -0.2624229051 | U75: -0.2203102334 | V75: -0.1697871015 | W75: -0.1061897109 | X75: -0.04045318443 | Y75: -2.289834988e-16 | Z75: 0 | AA75: 0 | AB75: 0 | AC75: 0 | AD75: 0 | AE75: 0 | AF75: 0 | AG75: 0 | AH75: 0 | AI75: 0 | AJ75: 0 | AK75: 0 | AL75: 0 | AM75: 0 | AN75: 0 | AO75: 0 | AP75: 0 | AQ75: 0 | AR75: 0 | AS75: 0 | AT75: 0 | AU75: 0 | AV75: 0 | AW75: 0 | AX75: 0 | AY75: 0 | AZ75: 0 | BA75: 0 | BB75: 0 | BC75: 0 | BD75: 0 | BE75: 0 | BF75: 0 | BG75: 0 | BH75: 0 | BI75: 0 | BJ75: 0 | BK75: 0 | BL75: 0
A76: FRC | O76: =O38+O57 -> 0 | P76: =P38+P57 -> 0 | Q76: 0 | R76: 0 | S76: 0 | T76: 0 | U76: 0 | V76: 0 | W76: 0 | X76: 0 | Y76: 0 | Z76: 0 | AA76: 0 | AB76: 0 | AC76: 0 | AD76: 0 | AE76: 0 | AF76: 0 | AG76: 0 | AH76: 0 | AI76: 0 | AJ76: 0 | AK76: 0 | AL76: 0 | AM76: 0 | AN76: 0 | AO76: 0 | AP76: 0 | AQ76: 0 | AR76: 0 | AS76: 0 | AT76: 0 | AU76: 0 | AV76: 0 | AW76: 0 | AX76: 0 | AY76: 0 | AZ76: 0 | BA76: 0 | BB76: 0 | BC76: 0 | BD76: 0 | BE76: 0 | BF76: 0 | BG76: 0 | BH76: 0 | BI76: 0 | BJ76: 0 | BK76: 0 | BL76: 0
A77: Land | O77: =O39+O58 -> 0 | P77: 0 | Q77: 0 | R77: 0 | S77: 0 | T77: 0 | U77: 0 | V77: 0 | W77: 0 | X77: 0 | Y77: 0 | Z77: 0 | AA77: 0 | AB77: 0 | AC77: 0 | AD77: 0 | AE77: 0 | AF77: 0 | AG77: 0 | AH77: 0 | AI77: 0 | AJ77: 0 | AK77: 0 | AL77: 0 | AM77: 0 | AN77: 0 | AO77: 0 | AP77: 0 | AQ77: 0 | AR77: 0 | AS77: 0 | AT77: 0 | AU77: 0 | AV77: 0 | AW77: 0 | AX77: 0 | AY77: 0 | AZ77: 0 | BA77: 0 | BB77: 0 | BC77: 0 | BD77: 0 | BE77: 0 | BF77: 0 | BG77: 0 | BH77: 0 | BI77: 0 | BJ77: 0 | BK77: 0 | BL77: 0
A78: Equity Raising Cost | O78: =O40+O59 -> 0 | P78: 0 | Q78: 0 | R78: 0 | S78: 0 | T78: 0 | U78: 0 | V78: 0 | W78: 0 | X78: 0 | Y78: 0 | Z78: 0 | AA78: 0 | AB78: 0 | AC78: 0 | AD78: 0 | AE78: 0 | AF78: 0 | AG78: 0 | AH78: 0 | AI78: 0 | AJ78: 0 | AK78: 0 | AL78: 0 | AM78: 0 | AN78: 0 | AO78: 0 | AP78: 0 | AQ78: 0 | AR78: 0 | AS78: 0 | AT78: 0 | AU78: 0 | AV78: 0 | AW78: 0 | AX78: 0 | AY78: 0 | AZ78: 0 | BA78: 0 | BB78: 0 | BC78: 0 | BD78: 0 | BE78: 0 | BF78: 0 | BG78: 0 | BH78: 0 | BI78: 0 | BJ78: 0 | BK78: 0 | BL78: 0
A79: Total | O79: =O41+O60 -> -130.2380146 | P79: -121.5248189 | Q79: -111.616536 | R79: -100.7186718 | S79: -92.89296154 | T79: =T41+T60 -> -85.27029148 | U79: -79.06795034 | V79: -71.90482324 | W79: -66.54960121 | X79: -61.65034766 | Y79: -56.65968578 | Z79: -52.74102387 | AA79: -48.93319121 | AB79: -45.37174187 | AC79: -41.85311711 | AD79: -35.59989956 | AE79: -32.68646032 | AF79: -29.95681994 | AG79: -27.46974857 | AH79: -25.19634612 | AI79: -23.03887135 | AJ79: -21.21278397 | AK79: -19.44099465 | AL79: -17.79569991 | AM79: -16.22405264 | AN79: -11.90843445 | AO79: -11.17127987 | AP79: -10.48503004 | AQ79: -9.81557605 | AR79: -9.137350699 | AS79: -8.517674423 | AT79: -7.982176719 | AU79: -7.458779019 | AV79: -6.955482513 | AW79: -6.440382555 | AX79: -6.041319988 | AY79: -5.613435999 | AZ79: -5.23109191 | BA79: -4.825917036 | BB79: -4.52229912 | BC79: -4.179542943 | BD79: -3.886513558 | BE79: -3.608064285 | BF79: -3.328373093 | BG79: -3.076091256 | BH79: -2.845013003 | BI79: -2.646487845 | BJ79: -2.450387956 | BK79: -2.246654161 | BL79: -2.048339771
A80: check total | O80: ='User Output'!O22 -> -130.2560018 | P80: ='User Output'!P22 -> -131.692351 | Q80: ='User Output'!Q22 -> -133.7519462 | R80: ='User Output'!R22 -> -129.7093588 | S80: ='User Output'!S22 -> -127.3841644 | T80: ='User Output'!T22 -> -124.3887009 | U80: ='User Output'!U22 -> -119.3573728 | V80: ='User Output'!V22 -> -111.6004195 | W80: ='User Output'!W22 -> -108.8421413 | X80: ='User Output'!X22 -> -107.159115 | Y80: ='User Output'!Y22 -> -105.6199724 | Z80: ='User Output'!Z22 -> -102.7754076 | AA80: ='User Output'!AA22 -> -99.92646114 | AB80: ='User Output'!AB22 -> -97.428519 | AC80: ='User Output'!AC22 -> -94.8330237 | AD80: ='User Output'!AD22 -> -89.39735999 | AE80: ='User Output'!AE22 -> -86.02164752 | AF80: ='User Output'!AF22 -> -82.04443984 | AG80: ='User Output'!AG22 -> -77.84360422 | AH80: ='User Output'!AH22 -> -73.52720071 | AI80: ='User Output'!AI22 -> -69.08465871 | AJ80: ='User Output'!AJ22 -> -65.20112296 | AK80: ='User Output'!AK22 -> -61.45265246 | AL80: ='User Output'!AL22 -> -57.86301013 | AM80: ='User Output'!AM22 -> -54.35849421 | AN80: ='User Output'!AN22 -> -48.11110547 | AO80: ='User Output'!AO22 -> -45.05888542 | AP80: ='User Output'!AP22 -> -42.06957099 | AQ80: ='User Output'!AQ22 -> -39.12595381 | AR80: ='User Output'!AR22 -> -36.18436613 | AS80: ='User Output'!AS22 -> -33.31920937 | AT80: ='User Output'!AT22 -> -30.91428201 | AU80: ='User Output'!AU22 -> -28.52174094 | AV80: ='User Output'!AV22 -> -26.12195486 | AW80: ='User Output'!AW22 -> -23.90959036 | AX80: ='User Output'!AX22 -> -21.99211739 | AY80: ='User Output'!AY22 -> -20.22263657 | AZ80: ='User Output'!AZ22 -> -18.66964779 | BA80: ='User Output'!BA22 -> -17.25286219 | BB80: ='User Output'!BB22 -> -16.01274175 | BC80: ='User Output'!BC22 -> -14.80554633 | BD80: ='User Output'!BD22 -> -13.71769048 | BE80: ='User Output'!BE22 -> -12.70948146 | BF80: ='User Output'!BF22 -> -11.78095083 | BG80: ='User Output'!BG22 -> -10.92079813 | BH80: ='User Output'!BH22 -> -10.12857984 | BI80: ='User Output'!BI22 -> -9.406659247 | BJ80: ='User Output'!BJ22 -> -8.731431829 | BK80: ='User Output'!BK22 -> -8.082464596 | BL80: ='User Output'!BL22 -> -7.47044649
A81: Check | O81: =O79-O80 -> 0.01798714304 | P81: =P79-P80 -> 10.16753211 | Q81: =Q79-Q80 -> 22.1354102 | R81: =R79-R80 -> 28.99068696 | S81: =S79-S80 -> 34.49120284 | T81: =T79-T80 -> 39.11840943 | U81: 40.28942247 | V81: 39.69559623 | W81: 42.29254009 | X81: 45.50876737 | Y81: 48.96028659 | Z81: 50.03438373 | AA81: 50.99326993 | AB81: 52.05677713 | AC81: 52.97990659 | AD81: 53.79746043 | AE81: 53.3351872 | AF81: 52.0876199 | AG81: 50.37385566 | AH81: 48.33085459 | AI81: 46.04578736 | AJ81: 43.98833899 | AK81: 42.01165781 | AL81: 40.06731023 | AM81: 38.13444157 | AN81: 36.20267102 | AO81: 33.88760554 | AP81: 31.58454095 | AQ81: 29.31037776 | AR81: 27.04701543 | AS81: 24.80153495 | AT81: 22.93210529 | AU81: 21.06296192 | AV81: 19.16647235 | AW81: 17.4692078 | AX81: 15.95079741 | AY81: 14.60920057 | AZ81: 13.43855588 | BA81: 12.42694515 | BB81: 11.49044263 | BC81: 10.62600338 | BD81: 9.831176921 | BE81: 9.101417171 | BF81: 8.452577735 | BG81: 7.844706873 | BH81: 7.283566841 | BI81: 6.760171403 | BJ81: 6.281043873 | BK81: 5.835810434 | BL81: 5.422106718
A83: Accelerated depreciation (Formula)
A84: High Pressure Mains - Steel | O84: =O63-O6 -> -15.63165992 | P84: -14.43395294 | Q84: -13.30810837 | R84: -12.24981449 | S84: -11.25501823 | T84: =T63-T6 -> -10.32231303 | U84: -9.443311063 | V84: -8.61704921 | W84: -7.840363069 | X84: -7.110278096 | Y84: -6.423998221 | Z84: -5.778895139 | AA84: -5.172498242 | AB84: -4.602485158 | AC84: -4.06667286 | AD84: -3.5630093 | AE84: -3.089565553 | AF84: -2.644528431 | AG84: -2.226193536 | AH84: -1.832958735 | AI84: -1.463318022 | AJ84: -1.115855752 | AK84: -0.7892412181 | AL84: -0.4822235562 | AM84: -0.193626954 | AN84: 0.0776538521 | AO84: 0.3326578098 | AP84: 0.5723615301 | AQ84: 0.7976830271 | AR84: 1.009485234 | AS84: 1.208579309 | AT84: 1.395727739 | AU84: 1.571647264 | AV84: 1.737011617 | AW84: 1.892454109 | AX84: 2.038570051 | AY84: 2.175919037 | AZ84: 2.305027083 | BA84: 2.426388647 | BB84: 2.540468517 | BC84: 2.647703595 | BD84: 2.748504568 | BE84: 2.843257483 | BF84: 2.932325223 | BG84: 3.016048898 | BH84: 3.094749153 | BI84: 3.168727393 | BJ84: 3.238266938 | BK84: 3.303634111 | BL84: 3.365079253
A85: High Pressure Mains - PE | O85: -0.4665835208 | P85: -0.2013570314 | Q85: -0.183408869 | R85: -0.1665375964 | S85: -0.1506786002 | T85: =T64-T7 -> -0.1357711437 | U85: -0.1217581346 | V85: -0.108585906 | W85: -0.09620401115 | X85: -0.08456503 | Y85: -0.07362438772 | Z85: -0.06334018397 | AA85: -0.05367303245 | AB85: -0.04458591002 | AC85: -0.03604401493 | AD85: -0.02801463355 | AE85: -0.02046701505 | AF85: -0.01337225367 | AG85: -0.006703177963 | AH85: -0.0004342468006 | AI85: 0.005458548492 | AJ85: 0.01099777607 | AK85: 0.01620464999 | AL85: 0.02109911147 | AM85: 0.02569990527 | AN85: 0.03002465144 | AO85: 0.03408991283 | AP85: 0.03791125855 | AQ85: 0.04150332352 | AR85: 0.04487986459 | AS85: 0.0480538132 | AT85: 0.05103732489 | AU85: 0.05384182588 | AV85: 0.05647805681 | AW85: 0.05895611389 | AX85: 0.06128548754 | AY85: 0.06347509877 | AZ85: 0.06553333333 | BA85: 0.06746807381 | BB85: 0.06928672987 | BC85: 0.07099626656 | BD85: 0.07260323105 | BE85: 0.07411377767 | BF85: 0.0755336915 | BG85: 0.07686841049 | BH85: 0.07812304635 | BI85: 0.07930240405 | BJ85: 0.08041100029 | BK85: 0.08145308076 | BL85: 0.0824326364
A86: Medium Pressure Mains | O86: -6.347949884 | P86: -5.546564885 | Q86: -4.793262986 | R86: -4.085159201 | S86: -3.419541643 | T86: =T65-T8 -> -2.793861139 | U86: -2.205721465 | V86: -1.652870171 | W86: -1.133189955 | X86: -0.6446905518 | Y86: -0.1855011129 | Z86: 0.2461369597 | AA86: 0.6518767479 | AB86: 1.033272149 | AC86: 1.391783826 | AD86: 1.728784802 | AE86: 2.04556572 | AF86: 2.343339782 | AG86: 2.623247401 | AH86: 2.886360563 | AI86: 3.133686935 | AJ86: 3.366173725 | AK86: 3.584711307 | AL86: 3.790136634 | AM86: 3.983236442 | AN86: 0 | AO86: 0 | AP86: 0 | AQ86: 0 | AR86: 0 | AS86: 0 | AT86: 0 | AU86: 0 | AV86: 0 | AW86: 0 | AX86: 0 | AY86: 0 | AZ86: 0 | BA86: 0 | BB86: 0 | BC86: 0 | BD86: 0 | BE86: 0 | BF86: 0 | BG86: 0 | BH86: 0 | BI86: 0 | BJ86: 0 | BK86: 0 | BL86: 0
A87: Medium / Low Pressure Mains | O87: -24.1275223 | P87: -21.80153663 | Q87: -19.6151101 | R87: -17.55986916 | S87: -15.62794268 | T87: =T66-T9 -> -13.86187366 | U87: -12.15482342 | V87: -10.5501962 | W87: -9.041846604 | X87: -7.623997988 | Y87: -6.291220289 | Z87: -5.038409251 | AA87: -3.860766876 | AB87: -2.753783043 | AC87: -1.713218241 | AD87: -2.685973054 | AE87: -1.93380805 | AF87: -1.226772946 | AG87: -0.5621599481 | AH87: 0.06257626974 | AI87: 0.6498283145 | AJ87: 1.201845237 | AK87: 1.720741143 | AL87: 2.208503296 | AM87: 2.666999719 | AN87: 3.097986357 | AO87: 3.503113796 | AP87: 3.883933589 | AQ87: 4.241904195 | AR87: 4.578396564 | AS87: 4.894699391 | AT87: 5.192024049 | AU87: 5.471509227 | AV87: 5.734225294 | AW87: 5.981178397 | AX87: 6.205190469 | AY87: 6.269837985 | AZ87: 6.364898301 | BA87: 6.505651422 | BB87: 6.480669562 | BC87: 6.443989732 | BD87: 6.434658866 | BE87: 6.393297574 | BF87: 6.256530713 | BG87: 6.140570173 | BH87: 6.029660635 | BI87: 5.989097803 | BJ87: 5.885258874 | BK87: 5.657561467 | BL87: 5.367454854
A88: Low Pressure Mains | O88: -0.3276546444 | P88: -0.206836584 | Q88: -0.09362453758 | R88: 0.01279478601 | S88: 0.1128289502 | T88: =T67-T10 -> 0.2068610645 | U88: 0.295251252 | V88: 0 | W88: 0 | X88: 0 | Y88: 0 | Z88: 0 | AA88: 0 | AB88: 0 | AC88: 0 | AD88: 0 | AE88: 0 | AF88: 0 | AG88: 0 | AH88: 0 | AI88: 0 | AJ88: 0 | AK88: 0 | AL88: 0 | AM88: 0 | AN88: 0 | AO88: 0 | AP88: 0 | AQ88: 0 | AR88: 0 | AS88: 0 | AT88: 0 | AU88: 0 | AV88: 0 | AW88: 0 | AX88: 0 | AY88: 0 | AZ88: 0 | BA88: 0 | BB88: 0 | BC88: 0 | BD88: 0 | BE88: 0 | BF88: 0 | BG88: 0 | BH88: 0 | BI88: 0 | BJ88: 0 | BK88: 0 | BL88: 0
A89: Regulators | O89: -1.064483419 | P89: -0.9060403714 | Q89: -0.822577704 | R89: -0.7227528766 | S89: -0.6289175389 | T89: =T68-T11 -> -0.5470789229 | U89: -0.4641660185 | V89: -0.3862278883 | W89: -0.3129660459 | X89: -0.2440999141 | Y89: -0.1793657502 | Z89: -0.1185156362 | AA89: -0.06131652894 | AB89: -0.007549368145 | AC89: 0.042991763 | AD89: 0.09050042627 | AE89: 0.1351585698 | AF89: 0.1743960392 | AG89: 0.2136569786 | AH89: 0.2505622616 | AI89: 0.2851877305 | AJ89: 0.3156008061 | AK89: 0.3292958526 | AL89: 0.3432807212 | AM89: 0.3649061813 | AN89: 0.3710175499 | AO89: 0.3881615882 | AP89: 0.4012161701 | AQ89: 0.4021096979 | AR89: 0.3990538931 | AS89: 0.3778168482 | AT89: 0.3397647847 | AU89: 0.2645332648 | AV89: 0.1703641628 | AW89: 0.1446750201 | AX89: 0.1400310118 | AY89: 0.1126334761 | AZ89: 0.09201014028 | BA89: 0.06168601415 | BB89: 0.03261597813 | BC89: 0.04456621057 | BD89: 0.04456621057 | BE89: 0.04456621057 | BF89: 0.04456621057 | BG89: 0.04456621057 | BH89: 0 | BI89: 0 | BJ89: 0 | BK89: 0 | BL89: 0
A90: Secondary Gate Stations | O90: -1.594760689 | P90: -0.1457203389 | Q90: -0.1272071217 | R90: -0.1098046975 | S90: -0.0934464188 | T90: =T69-T12 -> -0.07865491009 | U90: -0.064200735 | V90: -0.05061381041 | W90: -0.0378421013 | X90: -0.02583669474 | Y90: -0.01455161257 | Z90: -0.003943635329 | AA90: 0.006027863277 | AB90: 0.01540107197 | AC90: 0.02421188813 | AD90: 0.03249405533 | AE90: 0.0402792925 | AF90: 0.04759741543 | AG90: 0.05447645099 | AH90: 0.06094274442 | AI90: 0.06702106024 | AJ90: 0.07273467711 | AK90: 0.07810547697 | AL90: 0.08315402884 | AM90: 0.08763588933 | AN90: 0.03906391765 | AO90: 0.02161407831 | AP90: 0.01847236646 | AQ90: 0.01670494219 | AR90: 0.01742824459 | AS90: 0.01798207961 | AT90: 0.018163087 | AU90: 0.01878481269 | AV90: 0.01936923485 | AW90: 0.007866010845 | AX90: 0.008096339465 | AY90: 0.006761406536 | AZ90: 0.006932053549 | BA90: 0.006433929758 | BB90: 0.002998343937 | BC90: 0.004096913075 | BD90: 0.004096913075 | BE90: 0.004096913075 | BF90: 0.004096913075 | BG90: 0.004096913075 | BH90: 0 | BI90: 0 | BJ90: 0 | BK90: 0 | BL90: 0
A91: Buildings | O91: -1.156840694 | P91: -1.024347508 | Q91: -0.9053081863 | R91: -0.793411224 | S91: -0.6882280793 | T91: =T70-T13 -> -0.591113492 | U91: -0.4981736654 | V91: -0.4108102284 | W91: -0.3286885976 | X91: -0.2514942646 | Y91: -0.1789315917 | Z91: -0.1107226791 | AA91: -0.04660630126 | AB91: 0.0136630939 | AC91: 0.07031632535 | AD91: 0.1235703629 | AE91: 0.1736291582 | AF91: 0.2196519047 | AG91: 0.2638089004 | AH91: 0.3053164764 | AI91: 0.3443335978 | AJ91: 0.3810096919 | AK91: 0.4154852204 | AL91: 0.4470145053 | AM91: 0.47494285 | AN91: 0.4994971831 | AO91: 0.5147685869 | AP91: 0.5242257231 | AQ91: 0.4955287053 | AR91: 0.3666751777 | AS91: 0.27488761 | AT91: 0.284489022 | AU91: 0.2797035548 | AV91: 0.2570072935 | AW91: 0.05949737296 | AX91: 0.03592571529 | AY91: 0.03355018215 | AZ91: 0.02819602595 | BA91: 0.02160776872 | BB91: 0.009003990638 | BC91: 0.0123029805 | BD91: 0.0123029805 | BE91: 0.0123029805 | BF91: 0.0123029805 | BG91: 0.0123029805 | BH91: 0 | BI91: 0 | BJ91: 0 | BK91: 0 | BL91: 0
A92: Meter and Services Pipes | O92: -12.92576879 | P92: -10.48786983 | Q92: -8.254383185 | R92: -4.843166171 | S92: -4.240126645 | T92: =T71-T14 -> -2.920244472 | U92: -1.557599093 | V92: -0.4187429355 | W92: 0.5769429781 | X92: 1.449022321 | Y92: 2.084962584 | Z92: 2.756590248 | AA92: 3.249667024 | AB92: 3.629365839 | AC92: 3.781479222 | AD92: 3.690897687 | AE92: 3.582256056 | AF92: 3.358795153 | AG92: 3.079658305 | AH92: 2.752225434 | AI92: 2.303182655 | AJ92: 1.979668035 | AK92: 1.531907932 | AL92: 1.028509918 | AM92: 0.4062996748 | AN92: 0.8824296689 | AO92: 0.8824296689 | AP92: 0.8824296689 | AQ92: 0.8824296689 | AR92: 0.8824296689 | AS92: 0 | AT92: 0 | AU92: 0 | AV92: 0 | AW92: 0 | AX92: 0 | AY92: 0 | AZ92: 0 | BA92: 0 | BB92: 0 | BC92: 0 | BD92: 0 | BE92: 0 | BF92: 0 | BG92: 0 | BH92: 0 | BI92: 0 | BJ92: 0 | BK92: 0 | BL92: 0
A93: Equipment & Vehicles | O93: -0.16812671 | P93: -0.08045774574 | Q93: -0.02660147548 | R93: 0.01250095358 | S93: 0.02758912054 | T93: =T72-T15 -> -0.01908704062 | U93: -0.01700400482 | V93: -0.01592584745 | W93: -0.0234025026 | X93: -0.0311633417 | Y93: 0.06356202754 | Z93: 0.06356202754 | AA93: 0.06356202754 | AB93: 0.06356202754 | AC93: 0.06356202754 | AD93: 0 | AE93: 0 | AF93: 0 | AG93: 0 | AH93: 0 | AI93: 0 | AJ93: 0 | AK93: 0 | AL93: 0 | AM93: 0 | AN93: 0 | AO93: 0 | AP93: 0 | AQ93: 0 | AR93: 0 | AS93: 0 | AT93: 0 | AU93: 0 | AV93: 0 | AW93: 0 | AX93: 0 | AY93: 0 | AZ93: 0 | BA93: 0 | BB93: 0 | BC93: 0 | BD93: 0 | BE93: 0 | BF93: 0 | BG93: 0 | BH93: 0 | BI93: 0 | BJ93: 0 | BK93: 0 | BL93: 0
A94: Vehicle | O94: =O73-O16 -> -0.2447494186 | P94: -0.1293870941 | Q94: -0.05418034519 | R94: 0.002620912278 | S94: 0.03058088797 | T94: =T73-T16 -> -0.0962715936 | U94: -0.09104111172 | V94: -0.07292305079 | W94: -0.07249327337 | X94: -0.07819754118 | Y94: 0.1594949063 | Z94: 0.1594949063 | AA94: 0.1594949063 | AB94: 0.1594949063 | AC94: 0.1594949063 | AD94: 0 | AE94: 0 | AF94: 0 | AG94: 0 | AH94: 0 | AI94: 0 | AJ94: 0 | AK94: 0 | AL94: 0 | AM94: 0 | AN94: 0 | AO94: 0 | AP94: 0 | AQ94: 0 | AR94: 0 | AS94: 0 | AT94: 0 | AU94: 0 | AV94: 0 | AW94: 0 | AX94: 0 | AY94: 0 | AZ94: 0 | BA94: 0 | BB94: 0 | BC94: 0 | BD94: 0 | BE94: 0 | BF94: 0 | BG94: 0 | BH94: 0 | BI94: 0 | BJ94: 0 | BK94: 0 | BL94: 0
A95: Information Technology | O95: -5.764997301 | P95: -0.08272788755 | Q95: 0.1448884279 | R95: 0.2174691487 | S95: 0.1469752161 | T95: =T74-T17 -> -3.774758284e-15 | U95: 0 | V95: 0 | W95: 0 | X95: 0 | Y95: 0 | Z95: 0 | AA95: 0 | AB95: 0 | AC95: 0 | AD95: 0 | AE95: 0 | AF95: 0 | AG95: 0 | AH95: 0 | AI95: 0 | AJ95: 0 | AK95: 0 | AL95: 0 | AM95: 0 | AN95: 0 | AO95: 0 | AP95: 0 | AQ95: 0 | AR95: 0 | AS95: 0 | AT95: 0 | AU95: 0 | AV95: 0 | AW95: 0 | AX95: 0 | AY95: 0 | AZ95: 0 | BA95: 0 | BB95: 0 | BC95: 0 | BD95: 0 | BE95: 0 | BF95: 0 | BG95: 0 | BH95: 0 | BI95: 0 | BJ95: 0 | BK95: 0 | BL95: 0
A96: Telemetry and Monitoring | O96: -0.08101594938 | P96: -0.05154793181 | Q96: -0.02384799529 | R96: 0.002189945036 | S96: 0.01120672526 | T96: =T75-T18 -> -0.001009774786 | U96: 0.008176812971 | V96: 0.01055283996 | W96: 0.002880648669 | X96: -0.01330854046 | Y96: 0.02714464397 | Z96: 0.02714464397 | AA96: 0.02714464397 | AB96: 0.02714464397 | AC96: 0.02714464397 | AD96: 0 | AE96: 0 | AF96: 0 | AG96: 0 | AH96: 0 | AI96: 0 | AJ96: 0 | AK96: 0 | AL96: 0 | AM96: 0 | AN96: 0 | AO96: 0 | AP96: 0 | AQ96: 0 | AR96: 0 | AS96: 0 | AT96: 0 | AU96: 0 | AV96: 0 | AW96: 0 | AX96: 0 | AY96: 0 | AZ96: 0 | BA96: 0 | BB96: 0 | BC96: 0 | BD96: 0 | BE96: 0 | BF96: 0 | BG96: 0 | BH96: 0 | BI96: 0 | BJ96: 0 | BK96: 0 | BL96: 0
A97: FRC | O97: -0.1678114037 | P97: 0 | Q97: 0 | R97: 0 | S97: 0 | T97: =T76-T19 -> 0 | U97: 0 | V97: 0 | W97: 0 | X97: 0 | Y97: 0 | Z97: 0 | AA97: 0 | AB97: 0 | AC97: 0 | AD97: 0 | AE97: 0 | AF97: 0 | AG97: 0 | AH97: 0 | AI97: 0 | AJ97: 0 | AK97: 0 | AL97: 0 | AM97: 0 | AN97: 0 | AO97: 0 | AP97: 0 | AQ97: 0 | AR97: 0 | AS97: 0 | AT97: 0 | AU97: 0 | AV97: 0 | AW97: 0 | AX97: 0 | AY97: 0 | AZ97: 0 | BA97: 0 | BB97: 0 | BC97: 0 | BD97: 0 | BE97: 0 | BF97: 0 | BG97: 0 | BH97: 0 | BI97: 0 | BJ97: 0 | BK97: 0 | BL97: 0
A98: Land | O98: 0 | P98: 0 | Q98: 0 | R98: 0 | S98: 0 | T98: =T77-T20 -> 0 | U98: 0 | V98: 0 | W98: 0 | X98: 0 | Y98: 0 | Z98: 0 | AA98: 0 | AB98: 0 | AC98: 0 | AD98: 0 | AE98: 0 | AF98: 0 | AG98: 0 | AH98: 0 | AI98: 0 | AJ98: 0 | AK98: 0 | AL98: 0 | AM98: 0 | AN98: 0 | AO98: 0 | AP98: 0 | AQ98: 0 | AR98: 0 | AS98: 0 | AT98: 0 | AU98: 0 | AV98: 0 | AW98: 0 | AX98: 0 | AY98: 0 | AZ98: 0 | BA98: 0 | BB98: 0 | BC98: 0 | BD98: 0 | BE98: 0 | BF98: 0 | BG98: 0 | BH98: 0 | BI98: 0 | BJ98: 0 | BK98: 0 | BL98: 0
A99: Equity Raising Cost | O99: 0.01715682022 | P99: 0.01715682022 | Q99: 0.01715682022 | R99: 0.01715682022 | S99: 0.01715682022 | T99: =T78-T21 -> 0.01715682022 | U99: 0.01715682022 | V99: 0.01715682022 | W99: 0.01715682022 | X99: 0.01715682022 | Y99: 0.01715682022 | Z99: 0.01715682022 | AA99: 0.01715682022 | AB99: 0.01715682022 | AC99: 0.01715682022 | AD99: 0.01715682022 | AE99: 0.01715682022 | AF99: 0.01715682022 | AG99: 0.01715682022 | AH99: 0.01715682022 | AI99: 0.01715682022 | AJ99: 0.01715682022 | AK99: 0.01715682022 | AL99: 0.01715682022 | AM99: 0.01715682022 | AN99: 0.01715682022 | AO99: 0.01715682022 | AP99: 0.01715682022 | AQ99: 0.01715682022 | AR99: 0.01715682022 | AS99: 0.01715682022 | AT99: 0.01715682022 | AU99: 0.01715682022 | AV99: 0.01715682022 | AW99: 0.01715682022 | AX99: 0.01715682022 | AY99: 0.01715682022 | AZ99: 0.01715682022 | BA99: 0.01715682022 | BB99: 0.01715682022 | BC99: 0.01715682022 | BD99: 0.01715682022 | BE99: 0.01715682022 | BF99: 0.01715682022 | BG99: 0.01715682022 | BH99: 0.01715682022 | BI99: 0.01715682022 | BJ99: 0.01715682022 | BK99: 0.01715682022 | BL99: 0.01715682022
A100: Total | O100: =SUM(O84:O99) -> -70.05276782 | P100: =SUM(P84:P99) -> -55.08118996 | Q100: =SUM(Q84:Q99) -> -48.04557563 | R100: =SUM(R84:R99) -> -40.26578285 | S100: =SUM(S84:S99) -> -35.75756212 | T100: =SUM(T84:T99) -> -31.1432613 | U100: -26.29721383 | V100: -22.25623558 | W100: -18.29001571 | X100: -14.64145282 | Y100: -10.99487198 | Z100: -7.843740919 | AA100: -5.019930947 | AB100: -2.449342928 | AC100: -0.2377936932 | AD100: -0.5935928335 | AE100: 0.9502049989 | AF100: 2.276263485 | AG100: 3.456948195 | AH100: 4.501747588 | AI100: 5.342537639 | AJ100: 6.229331015 | AK100: 6.904367184 | AL100: 7.456631478 | AM100: 7.833250528 | AN100: 5.01483 | AO100: 5.693992261 | AP100: 6.337707127 | AQ100: 6.89502038 | AR100: 7.315505468 | AS100: 6.839175872 | AT100: 7.298362827 | AU100: 7.677176769 | AV100: 7.991612479 | AW100: 8.161783844 | AX100: 8.506255895 | AY100: 8.679334006 | AZ100: 8.879753757 | BA100: 9.106392676 | BB100: 9.152199942 | BC100: 9.240812518 | BD100: 9.333889589 | BE100: 9.388791759 | BF100: 9.342512551 | BG100: 9.311610406 | BH100: 9.219689654 | BI100: 9.25428442 | BJ100: 9.221093632 | BK100: 9.059805478 | BL100: 8.832123564
A102: Capex from 2025
A103: Straight line depreciation (Macro Dependent)
A104: High Pressure Mains - Steel | O104: 0 | P104: -0.03146193842 | Q104: -0.0692946716 | R104: -0.1487780911 | S104: -0.2091497101 | T104: -0.2778915205 | U104: -0.3334698246 | V104: -0.3890481287 | W104: -0.4446264328 | X104: -0.5002047369 | Y104: -0.555783041 | Z104: -0.6113613451 | AA104: -0.6669396492 | AB104: -0.7225179533 | AC104: -0.7780962574 | AD104: -0.8336745615 | AE104: -0.8892528656 | AF104: -0.9339956779 | AG104: -0.9722589606 | AH104: -1.005801594 | AI104: -1.035570133 | AJ104: -1.062149216 | AK104: -1.085929782 | AL104: -1.107186232 | AM104: -1.126116721 | AN104: -1.142866108 | AO104: -1.157539869 | AP104: -1.170212853 | AQ104: -1.18093492 | AR104: -1.189734528 | AS104: -1.196620897 | AT104: -1.201585096 | AU104: -1.204600228 | AV104: -1.205620783 | AW104: -1.205620783 | AX104: -1.205620783 | AY104: -1.205620783 | AZ104: -1.205620783 | BA104: -1.205620783 | BB104: -1.205620783 | BC104: -1.205620783 | BD104: -1.205620783 | BE104: -1.205620783 | BF104: -1.205620783 | BG104: -1.205620783 | BH104: -1.205620783 | BI104: -1.205620783 | BJ104: -1.205620783 | BK104: -1.205620783 | BL104: -1.205620783
A105: High Pressure Mains - PE | O105: 0 | P105: 0 | Q105: 0 | R105: 0 | S105: 0 | T105: 0 | U105: 0 | V105: 0 | W105: 0 | X105: 0 | Y105: 0 | Z105: 0 | AA105: 0 | AB105: 0 | AC105: 0 | AD105: 0 | AE105: 0 | AF105: 0 | AG105: 0 | AH105: 0 | AI105: 0 | AJ105: 0 | AK105: 0 | AL105: 0 | AM105: 0 | AN105: 0 | AO105: 0 | AP105: 0 | AQ105: 0 | AR105: 0 | AS105: 0 | AT105: 0 | AU105: 0 | AV105: 0 | AW105: 0 | AX105: 0 | AY105: 0 | AZ105: 0 | BA105: 0 | BB105: 0 | BC105: 0 | BD105: 0 | BE105: 0 | BF105: 0 | BG105: 0 | BH105: 0 | BI105: 0 | BJ105: 0 | BK105: 0 | BL105: 0
A106: Medium Pressure Mains | O106: 0 | P106: 0 | Q106: 0 | R106: 0 | S106: 0 | T106: 0 | U106: 0 | V106: 0 | W106: 0 | X106: 0 | Y106: 0 | Z106: 0 | AA106: 0 | AB106: 0 | AC106: 0 | AD106: 0 | AE106: 0 | AF106: 0 | AG106: 0 | AH106: 0 | AI106: 0 | AJ106: 0 | AK106: 0 | AL106: 0 | AM106: 0 | AN106: 0 | AO106: 0 | AP106: 0 | AQ106: 0 | AR106: 0 | AS106: 0 | AT106: 0 | AU106: 0 | AV106: 0 | AW106: 0 | AX106: 0 | AY106: 0 | AZ106: 0 | BA106: 0 | BB106: 0 | BC106: 0 | BD106: 0 | BE106: 0 | BF106: 0 | BG106: 0 | BH106: 0 | BI106: 0 | BJ106: 0 | BK106: 0 | BL106: 0
A107: Medium / Low Pressure Mains | O107: 0 | P107: -0.6258975353 | Q107: -1.255433335 | R107: -1.919775537 | S107: -2.56402414 | T107: -3.201528965 | U107: -3.82291738 | V107: -4.357001638 | W107: -4.85776923 | X107: -5.344140184 | Y107: -5.816427753 | Z107: -6.291129989 | AA107: -6.758209708 | AB107: -7.22258761 | AC107: -7.686012696 | AD107: -8.148680752 | AE107: -8.609129925 | AF107: -8.979810377 | AG107: -9.296809918 | AH107: -9.574700328 | AI107: -9.821323527 | AJ107: -10.04152307 | AK107: -10.23853774 | AL107: -10.4146409 | AM107: -10.57147419 | AN107: -10.71023772 | AO107: -10.83180531 | AP107: -10.93679709 | AQ107: -11.02562612 | AR107: -11.09852817 | AS107: -11.15557963 | AT107: -11.19670649 | AU107: -11.22168593 | AV107: -11.23014092 | AW107: -11.23014092 | AX107: -11.23014092 | AY107: -11.23014092 | AZ107: -11.23014092 | BA107: -11.23014092 | BB107: -11.23014092 | BC107: -11.23014092 | BD107: -11.23014092 | BE107: -11.23014092 | BF107: -11.23014092 | BG107: -11.23014092 | BH107: -11.23014092 | BI107: -11.23014092 | BJ107: -11.23014092 | BK107: -11.23014092 | BL107: -11.23014092
A108: Low Pressure Mains | O108: 0 | P108: 0 | Q108: 0 | R108: 0 | S108: 0 | T108: 0 | U108: 0 | V108: 0 | W108: 0 | X108: 0 | Y108: 0 | Z108: 0 | AA108: 0 | AB108: 0 | AC108: 0 | AD108: 0 | AE108: 0 | AF108: 0 | AG108: 0 | AH108: 0 | AI108: 0 | AJ108: 0 | AK108: 0 | AL108: 0 | AM108: 0 | AN108: 0 | AO108: 0 | AP108: 0 | AQ108: 0 | AR108: 0 | AS108: 0 | AT108: 0 | AU108: 0 | AV108: 0 | AW108: 0 | AX108: 0 | AY108: 0 | AZ108: 0 | BA108: 0 | BB108: 0 | BC108: 0 | BD108: 0 | BE108: 0 | BF108: 0 | BG108: 0 | BH108: 0 | BI108: 0 | BJ108: 0 | BK108: 0 | BL108: 0
A109: Regulators | O109: 0 | P109: -0.07492723388 | Q109: -0.1372029706 | R109: -0.1988805128 | S109: -0.2612058632 | T109: -0.323699456 | U109: -0.3884393472 | V109: -0.4531792383 | W109: -0.5179191295 | X109: -0.5826590207 | Y109: -0.6473989119 | Z109: -0.7121388031 | AA109: -0.7768786943 | AB109: -0.8416185855 | AC109: -0.9063584767 | AD109: -0.9710983679 | AE109: -1.035838259 | AF109: -1.087956524 | AG109: -1.132527168 | AH109: -1.171599004 | AI109: -1.206274621 | AJ109: -1.237235029 | AK109: -1.264935608 | AL109: -1.289695995 | AM109: -1.311747006 | AN109: -1.33125738 | AO109: -1.348349979 | AP109: -1.363111991 | AQ109: -1.375601495 | AR109: -1.38585164 | AS109: -1.393873166 | AT109: -1.399655669 | AU109: -1.403167818 | AV109: -1.404356603 | AW109: -1.404356603 | AX109: -1.404356603 | AY109: -1.404356603 | AZ109: -1.404356603 | BA109: -1.404356603 | BB109: -1.404356603 | BC109: -1.404356603 | BD109: -1.329429369 | BE109: -1.267153632 | BF109: -1.20547609 | BG109: -1.14315074 | BH109: -1.080657147 | BI109: -1.015917256 | BJ109: -0.9511773646 | BK109: -0.8864374734 | BL109: -0.8216975822
A110: Secondary Gate Stations | O110: 0 | P110: -0.01990201965 | Q110: -0.05323612916 | R110: -0.1017086721 | S110: -0.1788475349 | T110: -0.2407071489 | U110: -0.2888485786 | V110: -0.3369900084 | W110: -0.3851314382 | X110: -0.433272868 | Y110: -0.4814142977 | Z110: -0.5295557275 | AA110: -0.5776971573 | AB110: -0.6258385871 | AC110: -0.6739800168 | AD110: -0.7221214466 | AE110: -0.7702628764 | AF110: -0.8090187001 | AG110: -0.8421620133 | AH110: -0.8712163421 | AI110: -0.8970015842 | AJ110: -0.9200241485 | AK110: -0.9406226614 | AL110: -0.9590348087 | AM110: -0.9754322287 | AN110: -0.9899403983 | AO110: -1.002650678 | AP110: -1.013627904 | AQ110: -1.022915262 | AR110: -1.030537404 | AS110: -1.036502316 | AT110: -1.04080226 | AU110: -1.04341394 | AV110: -1.044297936 | AW110: -1.044297936 | AX110: -1.044297936 | AY110: -1.044297936 | AZ110: -1.044297936 | BA110: -1.044297936 | BB110: -1.044297936 | BC110: -1.044297936 | BD110: -1.024395917 | BE110: -0.9910618073 | BF110: -0.9425892643 | BG110: -0.8654504015 | BH110: -0.8035907876 | BI110: -0.7554493578 | BJ110: -0.707307928 | BK110: -0.6591664982 | BL110: -0.6110250685
A111: Buildings | O111: 0 | P111: -0.0432933863 | Q111: -0.1304837395 | R111: -0.1419634079 | S111: -0.1529950269 | T111: -0.1647854644 | U111: -0.1977425573 | V111: -0.1977425573 | W111: -0.1977425573 | X111: -0.1977425573 | Y111: -0.1977425573 | Z111: -0.1977425573 | AA111: -0.1977425573 | AB111: -0.1977425573 | AC111: -0.1977425573 | AD111: -0.1977425573 | AE111: -0.2306996502 | AF111: -0.2306996502 | AG111: -0.2306996502 | AH111: -0.2306996502 | AI111: -0.2306996502 | AJ111: -0.2306996502 | AK111: -0.2306996502 | AL111: -0.2306996502 | AM111: -0.2306996502 | AN111: -0.2306996502 | AO111: -0.2394009679 | AP111: -0.2394009679 | AQ111: -0.2394009679 | AR111: -0.2394009679 | AS111: -0.2394009679 | AT111: -0.2394009679 | AU111: -0.2394009679 | AV111: -0.2394009679 | AW111: -0.2394009679 | AX111: -0.2394009679 | AY111: -0.2394009679 | AZ111: -0.2394009679 | BA111: -0.2394009679 | BB111: -0.2394009679 | BC111: -0.2394009679 | BD111: -0.1961075816 | BE111: -0.1089172284 | BF111: -0.09743755992 | BG111: -0.08640594097 | BH111: -0.07461550344 | BI111: -0.04165841056 | BJ111: -0.04165841056 | BK111: -0.04165841056 | BL111: -0.04165841056
A112: Meter and Services Pipes | O112: 0 | P112: -1.161170027 | Q112: -2.382974144 | R112: -3.634430602 | S112: -4.930909696 | T112: -6.233169318 | U112: -7.451039658 | V112: -8.234466036 | W112: -8.76626378 | X112: -9.215575026 | Y112: -9.60640734 | Z112: -10.00878307 | AA112: -10.37892303 | AB112: -10.73579656 | AC112: -11.0854925 | AD112: -11.42595552 | AE112: -11.73430547 | AF112: -11.98253981 | AG112: -12.19482555 | AH112: -12.38092099 | AI112: -12.54607766 | AJ112: -12.69353914 | AK112: -12.82547436 | AL112: -12.94340573 | AM112: -13.0484326 | AN112: -13.14135866 | AO112: -12.06159905 | AP112: -10.910105 | AQ112: -9.718134861 | AR112: -8.470476233 | AS112: -7.206422375 | AT112: -6.016093546 | AU112: -5.2493952 | AV112: -4.723259528 | AW112: -4.273948281 | AX112: -3.883115967 | AY112: -3.480740233 | AZ112: -3.110600281 | BA112: -2.753726751 | BB112: -2.404030809 | BC112: -2.063567788 | BD112: -1.75521784 | BE112: -1.506983497 | BF112: -1.29469776 | BG112: -1.108602315 | BH112: -0.9434456492 | BI112: -0.795984169 | BJ112: -0.664048944 | BK112: -0.5461175765 | BL112: -0.4410907086
A113: Equipment & Vehicles | O113: 0 | P113: -0.09891462244 | Q113: -0.1915861256 | R113: -0.2842576288 | S113: -0.3769291319 | T113: -0.4696006351 | U113: -0.5635207621 | V113: -0.6574408892 | W113: -0.7513610162 | X113: -0.8452811432 | Y113: -0.9392012702 | Z113: -0.9342067748 | AA113: -0.9354553987 | AB113: -0.9367040225 | AC113: -0.9379526464 | AD113: -0.9392012702 | AE113: -0.9392012702 | AF113: -0.9208906941 | AG113: -0.8916305533 | AH113: -0.854393127 | AI113: -0.8107779707 | AJ113: -0.7617730481 | AK113: -0.7080389928 | AL113: -0.6500395108 | AM113: -0.588109455 | AN113: -0.5224936211 | AO113: -0.4533702461 | AP113: -0.3991763949 | AQ113: -0.3526353121 | AR113: -0.3108228079 | AS113: -0.2721549084 | AT113: -0.2356285562 | AU113: -0.2005376656 | AV113: -0.1663416276 | AW113: -0.1343515565 | AX113: -0.1060472634 | AY113: -0.08125051127 | AZ113: -0.05983481154 | BA113: -0.04171590826 | BB113: -0.02684571166 | BC113: -0.0152086405 | BD113: -0.006819788187 | BE113: -0.001724607073 | BF113: 0 | BG113: 0 | BH113: 0 | BI113: 0 | BJ113: 0 | BK113: 0 | BL113: 0
A114: Vehicle | O114: 0 | P114: -0.3395931009 | Q114: -0.5683059468 | R114: -0.7099783621 | S114: -0.9513419704 | T114: -1.234841906 | U114: -1.481810287 | V114: -1.728778668 | W114: -1.975747049 | X114: -2.22271543 | Y114: -2.469683811 | Z114: -2.377059091 | AA114: -2.395314627 | AB114: -2.500610592 | AC114: -2.506215365 | AD114: -2.469683811 | AE114: -2.469683811 | AF114: -2.421535097 | AG114: -2.344593872 | AH114: -2.246675916 | AI114: -2.131987351 | AJ114: -2.003126086 | AK114: -1.861829294 | AL114: -1.709316317 | AM114: -1.54646767 | AN114: -1.373927057 | AO114: -1.192163163 | AP114: -1.049657312 | AQ114: -0.9272748548 | AR114: -0.8173264679 | AS114: -0.7156469998 | AT114: -0.6195988539 | AU114: -0.527325337 | AV114: -0.4374048864 | AW114: -0.3532851525 | AX114: -0.2788573843 | AY114: -0.2136528971 | AZ114: -0.1573390817 | BA114: -0.1096943824 | BB114: -0.07059234435 | BC114: -0.03999199578 | BD114: -0.01793302566 | BE114: -0.004534953586 | BF114: 0 | BG114: 0 | BH114: 0 | BI114: 0 | BJ114: 0 | BK114: 0 | BL114: 0
A115: Information Technology | O115: 0 | P115: -3.866995233 | Q115: -9.565086149 | R115: -11.44796854 | S115: -12.39037816 | T115: -12.80845713 | U115: -11.50315332 | V115: -8.36675383 | W115: -9.045562861 | X115: -10.66484467 | Y115: -12.80845713 | Z115: -12.80845713 | AA115: -12.80845713 | AB115: -12.80845713 | AC115: -12.80845713 | AD115: -12.80845713 | AE115: -12.80845713 | AF115: -12.30903227 | AG115: -11.51095571 | AH115: -10.495297 | AI115: -9.305684339 | AJ115: -7.969064662 | AK115: -7.002881736 | AL115: -6.2190101 | AM115: -5.54551338 | AN115: -4.945440223 | AO115: -4.396705158 | AP115: -3.884739274 | AQ115: -3.399192983 | AR115: -2.932244765 | AS115: -2.477642744 | AT115: -2.030113791 | AU115: -1.584968177 | AV115: -1.137810264 | AW115: -0.7322224911 | AX115: -0.414818902 | AY115: -0.1860111722 | AZ115: -0.04703902445 | BA115: 0 | BB115: 0 | BC115: 0 | BD115: 0 | BE115: 0 | BF115: 0 | BG115: 0 | BH115: 0 | BI115: 0 | BJ115: 0 | BK115: 0 | BL115: 0
A116: Telemetry and Monitoring | O116: 0 | P116: -0.1451012922 | Q116: -0.4693903949 | R116: -0.6352537592 | S116: -0.7952008968 | T116: -0.9582849015 | U116: -1.149941882 | V116: -1.341598862 | W116: -1.533255842 | X116: -1.724912823 | Y116: -1.916569803 | Z116: -1.963125491 | AA116: -1.830493369 | AB116: -1.856286985 | AC116: -1.887996827 | AD116: -1.916569803 | AE116: -1.916569803 | AF116: -1.879204546 | AG116: -1.81949519 | AH116: -1.743507083 | AI116: -1.654504338 | AJ116: -1.55450303 | AK116: -1.444851275 | AL116: -1.326495328 | AM116: -1.200118503 | AN116: -1.066220339 | AO116: -0.9251645529 | AP116: -0.8145745208 | AQ116: -0.7196010184 | AR116: -0.6342768335 | AS116: -0.5553696482 | AT116: -0.480832586 | AU116: -0.4092247812 | AV116: -0.3394430466 | AW116: -0.2741628916 | AX116: -0.2164040755 | AY116: -0.1658028809 | AZ116: -0.1221011902 | BA116: -0.08512706765 | BB116: -0.05478237939 | BC116: -0.03103532976 | BD116: -0.01391671893 | BE116: -0.003519298731 | BF116: 0 | BG116: 0 | BH116: 0 | BI116: 0 | BJ116: 0 | BK116: 0 | BL116: 0
A117: FRC | O117: 0 | P117: 0 | Q117: 0 | R117: 0 | S117: 0 | T117: 0 | U117: 0 | V117: 0 | W117: 0 | X117: 0 | Y117: 0 | Z117: 0 | AA117: 0 | AB117: 0 | AC117: 0 | AD117: 0 | AE117: 0 | AF117: 0 | AG117: 0 | AH117: 0 | AI117: 0 | AJ117: 0 | AK117: 0 | AL117: 0 | AM117: 0 | AN117: 0 | AO117: 0 | AP117: 0 | AQ117: 0 | AR117: 0 | AS117: 0 | AT117: 0 | AU117: 0 | AV117: 0 | AW117: 0 | AX117: 0 | AY117: 0 | AZ117: 0 | BA117: 0 | BB117: 0 | BC117: 0 | BD117: 0 | BE117: 0 | BF117: 0 | BG117: 0 | BH117: 0 | BI117: 0 | BJ117: 0 | BK117: 0 | BL117: 0
A118: Land | O118: 0 | P118: 0 | Q118: 0 | R118: 0 | S118: 0 | T118: 0 | U118: 0 | V118: 0 | W118: 0 | X118: 0 | Y118: 0 | Z118: 0 | AA118: 0 | AB118: 0 | AC118: 0 | AD118: 0 | AE118: 0 | AF118: 0 | AG118: 0 | AH118: 0 | AI118: 0 | AJ118: 0 | AK118: 0 | AL118: 0 | AM118: 0 | AN118: 0 | AO118: 0 | AP118: 0 | AQ118: 0 | AR118: 0 | AS118: 0 | AT118: 0 | AU118: 0 | AV118: 0 | AW118: 0 | AX118: 0 | AY118: 0 | AZ118: 0 | BA118: 0 | BB118: 0 | BC118: 0 | BD118: 0 | BE118: 0 | BF118: 0 | BG118: 0 | BH118: 0 | BI118: 0 | BJ118: 0 | BK118: 0 | BL118: 0
A119: Equity Raising Cost | O119: 0 | P119: 0 | Q119: 0 | R119: 0 | S119: 0 | T119: 0 | U119: 0 | V119: 0 | W119: 0 | X119: 0 | Y119: 0 | Z119: 0 | AA119: 0 | AB119: 0 | AC119: 0 | AD119: 0 | AE119: 0 | AF119: 0 | AG119: 0 | AH119: 0 | AI119: 0 | AJ119: 0 | AK119: 0 | AL119: 0 | AM119: 0 | AN119: 0 | AO119: 0 | AP119: 0 | AQ119: 0 | AR119: 0 | AS119: 0 | AT119: 0 | AU119: 0 | AV119: 0 | AW119: 0 | AX119: 0 | AY119: 0 | AZ119: 0 | BA119: 0 | BB119: 0 | BC119: 0 | BD119: 0 | BE119: 0 | BF119: 0 | BG119: 0 | BH119: 0 | BI119: 0 | BJ119: 0 | BK119: 0 | BL119: 0
A120: Total | O120: =SUM(O104:O119) -> 0 | P120: =SUM(P104:P119) -> -6.407256389 | Q120: =SUM(Q104:Q119) -> -14.82299361 | R120: =SUM(R104:R119) -> -19.22299512 | S120: =SUM(S104:S119) -> -22.81098213 | T120: =SUM(T104:T119) -> -25.91296644 | U120: -27.1808836 | V120: -26.06299986 | W120: -28.47537934 | X120: -31.73134846 | Y120: -35.43908591 | Z120: -36.43355998 | AA120: -37.32611131 | AB120: -38.44816058 | AC120: -39.46830447 | AD120: -40.43318522 | AE120: -41.40340106 | AF120: -41.55468335 | AG120: -41.23595858 | AH120: -40.57481103 | AI120: -39.63990117 | AJ120: -38.47363708 | AK120: -37.60380111 | AL120: -36.84952458 | AM120: -36.1441114 | AN120: -35.45444115 | AO120: -33.60874898 | AP120: -31.7814033 | AQ120: -29.9613178 | AR120: -28.10919982 | AS120: -26.24921365 | AT120: -24.46041781 | AU120: -23.08372004 | AV120: -21.92807656 | AW120: -20.89178758 | AX120: -20.0230608 | AY120: -19.2512749 | AZ120: -18.6207316 | BA120: -18.11408132 | BB120: -17.68006845 | BC120: -17.27362096 | BD120: -16.77958194 | BE120: -16.31965672 | BF120: -15.97596238 | BG120: -15.6393711 | BH120: -15.33807079 | BI120: -15.04477089 | BJ120: -14.79995435 | BK120: -14.56914166 | BL120: -14.35123347
A122: Total accelerated depreciation (Macro Dependent)
A123: High Pressure Mains - Steel | O123: 0 | P123: -0.152094618 | Q123: -0.3258615213 | R123: -0.6905518994 | S123: -0.9409697897 | T123: -1.216826136 | U123: -1.412495529 | V123: -1.596424759 | W123: -1.769318234 | X123: -1.931838101 | Y123: -2.084606776 | Z123: -2.228209331 | AA123: -2.363195732 | AB123: -2.49008295 | AC123: -2.609356934 | AD123: -2.721474479 | AE123: -2.774895366 | AF123: -2.79405807 | AG123: -2.789469597 | AH123: -2.767107804 | AI123: -2.730855289 | AJ123: -2.683432768 | AK123: -2.626839438 | AL123: -2.562589901 | AM123: -2.491853744 | AN123: -2.415543355 | AO123: -2.334371865 | AP123: -2.248892673 | AQ123: -2.159526943 | AR123: -2.066582795 | AS123: -1.970268397 | AT123: -1.870700311 | AU123: -1.767907786 | AV123: -1.661833319 | AW123: -1.56212332 | AX123: -1.468395921 | AY123: -1.380292165 | AZ123: -1.297474635 | BA123: -1.219626157 | BB123: -1.146448588 | BC123: -1.077661673 | BD123: -1.013001972 | BE123: -0.952221854 | BF123: -0.8950885427 | BG123: -0.8413832302 | BH123: -0.7909002363 | BI123: -0.7434462222 | BJ123: -0.6988394488 | BK123: -0.6569090819 | BL123: -0.617494537
A124: High Pressure Mains - PE | O124: 0 | P124: 0 | Q124: 0 | R124: 0 | S124: 0 | T124: 0 | U124: 0 | V124: 0 | W124: 0 | X124: 0 | Y124: 0 | Z124: 0 | AA124: 0 | AB124: 0 | AC124: 0 | AD124: 0 | AE124: 0 | AF124: 0 | AG124: 0 | AH124: 0 | AI124: 0 | AJ124: 0 | AK124: 0 | AL124: 0 | AM124: 0 | AN124: 0 | AO124: 0 | AP124: 0 | AQ124: 0 | AR124: 0 | AS124: 0 | AT124: 0 | AU124: 0 | AV124: 0 | AW124: 0 | AX124: 0 | AY124: 0 | AZ124: 0 | BA124: 0 | BB124: 0 | BC124: 0 | BD124: 0 | BE124: 0 | BF124: 0 | BG124: 0 | BH124: 0 | BI124: 0 | BJ124: 0 | BK124: 0 | BL124: 0
A125: Medium Pressure Mains | O125: 0 | P125: 0 | Q125: 0 | R125: 0 | S125: 0 | T125: 0 | U125: 0 | V125: 0 | W125: 0 | X125: 0 | Y125: 0 | Z125: 0 | AA125: 0 | AB125: 0 | AC125: 0 | AD125: 0 | AE125: 0 | AF125: 0 | AG125: 0 | AH125: 0 | AI125: 0 | AJ125: 0 | AK125: 0 | AL125: 0 | AM125: 0 | AN125: 0 | AO125: 0 | AP125: 0 | AQ125: 0 | AR125: 0 | AS125: 0 | AT125: 0 | AU125: 0 | AV125: 0 | AW125: 0 | AX125: 0 | AY125: 0 | AZ125: 0 | BA125: 0 | BB125: 0 | BC125: 0 | BD125: 0 | BE125: 0 | BF125: 0 | BG125: 0 | BH125: 0 | BI125: 0 | BJ125: 0 | BK125: 0 | BL125: 0
A126: Medium / Low Pressure Mains | O126: 0 | P126: -2.30962244 | Q126: -4.494093082 | R126: -6.675934474 | S126: -8.652718061 | T126: -10.48600944 | U126: -11.57280828 | V126: -12.59160568 | W126: -13.54884176 | X126: -14.44816203 | Y126: -15.29231898 | Z126: -16.08804206 | AA126: -16.83443234 | AB126: -17.53440163 | AC126: -18.19087967 | AD126: -18.80570532 | AE126: -19.0478138 | AF126: -19.07901978 | AG126: -18.96542406 | AH126: -18.74450615 | AI126: -18.44051478 | AJ126: -18.0703693 | AK126: -17.64644342 | AL126: -17.17806243 | AM126: -16.672385 | AN126: -16.13495751 | AO126: -15.57007968 | AP126: -14.98105372 | AQ126: -14.37035743 | AR126: -13.73976485 | AS126: -13.09042844 | AT126: -12.42293114 | AU126: -11.73731304 | AV126: -11.03307426 | AW126: -10.3710898 | AX126: -9.748824413 | AY126: -9.163894948 | AZ126: -8.614061251 | BA126: -8.097217576 | BB126: -7.611384522 | BC126: -7.15470145 | BD126: -6.725419363 | BE126: -6.321894201 | BF126: -5.942580549 | BG126: -5.586025716 | BH126: -5.250864173 | BI126: -4.935812323 | BJ126: -4.639663584 | BK126: -4.361283769 | BL126: -4.099606743
A127: Low Pressure Mains | O127: 0 | P127: 0 | Q127: 0 | R127: 0 | S127: 0 | T127: 0 | U127: 0 | V127: 0 | W127: 0 | X127: 0 | Y127: 0 | Z127: 0 | AA127: 0 | AB127: 0 | AC127: 0 | AD127: 0 | AE127: 0 | AF127: 0 | AG127: 0 | AH127: 0 | AI127: 0 | AJ127: 0 | AK127: 0 | AL127: 0 | AM127: 0 | AN127: 0 | AO127: 0 | AP127: 0 | AQ127: 0 | AR127: 0 | AS127: 0 | AT127: 0 | AU127: 0 | AV127: 0 | AW127: 0 | AX127: 0 | AY127: 0 | AZ127: 0 | BA127: 0 | BB127: 0 | BC127: 0 | BD127: 0 | BE127: 0 | BF127: 0 | BG127: 0 | BH127: 0 | BI127: 0 | BJ127: 0 | BK127: 0 | BL127: 0
A128: Regulators | O128: 0 | P128: -0.1963505433 | Q128: -0.3477661765 | R128: -0.4885292729 | S128: -0.6225441975 | T128: -0.748959114 | U128: -0.8736756722 | V128: -0.9909092369 | W128: -1.101108788 | X128: -1.204696366 | Y128: -1.302068689 | Z128: -1.393598672 | AA128: -1.479636857 | AB128: -1.560512751 | AC128: -1.636536091 | AD128: -1.707998031 | AE128: -1.74235667 | AF128: -1.755045792 | AG128: -1.752702174 | AH128: -1.739102583 | AI128: -1.716700633 | AJ128: -1.687216161 | AK128: -1.651913298 | AL128: -1.611750075 | AM128: -1.567466571 | AN128: -1.519640366 | AO128: -1.468723132 | AP128: -1.4150656 | AQ128: -1.358934924 | AR128: -1.300526804 | AS128: -1.239973759 | AT128: -1.1773504 | AU128: -1.112676146 | AV128: -1.045915577 | AW128: -0.9831606425 | AX128: -0.924171004 | AY128: -0.8687207437 | AZ128: -0.8165974991 | BA128: -0.7676016492 | BB128: -0.7215455502 | BC128: -0.6782528172 | BD128: -0.6210324662 | BE128: -0.5700356206 | BF128: -0.5222305174 | BG128: -0.4771508465 | BH128: -0.43473885 | BI128: -0.3943761528 | BJ128: -0.3564352174 | BK128: -0.3207707382 | BL128: -0.2872461277
A129: Secondary Gate Stations | O129: 0 | P129: -0.05215423244 | Q129: -0.1363786705 | R129: -0.2552206601 | S129: -0.4420536475 | T129: -0.5776366239 | U129: -0.6691354378 | V129: -0.7551443228 | W129: -0.8359926748 | X129: -0.9119901256 | Y129: -0.9834277294 | Z129: -1.050579077 | AA129: -1.113701344 | AB129: -1.173036274 | AC129: -1.228811109 | AD129: -1.281239454 | AE129: -1.306120001 | AF129: -1.31492695 | AG129: -1.312593088 | AH129: -1.301924605 | AI129: -1.284743911 | AJ129: -1.2623279 | AK129: -1.235614715 | AL129: -1.205314994 | AM129: -1.171977408 | AN129: -1.136029891 | AO129: -1.097806844 | AP129: -1.057567694 | AQ129: -1.015509805 | AR129: -0.9717774811 | AS129: -0.9264681209 | AT129: -0.8796361273 | AU129: -0.8312949275 | AV129: -0.7814172319 | AW129: -0.734532198 | AX129: -0.6904602661 | AY129: -0.6490326501 | AZ129: -0.6100906911 | BA129: -0.5734852496 | BB129: -0.5390761347 | BC129: -0.5067315666 | BD129: -0.4719382873 | BE129: -0.4362701609 | BF129: -0.3994033444 | BG129: -0.3584261876 | BH129: -0.3232774945 | BI129: -0.293263265 | BJ129: -0.2650498892 | BK129: -0.238529316 | BL129: -0.2135999772
A130: Buildings | O130: 0 | P130: -0.1134524722 | Q130: -0.3351319814 | R130: -0.3451071046 | S130: -0.3533095846 | T130: -0.3630084375 | U130: -0.4275936324 | V130: -0.4019380145 | W130: -0.3778217336 | X130: -0.3551524296 | Y130: -0.3338432838 | Z130: -0.3138126868 | AA130: -0.2949839256 | AB130: -0.2772848901 | AC130: -0.2606477967 | AD130: -0.2450089289 | AE130: -0.2999686874 | AF130: -0.2819705661 | AG130: -0.2650523321 | AH130: -0.2491491922 | AI130: -0.2342002407 | AJ130: -0.2201482262 | AK130: -0.2069393327 | AL130: -0.1945229727 | AM130: -0.1828515943 | AN130: -0.1718804987 | AO130: -0.1820634049 | AP130: -0.1711396006 | AQ130: -0.1608712245 | AR130: -0.1512189511 | AS130: -0.142145814 | AT130: -0.1336170652 | AU130: -0.1256000413 | AV130: -0.1180640388 | AW130: -0.1109801965 | AX130: -0.1043213847 | AY130: -0.09806210159 | AZ130: -0.09217837549 | BA130: -0.08664767296 | BB130: -0.08144881259 | BC130: -0.07656188383 | BD130: -0.06241982568 | BE130: -0.03944482635 | BF130: -0.03454629887 | BG130: -0.03004050024 | BH130: -0.02563769229 | BI130: -0.01683075246 | BJ130: -0.01582090731 | BK130: -0.01487165288 | BL130: -0.0139793537
A131: Meter and Services Pipes | O131: 0 | P131: -2.212904934 | Q131: -4.408589258 | R131: -6.529042602 | S131: -8.608070836 | T131: -10.57337364 | U131: -10.70851313 | V131: -10.7451969 | W131: -10.77850144 | X131: -10.80723022 | Y131: -10.82986708 | Z131: -10.86103042 | AA131: -10.8846202 | AB131: -10.89865382 | AC131: -10.90245425 | AD131: -10.88981335 | AE131: -10.71039887 | AF131: -10.47383208 | AG131: -10.20202676 | AH131: -9.907054834 | AI131: -9.596465724 | AJ131: -9.275324195 | AK131: -8.9471701 | AL131: -8.614533367 | AM131: -8.279236299 | AN131: -7.94258281 | AO131: -7.13433261 | AP131: -6.329901291 | AQ131: -5.541986558 | AR131: -4.763524723 | AS131: -4.009856979 | AT131: -3.646208166 | AU131: -3.303495664 | AV131: -2.96092937 | AW131: -2.639465825 | AX131: -2.338220125 | AY131: -2.052944619 | AZ131: -1.786000028 | BA131: -1.536805369 | BB131: -1.304561864 | BC131: -1.089704946 | BD131: -0.9234087103 | BE131: -0.7815505075 | BF131: -0.6587284827 | BG131: -0.5516803919 | BH131: -0.4581483941 | BI131: -0.3764426873 | BJ131: -0.3052348267 | BK131: -0.2434458767 | BL131: -0.19017998
A132: Equipment & Vehicles | O132: 0 | P132: -0.128631811 | Q132: -0.2414269569 | R132: -0.347454394 | S132: -0.4471201848 | T132: -0.5408060283 | U132: -0.6304944724 | V132: -0.7148016098 | W132: -0.7940503191 | X132: -0.8685441057 | Y132: -0.9385682652 | Z132: -0.9351079375 | AA132: -0.9362281145 | AB132: -0.9372810808 | AC132: -0.9382708692 | AD132: -0.9392012702 | AE132: -0.9155767871 | AF132: -0.8792536486 | AG132: -0.8348356861 | AH132: -0.7848782073 | AI132: -0.7309937784 | AJ132: -0.674275938 | AK132: -0.6154988297 | AL132: -0.5552243872 | AM132: -0.4938653026 | AN132: -0.4317244881 | AO132: -0.3817454906 | AP132: -0.3381962347 | AQ132: -0.298695586 | AR132: -0.2619199603 | AS132: -0.2270133531 | AT132: -0.1933625965 | AU132: -0.1604914937 | AV132: -0.1280030619 | AW132: -0.09999602403 | AX132: -0.07607339586 | AY132: -0.05589739585 | AZ132: -0.03917914223 | BA132: -0.02567133314 | BB132: -0.01516299676 | BC132: -0.007475764718 | BD132: -0.002461342947 | BE132: 0 | BF132: 0 | BG132: 0 | BH132: 0 | BI132: 0 | BJ132: 0 | BK132: 0 | BL132: 0
A133: Vehicle | O133: 0 | P133: -0.4416179783 | Q133: -0.7125465668 | R133: -0.8540292166 | S133: -1.116664596 | T133: -1.418337311 | U133: -1.654402835 | V133: -1.876304427 | W133: -2.084891924 | X133: -2.280964171 | Y133: -2.465272083 | Z133: -2.400659403 | AA133: -2.417587641 | AB133: -2.494466151 | AC133: -2.496904977 | AD133: -2.469683811 | AE133: -2.407561873 | AF133: -2.312048089 | AG133: -2.195248499 | AH133: -2.063882432 | AI133: -1.922190225 | AJ133: -1.773047398 | AK133: -1.618489608 | AL133: -1.459994491 | AM133: -1.298647246 | AN133: -1.135244397 | AO133: -1.003821745 | AP133: -0.8893064696 | AQ133: -0.7854372398 | AR133: -0.6887336147 | AS133: -0.5969446814 | AT133: -0.5084580797 | AU133: -0.4220216225 | AV133: -0.3365914205 | AW133: -0.2629453021 | AX133: -0.2000393741 | AY133: -0.1469854205 | AZ133: -0.1030238101 | BA133: -0.06750424842 | BB133: -0.03987197294 | BC133: -0.01965795372 | BD133: -0.006472242982 | BE133: 0 | BF133: 0 | BG133: 0 | BH133: 0 | BI133: 0 | BJ133: 0 | BK133: 0 | BL133: 0
A134: Information Technology | O134: 0 | P134: -4.359699761 | Q134: -10.52221817 | R134: -12.01367071 | S134: -12.35533509 | T134: -12.08536255 | U134: -11.0487232 | V134: -8.559210287 | W134: -9.375820349 | X134: -10.92159299 | Y134: -12.80845713 | Z134: -12.80845713 | AA134: -12.80845713 | AB134: -12.80845713 | AC134: -12.80845713 | AD134: -12.80845713 | AE134: -12.2498255 | AF134: -11.39091766 | AG134: -10.34059718 | AH134: -9.159287628 | AI134: -7.88512024 | AJ134: -6.953935145 | AK134: -6.194429908 | AL134: -5.539996764 | AM134: -4.956049251 | AN134: -4.421765459 | AO134: -3.923347558 | AP134: -3.450972721 | AQ134: -2.997219634 | AR134: -2.556173571 | AS134: -2.122874477 | AT134: -1.692949482 | AU134: -1.262347305 | AV134: -0.8271273021 | AW134: -0.4885499532 | AX134: -0.2408682506 | AY134: -0.07930417717 | AZ134: 0 | BA134: 0 | BB134: 0 | BC134: 0 | BD134: 0 | BE134: 0 | BF134: 0 | BG134: 0 | BH134: 0 | BI134: 0 | BJ134: 0 | BK134: 0 | BL134: 0
A135: Telemetry and Monitoring | O135: 0 | P135: -0.1886944674 | Q135: -0.5990889577 | R135: -0.7788377655 | S135: -0.94010799 | T135: -1.095781286 | U135: -1.279271416 | V135: -1.451752138 | W135: -1.613884017 | X135: -1.766287983 | Y135: -1.909547712 | Z135: -1.942578164 | AA135: -1.848117785 | AB135: -1.870291598 | AC135: -1.895278902 | AD135: -1.916569803 | AE135: -1.868360785 | AF135: -1.794238408 | AG135: -1.703597426 | AH135: -1.601652296 | AI135: -1.491693683 | AJ135: -1.375953103 | AK135: -1.256010302 | AL135: -1.133011984 | AM135: -1.007800304 | AN135: -0.8809933966 | AO135: -0.779004355 | AP135: -0.6901360884 | AQ135: -0.6095295637 | AR135: -0.5344838243 | AS135: -0.4632520751 | AT135: -0.3945830625 | AU135: -0.327505041 | AV135: -0.2612079123 | AW135: -0.2040556866 | AX135: -0.1552382625 | AY135: -0.1140663502 | AZ135: -0.0799504465 | BA135: -0.05238589794 | BB135: -0.0309421874 | BC135: -0.01525532957 | BD135: -0.005022709952 | BE135: 0 | BF135: 0 | BG135: 0 | BH135: 0 | BI135: 0 | BJ135: 0 | BK135: 0 | BL135: 0
A136: FRC | O136: 0 | P136: 0 | Q136: 0 | R136: 0 | S136: 0 | T136: 0 | U136: 0 | V136: 0 | W136: 0 | X136: 0 | Y136: 0 | Z136: 0 | AA136: 0 | AB136: 0 | AC136: 0 | AD136: 0 | AE136: 0 | AF136: 0 | AG136: 0 | AH136: 0 | AI136: 0 | AJ136: 0 | AK136: 0 | AL136: 0 | AM136: 0 | AN136: 0 | AO136: 0 | AP136: 0 | AQ136: 0 | AR136: 0 | AS136: 0 | AT136: 0 | AU136: 0 | AV136: 0 | AW136: 0 | AX136: 0 | AY136: 0 | AZ136: 0 | BA136: 0 | BB136: 0 | BC136: 0 | BD136: 0 | BE136: 0 | BF136: 0 | BG136: 0 | BH136: 0 | BI136: 0 | BJ136: 0 | BK136: 0 | BL136: 0
A137: Land | O137: 0 | P137: 0 | Q137: 0 | R137: 0 | S137: 0 | T137: 0 | U137: 0 | V137: 0 | W137: 0 | X137: 0 | Y137: 0 | Z137: 0 | AA137: 0 | AB137: 0 | AC137: 0 | AD137: 0 | AE137: 0 | AF137: 0 | AG137: 0 | AH137: 0 | AI137: 0 | AJ137: 0 | AK137: 0 | AL137: 0 | AM137: 0 | AN137: 0 | AO137: 0 | AP137: 0 | AQ137: 0 | AR137: 0 | AS137: 0 | AT137: 0 | AU137: 0 | AV137: 0 | AW137: 0 | AX137: 0 | AY137: 0 | AZ137: 0 | BA137: 0 | BB137: 0 | BC137: 0 | BD137: 0 | BE137: 0 | BF137: 0 | BG137: 0 | BH137: 0 | BI137: 0 | BJ137: 0 | BK137: 0 | BL137: 0
A138: Equity Raising Cost | O138: 0 | P138: 0 | Q138: 0 | R138: 0 | S138: 0 | T138: 0 | U138: 0 | V138: 0 | W138: 0 | X138: 0 | Y138: 0 | Z138: 0 | AA138: 0 | AB138: 0 | AC138: 0 | AD138: 0 | AE138: 0 | AF138: 0 | AG138: 0 | AH138: 0 | AI138: 0 | AJ138: 0 | AK138: 0 | AL138: 0 | AM138: 0 | AN138: 0 | AO138: 0 | AP138: 0 | AQ138: 0 | AR138: 0 | AS138: 0 | AT138: 0 | AU138: 0 | AV138: 0 | AW138: 0 | AX138: 0 | AY138: 0 | AZ138: 0 | BA138: 0 | BB138: 0 | BC138: 0 | BD138: 0 | BE138: 0 | BF138: 0 | BG138: 0 | BH138: 0 | BI138: 0 | BJ138: 0 | BK138: 0 | BL138: 0
A139: Total | O139: =SUM(O123:O138) -> 0 | P139: =SUM(P123:P138) -> -10.15522326 | Q139: =SUM(Q123:Q138) -> -22.12310134 | R139: =SUM(R123:R138) -> -28.9783781 | S139: =SUM(S123:S138) -> -34.47889398 | T139: =SUM(T123:T138) -> -39.10610057 | U139: -40.27711361 | V139: -39.68328737 | W139: -42.28023123 | X139: -45.49645851 | Y139: -48.94797773 | Z139: -50.02207488 | AA139: -50.98096108 | AB139: -52.04446827 | AC139: -52.96759773 | AD139: -53.78515157 | AE139: -53.32287835 | AF139: -52.07531104 | AG139: -50.3615468 | AH139: -48.31854573 | AI139: -46.0334785 | AJ139: -43.97603014 | AK139: -41.99934895 | AL139: -40.05500137 | AM139: -38.12213272 | AN139: -36.19036217 | AO139: -33.87529669 | AP139: -31.57223209 | AQ139: -29.29806891 | AR139: -27.03470657 | AS139: -24.78922609 | AT139: -22.91979643 | AU139: -21.05065307 | AV139: -19.15416349 | AW139: -17.45689895 | AX139: -15.9466124 | AY139: -14.60920057 | AZ139: -13.43855588 | BA139: -12.42694515 | BB139: -11.49044263 | BC139: -10.62600338 | BD139: -9.831176921 | BE139: -9.101417171 | BF139: -8.452577735 | BG139: -7.844706873 | BH139: -7.283566841 | BI139: -6.760171403 | BJ139: -6.281043873 | BK139: -5.835810434 | BL139: -5.422106718
A140: check total | O140: ='RAB Post 2024'!O208 -> 0 | P140: ='RAB Post 2024'!P208 -> 0 | Q140: ='RAB Post 2024'!Q208 -> 0 | R140: ='RAB Post 2024'!R208 -> 0 | S140: ='RAB Post 2024'!S208 -> 0 | T140: ='RAB Post 2024'!T208 -> -30.48510541 | U140: ='RAB Post 2024'!U208 -> -32.25315659 | V140: ='RAB Post 2024'!V208 -> -30.99215765 | W140: ='RAB Post 2024'!W208 -> -33.34402791 | X140: ='RAB Post 2024'!X208 -> -36.55285491 | Y140: ='RAB Post 2024'!Y208 -> -40.19084691 | Z140: ='RAB Post 2024'!Z208 -> -41.20125926 | AA140: ='RAB Post 2024'!AA208 -> -42.13276168 | AB140: ='RAB Post 2024'!AB208 -> -43.26847729 | AC140: ='RAB Post 2024'!AC208 -> -44.29170299 | AD140: ='RAB Post 2024'!AD208 -> -44.33605027 | AE140: ='RAB Post 2024'!AE208 -> -43.85406502 | AF140: ='RAB Post 2024'!AF208 -> -42.95720384 | AG140: ='RAB Post 2024'!AG208 -> -41.76595424 | AH140: ='RAB Post 2024'!AH208 -> -40.33526412 | AI140: ='RAB Post 2024'!AI208 -> -39.16549619 | AJ140: ='RAB Post 2024'!AJ208 -> -38.0882925 | AK140: ='RAB Post 2024'!AK208 -> -37.04339014 | AL140: ='RAB Post 2024'!AL208 -> -36.00207188 | AM140: ='RAB Post 2024'!AM208 -> -34.9484431 | AN140: ='RAB Post 2024'!AN208 -> -33.96404523 | AO140: ='RAB Post 2024'!AO208 -> -32.0909047 | AP140: ='RAB Post 2024'!AP208 -> -30.19133845 | AQ140: ='RAB Post 2024'!AQ208 -> -28.28833771 | AR140: ='RAB Post 2024'!AR208 -> -26.36123108 | AS140: ='RAB Post 2024'!AS208 -> -24.43332374 | AT140: ='RAB Post 2024'!AT208 -> -22.55527651 | AU140: ='RAB Post 2024'!AU208 -> -21.2306944 | AV140: ='RAB Post 2024'!AV208 -> -20.02106151 | AW140: ='RAB Post 2024'!AW208 -> -18.93403737 | AX140: ='RAB Post 2024'!AX208 -> -17.9673629 | AY140: ='RAB Post 2024'!AY208 -> -17.11202567 | AZ140: ='RAB Post 2024'!AZ208 -> -16.3736204 | BA140: ='RAB Post 2024'!BA208 -> -15.71043645 | BB140: ='RAB Post 2024'!BB208 -> -15.08069664 | BC140: ='RAB Post 2024'!BC208 -> -14.53546296 | BD140: ='RAB Post 2024'!BD208 -> -13.9649797 | BE140: ='RAB Post 2024'!BE208 -> -13.41271191 | BF140: ='RAB Post 2024'!BF208 -> -12.9368666 | BG140: ='RAB Post 2024'!BG208 -> -12.46581225 | BH140: ='RAB Post 2024'!BH208 -> -12.0260277 | BI140: ='RAB Post 2024'!BI208 -> -11.59914418 | BJ140: ='RAB Post 2024'!BJ208 -> -11.21149336 | BK140: ='RAB Post 2024'!BK208 -> -10.84046303 | BL140: ='RAB Post 2024'!BL208 -> -10.48525397
A141: Check | O141: =O139-O140 -> 0 | P141: =P139-P140 -> -10.15522326 | Q141: =Q139-Q140 -> -22.12310134 | R141: =R139-R140 -> -28.9783781 | S141: =S139-S140 -> -34.47889398 | T141: =T139-T140 -> -8.62099516 | U141: -8.023957027 | V141: -8.691129718 | W141: -8.936203323 | X141: -8.943603599 | Y141: -8.757130819 | Z141: -8.820815615 | AA141: -8.848199392 | AB141: -8.775990984 | AC141: -8.675894744 | AD141: -9.449101306 | AE141: -9.468813321 | AF141: -9.118107207 | AG141: -8.595592558 | AH141: -7.983281615 | AI141: -6.867982314 | AJ141: -5.887737633 | AK141: -4.955958813 | AL141: -4.052929486 | AM141: -3.173689614 | AN141: -2.226316938 | AO141: -1.784391989 | AP141: -1.380893644 | AQ141: -1.009731197 | AR141: -0.673475497 | AS141: -0.3559023526 | AT141: -0.364519924 | AU141: 0.1800413322 | AV141: 0.866898016 | AW141: 1.477138422 | AX141: 2.020750503 | AY141: 2.502825101 | AZ141: 2.935064518 | BA141: 3.283491297 | BB141: 3.59025401 | BC141: 3.909459579 | BD141: 4.133802775 | BE141: 4.311294739 | BF141: 4.484288861 | BG141: 4.621105373 | BH141: 4.742460855 | BI141: 4.838972775 | BJ141: 4.930449488 | BK141: 5.004652591 | BL141: 5.063147255
A143: Accelerated depreciation (Formula)
A144: High Pressure Mains - Steel | O144: =O123-O104 -> 0 | P144: -0.1206326796 | Q144: -0.2565668497 | R144: -0.5417738083 | S144: -0.7318200796 | T144: =T123-T104 -> -0.9389346156 | U144: -1.079025705 | V144: -1.20737663 | W144: -1.324691801 | X144: -1.431633364 | Y144: -1.528823735 | Z144: -1.616847986 | AA144: -1.696256083 | AB144: -1.767564996 | AC144: -1.831260676 | AD144: -1.887799917 | AE144: -1.885642501 | AF144: -1.860062393 | AG144: -1.817210636 | AH144: -1.76130621 | AI144: -1.695285156 | AJ144: -1.621283552 | AK144: -1.540909657 | AL144: -1.455403669 | AM144: -1.365737023 | AN144: -1.272677247 | AO144: -1.176831996 | AP144: -1.07867982 | AQ144: -0.9785920233 | AR144: -0.8768482666 | AS144: -0.7736474998 | AT144: -0.6691152147 | AU144: -0.5633075585 | AV144: -0.4562125355 | AW144: -0.3565025364 | AX144: -0.2627751372 | AY144: -0.1746713819 | AZ144: -0.09185385201 | BA144: -0.01400537388 | BB144: 0.05917219556 | BC144: 0.1279591108 | BD144: 0.1926188112 | BE144: 0.2533989295 | BF144: 0.3105322408 | BG144: 0.3642375533 | BH144: 0.4147205471 | BI144: 0.4621745613 | BJ144: 0.5067813347 | BK144: 0.5487117016 | BL144: 0.5881262465
A145: High Pressure Mains - PE | O145: 0 | P145: 0 | Q145: 0 | R145: 0 | S145: 0 | T145: =T124-T105 -> 0 | U145: 0 | V145: 0 | W145: 0 | X145: 0 | Y145: 0 | Z145: 0 | AA145: 0 | AB145: 0 | AC145: 0 | AD145: 0 | AE145: 0 | AF145: 0 | AG145: 0 | AH145: 0 | AI145: 0 | AJ145: 0 | AK145: 0 | AL145: 0 | AM145: 0 | AN145: 0 | AO145: 0 | AP145: 0 | AQ145: 0 | AR145: 0 | AS145: 0 | AT145: 0 | AU145: 0 | AV145: 0 | AW145: 0 | AX145: 0 | AY145: 0 | AZ145: 0 | BA145: 0 | BB145: 0 | BC145: 0 | BD145: 0 | BE145: 0 | BF145: 0 | BG145: 0 | BH145: 0 | BI145: 0 | BJ145: 0 | BK145: 0 | BL145: 0
A146: Medium Pressure Mains | O146: 0 | P146: 0 | Q146: 0 | R146: 0 | S146: 0 | T146: =T125-T106 -> 0 | U146: 0 | V146: 0 | W146: 0 | X146: 0 | Y146: 0 | Z146: 0 | AA146: 0 | AB146: 0 | AC146: 0 | AD146: 0 | AE146: 0 | AF146: 0 | AG146: 0 | AH146: 0 | AI146: 0 | AJ146: 0 | AK146: 0 | AL146: 0 | AM146: 0 | AN146: 0 | AO146: 0 | AP146: 0 | AQ146: 0 | AR146: 0 | AS146: 0 | AT146: 0 | AU146: 0 | AV146: 0 | AW146: 0 | AX146: 0 | AY146: 0 | AZ146: 0 | BA146: 0 | BB146: 0 | BC146: 0 | BD146: 0 | BE146: 0 | BF146: 0 | BG146: 0 | BH146: 0 | BI146: 0 | BJ146: 0 | BK146: 0 | BL146: 0
A147: Medium / Low Pressure Mains | O147: 0 | P147: -1.683724905 | Q147: -3.238659747 | R147: -4.756158938 | S147: -6.088693921 | T147: =T126-T107 -> -7.284480474 | U147: -7.749890903 | V147: -8.234604042 | W147: -8.691072525 | X147: -9.104021842 | Y147: -9.475891225 | Z147: -9.796912071 | AA147: -10.07622264 | AB147: -10.31181402 | AC147: -10.50486698 | AD147: -10.65702457 | AE147: -10.43868387 | AF147: -10.09920941 | AG147: -9.668614141 | AH147: -9.169805821 | AI147: -8.619191253 | AJ147: -8.028846234 | AK147: -7.407905675 | AL147: -6.763421529 | AM147: -6.100910809 | AN147: -5.424719791 | AO147: -4.738274372 | AP147: -4.044256631 | AQ147: -3.344731307 | AR147: -2.641236679 | AS147: -1.934848811 | AT147: -1.226224656 | AU147: -0.5156271132 | AV147: 0.1970666609 | AW147: 0.8590511163 | AX147: 1.481316504 | AY147: 2.066245969 | AZ147: 2.616079666 | BA147: 3.132923341 | BB147: 3.618756396 | BC147: 4.075439467 | BD147: 4.504721554 | BE147: 4.908246716 | BF147: 5.287560368 | BG147: 5.644115201 | BH147: 5.979276744 | BI147: 6.294328594 | BJ147: 6.590477334 | BK147: 6.868857149 | BL147: 7.130534175
A148: Low Pressure Mains | O148: 0 | P148: 0 | Q148: 0 | R148: 0 | S148: 0 | T148: =T127-T108 -> 0 | U148: 0 | V148: 0 | W148: 0 | X148: 0 | Y148: 0 | Z148: 0 | AA148: 0 | AB148: 0 | AC148: 0 | AD148: 0 | AE148: 0 | AF148: 0 | AG148: 0 | AH148: 0 | AI148: 0 | AJ148: 0 | AK148: 0 | AL148: 0 | AM148: 0 | AN148: 0 | AO148: 0 | AP148: 0 | AQ148: 0 | AR148: 0 | AS148: 0 | AT148: 0 | AU148: 0 | AV148: 0 | AW148: 0 | AX148: 0 | AY148: 0 | AZ148: 0 | BA148: 0 | BB148: 0 | BC148: 0 | BD148: 0 | BE148: 0 | BF148: 0 | BG148: 0 | BH148: 0 | BI148: 0 | BJ148: 0 | BK148: 0 | BL148: 0
A149: Regulators | O149: 0 | P149: -0.1214233094 | Q149: -0.2105632059 | R149: -0.2896487602 | S149: -0.3613383343 | T149: =T128-T109 -> -0.425259658 | U149: -0.485236325 | V149: -0.5377299986 | W149: -0.5831896583 | X149: -0.6220373449 | Y149: -0.6546697768 | Z149: -0.6814598694 | AA149: -0.7027581629 | AB149: -0.7188941654 | AC149: -0.7301776142 | AD149: -0.7368996626 | AE149: -0.7065184113 | AF149: -0.6670892677 | AG149: -0.6201750064 | AH149: -0.5675035789 | AI149: -0.5104260123 | AJ149: -0.4499811323 | AK149: -0.3869776896 | AL149: -0.3220540797 | AM149: -0.2557195651 | AN149: -0.1883829857 | AO149: -0.1203731536 | AP149: -0.05195360901 | AQ149: 0.01666657132 | AR149: 0.08532483665 | AS149: 0.1538994068 | AT149: 0.2223052682 | AU149: 0.2904916716 | AV149: 0.3584410258 | AW149: 0.4211959604 | AX149: 0.480185599 | AY149: 0.5356358592 | AZ149: 0.5877591038 | BA149: 0.6367549538 | BB149: 0.6828110527 | BC149: 0.7261037857 | BD149: 0.7083969029 | BE149: 0.6971180117 | BF149: 0.6832455727 | BG149: 0.6659998932 | BH149: 0.6459182969 | BI149: 0.6215411029 | BJ149: 0.5947421471 | BK149: 0.5656667352 | BL149: 0.5344514545
A150: Secondary Gate Stations | O150: 0 | P150: -0.03225221279 | Q150: -0.08314254137 | R150: -0.153511988 | S150: -0.2632061126 | T150: =T129-T110 -> -0.336929475 | U150: -0.3802868591 | V150: -0.4181543144 | W150: -0.4508612366 | X150: -0.4787172576 | Y150: -0.5020134316 | Z150: -0.5210233494 | AA150: -0.5360041863 | AB150: -0.5471976872 | AC150: -0.5548310923 | AD150: -0.5591180073 | AE150: -0.5358571246 | AF150: -0.5059082501 | AG150: -0.4704310751 | AH150: -0.430708263 | AI150: -0.3877423272 | AJ150: -0.3423037518 | AK150: -0.294992054 | AL150: -0.2462801856 | AM150: -0.1965451795 | AN150: -0.1460894924 | AO150: -0.09515616531 | AP150: -0.04393979032 | AQ150: 0.007405457628 | AR150: 0.05875992303 | AS150: 0.1100341947 | AT150: 0.1611661329 | AU150: 0.2121190126 | AV150: 0.2628807046 | AW150: 0.3097657385 | AX150: 0.3538376704 | AY150: 0.3952652863 | AZ150: 0.4342072453 | BA150: 0.4708126868 | BB150: 0.5052218018 | BC150: 0.5375663699 | BD150: 0.5524576295 | BE150: 0.5547916464 | BF150: 0.5431859199 | BG150: 0.5070242139 | BH150: 0.480313293 | BI150: 0.4621860928 | BJ150: 0.4422580388 | BK150: 0.4206371822 | BL150: 0.3974250912
A151: Buildings | O151: 0 | P151: -0.07015908594 | Q151: -0.2046482419 | R151: -0.2031436967 | S151: -0.2003145577 | T151: =T130-T111 -> -0.1982229731 | U151: -0.2298510751 | V151: -0.2041954572 | W151: -0.1800791763 | X151: -0.1574098723 | Y151: -0.1361007265 | Z151: -0.1160701295 | AA151: -0.09724136829 | AB151: -0.07954233275 | AC151: -0.06290523935 | AD151: -0.04726637155 | AE151: -0.06926903716 | AF151: -0.05127091592 | AG151: -0.03435268196 | AH151: -0.01844954203 | AI151: -0.003500590496 | AJ151: 0.01055142395 | AK151: 0.02376031752 | AL151: 0.03617667748 | AM151: 0.04784805584 | AN151: 0.0588191515 | AO151: 0.05733756299 | AP151: 0.06826136728 | AQ151: 0.07852974332 | AR151: 0.08818201679 | AS151: 0.09725515385 | AT151: 0.1057839027 | AU151: 0.1138009266 | AV151: 0.1213369291 | AW151: 0.1284207714 | AX151: 0.1350795832 | AY151: 0.1413388663 | AZ151: 0.1472225924 | BA151: 0.1527532949 | BB151: 0.1579521553 | BC151: 0.162839084 | BD151: 0.1336877559 | BE151: 0.069472402 | BF151: 0.06289126105 | BG151: 0.05636544073 | BH151: 0.04897781115 | BI151: 0.0248276581 | BJ151: 0.02583750324 | BK151: 0.02678675768 | BL151: 0.02767905686
A152: Meter and Services Pipes | O152: 0 | P152: -1.051734907 | Q152: -2.025615114 | R152: -2.894612001 | S152: -3.677161139 | T152: =T131-T112 -> -4.340204323 | U152: -3.257473474 | V152: -2.510730862 | W152: -2.012237656 | X152: -1.591655193 | Y152: -1.223459745 | Z152: -0.8522473439 | AA152: -0.5056971786 | AB152: -0.1628572632 | AC152: 0.1830382481 | AD152: 0.5361421735 | AE152: 1.023906593 | AF152: 1.508707735 | AG152: 1.992798787 | AH152: 2.473866158 | AI152: 2.949611934 | AJ152: 3.418214943 | AK152: 3.878304263 | AL152: 4.328872364 | AM152: 4.7691963 | AN152: 5.198775848 | AO152: 4.927266443 | AP152: 4.580203707 | AQ152: 4.176148303 | AR152: 3.70695151 | AS152: 3.196565396 | AT152: 2.36988538 | AU152: 1.945899536 | AV152: 1.762330158 | AW152: 1.634482456 | AX152: 1.544895842 | AY152: 1.427795615 | AZ152: 1.324600253 | BA152: 1.216921382 | BB152: 1.099468946 | BC152: 0.9738628411 | BD152: 0.8318091297 | BE152: 0.7254329891 | BF152: 0.6359692775 | BG152: 0.5569219235 | BH152: 0.485297255 | BI152: 0.4195414818 | BJ152: 0.3588141174 | BK152: 0.3026716998 | BL152: 0.2509107287
A153: Equipment & Vehicles | O153: 0 | P153: -0.02971718861 | Q153: -0.04984083128 | R153: -0.0631967652 | S153: -0.07019105289 | T153: =T132-T113 -> -0.07120539314 | U153: -0.06697371023 | V153: -0.05736072067 | W153: -0.04268930287 | X153: -0.02326296252 | Y153: 0.0006330050403 | Z153: -0.0009011626911 | AA153: -0.0007727157972 | AB153: -0.0005770582857 | AC153: -0.0003182227937 | AD153: 0 | AE153: 0.0236244831 | AF153: 0.04163704552 | AG153: 0.05679486717 | AH153: 0.06951491976 | AI153: 0.07978419225 | AJ153: 0.08749711013 | AK153: 0.09254016311 | AL153: 0.09481512364 | AM153: 0.09424415235 | AN153: 0.09076913293 | AO153: 0.07162475551 | AP153: 0.06098016024 | AQ153: 0.05393972604 | AR153: 0.04890284758 | AS153: 0.04514155527 | AT153: 0.04226595965 | AU153: 0.04004617189 | AV153: 0.03833856578 | AW153: 0.03435553243 | AX153: 0.02997386749 | AY153: 0.02535311542 | AZ153: 0.0206556693 | BA153: 0.01604457512 | BB153: 0.0116827149 | BC153: 0.007732875784 | BD153: 0.00435844524 | BE153: 0.001724607073 | BF153: 0 | BG153: 0 | BH153: 0 | BI153: 0 | BJ153: 0 | BK153: 0 | BL153: 0
A154: Vehicle | O154: =O133-O114 -> 0 | P154: -0.1020248774 | Q154: -0.14424062 | R154: -0.1440508545 | S154: -0.1653226257 | T154: =T133-T114 -> -0.1834954053 | U154: -0.172592548 | V154: -0.1475257592 | W154: -0.1091448749 | X154: -0.05824874085 | Y154: 0.004411728055 | Z154: -0.02360031141 | AA154: -0.02227301481 | AB154: 0.006144441555 | AC154: 0.009310388533 | AD154: 0 | AE154: 0.0621219384 | AF154: 0.1094870083 | AG154: 0.149345373 | AH154: 0.1827934836 | AI154: 0.2097971268 | AJ154: 0.2300786884 | AK154: 0.2433396866 | AL154: 0.2493218262 | AM154: 0.2478204244 | AN154: 0.2386826607 | AO154: 0.1883414181 | AP154: 0.1603508421 | AQ154: 0.141837615 | AR154: 0.1285928531 | AS154: 0.1187023184 | AT154: 0.1111407742 | AU154: 0.1053037145 | AV154: 0.1008134659 | AW154: 0.09033985041 | AX154: 0.0788180102 | AY154: 0.06666747662 | AZ154: 0.05431527161 | BA154: 0.04219013399 | BB154: 0.03072037142 | BC154: 0.02033404207 | BD154: 0.01146078268 | BE154: 0.004534953586 | BF154: 0 | BG154: 0 | BH154: 0 | BI154: 0 | BJ154: 0 | BK154: 0 | BL154: 0
A155: Information Technology | O155: 0 | P155: -0.4927045278 | Q155: -0.9571320212 | R155: -0.5657021699 | S155: 0.03504306484 | T155: =T134-T115 -> 0.7230945758 | U155: 0.4544301172 | V155: -0.1924564561 | W155: -0.3302574882 | X155: -0.2567483131 | Y155: 0 | Z155: 0 | AA155: 0 | AB155: 0 | AC155: 0 | AD155: 0 | AE155: 0.5586316232 | AF155: 0.9181146121 | AG155: 1.170358534 | AH155: 1.336009369 | AI155: 1.420564099 | AJ155: 1.015129517 | AK155: 0.8084518283 | AL155: 0.6790133359 | AM155: 0.5894641286 | AN155: 0.523674764 | AO155: 0.4733575992 | AP155: 0.433766553 | AQ155: 0.4019733488 | AR155: 0.376071194 | AS155: 0.3547682677 | AT155: 0.3371643092 | AU155: 0.3226208716 | AV155: 0.3106829616 | AW155: 0.2436725379 | AX155: 0.1739506515 | AY155: 0.1067069951 | AZ155: 0.04703902445 | BA155: 0 | BB155: 0 | BC155: 0 | BD155: 0 | BE155: 0 | BF155: 0 | BG155: 0 | BH155: 0 | BI155: 0 | BJ155: 0 | BK155: 0 | BL155: 0
A156: Telemetry and Monitoring | O156: 0 | P156: -0.04359317521 | Q156: -0.1296985628 | R156: -0.1435840063 | S156: -0.1449070932 | T156: =T135-T116 -> -0.1374963842 | U156: -0.1293295341 | V156: -0.1101532761 | W156: -0.08062817483 | X156: -0.04137516081 | Y156: 0.007022091196 | Z156: 0.0205473268 | AA156: -0.01762441628 | AB156: -0.01400461388 | AC156: -0.007282074657 | AD156: 0 | AE156: 0.04820901797 | AF156: 0.08496613736 | AG156: 0.1158977642 | AH156: 0.1418547869 | AI156: 0.1628106546 | AJ156: 0.1785499279 | AK156: 0.1888409735 | AL156: 0.1934833444 | AM156: 0.1923181987 | AN156: 0.185226942 | AO156: 0.1461601979 | AP156: 0.1244384323 | AQ156: 0.1100714547 | AR156: 0.09979300915 | AS156: 0.09211757312 | AT156: 0.08624952342 | AU156: 0.08171974016 | AV156: 0.07823513425 | AW156: 0.07010720503 | AX156: 0.06116581304 | AY156: 0.05173653078 | AZ156: 0.04215074373 | BA156: 0.0327411697 | BB156: 0.02384019198 | BC156: 0.01578000018 | BD156: 0.008894008983 | BE156: 0.003519298731 | BF156: 0 | BG156: 0 | BH156: 0 | BI156: 0 | BJ156: 0 | BK156: 0 | BL156: 0
A157: FRC | O157: 0 | P157: 0 | Q157: 0 | R157: 0 | S157: 0 | T157: =T136-T117 -> 0 | U157: 0 | V157: 0 | W157: 0 | X157: 0 | Y157: 0 | Z157: 0 | AA157: 0 | AB157: 0 | AC157: 0 | AD157: 0 | AE157: 0 | AF157: 0 | AG157: 0 | AH157: 0 | AI157: 0 | AJ157: 0 | AK157: 0 | AL157: 0 | AM157: 0 | AN157: 0 | AO157: 0 | AP157: 0 | AQ157: 0 | AR157: 0 | AS157: 0 | AT157: 0 | AU157: 0 | AV157: 0 | AW157: 0 | AX157: 0 | AY157: 0 | AZ157: 0 | BA157: 0 | BB157: 0 | BC157: 0 | BD157: 0 | BE157: 0 | BF157: 0 | BG157: 0 | BH157: 0 | BI157: 0 | BJ157: 0 | BK157: 0 | BL157: 0
A158: Land | O158: 0 | P158: 0 | Q158: 0 | R158: 0 | S158: 0 | T158: =T137-T118 -> 0 | U158: 0 | V158: 0 | W158: 0 | X158: 0 | Y158: 0 | Z158: 0 | AA158: 0 | AB158: 0 | AC158: 0 | AD158: 0 | AE158: 0 | AF158: 0 | AG158: 0 | AH158: 0 | AI158: 0 | AJ158: 0 | AK158: 0 | AL158: 0 | AM158: 0 | AN158: 0 | AO158: 0 | AP158: 0 | AQ158: 0 | AR158: 0 | AS158: 0 | AT158: 0 | AU158: 0 | AV158: 0 | AW158: 0 | AX158: 0 | AY158: 0 | AZ158: 0 | BA158: 0 | BB158: 0 | BC158: 0 | BD158: 0 | BE158: 0 | BF158: 0 | BG158: 0 | BH158: 0 | BI158: 0 | BJ158: 0 | BK158: 0 | BL158: 0
A159: Equity Raising Cost | O159: 0 | P159: 0 | Q159: 0 | R159: 0 | S159: 0 | T159: =T138-T119 -> 0 | U159: 0 | V159: 0 | W159: 0 | X159: 0 | Y159: 0 | Z159: 0 | AA159: 0 | AB159: 0 | AC159: 0 | AD159: 0 | AE159: 0 | AF159: 0 | AG159: 0 | AH159: 0 | AI159: 0 | AJ159: 0 | AK159: 0 | AL159: 0 | AM159: 0 | AN159: 0 | AO159: 0 | AP159: 0 | AQ159: 0 | AR159: 0 | AS159: 0 | AT159: 0 | AU159: 0 | AV159: 0 | AW159: 0 | AX159: 0 | AY159: 0 | AZ159: 0 | BA159: 0 | BB159: 0 | BC159: 0 | BD159: 0 | BE159: 0 | BF159: 0 | BG159: 0 | BH159: 0 | BI159: 0 | BJ159: 0 | BK159: 0 | BL159: 0
A160: Total | O160: =SUM(O144:O159) -> 0 | P160: =SUM(P144:P159) -> -3.747966869 | Q160: =SUM(Q144:Q159) -> -7.300107735 | R160: =SUM(R144:R159) -> -9.755382987 | S160: =SUM(S144:S159) -> -11.66791185 | T160: =SUM(T144:T159) -> -13.19313413 | U160: -13.09623002 | V160: -13.62028752 | W160: -13.80485189 | X160: -13.76511005 | Y160: -13.50889182 | Z160: -13.5885149 | AA160: -13.65484976 | AB160: -13.5963077 | AC160: -13.49929326 | AD160: -13.35196635 | AE160: -11.91947729 | AF160: -10.52062769 | AG160: -9.125588215 | AH160: -7.743734697 | AI160: -6.393577331 | AJ160: -5.50239306 | AK160: -4.395547844 | AL160: -3.205476791 | AM160: -1.978021317 | AN160: -0.7359210168 | AO160: -0.2665477104 | AP160: 0.2091712111 | AQ160: 0.6632488897 | AR160: 1.074493245 | AS160: 1.459987555 | AT160: 1.54062138 | AU160: 2.033066973 | AV160: 2.773913071 | AW160: 3.434888632 | AX160: 4.076448404 | AY160: 4.642074331 | AZ160: 5.182175718 | BA160: 5.687136164 | BB160: 6.189625825 | BC160: 6.647617576 | BD160: 6.94840502 | BE160: 7.218239554 | BF160: 7.52338464 | BG160: 7.794664225 | BH160: 8.054503947 | BI160: 8.284599491 | BJ160: 8.518910475 | BK160: 8.733331225 | BL160: 8.929126752
A162: Total Accelerated depreciation (Formula) | O162: 2025 | P162: 2026 | Q162: 2027 | R162: 2028 | S162: 2029
A163: High Pressure Mains - Steel | O163: =O84+O144 -> -15.63165992 | P163: -14.55458562 | Q163: -13.56467522 | R163: -12.79158829 | S163: -11.98683831
A164: High Pressure Mains - PE | O164: -0.4665835208 | P164: -0.2013570314 | Q164: -0.183408869 | R164: -0.1665375964 | S164: -0.1506786002
A165: Medium Pressure Mains | O165: -6.347949884 | P165: -5.546564885 | Q165: -4.793262986 | R165: -4.085159201 | S165: -3.419541643
A166: Medium / Low Pressure Mains | O166: -24.1275223 | P166: -23.48526154 | Q166: -22.85376985 | R166: -22.3160281 | S166: -21.7166366
A167: Low Pressure Mains | O167: -0.3276546444 | P167: -0.206836584 | Q167: -0.09362453758 | R167: 0.01279478601 | S167: 0.1128289502
A168: Regulators | O168: -1.064483419 | P168: -1.027463681 | Q168: -1.03314091 | R168: -1.012401637 | S168: -0.9902558732
A169: Secondary Gate Stations | O169: -1.594760689 | P169: -0.1779725517 | Q169: -0.2103496631 | R169: -0.2633166856 | S169: -0.3566525314
A170: Buildings | O170: -1.156840694 | P170: -1.094506594 | Q170: -1.109956428 | R170: -0.9965549207 | S170: -0.888542637
A171: Meter and Services Pipes | O171: -12.92576879 | P171: -11.53960474 | Q171: -10.2799983 | R171: -7.737778172 | S171: -7.917287785
A172: Equipment & Vehicles | O172: -0.16812671 | P172: -0.1101749343 | Q172: -0.07644230676 | R172: -0.05069581161 | S172: -0.04260193235
A173: Vehicle | O173: =O94+O154 -> -0.2447494186 | P173: -0.2314119715 | Q173: -0.1984209652 | R173: -0.1414299422 | S173: -0.1347417377
A174: Information Technology | O174: -5.764997301 | P174: -0.5754324154 | Q174: -0.8122435933 | R174: -0.3482330212 | S174: 0.182018281
A175: Telemetry and Monitoring | O175: -0.08101594938 | P175: -0.09514110702 | Q175: -0.1535465581 | R175: -0.1413940613 | S175: -0.133700368
A176: FRC | O176: -0.1678114037 | P176: 0 | Q176: 0 | R176: 0 | S176: 0
A177: Land | O177: 0 | P177: 0 | Q177: 0 | R177: 0 | S177: 0 | T177: short life asset | U177: =SUM(O174:S178) -> -8.005713396
A178: Equity Raising Cost | O178: 0.01715682022 | P178: 0.01715682022 | Q178: 0.01715682022 | R178: 0.01715682022 | S178: 0.01715682022
A179: Total | O179: =SUM(O163:O178) -> -70.05276782 | P179: =SUM(P163:P178) -> -58.82915683 | Q179: =SUM(Q163:Q178) -> -55.34568337 | R179: =SUM(R163:R178) -> -50.02116584 | S179: =SUM(S163:S178) -> -47.42547397

Sheet ACIL Output>>

Sheet Summary
A2: Customers | K2: 2020 | L2: =K2+1 -> 2021 | M2: =L2+1 -> 2022 | N2: 2023 | O2: 2024 | P2: =O2+1 -> 2025 | Q2: 2026 | R2: 2027 | S2: 2028 | T2: 2029 | U2: 2030 | V2: 2031 | W2: 2032 | X2: 2033 | Y2: 2034 | Z2: 2035 | AA2: 2036 | AB2: 2037 | AC2: 2038 | AD2: 2039 | AE2: 2040 | AF2: 2041 | AG2: 2042 | AH2: 2043 | AI2: 2044 | AJ2: 2045 | AK2: 2046 | AL2: 2047 | AM2: 2048 | AN2: 2049 | AO2: 2050 | AP2: 2051 | AQ2: 2052 | AR2: 2053 | AS2: 2054 | AT2: 2055 | AU2: 2056 | AV2: 2057 | AW2: 2058 | AX2: 2059 | AY2: 2060 | AZ2: 2061 | BA2: 2062 | BB2: 2063 | BC2: 2064 | BD2: 2065 | BE2: 2066 | BF2: 2067 | BG2: 2068 | BH2: 2069 | BI2: 2070 | BJ2: 2071 | BK2: 2072 | BL2: 2073 | BM2: 2074 | BN2: =BM2+1 -> 2075 | BO2: 2076 | BP2: 2077 | BQ2: 2078 | BR2: 2079 | BS2: 2080 | BT2: 2081 | BU2: 2082 | BV2: 2083 | BW2: 2084 | BX2: 2085 | BY2: =BX2+1 -> 2086 | BZ2: 2087 | CA2: 2088 | CB2: 2089 | CC2: 2090 | CD2: 2091 | CE2: 2092 | CF2: 2093 | CG2: 2094 | CH2: 2095 | CI2: 2096 | CJ2: 2097 | CK2: 2098 | CL2: 2099 | CM2: 2100
A3: Residential B3 | K3: =IFERROR(Forecasts!J5,0) -> 746639 | L3: =IFERROR(Forecasts!K5,0) -> 756154 | M3: =IFERROR(Forecasts!L5,0) -> 767161 | N3: =IFERROR(Forecasts!M5,0) -> 778476 | O3: =IFERROR(Forecasts!N5,0) -> 784780 | P3: =IFERROR(Forecasts!O5,0) -> 791959 | Q3: =IFERROR(Forecasts!P5,0) -> 800769 | R3: =IFERROR(Forecasts!Q5,0) -> 810484 | S3: =IFERROR(Forecasts!R5,0) -> 820622 | T3: =IFERROR(Forecasts!S5,0) -> 831004 | U3: =IFERROR(Forecasts!T5,0) -> 839045.1848 | V3: =IFERROR(Forecasts!U5,0) -> 832789.8131 | W3: =IFERROR(Forecasts!V5,0) -> 824047.2118 | X3: =IFERROR(Forecasts!W5,0) -> 814207.8324 | Y3: =IFERROR(Forecasts!X5,0) -> 801801.8426 | Z3: =IFERROR(Forecasts!Y5,0) -> 790208.9956 | AA3: =IFERROR(Forecasts!Z5,0) -> 774736.2015 | AB3: =IFERROR(Forecasts!AA5,0) -> 753153.2039 | AC3: =IFERROR(Forecasts!AB5,0) -> 723194.2217 | AD3: =IFERROR(Forecasts!AC5,0) -> 676424.0837 | AE3: =IFERROR(Forecasts!AD5,0) -> 620397.6722 | AF3: =IFERROR(Forecasts!AE5,0) -> 557561.161 | AG3: =IFERROR(Forecasts!AF5,0) -> 493463.4286 | AH3: =IFERROR(Forecasts!AG5,0) -> 428999.2676 | AI3: =IFERROR(Forecasts!AH5,0) -> 367027.0703 | AJ3: =IFERROR(Forecasts!AI5,0) -> 319571.3675 | AK3: =IFERROR(Forecasts!AJ5,0) -> 274781.9963 | AL3: =IFERROR(Forecasts!AK5,0) -> 231258.8247 | AM3: =IFERROR(Forecasts!AL5,0) -> 190468.0412 | AN3: =IFERROR(Forecasts!AM5,0) -> 149019.2626 | AO3: =IFERROR(Forecasts!AN5,0) -> 111607.9894 | AP3: =IFERROR(Forecasts!AO5,0) -> 80448.87904 | AQ3: =IFERROR(Forecasts!AP5,0) -> 57784.1733 | AR3: =IFERROR(Forecasts!AQ5,0) -> 52016.59345 | AS3: =IFERROR(Forecasts!AR5,0) -> 48347.93039 | AT3: =IFERROR(Forecasts!AS5,0) -> 48164.20826 | AU3: =IFERROR(Forecasts!AT5,0) -> 47981.18426 | AV3: =IFERROR(Forecasts!AU5,0) -> 47798.85576 | AW3: =IFERROR(Forecasts!AV5,0) -> 46889.22011 | AX3: =IFERROR(Forecasts!AW5,0) -> 33807.04108 | AY3: =IFERROR(Forecasts!AX5,0) -> 32405.57432 | AZ3: =IFERROR(Forecasts!AY5,0) -> 32230.43314 | BA3: =IFERROR(Forecasts!AZ5,0) -> 30419.95749 | BB3: =IFERROR(Forecasts!BA5,0) -> 30304.36165 | BC3: =IFERROR(Forecasts!BB5,0) -> 26875.20508 | BD3: =IFERROR(Forecasts!BC5,0) -> 21087.0793 | BE3: =IFERROR(Forecasts!BD5,0) -> 12936.9484 | BF3: =IFERROR(Forecasts!BE5,0) -> 0 | BG3: =IFERROR(Forecasts!BF5,0) -> 0 | BH3: =IFERROR(Forecasts!BG5,0) -> 0 | BI3: =IFERROR(Forecasts!BH5,0) -> 0 | BJ3: =IFERROR(Forecasts!BI5,0) -> 0 | BK3: =IFERROR(Forecasts!BJ5,0) -> 0 | BL3: =IFERROR(Forecasts!BK5,0) -> 0 | BM3: =IFERROR(Forecasts!BL5,0) -> 0 | BN3: =IFERROR(Forecasts!BM5,0) -> 0 | BO3: =IFERROR(Forecasts!BN5,0) -> 0 | BP3: =IFERROR(Forecasts!BO5,0) -> 0 | BQ3: =IFERROR(Forecasts!BP5,0) -> 0 | BR3: =IFERROR(Forecasts!BQ5,0) -> 0 | BS3: =IFERROR(Forecasts!BR5,0) -> 0 | BT3: =IFERROR(Forecasts!BS5,0) -> 0 | BU3: =IFERROR(Forecasts!BT5,0) -> 0 | BV3: =IFERROR(Forecasts!BU5,0) -> 0 | BW3: =IFERROR(Forecasts!BV5,0) -> 0 | BX3: =IFERROR(Forecasts!BW5,0) -> 0 | BY3: =IFERROR(Forecasts!BX5,0) -> 0 | BZ3: =IFERROR(Forecasts!BY5,0) -> 0 | CA3: =IFERROR(Forecasts!BZ5,0) -> 0 | CB3: =IFERROR(Forecasts!CA5,0) -> 0 | CC3: =IFERROR(Forecasts!CB5,0) -> 0 | CD3: =IFERROR(Forecasts!CC5,0) -> 0 | CE3: =IFERROR(Forecasts!CD5,0) -> 0 | CF3: =IFERROR(Forecasts!CE5,0) -> 0 | CG3: =IFERROR(Forecasts!CF5,0) -> 0 | CH3: =IFERROR(Forecasts!CG5,0) -> 0 | CI3: =IFERROR(Forecasts!CH5,0) -> 0 | CJ3: =IFERROR(Forecasts!CI5,0) -> 0 | CK3: =IFERROR(Forecasts!CJ5,0) -> 0 | CL3: =IFERROR(Forecasts!CK5,0) -> 0 | CM3: =IFERROR(Forecasts!CL5,0) -> 0
A4: Gross new connections | K4: =IF(K3=0,0,IFERROR(CustomersRes!J5,0)) -> 10082 | L4: =IF(L3=0,0,IFERROR(CustomersRes!K5,0)) -> 10992 | M4: =IF(M3=0,0,IFERROR(CustomersRes!L5,0)) -> 12127 | N4: =IF(N3=0,0,IFERROR(CustomersRes!M5,0)) -> 14010 | O4: =IF(O3=0,0,IFERROR(CustomersRes!N5,0)) -> 9884.877575 | P4: =IF(P3=0,0,IFERROR(CustomersRes!O5,0)) -> 10789.09233 | Q4: =IF(Q3=0,0,IFERROR(CustomersRes!P5,0)) -> 12453.25376 | R4: =IF(R3=0,0,IFERROR(CustomersRes!Q5,0)) -> 13398.15428 | S4: =IF(S3=0,0,IFERROR(CustomersRes!R5,0)) -> 13866.56608 | T4: =IF(T3=0,0,IFERROR(CustomersRes!S5,0)) -> 14156.95672 | U4: =IF(U3=0,0,IFERROR(CustomersRes!T5,0)) -> 11762 | V4: =IF(V3=0,0,IFERROR(CustomersRes!U5,0)) -> 672 | W4: =IF(W3=0,0,IFERROR(CustomersRes!V5,0)) -> 197 | X4: =IF(X3=0,0,IFERROR(CustomersRes!W5,0)) -> 119 | Y4: =IF(Y3=0,0,IFERROR(CustomersRes!X5,0)) -> 44 | Z4: =IF(Z3=0,0,IFERROR(CustomersRes!Y5,0)) -> 57 | AA4: =IF(AA3=0,0,IFERROR(CustomersRes!Z5,0)) -> 16 | AB4: =IF(AB3=0,0,IFERROR(CustomersRes!AA5,0)) -> 3 | AC4: =IF(AC3=0,0,IFERROR(CustomersRes!AB5,0)) -> 0 | AD4: =IF(AD3=0,0,IFERROR(CustomersRes!AC5,0)) -> 0 | AE4: =IF(AE3=0,0,IFERROR(CustomersRes!AD5,0)) -> 0 | AF4: =IF(AF3=0,0,IFERROR(CustomersRes!AE5,0)) -> 0 | AG4: =IF(AG3=0,0,IFERROR(CustomersRes!AF5,0)) -> 0 | AH4: =IF(AH3=0,0,IFERROR(CustomersRes!AG5,0)) -> 0 | AI4: =IF(AI3=0,0,IFERROR(CustomersRes!AH5,0)) -> 0 | AJ4: =IF(AJ3=0,0,IFERROR(CustomersRes!AI5,0)) -> 0 | AK4: =IF(AK3=0,0,IFERROR(CustomersRes!AJ5,0)) -> 0 | AL4: =IF(AL3=0,0,IFERROR(CustomersRes!AK5,0)) -> 0 | AM4: =IF(AM3=0,0,IFERROR(CustomersRes!AL5,0)) -> 0 | AN4: =IF(AN3=0,0,IFERROR(CustomersRes!AM5,0)) -> 0 | AO4: =IF(AO3=0,0,IFERROR(CustomersRes!AN5,0)) -> 0 | AP4: =IF(AP3=0,0,IFERROR(CustomersRes!AO5,0)) -> 0 | AQ4: =IF(AQ3=0,0,IFERROR(CustomersRes!AP5,0)) -> 0 | AR4: =IF(AR3=0,0,IFERROR(CustomersRes!AQ5,0)) -> 0 | AS4: =IF(AS3=0,0,IFERROR(CustomersRes!AR5,0)) -> 0 | AT4: =IF(AT3=0,0,IFERROR(CustomersRes!AS5,0)) -> 0 | AU4: =IF(AU3=0,0,IFERROR(CustomersRes!AT5,0)) -> 0 | AV4: =IF(AV3=0,0,IFERROR(CustomersRes!AU5,0)) -> 0 | AW4: =IF(AW3=0,0,IFERROR(CustomersRes!AV5,0)) -> 0 | AX4: =IF(AX3=0,0,IFERROR(CustomersRes!AW5,0)) -> 0 | AY4: =IF(AY3=0,0,IFERROR(CustomersRes!AX5,0)) -> 0 | AZ4: =IF(AZ3=0,0,IFERROR(CustomersRes!AY5,0)) -> 0 | BA4: =IF(BA3=0,0,IFERROR(CustomersRes!AZ5,0)) -> 0 | BB4: =IF(BB3=0,0,IFERROR(CustomersRes!BA5,0)) -> 0 | BC4: =IF(BC3=0,0,IFERROR(CustomersRes!BB5,0)) -> 0 | BD4: =IF(BD3=0,0,IFERROR(CustomersRes!BC5,0)) -> 0 | BE4: =IF(BE3=0,0,IFERROR(CustomersRes!BD5,0)) -> 0 | BF4: =IF(BF3=0,0,IFERROR(CustomersRes!BE5,0)) -> 0 | BG4: =IF(BG3=0,0,IFERROR(CustomersRes!BF5,0)) -> 0 | BH4: =IF(BH3=0,0,IFERROR(CustomersRes!BG5,0)) -> 0 | BI4: =IF(BI3=0,0,IFERROR(CustomersRes!BH5,0)) -> 0 | BJ4: =IF(BJ3=0,0,IFERROR(CustomersRes!BI5,0)) -> 0 | BK4: =IF(BK3=0,0,IFERROR(CustomersRes!BJ5,0)) -> 0 | BL4: =IF(BL3=0,0,IFERROR(CustomersRes!BK5,0)) -> 0 | BM4: =IF(BM3=0,0,IFERROR(CustomersRes!BL5,0)) -> 0 | BN4: =IF(BN3=0,0,IFERROR(CustomersRes!BM5,0)) -> 0 | BO4: =IF(BO3=0,0,IFERROR(CustomersRes!BN5,0)) -> 0 | BP4: =IF(BP3=0,0,IFERROR(CustomersRes!BO5,0)) -> 0 | BQ4: =IF(BQ3=0,0,IFERROR(CustomersRes!BP5,0)) -> 0 | BR4: =IF(BR3=0,0,IFERROR(CustomersRes!BQ5,0)) -> 0 | BS4: =IF(BS3=0,0,IFERROR(CustomersRes!BR5,0)) -> 0 | BT4: =IF(BT3=0,0,IFERROR(CustomersRes!BS5,0)) -> 0 | BU4: =IF(BU3=0,0,IFERROR(CustomersRes!BT5,0)) -> 0 | BV4: =IF(BV3=0,0,IFERROR(CustomersRes!BU5,0)) -> 0 | BW4: =IF(BW3=0,0,IFERROR(CustomersRes!BV5,0)) -> 0 | BX4: =IF(BX3=0,0,IFERROR(CustomersRes!BW5,0)) -> 0 | BY4: =IF(BY3=0,0,IFERROR(CustomersRes!BX5,0)) -> 0 | BZ4: =IF(BZ3=0,0,IFERROR(CustomersRes!BY5,0)) -> 0 | CA4: =IF(CA3=0,0,IFERROR(CustomersRes!BZ5,0)) -> 0 | CB4: =IF(CB3=0,0,IFERROR(CustomersRes!CA5,0)) -> 0 | CC4: =IF(CC3=0,0,IFERROR(CustomersRes!CB5,0)) -> 0 | CD4: =IF(CD3=0,0,IFERROR(CustomersRes!CC5,0)) -> 0 | CE4: =IF(CE3=0,0,IFERROR(CustomersRes!CD5,0)) -> 0 | CF4: =IF(CF3=0,0,IFERROR(CustomersRes!CE5,0)) -> 0 | CG4: =IF(CG3=0,0,IFERROR(CustomersRes!CF5,0)) -> 0 | CH4: =IF(CH3=0,0,IFERROR(CustomersRes!CG5,0)) -> 0 | CI4: =IF(CI3=0,0,IFERROR(CustomersRes!CH5,0)) -> 0 | CJ4: =IF(CJ3=0,0,IFERROR(CustomersRes!CI5,0)) -> 0 | CK4: =IF(CK3=0,0,IFERROR(CustomersRes!CJ5,0)) -> 0 | CL4: =IF(CL3=0,0,IFERROR(CustomersRes!CK5,0)) -> 0 | CM4: =IF(CM3=0,0,IFERROR(CustomersRes!CL5,0)) -> 0
A5: Disconnections | K5: =IF(K3=0,0,IFERROR(CustomersRes!J8,0)) -> 4880 | L5: =IF(L3=0,0,IFERROR(CustomersRes!K8,0)) -> 1477 | M5: =IF(M3=0,0,IFERROR(CustomersRes!L8,0)) -> 1120 | N5: =IF(N3=0,0,IFERROR(CustomersRes!M8,0)) -> 2695 | O5: =IF(O3=0,0,IFERROR(CustomersRes!N8,0)) -> 3580.9896 | P5: =IF(P3=0,0,IFERROR(CustomersRes!O8,0)) -> 3609.987485 | Q5: =IF(Q3=0,0,IFERROR(CustomersRes!P8,0)) -> 3643.011367 | R5: =IF(R3=0,0,IFERROR(CustomersRes!Q8,0)) -> 3683.538482 | S5: =IF(S3=0,0,IFERROR(CustomersRes!R8,0)) -> 3728.225715 | T5: =IF(T3=0,0,IFERROR(CustomersRes!S8,0)) -> 3774.86208 | U5: =IF(U3=0,0,IFERROR(CustomersRes!T8,0)) -> 3720.8152 | V5: =IF(V3=0,0,IFERROR(CustomersRes!U8,0)) -> 6927.371702 | W5: =IF(W3=0,0,IFERROR(CustomersRes!V8,0)) -> 8939.60129 | X5: =IF(X3=0,0,IFERROR(CustomersRes!W8,0)) -> 9958.379405 | Y5: =IF(Y3=0,0,IFERROR(CustomersRes!X8,0)) -> 12449.98976 | Z5: =IF(Z3=0,0,IFERROR(CustomersRes!Y8,0)) -> 11649.847 | AA5: =IF(AA3=0,0,IFERROR(CustomersRes!Z8,0)) -> 15488.79418 | AB5: =IF(AB3=0,0,IFERROR(CustomersRes!AA8,0)) -> 21585.99757 | AC5: =IF(AC3=0,0,IFERROR(CustomersRes!AB8,0)) -> 29958.98217 | AD5: =IF(AD3=0,0,IFERROR(CustomersRes!AC8,0)) -> 46770.13804 | AE5: =IF(AE3=0,0,IFERROR(CustomersRes!AD8,0)) -> 56026.41152 | AF5: =IF(AF3=0,0,IFERROR(CustomersRes!AE8,0)) -> 62836.51115 | AG5: =IF(AG3=0,0,IFERROR(CustomersRes!AF8,0)) -> 64097.73241 | AH5: =IF(AH3=0,0,IFERROR(CustomersRes!AG8,0)) -> 64464.16103 | AI5: =IF(AI3=0,0,IFERROR(CustomersRes!AH8,0)) -> 61972.19722 | AJ5: =IF(AJ3=0,0,IFERROR(CustomersRes!AI8,0)) -> 47455.70287 | AK5: =IF(AK3=0,0,IFERROR(CustomersRes!AJ8,0)) -> 44789.3712 | AL5: =IF(AL3=0,0,IFERROR(CustomersRes!AK8,0)) -> 43523.17159 | AM5: =IF(AM3=0,0,IFERROR(CustomersRes!AL8,0)) -> 40790.78353 | AN5: =IF(AN3=0,0,IFERROR(CustomersRes!AM8,0)) -> 41448.77856 | AO5: =IF(AO3=0,0,IFERROR(CustomersRes!AN8,0)) -> 37411.2732 | AP5: =IF(AP3=0,0,IFERROR(CustomersRes!AO8,0)) -> 31159.11036 | AQ5: =IF(AQ3=0,0,IFERROR(CustomersRes!AP8,0)) -> 22664.70574 | AR5: =IF(AR3=0,0,IFERROR(CustomersRes!AQ8,0)) -> 5767.579859 | AS5: =IF(AS3=0,0,IFERROR(CustomersRes!AR8,0)) -> 3668.663055 | AT5: =IF(AT3=0,0,IFERROR(CustomersRes!AS8,0)) -> 183.7221355 | AU5: =IF(AU3=0,0,IFERROR(CustomersRes!AT8,0)) -> 183.0239914 | AV5: =IF(AV3=0,0,IFERROR(CustomersRes!AU8,0)) -> 182.3285002 | AW5: =IF(AW3=0,0,IFERROR(CustomersRes!AV8,0)) -> 909.6356519 | AX5: =IF(AX3=0,0,IFERROR(CustomersRes!AW8,0)) -> 13082.17904 | AY5: =IF(AY3=0,0,IFERROR(CustomersRes!AX8,0)) -> 1401.466756 | AZ5: =IF(AZ3=0,0,IFERROR(CustomersRes!AY8,0)) -> 175.1411824 | BA5: =IF(BA3=0,0,IFERROR(CustomersRes!AZ8,0)) -> 1810.475646 | BB5: =IF(BB3=0,0,IFERROR(CustomersRes!BA8,0)) -> 115.5958385 | BC5: =IF(BC3=0,0,IFERROR(CustomersRes!BB8,0)) -> 3429.156574 | BD5: =IF(BD3=0,0,IFERROR(CustomersRes!BC8,0)) -> 5788.125779 | BE5: =IF(BE3=0,0,IFERROR(CustomersRes!BD8,0)) -> 8150.130901 | BF5: =IF(BF3=0,0,IFERROR(CustomersRes!BE8,0)) -> 0 | BG5: =IF(BG3=0,0,IFERROR(CustomersRes!BF8,0)) -> 0 | BH5: =IF(BH3=0,0,IFERROR(CustomersRes!BG8,0)) -> 0 | BI5: =IF(BI3=0,0,IFERROR(CustomersRes!BH8,0)) -> 0 | BJ5: =IF(BJ3=0,0,IFERROR(CustomersRes!BI8,0)) -> 0 | BK5: =IF(BK3=0,0,IFERROR(CustomersRes!BJ8,0)) -> 0 | BL5: =IF(BL3=0,0,IFERROR(CustomersRes!BK8,0)) -> 0 | BM5: =IF(BM3=0,0,IFERROR(CustomersRes!BL8,0)) -> 0 | BN5: =IF(BN3=0,0,IFERROR(CustomersRes!BM8,0)) -> 0 | BO5: =IF(BO3=0,0,IFERROR(CustomersRes!BN8,0)) -> 0 | BP5: =IF(BP3=0,0,IFERROR(CustomersRes!BO8,0)) -> 0 | BQ5: =IF(BQ3=0,0,IFERROR(CustomersRes!BP8,0)) -> 0 | BR5: =IF(BR3=0,0,IFERROR(CustomersRes!BQ8,0)) -> 0 | BS5: =IF(BS3=0,0,IFERROR(CustomersRes!BR8,0)) -> 0 | BT5: =IF(BT3=0,0,IFERROR(CustomersRes!BS8,0)) -> 0 | BU5: =IF(BU3=0,0,IFERROR(CustomersRes!BT8,0)) -> 0 | BV5: =IF(BV3=0,0,IFERROR(CustomersRes!BU8,0)) -> 0 | BW5: =IF(BW3=0,0,IFERROR(CustomersRes!BV8,0)) -> 0 | BX5: =IF(BX3=0,0,IFERROR(CustomersRes!BW8,0)) -> 0 | BY5: =IF(BY3=0,0,IFERROR(CustomersRes!BX8,0)) -> 0 | BZ5: =IF(BZ3=0,0,IFERROR(CustomersRes!BY8,0)) -> 0 | CA5: =IF(CA3=0,0,IFERROR(CustomersRes!BZ8,0)) -> 0 | CB5: =IF(CB3=0,0,IFERROR(CustomersRes!CA8,0)) -> 0 | CC5: =IF(CC3=0,0,IFERROR(CustomersRes!CB8,0)) -> 0 | CD5: =IF(CD3=0,0,IFERROR(CustomersRes!CC8,0)) -> 0 | CE5: =IF(CE3=0,0,IFERROR(CustomersRes!CD8,0)) -> 0 | CF5: =IF(CF3=0,0,IFERROR(CustomersRes!CE8,0)) -> 0 | CG5: =IF(CG3=0,0,IFERROR(CustomersRes!CF8,0)) -> 0 | CH5: =IF(CH3=0,0,IFERROR(CustomersRes!CG8,0)) -> 0 | CI5: =IF(CI3=0,0,IFERROR(CustomersRes!CH8,0)) -> 0 | CJ5: =IF(CJ3=0,0,IFERROR(CustomersRes!CI8,0)) -> 0 | CK5: =IF(CK3=0,0,IFERROR(CustomersRes!CJ8,0)) -> 0 | CL5: =IF(CL3=0,0,IFERROR(CustomersRes!CK8,0)) -> 0 | CM5: =IF(CM3=0,0,IFERROR(CustomersRes!CL8,0)) -> 0
A6: Commercial B2 | K6: =IFERROR(Forecasts!J9,0) -> 12139 | L6: =IFERROR(Forecasts!K9,0) -> 12318 | M6: =IFERROR(Forecasts!L9,0) -> 12540 | N6: =IFERROR(Forecasts!M9,0) -> 12725 | O6: =IFERROR(Forecasts!N9,0) -> 12913.2 | P6: =IFERROR(Forecasts!O9,0) -> 13104.4112 | Q6: =IFERROR(Forecasts!P9,0) -> 13298.68178 | R6: =IFERROR(Forecasts!Q9,0) -> 13496.06069 | S6: =IFERROR(Forecasts!R9,0) -> 13766.14073 | T6: =IFERROR(Forecasts!S9,0) -> 14040.38205 | U6: =IFERROR(Forecasts!T9,0) -> 14244.22052 | V6: =IFERROR(Forecasts!U9,0) -> 14437.24364 | W6: =IFERROR(Forecasts!V9,0) -> 14625.49467 | X6: =IFERROR(Forecasts!W9,0) -> 14807.99269 | Y6: =IFERROR(Forecasts!X9,0) -> 14980.76072 | Z6: =IFERROR(Forecasts!Y9,0) -> 15168.83767 | AA6: =IFERROR(Forecasts!Z9,0) -> 15343.16232 | AB6: =IFERROR(Forecasts!AA9,0) -> 15493.78967 | AC6: =IFERROR(Forecasts!AB9,0) -> 15610.81452 | AD6: =IFERROR(Forecasts!AC9,0) -> 15670.37126 | AE6: =IFERROR(Forecasts!AD9,0) -> 15606.68977 | AF6: =IFERROR(Forecasts!AE9,0) -> 15540.26301 | AG6: =IFERROR(Forecasts!AF9,0) -> 15471.10196 | AH6: =IFERROR(Forecasts!AG9,0) -> 15395.21755 | AI6: =IFERROR(Forecasts!AH9,0) -> 15307.63668 | AJ6: =IFERROR(Forecasts!AI9,0) -> 15194.40614 | AK6: =IFERROR(Forecasts!AJ9,0) -> 15012.62851 | AL6: =IFERROR(Forecasts!AK9,0) -> 14688.578 | AM6: =IFERROR(Forecasts!AL9,0) -> 14252.82369 | AN6: =IFERROR(Forecasts!AM9,0) -> 13868.81239 | AO6: =IFERROR(Forecasts!AN9,0) -> 13606.33714 | AP6: =IFERROR(Forecasts!AO9,0) -> 13410.91179 | AQ6: =IFERROR(Forecasts!AP9,0) -> 13205.26815 | AR6: =IFERROR(Forecasts!AQ9,0) -> 12940.44707 | AS6: =IFERROR(Forecasts!AR9,0) -> 12568.68529 | AT6: =IFERROR(Forecasts!AS9,0) -> 12197.41054 | AU6: =IFERROR(Forecasts!AT9,0) -> 11925.6209 | AV6: =IFERROR(Forecasts!AU9,0) -> 11722.91842 | AW6: =IFERROR(Forecasts!AV9,0) -> 11522.02675 | AX6: =IFERROR(Forecasts!AW9,0) -> 11255.93864 | AY6: =IFERROR(Forecasts!AX9,0) -> 10932.91488 | AZ6: =IFERROR(Forecasts!AY9,0) -> 10658.18322 | BA6: =IFERROR(Forecasts!AZ9,0) -> 10479.55049 | BB6: =IFERROR(Forecasts!BA9,0) -> 10338.63229 | BC6: =IFERROR(Forecasts!BB9,0) -> 10177.27776 | BD6: =IFERROR(Forecasts!BC9,0) -> 9948.568649 | BE6: =IFERROR(Forecasts!BD9,0) -> 9663.774374 | BF6: =IFERROR(Forecasts!BE9,0) -> 9401.119277 | BG6: =IFERROR(Forecasts!BF9,0) -> 9363.5148 | BH6: =IFERROR(Forecasts!BG9,0) -> 9326.060741 | BI6: =IFERROR(Forecasts!BH9,0) -> 9288.756498 | BJ6: =IFERROR(Forecasts!BI9,0) -> 9251.601472 | BK6: =IFERROR(Forecasts!BJ9,0) -> 9214.595066 | BL6: =IFERROR(Forecasts!BK9,0) -> 9177.736685 | BM6: =IFERROR(Forecasts!BL9,0) -> 9141.025739 | BN6: =IFERROR(Forecasts!BM9,0) -> 9104.461636 | BO6: =IFERROR(Forecasts!BN9,0) -> 9068.043789 | BP6: =IFERROR(Forecasts!BO9,0) -> 9031.771614 | BQ6: =IFERROR(Forecasts!BP9,0) -> 8995.644528 | BR6: =IFERROR(Forecasts!BQ9,0) -> 8959.661949 | BS6: =IFERROR(Forecasts!BR9,0) -> 8923.823302 | BT6: =IFERROR(Forecasts!BS9,0) -> 8888.128008 | BU6: =IFERROR(Forecasts!BT9,0) -> 8852.575496 | BV6: =IFERROR(Forecasts!BU9,0) -> 8817.165194 | BW6: =IFERROR(Forecasts!BV9,0) -> 8781.896534 | BX6: =IFERROR(Forecasts!BW9,0) -> 8746.768948 | BY6: =IFERROR(Forecasts!BX9,0) -> 8711.781872 | BZ6: =IFERROR(Forecasts!BY9,0) -> 8676.934744 | CA6: =IFERROR(Forecasts!BZ9,0) -> 8642.227005 | CB6: =IFERROR(Forecasts!CA9,0) -> 8607.658097 | CC6: =IFERROR(Forecasts!CB9,0) -> 8573.227465 | CD6: =IFERROR(Forecasts!CC9,0) -> 8538.934555 | CE6: =IFERROR(Forecasts!CD9,0) -> 8504.778817 | CF6: =IFERROR(Forecasts!CE9,0) -> 8470.759702 | CG6: =IFERROR(Forecasts!CF9,0) -> 8436.876663 | CH6: =IFERROR(Forecasts!CG9,0) -> 8403.129156 | CI6: =IFERROR(Forecasts!CH9,0) -> 8369.516639 | CJ6: =IFERROR(Forecasts!CI9,0) -> 8336.038573 | CK6: =IFERROR(Forecasts!CJ9,0) -> 8302.694419 | CL6: =IFERROR(Forecasts!CK9,0) -> 8269.483641 | CM6: =IFERROR(Forecasts!CL9,0) -> 8236.405706
A7: Gross new connections | K7: =IF(K6=0,0,IFERROR(CustomersCOM!J5,0)) -> 220 | L7: =IF(L6=0,0,IFERROR(CustomersCOM!K5,0)) -> 197 | M7: =IF(M6=0,0,IFERROR(CustomersCOM!L5,0)) -> 212 | N7: =IF(N6=0,0,IFERROR(CustomersCOM!M5,0)) -> 240 | O7: =IF(O6=0,0,IFERROR(CustomersCOM!N5,0)) -> 244.08 | P7: =IF(P6=0,0,IFERROR(CustomersCOM!O5,0)) -> 247.98528 | Q7: =IF(Q6=0,0,IFERROR(CustomersCOM!P5,0)) -> 251.9530445 | R7: =IF(R6=0,0,IFERROR(CustomersCOM!Q5,0)) -> 255.9842932 | S7: =IF(S6=0,0,IFERROR(CustomersCOM!R5,0)) -> 260.0800419 | T7: =IF(T6=0,0,IFERROR(CustomersCOM!S5,0)) -> 264.2413226 | U7: =IF(U6=0,0,IFERROR(CustomersCOM!T5,0)) -> 260 | V7: =IF(V6=0,0,IFERROR(CustomersCOM!U5,0)) -> 250 | W7: =IF(W6=0,0,IFERROR(CustomersCOM!V5,0)) -> 246 | X7: =IF(X6=0,0,IFERROR(CustomersCOM!W5,0)) -> 241 | Y7: =IF(Y6=0,0,IFERROR(CustomersCOM!X5,0)) -> 232 | Z7: =IF(Z6=0,0,IFERROR(CustomersCOM!Y5,0)) -> 248 | AA7: =IF(AA6=0,0,IFERROR(CustomersCOM!Z5,0)) -> 235 | AB7: =IF(AB6=0,0,IFERROR(CustomersCOM!AA5,0)) -> 212 | AC7: =IF(AC6=0,0,IFERROR(CustomersCOM!AB5,0)) -> 179 | AD7: =IF(AD6=0,0,IFERROR(CustomersCOM!AC5,0)) -> 123 | AE7: =IF(AE6=0,0,IFERROR(CustomersCOM!AD5,0)) -> 0 | AF7: =IF(AF6=0,0,IFERROR(CustomersCOM!AE5,0)) -> 0 | AG7: =IF(AG6=0,0,IFERROR(CustomersCOM!AF5,0)) -> 0 | AH7: =IF(AH6=0,0,IFERROR(CustomersCOM!AG5,0)) -> 0 | AI7: =IF(AI6=0,0,IFERROR(CustomersCOM!AH5,0)) -> 0 | AJ7: =IF(AJ6=0,0,IFERROR(CustomersCOM!AI5,0)) -> 0 | AK7: =IF(AK6=0,0,IFERROR(CustomersCOM!AJ5,0)) -> 0 | AL7: =IF(AL6=0,0,IFERROR(CustomersCOM!AK5,0)) -> 0 | AM7: =IF(AM6=0,0,IFERROR(CustomersCOM!AL5,0)) -> 0 | AN7: =IF(AN6=0,0,IFERROR(CustomersCOM!AM5,0)) -> 0 | AO7: =IF(AO6=0,0,IFERROR(CustomersCOM!AN5,0)) -> 0 | AP7: =IF(AP6=0,0,IFERROR(CustomersCOM!AO5,0)) -> 0 | AQ7: =IF(AQ6=0,0,IFERROR(CustomersCOM!AP5,0)) -> 0 | AR7: =IF(AR6=0,0,IFERROR(CustomersCOM!AQ5,0)) -> 0 | AS7: =IF(AS6=0,0,IFERROR(CustomersCOM!AR5,0)) -> 0 | AT7: =IF(AT6=0,0,IFERROR(CustomersCOM!AS5,0)) -> 0 | AU7: =IF(AU6=0,0,IFERROR(CustomersCOM!AT5,0)) -> 0 | AV7: =IF(AV6=0,0,IFERROR(CustomersCOM!AU5,0)) -> 0 | AW7: =IF(AW6=0,0,IFERROR(CustomersCOM!AV5,0)) -> 0 | AX7: =IF(AX6=0,0,IFERROR(CustomersCOM!AW5,0)) -> 0 | AY7: =IF(AY6=0,0,IFERROR(CustomersCOM!AX5,0)) -> 0 | AZ7: =IF(AZ6=0,0,IFERROR(CustomersCOM!AY5,0)) -> 0 | BA7: =IF(BA6=0,0,IFERROR(CustomersCOM!AZ5,0)) -> 0 | BB7: =IF(BB6=0,0,IFERROR(CustomersCOM!BA5,0)) -> 0 | BC7: =IF(BC6=0,0,IFERROR(CustomersCOM!BB5,0)) -> 0 | BD7: =IF(BD6=0,0,IFERROR(CustomersCOM!BC5,0)) -> 0 | BE7: =IF(BE6=0,0,IFERROR(CustomersCOM!BD5,0)) -> 0 | BF7: =IF(BF6=0,0,IFERROR(CustomersCOM!BE5,0)) -> 0 | BG7: =IF(BG6=0,0,IFERROR(CustomersCOM!BF5,0)) -> 0 | BH7: =IF(BH6=0,0,IFERROR(CustomersCOM!BG5,0)) -> 0 | BI7: =IF(BI6=0,0,IFERROR(CustomersCOM!BH5,0)) -> 0 | BJ7: =IF(BJ6=0,0,IFERROR(CustomersCOM!BI5,0)) -> 0 | BK7: =IF(BK6=0,0,IFERROR(CustomersCOM!BJ5,0)) -> 0 | BL7: =IF(BL6=0,0,IFERROR(CustomersCOM!BK5,0)) -> 0 | BM7: =IF(BM6=0,0,IFERROR(CustomersCOM!BL5,0)) -> 0 | BN7: =IF(BN6=0,0,IFERROR(CustomersCOM!BM5,0)) -> 0 | BO7: =IF(BO6=0,0,IFERROR(CustomersCOM!BN5,0)) -> 0 | BP7: =IF(BP6=0,0,IFERROR(CustomersCOM!BO5,0)) -> 0 | BQ7: =IF(BQ6=0,0,IFERROR(CustomersCOM!BP5,0)) -> 0 | BR7: =IF(BR6=0,0,IFERROR(CustomersCOM!BQ5,0)) -> 0 | BS7: =IF(BS6=0,0,IFERROR(CustomersCOM!BR5,0)) -> 0 | BT7: =IF(BT6=0,0,IFERROR(CustomersCOM!BS5,0)) -> 0 | BU7: =IF(BU6=0,0,IFERROR(CustomersCOM!BT5,0)) -> 0 | BV7: =IF(BV6=0,0,IFERROR(CustomersCOM!BU5,0)) -> 0 | BW7: =IF(BW6=0,0,IFERROR(CustomersCOM!BV5,0)) -> 0 | BX7: =IF(BX6=0,0,IFERROR(CustomersCOM!BW5,0)) -> 0 | BY7: =IF(BY6=0,0,IFERROR(CustomersCOM!BX5,0)) -> 0 | BZ7: =IF(BZ6=0,0,IFERROR(CustomersCOM!BY5,0)) -> 0 | CA7: =IF(CA6=0,0,IFERROR(CustomersCOM!BZ5,0)) -> 0 | CB7: =IF(CB6=0,0,IFERROR(CustomersCOM!CA5,0)) -> 0 | CC7: =IF(CC6=0,0,IFERROR(CustomersCOM!CB5,0)) -> 0 | CD7: =IF(CD6=0,0,IFERROR(CustomersCOM!CC5,0)) -> 0 | CE7: =IF(CE6=0,0,IFERROR(CustomersCOM!CD5,0)) -> 0 | CF7: =IF(CF6=0,0,IFERROR(CustomersCOM!CE5,0)) -> 0 | CG7: =IF(CG6=0,0,IFERROR(CustomersCOM!CF5,0)) -> 0 | CH7: =IF(CH6=0,0,IFERROR(CustomersCOM!CG5,0)) -> 0 | CI7: =IF(CI6=0,0,IFERROR(CustomersCOM!CH5,0)) -> 0 | CJ7: =IF(CJ6=0,0,IFERROR(CustomersCOM!CI5,0)) -> 0 | CK7: =IF(CK6=0,0,IFERROR(CustomersCOM!CJ5,0)) -> 0 | CL7: =IF(CL6=0,0,IFERROR(CustomersCOM!CK5,0)) -> 0 | CM7: =IF(CM6=0,0,IFERROR(CustomersCOM!CL5,0)) -> 0
A8: Disconnections | K8: =IF(K6=0,0,IFERROR(CustomersCOM!J8,0)) -> 201 | L8: =IF(L6=0,0,IFERROR(CustomersCOM!K8,0)) -> 18 | M8: =IF(M6=0,0,IFERROR(CustomersCOM!L8,0)) -> -10 | N8: =IF(N6=0,0,IFERROR(CustomersCOM!M8,0)) -> 55 | O8: =IF(O6=0,0,IFERROR(CustomersCOM!N8,0)) -> 55.88 | P8: =IF(P6=0,0,IFERROR(CustomersCOM!O8,0)) -> 56.77408 | Q8: =IF(Q6=0,0,IFERROR(CustomersCOM!P8,0)) -> 57.68246528 | R8: =IF(R6=0,0,IFERROR(CustomersCOM!Q8,0)) -> 58.60538472 | S8: =IF(S6=0,0,IFERROR(CustomersCOM!R8,0)) -> -10 | T8: =IF(T6=0,0,IFERROR(CustomersCOM!S8,0)) -> -10 | U8: =IF(U6=0,0,IFERROR(CustomersCOM!T8,0)) -> 56.16152821 | V8: =IF(V6=0,0,IFERROR(CustomersCOM!U8,0)) -> 56.9768821 | W8: =IF(W6=0,0,IFERROR(CustomersCOM!V8,0)) -> 57.74897457 | X8: =IF(X6=0,0,IFERROR(CustomersCOM!W8,0)) -> 58.50197867 | Y8: =IF(Y6=0,0,IFERROR(CustomersCOM!X8,0)) -> 59.23197075 | Z8: =IF(Z6=0,0,IFERROR(CustomersCOM!Y8,0)) -> 59.92304287 | AA8: =IF(AA6=0,0,IFERROR(CustomersCOM!Z8,0)) -> 60.6753507 | AB8: =IF(AB6=0,0,IFERROR(CustomersCOM!AA8,0)) -> 61.3726493 | AC8: =IF(AC6=0,0,IFERROR(CustomersCOM!AB8,0)) -> 61.9751587 | AD8: =IF(AD6=0,0,IFERROR(CustomersCOM!AC8,0)) -> 63.44325806 | AE8: =IF(AE6=0,0,IFERROR(CustomersCOM!AD8,0)) -> 63.68148503 | AF8: =IF(AF6=0,0,IFERROR(CustomersCOM!AE8,0)) -> 66.42675909 | AG8: =IF(AG6=0,0,IFERROR(CustomersCOM!AF8,0)) -> 69.16105206 | AH8: =IF(AH6=0,0,IFERROR(CustomersCOM!AG8,0)) -> 75.88440785 | AI8: =IF(AI6=0,0,IFERROR(CustomersCOM!AH8,0)) -> 87.58087022 | AJ8: =IF(AJ6=0,0,IFERROR(CustomersCOM!AI8,0)) -> 113.2305467 | AK8: =IF(AK6=0,0,IFERROR(CustomersCOM!AJ8,0)) -> 181.7776245 | AL8: =IF(AL6=0,0,IFERROR(CustomersCOM!AK8,0)) -> 324.0505141 | AM8: =IF(AM6=0,0,IFERROR(CustomersCOM!AL8,0)) -> 435.754312 | AN8: =IF(AN6=0,0,IFERROR(CustomersCOM!AM8,0)) -> 384.0112947 | AO8: =IF(AO6=0,0,IFERROR(CustomersCOM!AN8,0)) -> 262.4752496 | AP8: =IF(AP6=0,0,IFERROR(CustomersCOM!AO8,0)) -> 195.4253486 | AQ8: =IF(AQ6=0,0,IFERROR(CustomersCOM!AP8,0)) -> 205.6436472 | AR8: =IF(AR6=0,0,IFERROR(CustomersCOM!AQ8,0)) -> 264.8210726 | AS8: =IF(AS6=0,0,IFERROR(CustomersCOM!AR8,0)) -> 371.7617883 | AT8: =IF(AT6=0,0,IFERROR(CustomersCOM!AS8,0)) -> 371.2747411 | AU8: =IF(AU6=0,0,IFERROR(CustomersCOM!AT8,0)) -> 271.7896422 | AV8: =IF(AV6=0,0,IFERROR(CustomersCOM!AU8,0)) -> 202.7024836 | AW8: =IF(AW6=0,0,IFERROR(CustomersCOM!AV8,0)) -> 200.8916737 | AX8: =IF(AX6=0,0,IFERROR(CustomersCOM!AW8,0)) -> 266.088107 | AY8: =IF(AY6=0,0,IFERROR(CustomersCOM!AX8,0)) -> 323.0237546 | AZ8: =IF(AZ6=0,0,IFERROR(CustomersCOM!AY8,0)) -> 274.7316595 | BA8: =IF(BA6=0,0,IFERROR(CustomersCOM!AZ8,0)) -> 178.6327329 | BB8: =IF(BB6=0,0,IFERROR(CustomersCOM!BA8,0)) -> 140.918202 | BC8: =IF(BC6=0,0,IFERROR(CustomersCOM!BB8,0)) -> 161.3545292 | BD8: =IF(BD6=0,0,IFERROR(CustomersCOM!BC8,0)) -> 228.709111 | BE8: =IF(BE6=0,0,IFERROR(CustomersCOM!BD8,0)) -> 284.7942746 | BF8: =IF(BF6=0,0,IFERROR(CustomersCOM!BE8,0)) -> 262.6550975 | BG8: =IF(BG6=0,0,IFERROR(CustomersCOM!BF8,0)) -> 37.60447711 | BH8: =IF(BH6=0,0,IFERROR(CustomersCOM!BG8,0)) -> 37.4540592 | BI8: =IF(BI6=0,0,IFERROR(CustomersCOM!BH8,0)) -> 37.30424296 | BJ8: =IF(BJ6=0,0,IFERROR(CustomersCOM!BI8,0)) -> 37.15502599 | BK8: =IF(BK6=0,0,IFERROR(CustomersCOM!BJ8,0)) -> 37.00640589 | BL8: =IF(BL6=0,0,IFERROR(CustomersCOM!BK8,0)) -> 36.85838026 | BM8: =IF(BM6=0,0,IFERROR(CustomersCOM!BL8,0)) -> 36.71094674 | BN8: =IF(BN6=0,0,IFERROR(CustomersCOM!BM8,0)) -> 36.56410295 | BO8: =IF(BO6=0,0,IFERROR(CustomersCOM!BN8,0)) -> 36.41784654 | BP8: =IF(BP6=0,0,IFERROR(CustomersCOM!BO8,0)) -> 36.27217516 | BQ8: =IF(BQ6=0,0,IFERROR(CustomersCOM!BP8,0)) -> 36.12708646 | BR8: =IF(BR6=0,0,IFERROR(CustomersCOM!BQ8,0)) -> 35.98257811 | BS8: =IF(BS6=0,0,IFERROR(CustomersCOM!BR8,0)) -> 35.8386478 | BT8: =IF(BT6=0,0,IFERROR(CustomersCOM!BS8,0)) -> 35.69529321 | BU8: =IF(BU6=0,0,IFERROR(CustomersCOM!BT8,0)) -> 35.55251203 | BV8: =IF(BV6=0,0,IFERROR(CustomersCOM!BU8,0)) -> 35.41030199 | BW8: =IF(BW6=0,0,IFERROR(CustomersCOM!BV8,0)) -> 35.26866078 | BX8: =IF(BX6=0,0,IFERROR(CustomersCOM!BW8,0)) -> 35.12758613 | BY8: =IF(BY6=0,0,IFERROR(CustomersCOM!BX8,0)) -> 34.98707579 | BZ8: =IF(BZ6=0,0,IFERROR(CustomersCOM!BY8,0)) -> 34.84712749 | CA8: =IF(CA6=0,0,IFERROR(CustomersCOM!BZ8,0)) -> 34.70773898 | CB8: =IF(CB6=0,0,IFERROR(CustomersCOM!CA8,0)) -> 34.56890802 | CC8: =IF(CC6=0,0,IFERROR(CustomersCOM!CB8,0)) -> 34.43063239 | CD8: =IF(CD6=0,0,IFERROR(CustomersCOM!CC8,0)) -> 34.29290986 | CE8: =IF(CE6=0,0,IFERROR(CustomersCOM!CD8,0)) -> 34.15573822 | CF8: =IF(CF6=0,0,IFERROR(CustomersCOM!CE8,0)) -> 34.01911527 | CG8: =IF(CG6=0,0,IFERROR(CustomersCOM!CF8,0)) -> 33.88303881 | CH8: =IF(CH6=0,0,IFERROR(CustomersCOM!CG8,0)) -> 33.74750665 | CI8: =IF(CI6=0,0,IFERROR(CustomersCOM!CH8,0)) -> 33.61251662 | CJ8: =IF(CJ6=0,0,IFERROR(CustomersCOM!CI8,0)) -> 33.47806656 | CK8: =IF(CK6=0,0,IFERROR(CustomersCOM!CJ8,0)) -> 33.34415429 | CL8: =IF(CL6=0,0,IFERROR(CustomersCOM!CK8,0)) -> 33.21077767 | CM8: =IF(CM6=0,0,IFERROR(CustomersCOM!CL8,0)) -> 33.07793456
A9: Commercial B1 | K9: =IFERROR(Forecasts!J19,0) -> 1841 | L9: =IFERROR(Forecasts!K19,0) -> 1912 | M9: =IFERROR(Forecasts!L19,0) -> 1968 | N9: =IFERROR(Forecasts!M19,0) -> 2021 | O9: =IFERROR(Forecasts!N19,0) -> 2070 | P9: =IFERROR(Forecasts!O19,0) -> 2119.536951 | Q9: =IFERROR(Forecasts!P19,0) -> 2170.259366 | R9: =IFERROR(Forecasts!Q19,0) -> 2222.195613 | S9: =IFERROR(Forecasts!R19,0) -> 2275.374742 | T9: =IFERROR(Forecasts!S19,0) -> 2329.826494 | U9: =IFERROR(Forecasts!T19,0) -> 2352.370989 | V9: =IFERROR(Forecasts!U19,0) -> 2334.833251 | W9: =IFERROR(Forecasts!V19,0) -> 2310.322245 | X9: =IFERROR(Forecasts!W19,0) -> 2282.73628 | Y9: =IFERROR(Forecasts!X19,0) -> 2247.954494 | Z9: =IFERROR(Forecasts!Y19,0) -> 2215.452458 | AA9: =IFERROR(Forecasts!Z19,0) -> 2172.072491 | AB9: =IFERROR(Forecasts!AA19,0) -> 2111.561784 | AC9: =IFERROR(Forecasts!AB19,0) -> 2027.567928 | AD9: =IFERROR(Forecasts!AC19,0) -> 1896.441836 | AE9: =IFERROR(Forecasts!AD19,0) -> 1739.364592 | AF9: =IFERROR(Forecasts!AE19,0) -> 1563.194359 | AG9: =IFERROR(Forecasts!AF19,0) -> 1383.48813 | AH9: =IFERROR(Forecasts!AG19,0) -> 1202.754571 | AI9: =IFERROR(Forecasts!AH19,0) -> 1029.007553 | AJ9: =IFERROR(Forecasts!AI19,0) -> 895.9593922 | AK9: =IFERROR(Forecasts!AJ19,0) -> 770.3866348 | AL9: =IFERROR(Forecasts!AK19,0) -> 648.3638308 | AM9: =IFERROR(Forecasts!AL19,0) -> 534.0016277 | AN9: =IFERROR(Forecasts!AM19,0) -> 417.794651 | AO9: =IFERROR(Forecasts!AN19,0) -> 312.9073394 | AP9: =IFERROR(Forecasts!AO19,0) -> 225.5487697 | AQ9: =IFERROR(Forecasts!AP19,0) -> 162.0053549 | AR9: =IFERROR(Forecasts!AQ19,0) -> 145.8352036 | AS9: =IFERROR(Forecasts!AR19,0) -> 135.5496353 | AT9: =IFERROR(Forecasts!AS19,0) -> 135.0345467 | AU9: =IFERROR(Forecasts!AT19,0) -> 134.5214155 | AV9: =IFERROR(Forecasts!AU19,0) -> 134.0102341 | AW9: =IFERROR(Forecasts!AV19,0) -> 131.4599536 | AX9: =IFERROR(Forecasts!AW19,0) -> 94.78238371 | AY9: =IFERROR(Forecasts!AX19,0) -> 90.85319158 | AZ9: =IFERROR(Forecasts!AY19,0) -> 90.36216077 | BA9: =IFERROR(Forecasts!AZ19,0) -> 85.28625966 | BB9: =IFERROR(Forecasts!BA19,0) -> 84.96217187 | BC9: =IFERROR(Forecasts!BB19,0) -> 75.34809078 | BD9: =IFERROR(Forecasts!BC19,0) -> 59.12033641 | BE9: =IFERROR(Forecasts!BD19,0) -> 36.27039717 | BF9: =IFERROR(Forecasts!BE19,0) -> 0 | BG9: =IFERROR(Forecasts!BF19,0) -> 0 | BH9: =IFERROR(Forecasts!BG19,0) -> 0 | BI9: =IFERROR(Forecasts!BH19,0) -> 0 | BJ9: =IFERROR(Forecasts!BI19,0) -> 0 | BK9: =IFERROR(Forecasts!BJ19,0) -> 0 | BL9: =IFERROR(Forecasts!BK19,0) -> 0 | BM9: =IFERROR(Forecasts!BL19,0) -> 0 | BN9: =IFERROR(Forecasts!BM19,0) -> 0 | BO9: =IFERROR(Forecasts!BN19,0) -> 0 | BP9: =IFERROR(Forecasts!BO19,0) -> 0 | BQ9: =IFERROR(Forecasts!BP19,0) -> 0 | BR9: =IFERROR(Forecasts!BQ19,0) -> 0 | BS9: =IFERROR(Forecasts!BR19,0) -> 0 | BT9: =IFERROR(Forecasts!BS19,0) -> 0 | BU9: =IFERROR(Forecasts!BT19,0) -> 0 | BV9: =IFERROR(Forecasts!BU19,0) -> 0 | BW9: =IFERROR(Forecasts!BV19,0) -> 0 | BX9: =IFERROR(Forecasts!BW19,0) -> 0 | BY9: =IFERROR(Forecasts!BX19,0) -> 0 | BZ9: =IFERROR(Forecasts!BY19,0) -> 0 | CA9: =IFERROR(Forecasts!BZ19,0) -> 0 | CB9: =IFERROR(Forecasts!CA19,0) -> 0 | CC9: =IFERROR(Forecasts!CB19,0) -> 0 | CD9: =IFERROR(Forecasts!CC19,0) -> 0 | CE9: =IFERROR(Forecasts!CD19,0) -> 0 | CF9: =IFERROR(Forecasts!CE19,0) -> 0 | CG9: =IFERROR(Forecasts!CF19,0) -> 0 | CH9: =IFERROR(Forecasts!CG19,0) -> 0 | CI9: =IFERROR(Forecasts!CH19,0) -> 0 | CJ9: =IFERROR(Forecasts!CI19,0) -> 0 | CK9: =IFERROR(Forecasts!CJ19,0) -> 0 | CL9: =IFERROR(Forecasts!CK19,0) -> 0 | CM9: =IFERROR(Forecasts!CL19,0) -> 0
A10: Industrial A1 | K10: =IFERROR(Forecasts!J20,0) -> 74 | L10: =IFERROR(Forecasts!K20,0) -> 73 | M10: =IFERROR(Forecasts!L20,0) -> 73 | N10: =IFERROR(Forecasts!M20,0) -> 69 | O10: =IFERROR(Forecasts!N20,0) -> 69 | P10: =IFERROR(Forecasts!O20,0) -> 70 | Q10: =IFERROR(Forecasts!P20,0) -> 68 | R10: =IFERROR(Forecasts!Q20,0) -> 68 | S10: =IFERROR(Forecasts!R20,0) -> 68 | T10: =IFERROR(Forecasts!S20,0) -> 68 | U10: =IFERROR(Forecasts!T20,0) -> 68.65799992 | V10: =IFERROR(Forecasts!U20,0) -> 68.14613081 | W10: =IFERROR(Forecasts!V20,0) -> 67.43073487 | X10: =IFERROR(Forecasts!W20,0) -> 66.62559098 | Y10: =IFERROR(Forecasts!X20,0) -> 65.61042462 | Z10: =IFERROR(Forecasts!Y20,0) -> 64.6617967 | AA10: =IFERROR(Forecasts!Z20,0) -> 63.39567764 | AB10: =IFERROR(Forecasts!AA20,0) -> 61.62956841 | AC10: =IFERROR(Forecasts!AB20,0) -> 59.17806301 | AD10: =IFERROR(Forecasts!AC20,0) -> 55.35092213 | AE10: =IFERROR(Forecasts!AD20,0) -> 50.76635216 | AF10: =IFERROR(Forecasts!AE20,0) -> 45.6245204 | AG10: =IFERROR(Forecasts!AF20,0) -> 40.37948451 | AH10: =IFERROR(Forecasts!AG20,0) -> 35.10446423 | AI10: =IFERROR(Forecasts!AH20,0) -> 30.03335818 | AJ10: =IFERROR(Forecasts!AI20,0) -> 26.1501184 | AK10: =IFERROR(Forecasts!AJ20,0) -> 22.48506114 | AL10: =IFERROR(Forecasts!AK20,0) -> 18.92361538 | AM10: =IFERROR(Forecasts!AL20,0) -> 15.58575747 | AN10: =IFERROR(Forecasts!AM20,0) -> 12.19405666 | AO10: =IFERROR(Forecasts!AN20,0) -> 9.13273977 | AP10: =IFERROR(Forecasts!AO20,0) -> 6.583029414 | AQ10: =IFERROR(Forecasts!AP20,0) -> 4.72840538 | AR10: =IFERROR(Forecasts!AQ20,0) -> 4.256451659 | AS10: =IFERROR(Forecasts!AR20,0) -> 3.956249629 | AT10: =IFERROR(Forecasts!AS20,0) -> 3.94121588 | AU10: =IFERROR(Forecasts!AT20,0) -> 3.92623926 | AV10: =IFERROR(Forecasts!AU20,0) -> 3.911319551 | AW10: =IFERROR(Forecasts!AV20,0) -> 3.836885223 | AX10: =IFERROR(Forecasts!AW20,0) -> 2.766387157 | AY10: =IFERROR(Forecasts!AX20,0) -> 2.651706916 | AZ10: =IFERROR(Forecasts!AY20,0) -> 2.637375336 | BA10: =IFERROR(Forecasts!AZ20,0) -> 2.489226417 | BB10: =IFERROR(Forecasts!BA20,0) -> 2.479767357 | BC10: =IFERROR(Forecasts!BB20,0) -> 2.199163837 | BD10: =IFERROR(Forecasts!BC20,0) -> 1.725528869 | BE10: =IFERROR(Forecasts!BD20,0) -> 1.058614027 | BF10: =IFERROR(Forecasts!BE20,0) -> 0 | BG10: =IFERROR(Forecasts!BF20,0) -> 0 | BH10: =IFERROR(Forecasts!BG20,0) -> 0 | BI10: =IFERROR(Forecasts!BH20,0) -> 0 | BJ10: =IFERROR(Forecasts!BI20,0) -> 0 | BK10: =IFERROR(Forecasts!BJ20,0) -> 0 | BL10: =IFERROR(Forecasts!BK20,0) -> 0 | BM10: =IFERROR(Forecasts!BL20,0) -> 0 | BN10: =IFERROR(Forecasts!BM20,0) -> 0 | BO10: =IFERROR(Forecasts!BN20,0) -> 0 | BP10: =IFERROR(Forecasts!BO20,0) -> 0 | BQ10: =IFERROR(Forecasts!BP20,0) -> 0 | BR10: =IFERROR(Forecasts!BQ20,0) -> 0 | BS10: =IFERROR(Forecasts!BR20,0) -> 0 | BT10: =IFERROR(Forecasts!BS20,0) -> 0 | BU10: =IFERROR(Forecasts!BT20,0) -> 0 | BV10: =IFERROR(Forecasts!BU20,0) -> 0 | BW10: =IFERROR(Forecasts!BV20,0) -> 0 | BX10: =IFERROR(Forecasts!BW20,0) -> 0 | BY10: =IFERROR(Forecasts!BX20,0) -> 0 | BZ10: =IFERROR(Forecasts!BY20,0) -> 0 | CA10: =IFERROR(Forecasts!BZ20,0) -> 0 | CB10: =IFERROR(Forecasts!CA20,0) -> 0 | CC10: =IFERROR(Forecasts!CB20,0) -> 0 | CD10: =IFERROR(Forecasts!CC20,0) -> 0 | CE10: =IFERROR(Forecasts!CD20,0) -> 0 | CF10: =IFERROR(Forecasts!CE20,0) -> 0 | CG10: =IFERROR(Forecasts!CF20,0) -> 0 | CH10: =IFERROR(Forecasts!CG20,0) -> 0 | CI10: =IFERROR(Forecasts!CH20,0) -> 0 | CJ10: =IFERROR(Forecasts!CI20,0) -> 0 | CK10: =IFERROR(Forecasts!CJ20,0) -> 0 | CL10: =IFERROR(Forecasts!CK20,0) -> 0 | CM10: =IFERROR(Forecasts!CL20,0) -> 0
A11: Industrial A2 | K11: =IFERROR(Forecasts!J21,0) -> 103 | L11: =IFERROR(Forecasts!K21,0) -> 105 | M11: =IFERROR(Forecasts!L21,0) -> 103 | N11: =IFERROR(Forecasts!M21,0) -> 105 | O11: =IFERROR(Forecasts!N21,0) -> 104 | P11: =IFERROR(Forecasts!O21,0) -> 104 | Q11: =IFERROR(Forecasts!P21,0) -> 103 | R11: =IFERROR(Forecasts!Q21,0) -> 103 | S11: =IFERROR(Forecasts!R21,0) -> 103 | T11: =IFERROR(Forecasts!S21,0) -> 103 | U11: =IFERROR(Forecasts!T21,0) -> 103.9966764 | V11: =IFERROR(Forecasts!U21,0) -> 103.2213452 | W11: =IFERROR(Forecasts!V21,0) -> 102.1377308 | X11: =IFERROR(Forecasts!W21,0) -> 100.9181746 | Y11: =IFERROR(Forecasts!X21,0) -> 99.38049611 | Z11: =IFERROR(Forecasts!Y21,0) -> 97.94360382 | AA11: =IFERROR(Forecasts!Z21,0) -> 96.02580583 | AB11: =IFERROR(Forecasts!AA21,0) -> 93.35066979 | AC11: =IFERROR(Forecasts!AB21,0) -> 89.63736015 | AD11: =IFERROR(Forecasts!AC21,0) -> 83.84036734 | AE11: =IFERROR(Forecasts!AD21,0) -> 76.89609224 | AF11: =IFERROR(Forecasts!AE21,0) -> 69.10772942 | AG11: =IFERROR(Forecasts!AF21,0) -> 61.16304271 | AH11: =IFERROR(Forecasts!AG21,0) -> 53.17293847 | AI11: =IFERROR(Forecasts!AH21,0) -> 45.49170431 | AJ11: =IFERROR(Forecasts!AI21,0) -> 39.60973816 | AK11: =IFERROR(Forecasts!AJ21,0) -> 34.05825437 | AL11: =IFERROR(Forecasts!AK21,0) -> 28.66371154 | AM11: =IFERROR(Forecasts!AL21,0) -> 23.60783852 | AN11: =IFERROR(Forecasts!AM21,0) -> 18.47040935 | AO11: =IFERROR(Forecasts!AN21,0) -> 13.83341465 | AP11: =IFERROR(Forecasts!AO21,0) -> 9.971353377 | AQ11: =IFERROR(Forecasts!AP21,0) -> 7.162143444 | AR11: =IFERROR(Forecasts!AQ21,0) -> 6.447272366 | AS11: =IFERROR(Forecasts!AR21,0) -> 5.992554585 | AT11: =IFERROR(Forecasts!AS21,0) -> 5.969782877 | AU11: =IFERROR(Forecasts!AT21,0) -> 5.947097703 | AV11: =IFERROR(Forecasts!AU21,0) -> 5.924498731 | AW11: =IFERROR(Forecasts!AV21,0) -> 5.811752617 | AX11: =IFERROR(Forecasts!AW21,0) -> 4.1902629 | AY11: =IFERROR(Forecasts!AX21,0) -> 4.016556063 | AZ11: =IFERROR(Forecasts!AY21,0) -> 3.994847935 | BA11: =IFERROR(Forecasts!AZ21,0) -> 3.770445896 | BB11: =IFERROR(Forecasts!BA21,0) -> 3.756118202 | BC11: =IFERROR(Forecasts!BB21,0) -> 3.3310864 | BD11: =IFERROR(Forecasts!BC21,0) -> 2.613668728 | BE11: =IFERROR(Forecasts!BD21,0) -> 1.603488894 | BF11: =IFERROR(Forecasts!BE21,0) -> 0 | BG11: =IFERROR(Forecasts!BF21,0) -> 0 | BH11: =IFERROR(Forecasts!BG21,0) -> 0 | BI11: =IFERROR(Forecasts!BH21,0) -> 0 | BJ11: =IFERROR(Forecasts!BI21,0) -> 0 | BK11: =IFERROR(Forecasts!BJ21,0) -> 0 | BL11: =IFERROR(Forecasts!BK21,0) -> 0 | BM11: =IFERROR(Forecasts!BL21,0) -> 0 | BN11: =IFERROR(Forecasts!BM21,0) -> 0 | BO11: =IFERROR(Forecasts!BN21,0) -> 0 | BP11: =IFERROR(Forecasts!BO21,0) -> 0 | BQ11: =IFERROR(Forecasts!BP21,0) -> 0 | BR11: =IFERROR(Forecasts!BQ21,0) -> 0 | BS11: =IFERROR(Forecasts!BR21,0) -> 0 | BT11: =IFERROR(Forecasts!BS21,0) -> 0 | BU11: =IFERROR(Forecasts!BT21,0) -> 0 | BV11: =IFERROR(Forecasts!BU21,0) -> 0 | BW11: =IFERROR(Forecasts!BV21,0) -> 0 | BX11: =IFERROR(Forecasts!BW21,0) -> 0 | BY11: =IFERROR(Forecasts!BX21,0) -> 0 | BZ11: =IFERROR(Forecasts!BY21,0) -> 0 | CA11: =IFERROR(Forecasts!BZ21,0) -> 0 | CB11: =IFERROR(Forecasts!CA21,0) -> 0 | CC11: =IFERROR(Forecasts!CB21,0) -> 0 | CD11: =IFERROR(Forecasts!CC21,0) -> 0 | CE11: =IFERROR(Forecasts!CD21,0) -> 0 | CF11: =IFERROR(Forecasts!CE21,0) -> 0 | CG11: =IFERROR(Forecasts!CF21,0) -> 0 | CH11: =IFERROR(Forecasts!CG21,0) -> 0 | CI11: =IFERROR(Forecasts!CH21,0) -> 0 | CJ11: =IFERROR(Forecasts!CI21,0) -> 0 | CK11: =IFERROR(Forecasts!CJ21,0) -> 0 | CL11: =IFERROR(Forecasts!CK21,0) -> 0 | CM11: =IFERROR(Forecasts!CL21,0) -> 0
A12: ATCO | K12: =SUM(K3,K6,K9,K10,K11) -> 760796 | L12: 770562 | M12: 781845 | N12: 793396 | O12: 799936.2 | P12: 807356.9482 | Q12: 816408.9411 | R12: 826373.2563 | S12: 836834.5155 | T12: 847545.2085 | U12: 855814.431 | V12: 849733.2575 | W12: 841152.5972 | X12: 831466.1051 | Y12: 819195.5488 | Z12: 807755.8912 | AA12: 792410.8578 | AB12: 770913.5356 | AC12: 740981.4196 | AD12: 694130.0881 | AE12: 637871.389 | AF12: 574779.3506 | AG12: 510419.5612 | AH12: 445685.5171 | AI12: 383439.2396 | AJ12: 335727.4929 | AK12: 290621.5547 | AL12: 246643.3538 | AM12: 205294.0601 | AN12: 163336.5341 | AO12: 125550.2 | AP12: 94101.89399 | AQ12: 71163.33735 | AR12: 65113.57945 | AS12: 61062.11412 | AT12: 60506.56435 | AU12: 60051.19992 | AV12: 59665.62023 | AW12: 58552.35545 | AX12: 45164.71875 | AY12: 43436.01066 | AZ12: 42985.61075 | BA12: 40991.05391 | BB12: 40734.192 | BC12: 37133.36118 | BD12: 31099.10748 | BE12: 22639.65527 | BF12: 9401.119277 | BG12: 9363.5148 | BH12: 9326.060741 | BI12: 9288.756498 | BJ12: 9251.601472 | BK12: 9214.595066 | BL12: 9177.736685 | BM12: 9141.025739 | BN12: 9104.461636 | BO12: 9068.043789 | BP12: 9031.771614 | BQ12: 8995.644528 | BR12: 8959.661949 | BS12: 8923.823302 | BT12: 8888.128008 | BU12: 8852.575496 | BV12: 8817.165194 | BW12: =SUM(BW3,BW6,BW9,BW10,BW11) -> 8781.896534 | BX12: 8746.768948 | BY12: 8711.781872 | BZ12: 8676.934744 | CA12: 8642.227005 | CB12: 8607.658097 | CC12: 8573.227465 | CD12: 8538.934555 | CE12: 8504.778817 | CF12: 8470.759702 | CG12: 8436.876663 | CH12: 8403.129156 | CI12: 8369.516639 | CJ12: 8336.038573 | CK12: 8302.694419 | CL12: 8269.483641 | CM12: 8236.405706
A15: Volumes (TJ) | K15: 2020 | L15: =K15+1 -> 2021 | M15: =L15+1 -> 2022 | N15: 2023 | O15: 2024 | P15: =O15+1 -> 2025 | Q15: 2026 | R15: 2027 | S15: 2028 | T15: 2029 | U15: 2030 | V15: 2031 | W15: 2032 | X15: 2033 | Y15: 2034 | Z15: 2035 | AA15: 2036 | AB15: 2037 | AC15: 2038 | AD15: 2039 | AE15: 2040 | AF15: 2041 | AG15: 2042 | AH15: 2043 | AI15: 2044 | AJ15: 2045 | AK15: 2046 | AL15: 2047 | AM15: 2048 | AN15: 2049 | AO15: 2050 | AP15: 2051 | AQ15: 2052 | AR15: 2053 | AS15: 2054 | AT15: 2055 | AU15: 2056 | AV15: 2057 | AW15: 2058 | AX15: 2059 | AY15: 2060 | AZ15: 2061 | BA15: 2062 | BB15: 2063 | BC15: 2064 | BD15: 2065 | BE15: 2066 | BF15: 2067 | BG15: 2068 | BH15: 2069 | BI15: 2070 | BJ15: 2071 | BK15: 2072 | BL15: 2073 | BM15: 2074 | BN15: =BM15+1 -> 2075 | BO15: 2076 | BP15: 2077 | BQ15: 2078 | BR15: 2079 | BS15: 2080 | BT15: 2081 | BU15: 2082 | BV15: 2083 | BW15: 2084 | BX15: 2085 | BY15: =BX15+1 -> 2086 | BZ15: 2087 | CA15: 2088 | CB15: 2089 | CC15: 2090 | CD15: 2091 | CE15: 2092 | CF15: 2093 | CG15: 2094 | CH15: 2095 | CI15: 2096 | CJ15: 2097 | CK15: 2098 | CL15: 2099 | CM15: 2100
A16: Residential B3 | K16: =IFERROR(Forecasts!J6,0) -> 10329.927 | L16: =IFERROR(Forecasts!K6,0) -> 10453.622 | M16: =IFERROR(Forecasts!L6,0) -> 10204.752 | N16: =IFERROR(Forecasts!M6,0) -> 10325.306 | O16: =IFERROR(Forecasts!N6,0) -> 9952.599 | P16: =IFERROR(Forecasts!O6,0) -> 9693.821 | Q16: =IFERROR(Forecasts!P6,0) -> 9489.882 | R16: =IFERROR(Forecasts!Q6,0) -> 9314.348 | S16: =IFERROR(Forecasts!R6,0) -> 9159.842 | T16: =IFERROR(Forecasts!S6,0) -> 9021.354 | U16: =IFERROR(Forecasts!T6,0) -> 8756.712408 | V16: =IFERROR(Forecasts!U6,0) -> 8380.050269 | W16: =IFERROR(Forecasts!V6,0) -> 8166.11696 | X16: =IFERROR(Forecasts!W6,0) -> 7965.787352 | Y16: =IFERROR(Forecasts!X6,0) -> 7734.385589 | Z16: =IFERROR(Forecasts!Y6,0) -> 7555.59996 | AA16: =IFERROR(Forecasts!Z6,0) -> 7294.612701 | AB16: =IFERROR(Forecasts!AA6,0) -> 6972.616949 | AC16: =IFERROR(Forecasts!AB6,0) -> 6572.52778 | AD16: =IFERROR(Forecasts!AC6,0) -> 6016.466218 | AE16: =IFERROR(Forecasts!AD6,0) -> 5405.572328 | AF16: =IFERROR(Forecasts!AE6,0) -> 4788.400458 | AG16: =IFERROR(Forecasts!AF6,0) -> 4139.444427 | AH16: =IFERROR(Forecasts!AG6,0) -> 3505.896824 | AI16: =IFERROR(Forecasts!AH6,0) -> 2913.812482 | AJ16: =IFERROR(Forecasts!AI6,0) -> 2459.093606 | AK16: =IFERROR(Forecasts!AJ6,0) -> 2046.459289 | AL16: =IFERROR(Forecasts!AK6,0) -> 1662.254355 | AM16: =IFERROR(Forecasts!AL6,0) -> 1333.873276 | AN16: =IFERROR(Forecasts!AM6,0) -> 1034.629711 | AO16: =IFERROR(Forecasts!AN6,0) -> 776.0542267 | AP16: =IFERROR(Forecasts!AO6,0) -> 558.3467178 | AQ16: =IFERROR(Forecasts!AP6,0) -> 394.7355295 | AR16: =IFERROR(Forecasts!AQ6,0) -> 346.0525703 | AS16: =IFERROR(Forecasts!AR6,0) -> 312.9695106 | AT16: =IFERROR(Forecasts!AS6,0) -> 306.7287068 | AU16: =IFERROR(Forecasts!AT6,0) -> 304.6569828 | AV16: =IFERROR(Forecasts!AU6,0) -> 303.4327928 | AW16: =IFERROR(Forecasts!AV6,0) -> 293.6778405 | AX16: =IFERROR(Forecasts!AW6,0) -> 205.2989261 | AY16: =IFERROR(Forecasts!AX6,0) -> 191.0786389 | AZ16: =IFERROR(Forecasts!AY6,0) -> 186.7291987 | BA16: =IFERROR(Forecasts!AZ6,0) -> 175.6212204 | BB16: =IFERROR(Forecasts!BA6,0) -> 174.652715 | BC16: =IFERROR(Forecasts!BB6,0) -> 152.5604723 | BD16: =IFERROR(Forecasts!BC6,0) -> 116.0278278 | BE16: =IFERROR(Forecasts!BD6,0) -> 68.98291035 | BF16: =IFERROR(Forecasts!BE6,0) -> 0 | BG16: =IFERROR(Forecasts!BF6,0) -> 0 | BH16: =IFERROR(Forecasts!BG6,0) -> 0 | BI16: =IFERROR(Forecasts!BH6,0) -> 0 | BJ16: =IFERROR(Forecasts!BI6,0) -> 0 | BK16: =IFERROR(Forecasts!BJ6,0) -> 0 | BL16: =IFERROR(Forecasts!BK6,0) -> 0 | BM16: =IFERROR(Forecasts!BL6,0) -> 0 | BN16: =IFERROR(Forecasts!BM6,0) -> 0 | BO16: =IFERROR(Forecasts!BN6,0) -> 0 | BP16: =IFERROR(Forecasts!BO6,0) -> 0 | BQ16: =IFERROR(Forecasts!BP6,0) -> 0 | BR16: =IFERROR(Forecasts!BQ6,0) -> 0 | BS16: =IFERROR(Forecasts!BR6,0) -> 0 | BT16: =IFERROR(Forecasts!BS6,0) -> 0 | BU16: =IFERROR(Forecasts!BT6,0) -> 0 | BV16: =IFERROR(Forecasts!BU6,0) -> 0 | BW16: =IFERROR(Forecasts!BV6,0) -> 0 | BX16: =IFERROR(Forecasts!BW6,0) -> 0 | BY16: =IFERROR(Forecasts!BX6,0) -> 0 | BZ16: =IFERROR(Forecasts!BY6,0) -> 0 | CA16: =IFERROR(Forecasts!BZ6,0) -> 0 | CB16: =IFERROR(Forecasts!CA6,0) -> 0 | CC16: =IFERROR(Forecasts!CB6,0) -> 0 | CD16: =IFERROR(Forecasts!CC6,0) -> 0 | CE16: =IFERROR(Forecasts!CD6,0) -> 0 | CF16: =IFERROR(Forecasts!CE6,0) -> 0 | CG16: =IFERROR(Forecasts!CF6,0) -> 0 | CH16: =IFERROR(Forecasts!CG6,0) -> 0 | CI16: =IFERROR(Forecasts!CH6,0) -> 0 | CJ16: =IFERROR(Forecasts!CI6,0) -> 0 | CK16: =IFERROR(Forecasts!CJ6,0) -> 0 | CL16: =IFERROR(Forecasts!CK6,0) -> 0 | CM16: =IFERROR(Forecasts!CL6,0) -> 0
A17: Commercial B2 | K17: =IFERROR(Forecasts!J10,0) -> 1251.355811 | L17: =IFERROR(Forecasts!K10,0) -> 1318.28853 | M17: =IFERROR(Forecasts!L10,0) -> 1296.905121 | N17: =IFERROR(Forecasts!M10,0) -> 1329.338823 | O17: =IFERROR(Forecasts!N10,0) -> 1310.197884 | P17: =IFERROR(Forecasts!O10,0) -> 1300.823108 | Q17: =IFERROR(Forecasts!P10,0) -> 1291.537707 | R17: =IFERROR(Forecasts!Q10,0) -> 1282.340425 | S17: =IFERROR(Forecasts!R10,0) -> 1276.486216 | T17: =IFERROR(Forecasts!S10,0) -> 1273.806181 | U17: =IFERROR(Forecasts!T10,0) -> 1218.700027 | V17: =IFERROR(Forecasts!U10,0) -> 1198.901722 | W17: =IFERROR(Forecasts!V10,0) -> 1196.020023 | X17: =IFERROR(Forecasts!W10,0) -> 1189.791733 | Y17: =IFERROR(Forecasts!X10,0) -> 1184.819932 | Z17: =IFERROR(Forecasts!Y10,0) -> 1191.478035 | AA17: =IFERROR(Forecasts!Z10,0) -> 1184.866992 | AB17: =IFERROR(Forecasts!AA10,0) -> 1173.807357 | AC17: =IFERROR(Forecasts!AB10,0) -> 1158.290647 | AD17: =IFERROR(Forecasts!AC10,0) -> 1136.359078 | AE17: =IFERROR(Forecasts!AD10,0) -> 1109.476923 | AF17: =IFERROR(Forecasts!AE10,0) -> 1088.287003 | AG17: =IFERROR(Forecasts!AF10,0) -> 1059.958042 | AH17: =IFERROR(Forecasts!AG10,0) -> 1030.661483 | AI17: =IFERROR(Forecasts!AH10,0) -> 1000.004171 | AJ17: =IFERROR(Forecasts!AI10,0) -> 968.4575815 | AK17: =IFERROR(Forecasts!AJ10,0) -> 930.5532608 | AL17: =IFERROR(Forecasts!AK10,0) -> 884.9062621 | AM17: =IFERROR(Forecasts!AL10,0) -> 839.2284521 | AN17: =IFERROR(Forecasts!AM10,0) -> 805.7106131 | AO17: =IFERROR(Forecasts!AN10,0) -> 783.4421214 | AP17: =IFERROR(Forecasts!AO10,0) -> 763.3114713 | AQ17: =IFERROR(Forecasts!AP10,0) -> 737.2006569 | AR17: =IFERROR(Forecasts!AQ10,0) -> 704.9010902 | AS17: =IFERROR(Forecasts!AR10,0) -> 667.9593869 | AT17: =IFERROR(Forecasts!AS10,0) -> 636.0487898 | AU17: =IFERROR(Forecasts!AT10,0) -> 614.0263682 | AV17: =IFERROR(Forecasts!AU10,0) -> 596.1214787 | AW17: =IFERROR(Forecasts!AV10,0) -> 574.4734509 | AX17: =IFERROR(Forecasts!AW10,0) -> 545.7778809 | AY17: =IFERROR(Forecasts!AX10,0) -> 516.1294627 | AZ17: =IFERROR(Forecasts!AY10,0) -> 492.5496562 | BA17: =IFERROR(Forecasts!AZ10,0) -> 476.9067082 | BB17: =IFERROR(Forecasts!BA10,0) -> 463.1328261 | BC17: =IFERROR(Forecasts!BB10,0) -> 445.7466132 | BD17: =IFERROR(Forecasts!BC10,0) -> 423.0749047 | BE17: =IFERROR(Forecasts!BD10,0) -> 399.0585387 | BF17: =IFERROR(Forecasts!BE10,0) -> 378.5942974 | BG17: =IFERROR(Forecasts!BF10,0) -> 400.1419136 | BH17: =IFERROR(Forecasts!BG10,0) -> 388.4771728 | BI17: =IFERROR(Forecasts!BH10,0) -> 376.9233428 | BJ17: =IFERROR(Forecasts!BI10,0) -> 365.479215 | BK17: =IFERROR(Forecasts!BJ10,0) -> 354.1436039 | BL17: =IFERROR(Forecasts!BK10,0) -> 342.9153465 | BM17: =IFERROR(Forecasts!BL10,0) -> 331.7933011 | BN17: =IFERROR(Forecasts!BM10,0) -> 321.3137748 | BO17: =IFERROR(Forecasts!BN10,0) -> 311.4586451 | BP17: =IFERROR(Forecasts!BO10,0) -> 301.6634815 | BQ17: =IFERROR(Forecasts!BP10,0) -> 291.9279919 | BR17: =IFERROR(Forecasts!BQ10,0) -> 282.2518889 | BS17: =IFERROR(Forecasts!BR10,0) -> 272.63489 | BT17: =IFERROR(Forecasts!BS10,0) -> 263.0767173 | BU17: =IFERROR(Forecasts!BT10,0) -> 253.5770971 | BV17: =IFERROR(Forecasts!BU10,0) -> 244.1357598 | BW17: =IFERROR(Forecasts!BV10,0) -> 234.7524397 | BX17: =IFERROR(Forecasts!BW10,0) -> 225.4268747 | BY17: =IFERROR(Forecasts!BX10,0) -> 216.1588064 | BZ17: =IFERROR(Forecasts!BY10,0) -> 206.9479795 | CA17: =IFERROR(Forecasts!BZ10,0) -> 197.7941418 | CB17: =IFERROR(Forecasts!CA10,0) -> 188.6970444 | CC17: =IFERROR(Forecasts!CB10,0) -> 179.6564409 | CD17: =IFERROR(Forecasts!CC10,0) -> 170.6720878 | CE17: =IFERROR(Forecasts!CD10,0) -> 161.743744 | CF17: =IFERROR(Forecasts!CE10,0) -> 152.871171 | CG17: =IFERROR(Forecasts!CF10,0) -> 144.0541323 | CH17: =IFERROR(Forecasts!CG10,0) -> 135.2923941 | CI17: =IFERROR(Forecasts!CH10,0) -> 126.585724 | CJ17: =IFERROR(Forecasts!CI10,0) -> 117.9338921 | CK17: =IFERROR(Forecasts!CJ10,0) -> 109.3366702 | CL17: =IFERROR(Forecasts!CK10,0) -> 100.7938316 | CM17: =IFERROR(Forecasts!CL10,0) -> 92.30515149
A18: Commercial B1 | K18: =IFERROR(Forecasts!J14,0) -> 1847.301623 | L18: =IFERROR(Forecasts!K14,0) -> 2077.214047 | M18: =IFERROR(Forecasts!L14,0) -> 2140.84011 | N18: =IFERROR(Forecasts!M14,0) -> 2199.444915 | O18: =IFERROR(Forecasts!N14,0) -> 2164.480426 | P18: =IFERROR(Forecasts!O14,0) -> 2153.961654 | Q18: =IFERROR(Forecasts!P14,0) -> 2143.169005 | R18: =IFERROR(Forecasts!Q14,0) -> 2132.430465 | S18: =IFERROR(Forecasts!R14,0) -> 2121.745765 | T18: =IFERROR(Forecasts!S14,0) -> 2111.114634 | U18: =IFERROR(Forecasts!T14,0) -> 2002.543059 | V18: =IFERROR(Forecasts!U14,0) -> 1921.546298 | W18: =IFERROR(Forecasts!V14,0) -> 1864.743212 | X18: =IFERROR(Forecasts!W14,0) -> 1802.646797 | Y18: =IFERROR(Forecasts!X14,0) -> 1739.750807 | Z18: =IFERROR(Forecasts!Y14,0) -> 1695.244163 | AA18: =IFERROR(Forecasts!Z14,0) -> 1626.494125 | AB18: =IFERROR(Forecasts!AA14,0) -> 1543.755418 | AC18: =IFERROR(Forecasts!AB14,0) -> 1444.54904 | AD18: =IFERROR(Forecasts!AC14,0) -> 1313.64584 | AE18: =IFERROR(Forecasts!AD14,0) -> 1174.758123 | AF18: =IFERROR(Forecasts!AE14,0) -> 1034.221928 | AG18: =IFERROR(Forecasts!AF14,0) -> 890.2662339 | AH18: =IFERROR(Forecasts!AG14,0) -> 751.6792307 | AI18: =IFERROR(Forecasts!AH14,0) -> 623.5369615 | AJ18: =IFERROR(Forecasts!AI14,0) -> 526.1724731 | AK18: =IFERROR(Forecasts!AJ14,0) -> 436.8970135 | AL18: =IFERROR(Forecasts!AK14,0) -> 354.734003 | AM18: =IFERROR(Forecasts!AL14,0) -> 283.3442292 | AN18: =IFERROR(Forecasts!AM14,0) -> 216.9650427 | AO18: =IFERROR(Forecasts!AN14,0) -> 159.7133206 | AP18: =IFERROR(Forecasts!AO14,0) -> 112.8180099 | AQ18: =IFERROR(Forecasts!AP14,0) -> 78.76282841 | AR18: =IFERROR(Forecasts!AQ14,0) -> 68.52434971 | AS18: =IFERROR(Forecasts!AR14,0) -> 61.51597579 | AT18: =IFERROR(Forecasts!AS14,0) -> 59.49877039 | AU18: =IFERROR(Forecasts!AT14,0) -> 57.88279652 | AV18: =IFERROR(Forecasts!AU14,0) -> 56.29769877 | AW18: =IFERROR(Forecasts!AV14,0) -> 53.49686434 | AX18: =IFERROR(Forecasts!AW14,0) -> 37.03132372 | AY18: =IFERROR(Forecasts!AX14,0) -> 34.09070655 | AZ18: =IFERROR(Forecasts!AY14,0) -> 32.71511273 | BA18: =IFERROR(Forecasts!AZ14,0) -> 29.94705288 | BB18: =IFERROR(Forecasts!BA14,0) -> 28.89886537 | BC18: =IFERROR(Forecasts!BB14,0) -> 24.63372592 | BD18: =IFERROR(Forecasts!BC14,0) -> 18.42673946 | BE18: =IFERROR(Forecasts!BD14,0) -> 10.76367623 | BF18: =IFERROR(Forecasts!BE14,0) -> 0 | BG18: =IFERROR(Forecasts!BF14,0) -> 0 | BH18: =IFERROR(Forecasts!BG14,0) -> 0 | BI18: =IFERROR(Forecasts!BH14,0) -> 0 | BJ18: =IFERROR(Forecasts!BI14,0) -> 0 | BK18: =IFERROR(Forecasts!BJ14,0) -> 0 | BL18: =IFERROR(Forecasts!BK14,0) -> 0 | BM18: =IFERROR(Forecasts!BL14,0) -> 0 | BN18: =IFERROR(Forecasts!BM14,0) -> 0 | BO18: =IFERROR(Forecasts!BN14,0) -> 0 | BP18: =IFERROR(Forecasts!BO14,0) -> 0 | BQ18: =IFERROR(Forecasts!BP14,0) -> 0 | BR18: =IFERROR(Forecasts!BQ14,0) -> 0 | BS18: =IFERROR(Forecasts!BR14,0) -> 0 | BT18: =IFERROR(Forecasts!BS14,0) -> 0 | BU18: =IFERROR(Forecasts!BT14,0) -> 0 | BV18: =IFERROR(Forecasts!BU14,0) -> 0 | BW18: =IFERROR(Forecasts!BV14,0) -> 0 | BX18: =IFERROR(Forecasts!BW14,0) -> 0 | BY18: =IFERROR(Forecasts!BX14,0) -> 0 | BZ18: =IFERROR(Forecasts!BY14,0) -> 0 | CA18: =IFERROR(Forecasts!BZ14,0) -> 0 | CB18: =IFERROR(Forecasts!CA14,0) -> 0 | CC18: =IFERROR(Forecasts!CB14,0) -> 0 | CD18: =IFERROR(Forecasts!CC14,0) -> 0 | CE18: =IFERROR(Forecasts!CD14,0) -> 0 | CF18: =IFERROR(Forecasts!CE14,0) -> 0 | CG18: =IFERROR(Forecasts!CF14,0) -> 0 | CH18: =IFERROR(Forecasts!CG14,0) -> 0 | CI18: =IFERROR(Forecasts!CH14,0) -> 0 | CJ18: =IFERROR(Forecasts!CI14,0) -> 0 | CK18: =IFERROR(Forecasts!CJ14,0) -> 0 | CL18: =IFERROR(Forecasts!CK14,0) -> 0 | CM18: =IFERROR(Forecasts!CL14,0) -> 0
A19: Industrial A1 | K19: =IFERROR(Forecasts!J15,0) -> 11717.847 | L19: =IFERROR(Forecasts!K15,0) -> 12321.87174 | M19: =IFERROR(Forecasts!L15,0) -> 11853.73587 | N19: =IFERROR(Forecasts!M15,0) -> 12497.535 | O19: =IFERROR(Forecasts!N15,0) -> 12150.33117 | P19: =IFERROR(Forecasts!O15,0) -> 13178.43132 | Q19: =IFERROR(Forecasts!P15,0) -> 13378.6592 | R19: =IFERROR(Forecasts!Q15,0) -> 13876.85065 | S19: =IFERROR(Forecasts!R15,0) -> 13854.51134 | T19: =IFERROR(Forecasts!S15,0) -> 13821.12832 | U19: =IFERROR(Forecasts!T15,0) -> 12862.02458 | V19: =IFERROR(Forecasts!U15,0) -> 12591.41144 | W19: =IFERROR(Forecasts!V15,0) -> 12515.32013 | X19: =IFERROR(Forecasts!W15,0) -> 12386.2149 | Y19: =IFERROR(Forecasts!X15,0) -> 12251.87791 | Z19: =IFERROR(Forecasts!Y15,0) -> 12261.71961 | AA19: =IFERROR(Forecasts!Z15,0) -> 12060.45042 | AB19: =IFERROR(Forecasts!AA15,0) -> 11733.75396 | AC19: =IFERROR(Forecasts!AB15,0) -> 11254.30418 | AD19: =IFERROR(Forecasts!AC15,0) -> 10493.73132 | AE19: =IFERROR(Forecasts!AD15,0) -> 9633.99583 | AF19: =IFERROR(Forecasts!AE15,0) -> 8714.227616 | AG19: =IFERROR(Forecasts!AF15,0) -> 7706.043524 | AH19: =IFERROR(Forecasts!AG15,0) -> 6686.065183 | AI19: =IFERROR(Forecasts!AH15,0) -> 5701.898258 | AJ19: =IFERROR(Forecasts!AI15,0) -> 4950.366618 | AK19: =IFERROR(Forecasts!AJ15,0) -> 4229.766932 | AL19: =IFERROR(Forecasts!AK15,0) -> 3537.064917 | AM19: =IFERROR(Forecasts!AL15,0) -> 2916.000524 | AN19: =IFERROR(Forecasts!AM15,0) -> 2310.806093 | AO19: =IFERROR(Forecasts!AN15,0) -> 1762.83866 | AP19: =IFERROR(Forecasts!AO15,0) -> 1290.008783 | AQ19: =IFERROR(Forecasts!AP15,0) -> 932.0237926 | AR19: =IFERROR(Forecasts!AQ15,0) -> 838.9884277 | AS19: =IFERROR(Forecasts!AR15,0) -> 780.1075974 | AT19: =IFERROR(Forecasts!AS15,0) -> 783.2282563 | AU19: =IFERROR(Forecasts!AT15,0) -> 792.5936817 | AV19: =IFERROR(Forecasts!AU15,0) -> 802.4571636 | AW19: =IFERROR(Forecasts!AV15,0) -> 793.2301538 | AX19: =IFERROR(Forecasts!AW15,0) -> 570.9230295 | AY19: =IFERROR(Forecasts!AX15,0) -> 547.4420465 | AZ19: =IFERROR(Forecasts!AY15,0) -> 548.5981827 | BA19: =IFERROR(Forecasts!AZ15,0) -> 525.6813834 | BB19: =IFERROR(Forecasts!BA15,0) -> 531.5792209 | BC19: =IFERROR(Forecasts!BB15,0) -> 474.8282008 | BD19: =IFERROR(Forecasts!BC15,0) -> 372.3595657 | BE19: =IFERROR(Forecasts!BD15,0) -> 228.5313555 | BF19: =IFERROR(Forecasts!BE15,0) -> 0 | BG19: =IFERROR(Forecasts!BF15,0) -> 0 | BH19: =IFERROR(Forecasts!BG15,0) -> 0 | BI19: =IFERROR(Forecasts!BH15,0) -> 0 | BJ19: =IFERROR(Forecasts!BI15,0) -> 0 | BK19: =IFERROR(Forecasts!BJ15,0) -> 0 | BL19: =IFERROR(Forecasts!BK15,0) -> 0 | BM19: =IFERROR(Forecasts!BL15,0) -> 0 | BN19: =IFERROR(Forecasts!BM15,0) -> 0 | BO19: =IFERROR(Forecasts!BN15,0) -> 0 | BP19: =IFERROR(Forecasts!BO15,0) -> 0 | BQ19: =IFERROR(Forecasts!BP15,0) -> 0 | BR19: =IFERROR(Forecasts!BQ15,0) -> 0 | BS19: =IFERROR(Forecasts!BR15,0) -> 0 | BT19: =IFERROR(Forecasts!BS15,0) -> 0 | BU19: =IFERROR(Forecasts!BT15,0) -> 0 | BV19: =IFERROR(Forecasts!BU15,0) -> 0 | BW19: =IFERROR(Forecasts!BV15,0) -> 0 | BX19: =IFERROR(Forecasts!BW15,0) -> 0 | BY19: =IFERROR(Forecasts!BX15,0) -> 0 | BZ19: =IFERROR(Forecasts!BY15,0) -> 0 | CA19: =IFERROR(Forecasts!BZ15,0) -> 0 | CB19: =IFERROR(Forecasts!CA15,0) -> 0 | CC19: =IFERROR(Forecasts!CB15,0) -> 0 | CD19: =IFERROR(Forecasts!CC15,0) -> 0 | CE19: =IFERROR(Forecasts!CD15,0) -> 0 | CF19: =IFERROR(Forecasts!CE15,0) -> 0 | CG19: =IFERROR(Forecasts!CF15,0) -> 0 | CH19: =IFERROR(Forecasts!CG15,0) -> 0 | CI19: =IFERROR(Forecasts!CH15,0) -> 0 | CJ19: =IFERROR(Forecasts!CI15,0) -> 0 | CK19: =IFERROR(Forecasts!CJ15,0) -> 0 | CL19: =IFERROR(Forecasts!CK15,0) -> 0 | CM19: =IFERROR(Forecasts!CL15,0) -> 0
A20: Industrial A2 | K20: =IFERROR(Forecasts!J16,0) -> 1735.995787 | L20: =IFERROR(Forecasts!K16,0) -> 1841.567721 | M20: =IFERROR(Forecasts!L16,0) -> 1879.069055 | N20: =IFERROR(Forecasts!M16,0) -> 1879.40309 | O20: =IFERROR(Forecasts!N16,0) -> 1897.993261 | P20: =IFERROR(Forecasts!O16,0) -> 1899.848298 | Q20: =IFERROR(Forecasts!P16,0) -> 1886.418189 | R20: =IFERROR(Forecasts!Q16,0) -> 1882.250462 | S20: =IFERROR(Forecasts!R16,0) -> 1877.35066 | T20: =IFERROR(Forecasts!S16,0) -> 1872.523343 | U20: =IFERROR(Forecasts!T16,0) -> 1742.400394 | V20: =IFERROR(Forecasts!U16,0) -> 1679.389626 | W20: =IFERROR(Forecasts!V16,0) -> 1646.010504 | X20: =IFERROR(Forecasts!W16,0) -> 1605.724265 | Y20: =IFERROR(Forecasts!X16,0) -> 1566.105083 | Z20: =IFERROR(Forecasts!Y16,0) -> 1547.019486 | AA20: =IFERROR(Forecasts!Z16,0) -> 1500.400558 | AB20: =IFERROR(Forecasts!AA16,0) -> 1438.974195 | AC20: =IFERROR(Forecasts!AB16,0) -> 1360.086955 | AD20: =IFERROR(Forecasts!AC16,0) -> 1249.425641 | AE20: =IFERROR(Forecasts!AD16,0) -> 1130.399428 | AF20: =IFERROR(Forecasts!AE16,0) -> 1007.829073 | AG20: =IFERROR(Forecasts!AF16,0) -> 878.1070203 | AH20: =IFERROR(Forecasts!AG16,0) -> 750.4698309 | AI20: =IFERROR(Forecasts!AH16,0) -> 630.2652792 | AJ20: =IFERROR(Forecasts!AI16,0) -> 538.8068507 | AK20: =IFERROR(Forecasts!AJ16,0) -> 453.1013077 | AL20: =IFERROR(Forecasts!AK16,0) -> 372.8313259 | AM20: =IFERROR(Forecasts!AL16,0) -> 302.6019031 | AN20: =IFERROR(Forecasts!AM16,0) -> 236.3327757 | AO20: =IFERROR(Forecasts!AN16,0) -> 177.7992377 | AP20: =IFERROR(Forecasts!AO16,0) -> 128.2868008 | AQ20: =IFERROR(Forecasts!AP16,0) -> 91.31844982 | AR20: =IFERROR(Forecasts!AQ16,0) -> 80.94217369 | AS20: =IFERROR(Forecasts!AR16,0) -> 74.1018292 | AT20: =IFERROR(Forecasts!AS16,0) -> 73.29712428 | AU20: =IFERROR(Forecasts!AT16,0) -> 73.1326616 | AV20: =IFERROR(Forecasts!AU16,0) -> 73.0173019 | AW20: =IFERROR(Forecasts!AV16,0) -> 71.1299418 | AX20: =IFERROR(Forecasts!AW16,0) -> 50.40657153 | AY20: =IFERROR(Forecasts!AX16,0) -> 47.59162411 | AZ20: =IFERROR(Forecasts!AY16,0) -> 46.98787691 | BA20: =IFERROR(Forecasts!AZ16,0) -> 44.39308413 | BB20: =IFERROR(Forecasts!BA16,0) -> 44.26592103 | BC20: =IFERROR(Forecasts!BB16,0) -> 38.96492446 | BD20: =IFERROR(Forecasts!BC16,0) -> 30.08898084 | BE20: =IFERROR(Forecasts!BD16,0) -> 18.18370157 | BF20: =IFERROR(Forecasts!BE16,0) -> 0 | BG20: =IFERROR(Forecasts!BF16,0) -> 0 | BH20: =IFERROR(Forecasts!BG16,0) -> 0 | BI20: =IFERROR(Forecasts!BH16,0) -> 0 | BJ20: =IFERROR(Forecasts!BI16,0) -> 0 | BK20: =IFERROR(Forecasts!BJ16,0) -> 0 | BL20: =IFERROR(Forecasts!BK16,0) -> 0 | BM20: =IFERROR(Forecasts!BL16,0) -> 0 | BN20: =IFERROR(Forecasts!BM16,0) -> 0 | BO20: =IFERROR(Forecasts!BN16,0) -> 0 | BP20: =IFERROR(Forecasts!BO16,0) -> 0 | BQ20: =IFERROR(Forecasts!BP16,0) -> 0 | BR20: =IFERROR(Forecasts!BQ16,0) -> 0 | BS20: =IFERROR(Forecasts!BR16,0) -> 0 | BT20: =IFERROR(Forecasts!BS16,0) -> 0 | BU20: =IFERROR(Forecasts!BT16,0) -> 0 | BV20: =IFERROR(Forecasts!BU16,0) -> 0 | BW20: =IFERROR(Forecasts!BV16,0) -> 0 | BX20: =IFERROR(Forecasts!BW16,0) -> 0 | BY20: =IFERROR(Forecasts!BX16,0) -> 0 | BZ20: =IFERROR(Forecasts!BY16,0) -> 0 | CA20: =IFERROR(Forecasts!BZ16,0) -> 0 | CB20: =IFERROR(Forecasts!CA16,0) -> 0 | CC20: =IFERROR(Forecasts!CB16,0) -> 0 | CD20: =IFERROR(Forecasts!CC16,0) -> 0 | CE20: =IFERROR(Forecasts!CD16,0) -> 0 | CF20: =IFERROR(Forecasts!CE16,0) -> 0 | CG20: =IFERROR(Forecasts!CF16,0) -> 0 | CH20: =IFERROR(Forecasts!CG16,0) -> 0 | CI20: =IFERROR(Forecasts!CH16,0) -> 0 | CJ20: =IFERROR(Forecasts!CI16,0) -> 0 | CK20: =IFERROR(Forecasts!CJ16,0) -> 0 | CL20: =IFERROR(Forecasts!CK16,0) -> 0 | CM20: =IFERROR(Forecasts!CL16,0) -> 0
A21: ATCO | K21: =SUM(K16:K20) -> 26882.42722 | L21: =SUM(L16:L20) -> 28012.56404 | M21: 27375.30216 | N21: 28231.02783 | O21: 27475.60174 | P21: 28226.88538 | Q21: 28189.6661 | R21: 28488.22 | S21: 28289.93598 | T21: 28099.92648 | U21: 26582.38047 | V21: 25771.29935 | W21: 25388.21083 | X21: 24950.16505 | Y21: 24476.93932 | Z21: 24251.06126 | AA21: 23666.8248 | AB21: 22862.90788 | AC21: 21789.7586 | AD21: 20209.6281 | AE21: 18454.20263 | AF21: 16632.96608 | AG21: 14673.81925 | AH21: 12724.77255 | AI21: 10869.51715 | AJ21: 9442.89713 | AK21: 8096.777804 | AL21: 6811.790863 | AM21: 5675.048385 | AN21: 4604.444236 | AO21: 3659.847567 | AP21: 2852.771783 | AQ21: 2234.041257 | AR21: 2039.408612 | AS21: 1896.6543 | AT21: 1858.801648 | AU21: 1842.292491 | AV21: 1831.326436 | AW21: 1786.008251 | AX21: 1409.437732 | AY21: 1336.332479 | AZ21: 1307.580027 | BA21: 1252.549449 | BB21: 1242.529548 | BC21: 1136.733937 | BD21: 959.9780185 | BE21: 725.5201824 | BF21: 378.5942974 | BG21: 400.1419136 | BH21: 388.4771728 | BI21: 376.9233428 | BJ21: 365.479215 | BK21: 354.1436039 | BL21: 342.9153465 | BM21: 331.7933011 | BN21: 321.3137748 | BO21: 311.4586451 | BP21: 301.6634815 | BQ21: 291.9279919 | BR21: 282.2518889 | BS21: 272.63489 | BT21: 263.0767173 | BU21: 253.5770971 | BV21: 244.1357598 | BW21: 234.7524397 | BX21: =SUM(BX16:BX20) -> 225.4268747 | BY21: 216.1588064 | BZ21: 206.9479795 | CA21: 197.7941418 | CB21: 188.6970444 | CC21: 179.6564409 | CD21: 170.6720878 | CE21: 161.743744 | CF21: 152.871171 | CG21: 144.0541323 | CH21: 135.2923941 | CI21: 126.585724 | CJ21: 117.9338921 | CK21: 109.3366702 | CL21: 100.7938316 | CM21: 92.30515149

Sheet Forecasts
A1: Forecasts | B1: 2012 | C1: 2013 | D1: 2014 | E1: 2015 | F1: 2016 | G1: 2017 | H1: 2018 | I1: 2019 | J1: 2020 | K1: 2021 | L1: 2022 | M1: 2023 | N1: 2024 | O1: 2025 | P1: 2026 | Q1: 2027 | R1: 2028 | S1: 2029 | T1: 2030 | U1: 2031 | V1: 2032 | W1: 2033 | X1: 2034 | Y1: 2035 | Z1: 2036 | AA1: 2037 | AB1: 2038 | AC1: 2039 | AD1: 2040 | AE1: 2041 | AF1: 2042 | AG1: 2043 | AH1: 2044 | AI1: 2045 | AJ1: 2046 | AK1: 2047 | AL1: 2048 | AM1: 2049 | AN1: 2050 | AO1: 2051 | AP1: 2052 | AQ1: 2053 | AR1: 2054 | AS1: 2055 | AT1: 2056 | AU1: 2057 | AV1: 2058 | AW1: 2059 | AX1: 2060 | AY1: 2061 | AZ1: 2062 | BA1: 2063 | BB1: 2064 | BC1: 2065 | BD1: 2066 | BE1: 2067 | BF1: 2068 | BG1: 2069 | BH1: 2070 | BI1: 2071 | BJ1: 2072 | BK1: 2073 | BL1: 2074 | BM1: 2075 | BN1: 2076 | BO1: 2077 | BP1: 2078 | BQ1: 2079 | BR1: 2080 | BS1: 2081 | BT1: 2082 | BU1: 2083 | BV1: 2084 | BW1: 2085 | BX1: 2086 | BY1: 2087 | BZ1: 2088 | CA1: 2089 | CB1: 2090 | CC1: 2091 | CD1: 2092 | CE1: 2093 | CF1: 2094 | CG1: 2095 | CH1: 2096 | CI1: 2097 | CJ1: 2098 | CK1: 2099 | CL1: 2100
T2: 0 | U2: =T2+1 -> 1 | V2: =U2+1 -> 2 | W2: 3 | X2: 4 | Y2: 5 | Z2: 6 | AA2: 7 | AB2: 8 | AC2: 9 | AD2: 10 | AE2: 11 | AF2: 12 | AG2: 13 | AH2: 14 | AI2: 15 | AJ2: 16 | AK2: 17 | AL2: 18 | AM2: 19 | AN2: 20 | AO2: 21 | AP2: 22 | AQ2: 23 | AR2: 24 | AS2: 25 | AT2: 26 | AU2: 27 | AV2: 28 | AW2: 29 | AX2: 30 | AY2: 31 | AZ2: 32 | BA2: 33 | BB2: 34 | BC2: 35 | BD2: 36 | BE2: 37 | BF2: 38 | BG2: 39 | BH2: 40 | BI2: 41 | BJ2: 42 | BK2: 43 | BL2: 44 | BM2: 45 | BN2: 46 | BO2: 47 | BP2: 48 | BQ2: 49 | BR2: 50 | BS2: 51 | BT2: 52 | BU2: 53 | BV2: 54 | BW2: 55 | BX2: 56 | BY2: 57 | BZ2: 58 | CA2: 59 | CB2: 60 | CC2: 61 | CD2: 62 | CE2: 63 | CF2: 64 | CG2: 65 | CH2: =CG2+1 -> 66 | CI2: 67 | CJ2: 68 | CK2: 69 | CL2: 70
A3: Residential Forecasts | T3: Forecasts -->
A4: Residential GJ per customer B3 | B4: ='DNSP data'!B27 -> 15.43818797 | C4: ='DNSP data'!C27 -> 15.19346378 | D4: ='DNSP data'!D27 -> 14.57145372 | E4: ='DNSP data'!E27 -> 14.36557419 | F4: ='DNSP data'!F27 -> 14.62170742 | G4: ='DNSP data'!G27 -> 13.83979068 | H4: ='DNSP data'!H27 -> 13.82257411 | I4: ='DNSP data'!I27 -> 13.46645231 | J4: ='DNSP data'!J27 -> 13.83523631 | K4: ='DNSP data'!K27 -> 13.82472618 | L4: ='DNSP data'!L27 -> 13.30196921 | M4: ='DNSP data'!M27 -> 13.26348661 | N4: ='DNSP data'!N27 -> 12.68202426 | O4: ='DNSP data'!O27 -> 12.24030663 | P4: ='DNSP data'!P27 -> 11.85096076 | Q4: ='DNSP data'!Q27 -> 11.49232804 | R4: ='DNSP data'!R27 -> 11.16207218 | S4: ='DNSP data'!S27 -> 10.85596941 | T4: =IFERROR(MAX(S4+S4*Control!$H$8*Prices!AJ$15+ S4*Control!$H$9*Prices!AJ$17+Control!$H$10*(1+Control!$H$11)^T2,0),0) -> 10.43652066 | U4: =IFERROR(MAX(T4+T4*Control!$H$8*Prices!AK$15+ T4*Control!$H$9*Prices!AK$17+Control!$H$10*(1+Control!$H$11)^U2,0),0) -> 10.06262341 | V4: =IFERROR(MAX(U4+U4*Control!$H$8*Prices!AL$15+ U4*Control!$H$9*Prices!AL$17+Control!$H$10*(1+Control!$H$11)^V2,0),0) -> 9.909768327 | W4: =IFERROR(MAX(V4+V4*Control!$H$8*Prices!AM$15+ V4*Control!$H$9*Prices!AM$17+Control!$H$10*(1+Control!$H$11)^W2,0),0) -> 9.783481607 | X4: =IFERROR(MAX(W4+W4*Control!$H$8*Prices!AN$15+ W4*Control!$H$9*Prices!AN$17+Control!$H$10*(1+Control!$H$11)^X2,0),0) -> 9.646255693 | Y4: =IFERROR(MAX(X4+X4*Control!$H$8*Prices!AO$15+ X4*Control!$H$9*Prices!AO$17+Control!$H$10*(1+Control!$H$11)^Y2,0),0) -> 9.561521068 | Z4: =IFERROR(MAX(Y4+Y4*Control!$H$8*Prices!AP$15+ Y4*Control!$H$9*Prices!AP$17+Control!$H$10*(1+Control!$H$11)^Z2,0),0) -> 9.415608419 | AA4: =IFERROR(MAX(Z4+Z4*Control!$H$8*Prices!AQ$15+ Z4*Control!$H$9*Prices!AQ$17+Control!$H$10*(1+Control!$H$11)^AA2,0),0) -> 9.257899871 | AB4: =IFERROR(MAX(AA4+AA4*Control!$H$8*Prices!AR$15+ AA4*Control!$H$9*Prices!AR$17+Control!$H$10*(1+Control!$H$11)^AB2,0),0) -> 9.088191779 | AC4: =IFERROR(MAX(AB4+AB4*Control!$H$8*Prices!AS$15+ AB4*Control!$H$9*Prices!AS$17+Control!$H$10*(1+Control!$H$11)^AC2,0),0) -> 8.894518044 | AD4: =IFERROR(MAX(AC4+AC4*Control!$H$8*Prices!AT$15+ AC4*Control!$H$9*Prices!AT$17+Control!$H$10*(1+Control!$H$11)^AD2,0),0) -> 8.71307642 | AE4: =IFERROR(MAX(AD4+AD4*Control!$H$8*Prices!AU$15+ AD4*Control!$H$9*Prices!AU$17+Control!$H$10*(1+Control!$H$11)^AE2,0),0) -> 8.588116951 | AF4: =IFERROR(MAX(AE4+AE4*Control!$H$8*Prices!AV$15+ AE4*Control!$H$9*Prices!AV$17+Control!$H$10*(1+Control!$H$11)^AF2,0),0) -> 8.388553614 | AG4: =IFERROR(MAX(AF4+AF4*Control!$H$8*Prices!AW$15+ AF4*Control!$H$9*Prices!AW$17+Control!$H$10*(1+Control!$H$11)^AG2,0),0) -> 8.172267622 | AH4: =IFERROR(MAX(AG4+AG4*Control!$H$8*Prices!AX$15+ AG4*Control!$H$9*Prices!AX$17+Control!$H$10*(1+Control!$H$11)^AH2,0),0) -> 7.93895796 | AI4: =IFERROR(MAX(AH4+AH4*Control!$H$8*Prices!AY$15+ AH4*Control!$H$9*Prices!AY$17+Control!$H$10*(1+Control!$H$11)^AI2,0),0) -> 7.694974759 | AJ4: =IFERROR(MAX(AI4+AI4*Control!$H$8*Prices!AZ$15+ AI4*Control!$H$9*Prices!AZ$17+Control!$H$10*(1+Control!$H$11)^AJ2,0),0) -> 7.447574139 | AK4: =IFERROR(MAX(AJ4+AJ4*Control!$H$8*Prices!BA$15+ AJ4*Control!$H$9*Prices!BA$17+Control!$H$10*(1+Control!$H$11)^AK2,0),0) -> 7.187852645 | AL4: =IFERROR(MAX(AK4+AK4*Control!$H$8*Prices!BB$15+ AK4*Control!$H$9*Prices!BB$17+Control!$H$10*(1+Control!$H$11)^AL2,0),0) -> 7.003134321 | AM4: =IFERROR(MAX(AL4+AL4*Control!$H$8*Prices!BC$15+ AL4*Control!$H$9*Prices!BC$17+Control!$H$10*(1+Control!$H$11)^AM2,0),0) -> 6.94292599 | AN4: =IFERROR(MAX(AM4+AM4*Control!$H$8*Prices!BD$15+ AM4*Control!$H$9*Prices!BD$17+Control!$H$10*(1+Control!$H$11)^AN2,0),0) -> 6.953393129 | AO4: =IFERROR(MAX(AN4+AN4*Control!$H$8*Prices!BE$15+ AN4*Control!$H$9*Prices!BE$17+Control!$H$10*(1+Control!$H$11)^AO2,0),0) -> 6.940391518 | AP4: =IFERROR(MAX(AO4+AO4*Control!$H$8*Prices!BF$15+ AO4*Control!$H$9*Prices!BF$17+Control!$H$10*(1+Control!$H$11)^AP2,0),0) -> 6.83120493 | AQ4: =IFERROR(MAX(AP4+AP4*Control!$H$8*Prices!BG$15+ AP4*Control!$H$9*Prices!BG$17+Control!$H$10*(1+Control!$H$11)^AQ2,0),0) -> 6.652734202 | AR4: =IFERROR(MAX(AQ4+AQ4*Control!$H$8*Prices!BH$15+ AQ4*Control!$H$9*Prices!BH$17+Control!$H$10*(1+Control!$H$11)^AR2,0),0) -> 6.473276272 | AS4: =IFERROR(MAX(AR4+AR4*Control!$H$8*Prices!BI$15+ AR4*Control!$H$9*Prices!BI$17+Control!$H$10*(1+Control!$H$11)^AS2,0),0) -> 6.368395077 | AT4: =IFERROR(MAX(AS4+AS4*Control!$H$8*Prices!BJ$15+ AS4*Control!$H$9*Prices!BJ$17+Control!$H$10*(1+Control!$H$11)^AT2,0),0) -> 6.349509448 | AU4: =IFERROR(MAX(AT4+AT4*Control!$H$8*Prices!BK$15+ AT4*Control!$H$9*Prices!BK$17+Control!$H$10*(1+Control!$H$11)^AU2,0),0) -> 6.348118338 | AV4: =IFERROR(MAX(AU4+AU4*Control!$H$8*Prices!BL$15+ AU4*Control!$H$9*Prices!BL$17+Control!$H$10*(1+Control!$H$11)^AV2,0),0) -> 6.263227237 | AW4: =IFERROR(MAX(AV4+AV4*Control!$H$8*Prices!BM$15+ AV4*Control!$H$9*Prices!BM$17+Control!$H$10*(1+Control!$H$11)^AW2,0),0) -> 6.072667693 | AX4: =IFERROR(MAX(AW4+AW4*Control!$H$8*Prices!BN$15+ AW4*Control!$H$9*Prices!BN$17+Control!$H$10*(1+Control!$H$11)^AX2,0),0) -> 5.896474383 | AY4: =IFERROR(MAX(AX4+AX4*Control!$H$8*Prices!BO$15+ AX4*Control!$H$9*Prices!BO$17+Control!$H$10*(1+Control!$H$11)^AY2,0),0) -> 5.793567773 | AZ4: =IFERROR(MAX(AY4+AY4*Control!$H$8*Prices!BP$15+ AY4*Control!$H$9*Prices!BP$17+Control!$H$10*(1+Control!$H$11)^AZ2,0),0) -> 5.773223727 | BA4: =IFERROR(MAX(AZ4+AZ4*Control!$H$8*Prices!BQ$15+ AZ4*Control!$H$9*Prices!BQ$17+Control!$H$10*(1+Control!$H$11)^BA2,0),0) -> 5.763286388 | BB4: =IFERROR(MAX(BA4+BA4*Control!$H$8*Prices!BR$15+ BA4*Control!$H$9*Prices!BR$17+Control!$H$10*(1+Control!$H$11)^BB2,0),0) -> 5.67662542 | BC4: =IFERROR(MAX(BB4+BB4*Control!$H$8*Prices!BS$15+ BB4*Control!$H$9*Prices!BS$17+Control!$H$10*(1+Control!$H$11)^BC2,0),0) -> 5.502318558 | BD4: =IFERROR(MAX(BC4+BC4*Control!$H$8*Prices!BT$15+ BC4*Control!$H$9*Prices!BT$17+Control!$H$10*(1+Control!$H$11)^BD2,0),0) -> 5.332239739 | BE4: =IFERROR(MAX(BD4+BD4*Control!$H$8*Prices!BU$15+ BD4*Control!$H$9*Prices!BU$17+Control!$H$10*(1+Control!$H$11)^BE2,0),0) -> 5.223108783 | BF4: =IFERROR(MAX(BE4+BE4*Control!$H$8*Prices!BV$15+ BE4*Control!$H$9*Prices!BV$17+Control!$H$10*(1+Control!$H$11)^BF2,0),0) -> 6.428329426 | BG4: =IFERROR(MAX(BF4+BF4*Control!$H$8*Prices!BW$15+ BF4*Control!$H$9*Prices!BW$17+Control!$H$10*(1+Control!$H$11)^BG2,0),0) -> 0 | BH4: =IFERROR(MAX(BG4+BG4*Control!$H$8*Prices!BX$15+ BG4*Control!$H$9*Prices!BX$17+Control!$H$10*(1+Control!$H$11)^BH2,0),0) -> 0 | BI4: =IFERROR(MAX(BH4+BH4*Control!$H$8*Prices!BY$15+ BH4*Control!$H$9*Prices!BY$17+Control!$H$10*(1+Control!$H$11)^BI2,0),0) -> 0 | BJ4: =IFERROR(MAX(BI4+BI4*Control!$H$8*Prices!BZ$15+ BI4*Control!$H$9*Prices!BZ$17+Control!$H$10*(1+Control!$H$11)^BJ2,0),0) -> 0 | BK4: =IFERROR(MAX(BJ4+BJ4*Control!$H$8*Prices!CA$15+ BJ4*Control!$H$9*Prices!CA$17+Control!$H$10*(1+Control!$H$11)^BK2,0),0) -> 0 | BL4: =IFERROR(MAX(BK4+BK4*Control!$H$8*Prices!CB$15+ BK4*Control!$H$9*Prices!CB$17+Control!$H$10*(1+Control!$H$11)^BL2,0),0) -> 0 | BM4: =IFERROR(MAX(BL4+BL4*Control!$H$8*Prices!CC$15+ BL4*Control!$H$9*Prices!CC$17+Control!$H$10*(1+Control!$H$11)^BM2,0),0) -> 0 | BN4: =IFERROR(MAX(BM4+BM4*Control!$H$8*Prices!CD$15+ BM4*Control!$H$9*Prices!CD$17+Control!$H$10*(1+Control!$H$11)^BN2,0),0) -> 0 | BO4: =IFERROR(MAX(BN4+BN4*Control!$H$8*Prices!CE$15+ BN4*Control!$H$9*Prices!CE$17+Control!$H$10*(1+Control!$H$11)^BO2,0),0) -> 0 | BP4: =IFERROR(MAX(BO4+BO4*Control!$H$8*Prices!CF$15+ BO4*Control!$H$9*Prices!CF$17+Control!$H$10*(1+Control!$H$11)^BP2,0),0) -> 0 | BQ4: =IFERROR(MAX(BP4+BP4*Control!$H$8*Prices!CG$15+ BP4*Control!$H$9*Prices!CG$17+Control!$H$10*(1+Control!$H$11)^BQ2,0),0) -> 0 | BR4: =IFERROR(MAX(BQ4+BQ4*Control!$H$8*Prices!CH$15+ BQ4*Control!$H$9*Prices!CH$17+Control!$H$10*(1+Control!$H$11)^BR2,0),0) -> 0 | BS4: =IFERROR(MAX(BR4+BR4*Control!$H$8*Prices!CI$15+ BR4*Control!$H$9*Prices!CI$17+Control!$H$10*(1+Control!$H$11)^BS2,0),0) -> 0 | BT4: =IFERROR(MAX(BS4+BS4*Control!$H$8*Prices!CJ$15+ BS4*Control!$H$9*Prices!CJ$17+Control!$H$10*(1+Control!$H$11)^BT2,0),0) -> 0 | BU4: =IFERROR(MAX(BT4+BT4*Control!$H$8*Prices!CK$15+ BT4*Control!$H$9*Prices!CK$17+Control!$H$10*(1+Control!$H$11)^BU2,0),0) -> 0 | BV4: =IFERROR(MAX(BU4+BU4*Control!$H$8*Prices!CL$15+ BU4*Control!$H$9*Prices!CL$17+Control!$H$10*(1+Control!$H$11)^BV2,0),0) -> 0 | BW4: =IFERROR(MAX(BV4+BV4*Control!$H$8*Prices!CM$15+ BV4*Control!$H$9*Prices!CM$17+Control!$H$10*(1+Control!$H$11)^BW2,0),0) -> 0 | BX4: =IFERROR(MAX(BW4+BW4*Control!$H$8*Prices!CN$15+ BW4*Control!$H$9*Prices!CN$17+Control!$H$10*(1+Control!$H$11)^BX2,0),0) -> 0 | BY4: =IFERROR(MAX(BX4+BX4*Control!$H$8*Prices!CO$15+ BX4*Control!$H$9*Prices!CO$17+Control!$H$10*(1+Control!$H$11)^BY2,0),0) -> 0 | BZ4: =IFERROR(MAX(BY4+BY4*Control!$H$8*Prices!CP$15+ BY4*Control!$H$9*Prices!CP$17+Control!$H$10*(1+Control!$H$11)^BZ2,0),0) -> 0 | CA4: =IFERROR(MAX(BZ4+BZ4*Control!$H$8*Prices!CQ$15+ BZ4*Control!$H$9*Prices!CQ$17+Control!$H$10*(1+Control!$H$11)^CA2,0),0) -> 0 | CB4: =IFERROR(MAX(CA4+CA4*Control!$H$8*Prices!CR$15+ CA4*Control!$H$9*Prices!CR$17+Control!$H$10*(1+Control!$H$11)^CB2,0),0) -> 0 | CC4: =IFERROR(MAX(CB4+CB4*Control!$H$8*Prices!CS$15+ CB4*Control!$H$9*Prices!CS$17+Control!$H$10*(1+Control!$H$11)^CC2,0),0) -> 0 | CD4: =IFERROR(MAX(CC4+CC4*Control!$H$8*Prices!CT$15+ CC4*Control!$H$9*Prices!CT$17+Control!$H$10*(1+Control!$H$11)^CD2,0),0) -> 0 | CE4: =IFERROR(MAX(CD4+CD4*Control!$H$8*Prices!CU$15+ CD4*Control!$H$9*Prices!CU$17+Control!$H$10*(1+Control!$H$11)^CE2,0),0) -> 0 | CF4: =IFERROR(MAX(CE4+CE4*Control!$H$8*Prices!CV$15+ CE4*Control!$H$9*Prices!CV$17+Control!$H$10*(1+Control!$H$11)^CF2,0),0) -> 0 | CG4: =IFERROR(MAX(CF4+CF4*Control!$H$8*Prices!CW$15+ CF4*Control!$H$9*Prices!CW$17+Control!$H$10*(1+Control!$H$11)^CG2,0),0) -> 0 | CH4: =IFERROR(MAX(CG4+CG4*Control!$H$8*Prices!CX$15+ CG4*Control!$H$9*Prices!CX$17+Control!$H$10*(1+Control!$H$11)^CH2,0),0) -> 0 | CI4: =IFERROR(MAX(CH4+CH4*Control!$H$8*Prices!CY$15+ CH4*Control!$H$9*Prices!CY$17+Control!$H$10*(1+Control!$H$11)^CI2,0),0) -> 0 | CJ4: =IFERROR(MAX(CI4+CI4*Control!$H$8*Prices!CZ$15+ CI4*Control!$H$9*Prices!CZ$17+Control!$H$10*(1+Control!$H$11)^CJ2,0),0) -> 0 | CK4: =IFERROR(MAX(CJ4+CJ4*Control!$H$8*Prices!DA$15+ CJ4*Control!$H$9*Prices!DA$17+Control!$H$10*(1+Control!$H$11)^CK2,0),0) -> 0 | CL4: =IFERROR(MAX(CK4+CK4*Control!$H$8*Prices!DB$15+ CK4*Control!$H$9*Prices!DB$17+Control!$H$10*(1+Control!$H$11)^CL2,0),0) -> 0
A5: Residential customers | B5: =CustomersRes!B2 -> 642286 | C5: =CustomersRes!C2 -> 657322 | D5: =CustomersRes!D2 -> 675990 | E5: =CustomersRes!E2 -> 697831 | F5: =CustomersRes!F2 -> 713194 | G5: =CustomersRes!G2 -> 724627 | H5: =CustomersRes!H2 -> 732627 | I5: =CustomersRes!I2 -> 741437 | J5: =CustomersRes!J2 -> 746639 | K5: =CustomersRes!K2 -> 756154 | L5: =CustomersRes!L2 -> 767161 | M5: =CustomersRes!M2 -> 778476 | N5: =CustomersRes!N2 -> 784780 | O5: =CustomersRes!O2 -> 791959 | P5: =CustomersRes!P2 -> 800769 | Q5: =CustomersRes!Q2 -> 810484 | R5: =CustomersRes!R2 -> 820622 | S5: =CustomersRes!S2 -> 831004 | T5: =IFERROR(MAX(CustomersRes!T2*Scenarios!K8,0),0) -> 839045.1848 | U5: =IFERROR(MAX(CustomersRes!U2*Scenarios!L8,0),0) -> 832789.8131 | V5: =IFERROR(MAX(CustomersRes!V2*Scenarios!M8,0),0) -> 824047.2118 | W5: =IFERROR(MAX(CustomersRes!W2*Scenarios!N8,0),0) -> 814207.8324 | X5: =IFERROR(MAX(CustomersRes!X2*Scenarios!O8,0),0) -> 801801.8426 | Y5: =IFERROR(MAX(CustomersRes!Y2*Scenarios!P8,0),0) -> 790208.9956 | Z5: =IFERROR(MAX(CustomersRes!Z2*Scenarios!Q8,0),0) -> 774736.2015 | AA5: =IFERROR(MAX(CustomersRes!AA2*Scenarios!R8,0),0) -> 753153.2039 | AB5: =IFERROR(MAX(CustomersRes!AB2*Scenarios!S8,0),0) -> 723194.2217 | AC5: =IFERROR(MAX(CustomersRes!AC2*Scenarios!T8,0),0) -> 676424.0837 | AD5: =IFERROR(MAX(CustomersRes!AD2*Scenarios!U8,0),0) -> 620397.6722 | AE5: =IFERROR(MAX(CustomersRes!AE2*Scenarios!V8,0),0) -> 557561.161 | AF5: =IFERROR(MAX(CustomersRes!AF2*Scenarios!W8,0),0) -> 493463.4286 | AG5: =IFERROR(MAX(CustomersRes!AG2*Scenarios!X8,0),0) -> 428999.2676 | AH5: =IFERROR(MAX(CustomersRes!AH2*Scenarios!Y8,0),0) -> 367027.0703 | AI5: =IFERROR(MAX(CustomersRes!AI2*Scenarios!Z8,0),0) -> 319571.3675 | AJ5: =IFERROR(MAX(CustomersRes!AJ2*Scenarios!AA8,0),0) -> 274781.9963 | AK5: =IFERROR(MAX(CustomersRes!AK2*Scenarios!AB8,0),0) -> 231258.8247 | AL5: =IFERROR(MAX(CustomersRes!AL2*Scenarios!AC8,0),0) -> 190468.0412 | AM5: =IFERROR(MAX(CustomersRes!AM2*Scenarios!AD8,0),0) -> 149019.2626 | AN5: =IFERROR(MAX(CustomersRes!AN2*Scenarios!AE8,0),0) -> 111607.9894 | AO5: =IFERROR(MAX(CustomersRes!AO2*Scenarios!AF8,0),0) -> 80448.87904 | AP5: =IFERROR(MAX(CustomersRes!AP2*Scenarios!AG8,0),0) -> 57784.1733 | AQ5: =IFERROR(MAX(CustomersRes!AQ2*Scenarios!AH8,0),0) -> 52016.59345 | AR5: =IFERROR(MAX(CustomersRes!AR2*Scenarios!AI8,0),0) -> 48347.93039 | AS5: =IFERROR(MAX(CustomersRes!AS2*Scenarios!AJ8,0),0) -> 48164.20826 | AT5: =IFERROR(MAX(CustomersRes!AT2*Scenarios!AK8,0),0) -> 47981.18426 | AU5: =IFERROR(MAX(CustomersRes!AU2*Scenarios!AL8,0),0) -> 47798.85576 | AV5: =IFERROR(MAX(CustomersRes!AV2*Scenarios!AM8,0),0) -> 46889.22011 | AW5: =IFERROR(MAX(CustomersRes!AW2*Scenarios!AN8,0),0) -> 33807.04108 | AX5: =IFERROR(MAX(CustomersRes!AX2*Scenarios!AO8,0),0) -> 32405.57432 | AY5: =IFERROR(MAX(CustomersRes!AY2*Scenarios!AP8,0),0) -> 32230.43314 | AZ5: =IFERROR(MAX(CustomersRes!AZ2*Scenarios!AQ8,0),0) -> 30419.95749 | BA5: =IFERROR(MAX(CustomersRes!BA2*Scenarios!AR8,0),0) -> 30304.36165 | BB5: =IFERROR(MAX(CustomersRes!BB2*Scenarios!AS8,0),0) -> 26875.20508 | BC5: =IFERROR(MAX(CustomersRes!BC2*Scenarios!AT8,0),0) -> 21087.0793 | BD5: =IFERROR(MAX(CustomersRes!BD2*Scenarios!AU8,0),0) -> 12936.9484 | BE5: =IFERROR(MAX(CustomersRes!BE2*Scenarios!AV8,0),0) -> 0 | BF5: =IFERROR(MAX(CustomersRes!BF2*Scenarios!AW8,0),0) -> 0 | BG5: =IFERROR(MAX(CustomersRes!BG2*Scenarios!AX8,0),0) -> 0 | BH5: =IFERROR(MAX(CustomersRes!BH2*Scenarios!AY8,0),0) -> 0 | BI5: =IFERROR(MAX(CustomersRes!BI2*Scenarios!AZ8,0),0) -> 0 | BJ5: =IFERROR(MAX(CustomersRes!BJ2*Scenarios!BA8,0),0) -> 0 | BK5: =IFERROR(MAX(CustomersRes!BK2*Scenarios!BB8,0),0) -> 0 | BL5: =IFERROR(MAX(CustomersRes!BL2*Scenarios!BC8,0),0) -> 0 | BM5: =IFERROR(MAX(CustomersRes!BM2*Scenarios!BD8,0),0) -> 0 | BN5: =IFERROR(MAX(CustomersRes!BN2*Scenarios!BE8,0),0) -> 0 | BO5: =IFERROR(MAX(CustomersRes!BO2*Scenarios!BF8,0),0) -> 0 | BP5: =IFERROR(MAX(CustomersRes!BP2*Scenarios!BG8,0),0) -> 0 | BQ5: =IFERROR(MAX(CustomersRes!BQ2*Scenarios!BH8,0),0) -> 0 | BR5: =IFERROR(MAX(CustomersRes!BR2*Scenarios!BI8,0),0) -> 0 | BS5: =IFERROR(MAX(CustomersRes!BS2*Scenarios!BJ8,0),0) -> 0 | BT5: =IFERROR(MAX(CustomersRes!BT2*Scenarios!BK8,0),0) -> 0 | BU5: =IFERROR(MAX(CustomersRes!BU2*Scenarios!BL8,0),0) -> 0 | BV5: =IFERROR(MAX(CustomersRes!BV2*Scenarios!BM8,0),0) -> 0 | BW5: =IFERROR(MAX(CustomersRes!BW2*Scenarios!BN8,0),0) -> 0 | BX5: =IFERROR(MAX(CustomersRes!BX2*Scenarios!BO8,0),0) -> 0 | BY5: =IFERROR(MAX(CustomersRes!BY2*Scenarios!BP8,0),0) -> 0 | BZ5: =IFERROR(MAX(CustomersRes!BZ2*Scenarios!BQ8,0),0) -> 0 | CA5: =IFERROR(MAX(CustomersRes!CA2*Scenarios!BR8,0),0) -> 0 | CB5: =IFERROR(MAX(CustomersRes!CB2*Scenarios!BS8,0),0) -> 0 | CC5: =IFERROR(MAX(CustomersRes!CC2*Scenarios!BT8,0),0) -> 0 | CD5: =IFERROR(MAX(CustomersRes!CD2*Scenarios!BU8,0),0) -> 0 | CE5: =IFERROR(MAX(CustomersRes!CE2*Scenarios!BV8,0),0) -> 0 | CF5: =IFERROR(MAX(CustomersRes!CF2*Scenarios!BW8,0),0) -> 0 | CG5: =IFERROR(MAX(CustomersRes!CG2*Scenarios!BX8,0),0) -> 0 | CH5: =IFERROR(MAX(CustomersRes!CH2*Scenarios!BY8,0),0) -> 0 | CI5: =IFERROR(MAX(CustomersRes!CI2*Scenarios!BZ8,0),0) -> 0 | CJ5: =IFERROR(MAX(CustomersRes!CJ2*Scenarios!CA8,0),0) -> 0 | CK5: =IFERROR(MAX(CustomersRes!CK2*Scenarios!CB8,0),0) -> 0 | CL5: =IFERROR(MAX(CustomersRes!CL2*Scenarios!CC8,0),0) -> 0
A6: Total residential volume B3 (TJ) | B6: =B4*B5/1000 -> 9915.732 | C6: 9986.998 | D6: 9850.157 | E6: 10024.743 | F6: 10428.114 | G6: 10028.686 | H6: 10126.791 | I6: 9984.526 | J6: 10329.927 | K6: 10453.622 | L6: 10204.752 | M6: 10325.306 | N6: 9952.599 | O6: 9693.821 | P6: 9489.882 | Q6: 9314.348 | R6: 9159.842 | S6: 9021.354 | T6: 8756.712408 | U6: 8380.050269 | V6: 8166.11696 | W6: 7965.787352 | X6: 7734.385589 | Y6: 7555.59996 | Z6: 7294.612701 | AA6: 6972.616949 | AB6: 6572.52778 | AC6: 6016.466218 | AD6: 5405.572328 | AE6: 4788.400458 | AF6: 4139.444427 | AG6: 3505.896824 | AH6: =AH4*AH5/1000 -> 2913.812482 | AI6: 2459.093606 | AJ6: 2046.459289 | AK6: 1662.254355 | AL6: 1333.873276 | AM6: 1034.629711 | AN6: 776.0542267 | AO6: 558.3467178 | AP6: 394.7355295 | AQ6: 346.0525703 | AR6: 312.9695106 | AS6: 306.7287068 | AT6: 304.6569828 | AU6: 303.4327928 | AV6: 293.6778405 | AW6: 205.2989261 | AX6: 191.0786389 | AY6: 186.7291987 | AZ6: 175.6212204 | BA6: 174.652715 | BB6: 152.5604723 | BC6: 116.0278278 | BD6: 68.98291035 | BE6: 0 | BF6: 0 | BG6: 0 | BH6: 0 | BI6: 0 | BJ6: 0 | BK6: 0 | BL6: 0 | BM6: 0 | BN6: =BN4*BN5/1000 -> 0 | BO6: 0 | BP6: 0 | BQ6: 0 | BR6: 0 | BS6: 0 | BT6: 0 | BU6: 0 | BV6: 0 | BW6: 0 | BX6: 0 | BY6: 0 | BZ6: 0 | CA6: 0 | CB6: 0 | CC6: 0 | CD6: 0 | CE6: 0 | CF6: 0 | CG6: 0 | CH6: 0 | CI6: 0 | CJ6: 0 | CK6: 0 | CL6: 0
A8: Commercial GJ per customer B2 | B8: ='DNSP data'!B29 -> 131.2800129 | C8: ='DNSP data'!C29 -> 125.3435106 | D8: ='DNSP data'!D29 -> 123.0948686 | E8: ='DNSP data'!E29 -> 119.6811379 | F8: ='DNSP data'!F29 -> 116.2120591 | G8: ='DNSP data'!G29 -> 115.017248 | H8: ='DNSP data'!H29 -> 113.6029865 | I8: ='DNSP data'!I29 -> 109.6301059 | J8: ='DNSP data'!J29 -> 103.0855764 | K8: ='DNSP data'!K29 -> 107.0213127 | L8: ='DNSP data'!L29 -> 103.421461 | M8: ='DNSP data'!M29 -> 104.4667051 | N8: ='DNSP data'!N29 -> 101.461906 | O8: ='DNSP data'!O29 -> 99.26604778 | P8: ='DNSP data'!P29 -> 97.11772403 | Q8: ='DNSP data'!Q29 -> 95.01590536 | R8: ='DNSP data'!R29 -> 92.72651215 | S8: ='DNSP data'!S29 -> 90.7244672 | T8: =IFERROR(MAX(S8+S8*Control!$I$8*Prices!AJ$16 + S8*Control!$I$9*Prices!AJ$18+Control!$I$10*(1+Control!$I$11)^Forecasts!T2,0),0) -> 85.55750911 | U8: =IFERROR(MAX(T8+T8*Control!$I$8*Prices!AK$16 + T8*Control!$I$9*Prices!AK$18+Control!$I$10*(1+Control!$I$11)^Forecasts!U2,0),0) -> 83.04228643 | V8: =IFERROR(MAX(U8+U8*Control!$I$8*Prices!AL$16 + U8*Control!$I$9*Prices!AL$18+Control!$I$10*(1+Control!$I$11)^Forecasts!V2,0),0) -> 81.77638093 | W8: =IFERROR(MAX(V8+V8*Control!$I$8*Prices!AM$16 + V8*Control!$I$9*Prices!AM$18+Control!$I$10*(1+Control!$I$11)^Forecasts!W2,0),0) -> 80.34794167 | X8: =IFERROR(MAX(W8+W8*Control!$I$8*Prices!AN$16 + W8*Control!$I$9*Prices!AN$18+Control!$I$10*(1+Control!$I$11)^Forecasts!X2,0),0) -> 79.08943707 | Y8: =IFERROR(MAX(X8+X8*Control!$I$8*Prices!AO$16 + X8*Control!$I$9*Prices!AO$18+Control!$I$10*(1+Control!$I$11)^Forecasts!Y2,0),0) -> 78.54774771 | Z8: =IFERROR(MAX(Y8+Y8*Control!$I$8*Prices!AP$16 + Y8*Control!$I$9*Prices!AP$18+Control!$I$10*(1+Control!$I$11)^Forecasts!Z2,0),0) -> 77.2244318 | AA8: =IFERROR(MAX(Z8+Z8*Control!$I$8*Prices!AQ$16 + Z8*Control!$I$9*Prices!AQ$18+Control!$I$10*(1+Control!$I$11)^Forecasts!AA2,0),0) -> 75.75986129 | AB8: =IFERROR(MAX(AA8+AA8*Control!$I$8*Prices!AR$16 + AA8*Control!$I$9*Prices!AR$18+Control!$I$10*(1+Control!$I$11)^Forecasts!AB2,0),0) -> 74.19796356 | AC8: =IFERROR(MAX(AB8+AB8*Control!$I$8*Prices!AS$16 + AB8*Control!$I$9*Prices!AS$18+Control!$I$10*(1+Control!$I$11)^Forecasts!AC2,0),0) -> 72.51641067 | AD8: =IFERROR(MAX(AC8+AC8*Control!$I$8*Prices!AT$16 + AC8*Control!$I$9*Prices!AT$18+Control!$I$10*(1+Control!$I$11)^Forecasts!AD2,0),0) -> 71.08983003 | AE8: =IFERROR(MAX(AD8+AD8*Control!$I$8*Prices!AU$16 + AD8*Control!$I$9*Prices!AU$18+Control!$I$10*(1+Control!$I$11)^Forecasts!AE2,0),0) -> 70.03015339 | AF8: =IFERROR(MAX(AE8+AE8*Control!$I$8*Prices!AV$16 + AE8*Control!$I$9*Prices!AV$18+Control!$I$10*(1+Control!$I$11)^Forecasts!AF2,0),0) -> 68.51212309 | AG8: =IFERROR(MAX(AF8+AF8*Control!$I$8*Prices!AW$16 + AF8*Control!$I$9*Prices!AW$18+Control!$I$10*(1+Control!$I$11)^Forecasts!AG2,0),0) -> 66.94686059 | AH8: =IFERROR(MAX(AG8+AG8*Control!$I$8*Prices!AX$16 + AG8*Control!$I$9*Prices!AX$18+Control!$I$10*(1+Control!$I$11)^Forecasts!AH2,0),0) -> 65.32714303 | AI8: =IFERROR(MAX(AH8+AH8*Control!$I$8*Prices!AY$16 + AH8*Control!$I$9*Prices!AY$18+Control!$I$10*(1+Control!$I$11)^Forecasts!AI2,0),0) -> 63.73777117 | AJ8: =IFERROR(MAX(AI8+AI8*Control!$I$8*Prices!AZ$16 + AI8*Control!$I$9*Prices!AZ$18+Control!$I$10*(1+Control!$I$11)^Forecasts!AJ2,0),0) -> 61.98469908 | AK8: =IFERROR(MAX(AJ8+AJ8*Control!$I$8*Prices!BA$16 + AJ8*Control!$I$9*Prices!BA$18+Control!$I$10*(1+Control!$I$11)^Forecasts!AK2,0),0) -> 60.24451531 | AL8: =IFERROR(MAX(AK8+AK8*Control!$I$8*Prices!BB$16 + AK8*Control!$I$9*Prices!BB$18+Control!$I$10*(1+Control!$I$11)^Forecasts!AL2,0),0) -> 58.88155713 | AM8: =IFERROR(MAX(AL8+AL8*Control!$I$8*Prices!BC$16 + AL8*Control!$I$9*Prices!BC$18+Control!$I$10*(1+Control!$I$11)^Forecasts!AM2,0),0) -> 58.09514112 | AN8: =IFERROR(MAX(AM8+AM8*Control!$I$8*Prices!BD$16 + AM8*Control!$I$9*Prices!BD$18+Control!$I$10*(1+Control!$I$11)^Forecasts!AN2,0),0) -> 57.57920836 | AO8: =IFERROR(MAX(AN8+AN8*Control!$I$8*Prices!BE$16 + AN8*Control!$I$9*Prices!BE$18+Control!$I$10*(1+Control!$I$11)^Forecasts!AO2,0),0) -> 56.91719422 | AP8: =IFERROR(MAX(AO8+AO8*Control!$I$8*Prices!BF$16 + AO8*Control!$I$9*Prices!BF$18+Control!$I$10*(1+Control!$I$11)^Forecasts!AP2,0),0) -> 55.82625424 | AQ8: =IFERROR(MAX(AP8+AP8*Control!$I$8*Prices!BG$16 + AP8*Control!$I$9*Prices!BG$18+Control!$I$10*(1+Control!$I$11)^Forecasts!AQ2,0),0) -> 54.47269991 | AR8: =IFERROR(MAX(AQ8+AQ8*Control!$I$8*Prices!BH$16 + AQ8*Control!$I$9*Prices!BH$18+Control!$I$10*(1+Control!$I$11)^Forecasts!AR2,0),0) -> 53.14473008 | AS8: =IFERROR(MAX(AR8+AR8*Control!$I$8*Prices!BI$16 + AR8*Control!$I$9*Prices!BI$18+Control!$I$10*(1+Control!$I$11)^Forecasts!AS2,0),0) -> 52.14621476 | AT8: =IFERROR(MAX(AS8+AS8*Control!$I$8*Prices!BJ$16 + AS8*Control!$I$9*Prices!BJ$18+Control!$I$10*(1+Control!$I$11)^Forecasts!AT2,0),0) -> 51.48799993 | AU8: =IFERROR(MAX(AT8+AT8*Control!$I$8*Prices!BK$16 + AT8*Control!$I$9*Prices!BK$18+Control!$I$10*(1+Control!$I$11)^Forecasts!AU2,0),0) -> 50.85094491 | AV8: =IFERROR(MAX(AU8+AU8*Control!$I$8*Prices!BL$16 + AU8*Control!$I$9*Prices!BL$18+Control!$I$10*(1+Control!$I$11)^Forecasts!AV2,0),0) -> 49.85871528 | AW8: =IFERROR(MAX(AV8+AV8*Control!$I$8*Prices!BM$16 + AV8*Control!$I$9*Prices!BM$18+Control!$I$10*(1+Control!$I$11)^Forecasts!AW2,0),0) -> 48.48799363 | AX8: =IFERROR(MAX(AW8+AW8*Control!$I$8*Prices!BN$16 + AW8*Control!$I$9*Prices!BN$18+Control!$I$10*(1+Control!$I$11)^Forecasts!AX2,0),0) -> 47.20876987 | AY8: =IFERROR(MAX(AX8+AX8*Control!$I$8*Prices!BO$16 + AX8*Control!$I$9*Prices!BO$18+Control!$I$10*(1+Control!$I$11)^Forecasts!AY2,0),0) -> 46.21328475 | AZ8: =IFERROR(MAX(AY8+AY8*Control!$I$8*Prices!BP$16 + AY8*Control!$I$9*Prices!BP$18+Control!$I$10*(1+Control!$I$11)^Forecasts!AZ2,0),0) -> 45.50831723 | BA8: =IFERROR(MAX(AZ8+AZ8*Control!$I$8*Prices!BQ$16 + AZ8*Control!$I$9*Prices!BQ$18+Control!$I$10*(1+Control!$I$11)^Forecasts!BA2,0),0) -> 44.7963341 | BB8: =IFERROR(MAX(BA8+BA8*Control!$I$8*Prices!BR$16 + BA8*Control!$I$9*Prices!BR$18+Control!$I$10*(1+Control!$I$11)^Forecasts!BB2,0),0) -> 43.79821635 | BC8: =IFERROR(MAX(BB8+BB8*Control!$I$8*Prices!BS$16 + BB8*Control!$I$9*Prices!BS$18+Control!$I$10*(1+Control!$I$11)^Forecasts!BC2,0),0) -> 42.52620851 | BD8: =IFERROR(MAX(BC8+BC8*Control!$I$8*Prices!BT$16 + BC8*Control!$I$9*Prices!BT$18+Control!$I$10*(1+Control!$I$11)^Forecasts!BD2,0),0) -> 41.29427315 | BE8: =IFERROR(MAX(BD8+BD8*Control!$I$8*Prices!BU$16 + BD8*Control!$I$9*Prices!BU$18+Control!$I$10*(1+Control!$I$11)^Forecasts!BE2,0),0) -> 40.27119392 | BF8: =IFERROR(MAX(BE8+BE8*Control!$I$8*Prices!BV$16 + BE8*Control!$I$9*Prices!BV$18+Control!$I$10*(1+Control!$I$11)^Forecasts!BF2,0),0) -> 42.73415722 | BG8: =IFERROR(MAX(BF8+BF8*Control!$I$8*Prices!BW$16 + BF8*Control!$I$9*Prices!BW$18+Control!$I$10*(1+Control!$I$11)^Forecasts!BG2,0),0) -> 41.65501208 | BH8: =IFERROR(MAX(BG8+BG8*Control!$I$8*Prices!BX$16 + BG8*Control!$I$9*Prices!BX$18+Control!$I$10*(1+Control!$I$11)^Forecasts!BH2,0),0) -> 40.57845018 | BI8: =IFERROR(MAX(BH8+BH8*Control!$I$8*Prices!BY$16 + BH8*Control!$I$9*Prices!BY$18+Control!$I$10*(1+Control!$I$11)^Forecasts!BI2,0),0) -> 39.504427 | BJ8: =IFERROR(MAX(BI8+BI8*Control!$I$8*Prices!BZ$16 + BI8*Control!$I$9*Prices!BZ$18+Control!$I$10*(1+Control!$I$11)^Forecasts!BJ2,0),0) -> 38.43289927 | BK8: =IFERROR(MAX(BJ8+BJ8*Control!$I$8*Prices!CA$16 + BJ8*Control!$I$9*Prices!CA$18+Control!$I$10*(1+Control!$I$11)^Forecasts!BK2,0),0) -> 37.3638249 | BL8: =IFERROR(MAX(BK8+BK8*Control!$I$8*Prices!CB$16 + BK8*Control!$I$9*Prices!CB$18+Control!$I$10*(1+Control!$I$11)^Forecasts!BL2,0),0) -> 36.29716298 | BM8: =IFERROR(MAX(BL8+BL8*Control!$I$8*Prices!CC$16 + BL8*Control!$I$9*Prices!CC$18+Control!$I$10*(1+Control!$I$11)^Forecasts!BM2,0),0) -> 35.29190277 | BN8: =IFERROR(MAX(BM8+BM8*Control!$I$8*Prices!CD$16 + BM8*Control!$I$9*Prices!CD$18+Control!$I$10*(1+Control!$I$11)^Forecasts!BN2,0),0) -> 34.34683955 | BO8: =IFERROR(MAX(BN8+BN8*Control!$I$8*Prices!CE$16 + BN8*Control!$I$9*Prices!CE$18+Control!$I$10*(1+Control!$I$11)^Forecasts!BO2,0),0) -> 33.40025572 | BP8: =IFERROR(MAX(BO8+BO8*Control!$I$8*Prices!CF$16 + BO8*Control!$I$9*Prices!CF$18+Control!$I$10*(1+Control!$I$11)^Forecasts!BP2,0),0) -> 32.45214848 | BQ8: =IFERROR(MAX(BP8+BP8*Control!$I$8*Prices!CG$16 + BP8*Control!$I$9*Prices!CG$18+Control!$I$10*(1+Control!$I$11)^Forecasts!BQ2,0),0) -> 31.50251544 | BR8: =IFERROR(MAX(BQ8+BQ8*Control!$I$8*Prices!CH$16 + BQ8*Control!$I$9*Prices!CH$18+Control!$I$10*(1+Control!$I$11)^Forecasts!BR2,0),0) -> 30.55135459 | BS8: =IFERROR(MAX(BR8+BR8*Control!$I$8*Prices!CI$16 + BR8*Control!$I$9*Prices!CI$18+Control!$I$10*(1+Control!$I$11)^Forecasts!BS2,0),0) -> 29.59866431 | BT8: =IFERROR(MAX(BS8+BS8*Control!$I$8*Prices!CJ$16 + BS8*Control!$I$9*Prices!CJ$18+Control!$I$10*(1+Control!$I$11)^Forecasts!BT2,0),0) -> 28.64444332 | BU8: =IFERROR(MAX(BT8+BT8*Control!$I$8*Prices!CK$16 + BT8*Control!$I$9*Prices!CK$18+Control!$I$10*(1+Control!$I$11)^Forecasts!BU2,0),0) -> 27.68869068 | BV8: =IFERROR(MAX(BU8+BU8*Control!$I$8*Prices!CL$16 + BU8*Control!$I$9*Prices!CL$18+Control!$I$10*(1+Control!$I$11)^Forecasts!BV2,0),0) -> 26.73140577 | BW8: =IFERROR(MAX(BV8+BV8*Control!$I$8*Prices!CM$16 + BV8*Control!$I$9*Prices!CM$18+Control!$I$10*(1+Control!$I$11)^Forecasts!BW2,0),0) -> 25.77258826 | BX8: =IFERROR(MAX(BW8+BW8*Control!$I$8*Prices!CN$16 + BW8*Control!$I$9*Prices!CN$18+Control!$I$10*(1+Control!$I$11)^Forecasts!BX2,0),0) -> 24.81223814 | BY8: =IFERROR(MAX(BX8+BX8*Control!$I$8*Prices!CO$16 + BX8*Control!$I$9*Prices!CO$18+Control!$I$10*(1+Control!$I$11)^Forecasts!BY2,0),0) -> 23.85035563 | BZ8: =IFERROR(MAX(BY8+BY8*Control!$I$8*Prices!CP$16 + BY8*Control!$I$9*Prices!CP$18+Control!$I$10*(1+Control!$I$11)^Forecasts!BZ2,0),0) -> 22.88694126 | CA8: =IFERROR(MAX(BZ8+BZ8*Control!$I$8*Prices!CQ$16 + BZ8*Control!$I$9*Prices!CQ$18+Control!$I$10*(1+Control!$I$11)^Forecasts!CA2,0),0) -> 21.92199577 | CB8: =IFERROR(MAX(CA8+CA8*Control!$I$8*Prices!CR$16 + CA8*Control!$I$9*Prices!CR$18+Control!$I$10*(1+Control!$I$11)^Forecasts!CB2,0),0) -> 20.95552015 | CC8: =IFERROR(MAX(CB8+CB8*Control!$I$8*Prices!CS$16 + CB8*Control!$I$9*Prices!CS$18+Control!$I$10*(1+Control!$I$11)^Forecasts!CC2,0),0) -> 19.98751562 | CD8: =IFERROR(MAX(CC8+CC8*Control!$I$8*Prices!CT$16 + CC8*Control!$I$9*Prices!CT$18+Control!$I$10*(1+Control!$I$11)^Forecasts!CD2,0),0) -> 19.01798359 | CE8: =IFERROR(MAX(CD8+CD8*Control!$I$8*Prices!CU$16 + CD8*Control!$I$9*Prices!CU$18+Control!$I$10*(1+Control!$I$11)^Forecasts!CE2,0),0) -> 18.0469257 | CF8: =IFERROR(MAX(CE8+CE8*Control!$I$8*Prices!CV$16 + CE8*Control!$I$9*Prices!CV$18+Control!$I$10*(1+Control!$I$11)^Forecasts!CF2,0),0) -> 17.07434375 | CG8: =IFERROR(MAX(CF8+CF8*Control!$I$8*Prices!CW$16 + CF8*Control!$I$9*Prices!CW$18+Control!$I$10*(1+Control!$I$11)^Forecasts!CG2,0),0) -> 16.10023975 | CH8: =IFERROR(MAX(CG8+CG8*Control!$I$8*Prices!CX$16 + CG8*Control!$I$9*Prices!CX$18+Control!$I$10*(1+Control!$I$11)^Forecasts!CH2,0),0) -> 15.12461585 | CI8: =IFERROR(MAX(CH8+CH8*Control!$I$8*Prices!CY$16 + CH8*Control!$I$9*Prices!CY$18+Control!$I$10*(1+Control!$I$11)^Forecasts!CI2,0),0) -> 14.14747438 | CJ8: =IFERROR(MAX(CI8+CI8*Control!$I$8*Prices!CZ$16 + CI8*Control!$I$9*Prices!CZ$18+Control!$I$10*(1+Control!$I$11)^Forecasts!CJ2,0),0) -> 13.16881781 | CK8: =IFERROR(MAX(CJ8+CJ8*Control!$I$8*Prices!DA$16 + CJ8*Control!$I$9*Prices!DA$18+Control!$I$10*(1+Control!$I$11)^Forecasts!CK2,0),0) -> 12.18864876 | CL8: =IFERROR(MAX(CK8+CK8*Control!$I$8*Prices!DB$16 + CK8*Control!$I$9*Prices!DB$18+Control!$I$10*(1+Control!$I$11)^Forecasts!CL2,0),0) -> 11.20696998
A9: Commercial customers B2 | B9: ='DNSP data'!B12 -> 9247 | C9: ='DNSP data'!C12 -> 9839 | D9: ='DNSP data'!D12 -> 10364 | E9: ='DNSP data'!E12 -> 10885 | F9: ='DNSP data'!F12 -> 11344 | G9: ='DNSP data'!G12 -> 11649 | H9: ='DNSP data'!H12 -> 11828 | I9: ='DNSP data'!I12 -> 12120 | J9: ='DNSP data'!J12 -> 12139 | K9: ='DNSP data'!K12 -> 12318 | L9: ='DNSP data'!L12 -> 12540 | M9: ='DNSP data'!M12 -> 12725 | N9: ='DNSP data'!N12 -> 12913.2 | O9: ='DNSP data'!O12 -> 13104.4112 | P9: ='DNSP data'!P12 -> 13298.68178 | Q9: ='DNSP data'!Q12 -> 13496.06069 | R9: ='DNSP data'!R12 -> 13766.14073 | S9: ='DNSP data'!S12 -> 14040.38205 | T9: =IFERROR(MAX(CustomersCOM!T2*Scenarios!K16,0),0) -> 14244.22052 | U9: =IFERROR(MAX(CustomersCOM!U2*Scenarios!L16,0),0) -> 14437.24364 | V9: =IFERROR(MAX(CustomersCOM!V2*Scenarios!M16,0),0) -> 14625.49467 | W9: =IFERROR(MAX(CustomersCOM!W2*Scenarios!N16,0),0) -> 14807.99269 | X9: =IFERROR(MAX(CustomersCOM!X2*Scenarios!O16,0),0) -> 14980.76072 | Y9: =IFERROR(MAX(CustomersCOM!Y2*Scenarios!P16,0),0) -> 15168.83767 | Z9: =IFERROR(MAX(CustomersCOM!Z2*Scenarios!Q16,0),0) -> 15343.16232 | AA9: =IFERROR(MAX(CustomersCOM!AA2*Scenarios!R16,0),0) -> 15493.78967 | AB9: =IFERROR(MAX(CustomersCOM!AB2*Scenarios!S16,0),0) -> 15610.81452 | AC9: =IFERROR(MAX(CustomersCOM!AC2*Scenarios!T16,0),0) -> 15670.37126 | AD9: =IFERROR(MAX(CustomersCOM!AD2*Scenarios!U16,0),0) -> 15606.68977 | AE9: =IFERROR(MAX(CustomersCOM!AE2*Scenarios!V16,0),0) -> 15540.26301 | AF9: =IFERROR(MAX(CustomersCOM!AF2*Scenarios!W16,0),0) -> 15471.10196 | AG9: =IFERROR(MAX(CustomersCOM!AG2*Scenarios!X16,0),0) -> 15395.21755 | AH9: =IFERROR(MAX(CustomersCOM!AH2*Scenarios!Y16,0),0) -> 15307.63668 | AI9: =IFERROR(MAX(CustomersCOM!AI2*Scenarios!Z16,0),0) -> 15194.40614 | AJ9: =IFERROR(MAX(CustomersCOM!AJ2*Scenarios!AA16,0),0) -> 15012.62851 | AK9: =IFERROR(MAX(CustomersCOM!AK2*Scenarios!AB16,0),0) -> 14688.578 | AL9: =IFERROR(MAX(CustomersCOM!AL2*Scenarios!AC16,0),0) -> 14252.82369 | AM9: =IFERROR(MAX(CustomersCOM!AM2*Scenarios!AD16,0),0) -> 13868.81239 | AN9: =IFERROR(MAX(CustomersCOM!AN2*Scenarios!AE16,0),0) -> 13606.33714 | AO9: =IFERROR(MAX(CustomersCOM!AO2*Scenarios!AF16,0),0) -> 13410.91179 | AP9: =IFERROR(MAX(CustomersCOM!AP2*Scenarios!AG16,0),0) -> 13205.26815 | AQ9: =IFERROR(MAX(CustomersCOM!AQ2*Scenarios!AH16,0),0) -> 12940.44707 | AR9: =IFERROR(MAX(CustomersCOM!AR2*Scenarios!AI16,0),0) -> 12568.68529 | AS9: =IFERROR(MAX(CustomersCOM!AS2*Scenarios!AJ16,0),0) -> 12197.41054 | AT9: =IFERROR(MAX(CustomersCOM!AT2*Scenarios!AK16,0),0) -> 11925.6209 | AU9: =IFERROR(MAX(CustomersCOM!AU2*Scenarios!AL16,0),0) -> 11722.91842 | AV9: =IFERROR(MAX(CustomersCOM!AV2*Scenarios!AM16,0),0) -> 11522.02675 | AW9: =IFERROR(MAX(CustomersCOM!AW2*Scenarios!AN16,0),0) -> 11255.93864 | AX9: =IFERROR(MAX(CustomersCOM!AX2*Scenarios!AO16,0),0) -> 10932.91488 | AY9: =IFERROR(MAX(CustomersCOM!AY2*Scenarios!AP16,0),0) -> 10658.18322 | AZ9: =IFERROR(MAX(CustomersCOM!AZ2*Scenarios!AQ16,0),0) -> 10479.55049 | BA9: =IFERROR(MAX(CustomersCOM!BA2*Scenarios!AR16,0),0) -> 10338.63229 | BB9: =IFERROR(MAX(CustomersCOM!BB2*Scenarios!AS16,0),0) -> 10177.27776 | BC9: =IFERROR(MAX(CustomersCOM!BC2*Scenarios!AT16,0),0) -> 9948.568649 | BD9: =IFERROR(MAX(CustomersCOM!BD2*Scenarios!AU16,0),0) -> 9663.774374 | BE9: =IFERROR(MAX(CustomersCOM!BE2*Scenarios!AV16,0),0) -> 9401.119277 | BF9: =IFERROR(MAX(CustomersCOM!BF2*Scenarios!AW16,0),0) -> 9363.5148 | BG9: =IFERROR(MAX(CustomersCOM!BG2*Scenarios!AX16,0),0) -> 9326.060741 | BH9: =IFERROR(MAX(CustomersCOM!BH2*Scenarios!AY16,0),0) -> 9288.756498 | BI9: =IFERROR(MAX(CustomersCOM!BI2*Scenarios!AZ16,0),0) -> 9251.601472 | BJ9: =IFERROR(MAX(CustomersCOM!BJ2*Scenarios!BA16,0),0) -> 9214.595066 | BK9: =IFERROR(MAX(CustomersCOM!BK2*Scenarios!BB16,0),0) -> 9177.736685 | BL9: =IFERROR(MAX(CustomersCOM!BL2*Scenarios!BC16,0),0) -> 9141.025739 | BM9: =IFERROR(MAX(CustomersCOM!BM2*Scenarios!BD16,0),0) -> 9104.461636 | BN9: =IFERROR(MAX(CustomersCOM!BN2*Scenarios!BE16,0),0) -> 9068.043789 | BO9: =IFERROR(MAX(CustomersCOM!BO2*Scenarios!BF16,0),0) -> 9031.771614 | BP9: =IFERROR(MAX(CustomersCOM!BP2*Scenarios!BG16,0),0) -> 8995.644528 | BQ9: =IFERROR(MAX(CustomersCOM!BQ2*Scenarios!BH16,0),0) -> 8959.661949 | BR9: =IFERROR(MAX(CustomersCOM!BR2*Scenarios!BI16,0),0) -> 8923.823302 | BS9: =IFERROR(MAX(CustomersCOM!BS2*Scenarios!BJ16,0),0) -> 8888.128008 | BT9: =IFERROR(MAX(CustomersCOM!BT2*Scenarios!BK16,0),0) -> 8852.575496 | BU9: =IFERROR(MAX(CustomersCOM!BU2*Scenarios!BL16,0),0) -> 8817.165194 | BV9: =IFERROR(MAX(CustomersCOM!BV2*Scenarios!BM16,0),0) -> 8781.896534 | BW9: =IFERROR(MAX(CustomersCOM!BW2*Scenarios!BN16,0),0) -> 8746.768948 | BX9: =IFERROR(MAX(CustomersCOM!BX2*Scenarios!BO16,0),0) -> 8711.781872 | BY9: =IFERROR(MAX(CustomersCOM!BY2*Scenarios!BP16,0),0) -> 8676.934744 | BZ9: =IFERROR(MAX(CustomersCOM!BZ2*Scenarios!BQ16,0),0) -> 8642.227005 | CA9: =IFERROR(MAX(CustomersCOM!CA2*Scenarios!BR16,0),0) -> 8607.658097 | CB9: =IFERROR(MAX(CustomersCOM!CB2*Scenarios!BS16,0),0) -> 8573.227465 | CC9: =IFERROR(MAX(CustomersCOM!CC2*Scenarios!BT16,0),0) -> 8538.934555 | CD9: =IFERROR(MAX(CustomersCOM!CD2*Scenarios!BU16,0),0) -> 8504.778817 | CE9: =IFERROR(MAX(CustomersCOM!CE2*Scenarios!BV16,0),0) -> 8470.759702 | CF9: =IFERROR(MAX(CustomersCOM!CF2*Scenarios!BW16,0),0) -> 8436.876663 | CG9: =IFERROR(MAX(CustomersCOM!CG2*Scenarios!BX16,0),0) -> 8403.129156 | CH9: =IFERROR(MAX(CustomersCOM!CH2*Scenarios!BY16,0),0) -> 8369.516639 | CI9: =IFERROR(MAX(CustomersCOM!CI2*Scenarios!BZ16,0),0) -> 8336.038573 | CJ9: =IFERROR(MAX(CustomersCOM!CJ2*Scenarios!CA16,0),0) -> 8302.694419 | CK9: =IFERROR(MAX(CustomersCOM!CK2*Scenarios!CB16,0),0) -> 8269.483641 | CL9: =IFERROR(MAX(CustomersCOM!CL2*Scenarios!CC16,0),0) -> 8236.405706
A10: Total commercial volume B2 (TJ) | B10: =B8*B9/1000 -> 1213.94628 | C10: 1233.254801 | D10: 1275.755218 | E10: 1302.729186 | F10: 1318.309598 | G10: 1339.835922 | H10: 1343.696124 | I10: 1328.716883 | J10: 1251.355811 | K10: 1318.28853 | L10: 1296.905121 | M10: 1329.338823 | N10: 1310.197884 | O10: 1300.823108 | P10: 1291.537707 | Q10: 1282.340425 | R10: 1276.486216 | S10: 1273.806181 | T10: 1218.700027 | U10: 1198.901722 | V10: 1196.020023 | W10: 1189.791733 | X10: 1184.819932 | Y10: 1191.478035 | Z10: 1184.866992 | AA10: 1173.807357 | AB10: 1158.290647 | AC10: 1136.359078 | AD10: 1109.476923 | AE10: 1088.287003 | AF10: 1059.958042 | AG10: 1030.661483 | AH10: =AH8*AH9/1000 -> 1000.004171 | AI10: 968.4575815 | AJ10: 930.5532608 | AK10: 884.9062621 | AL10: 839.2284521 | AM10: 805.7106131 | AN10: 783.4421214 | AO10: 763.3114713 | AP10: 737.2006569 | AQ10: 704.9010902 | AR10: 667.9593869 | AS10: 636.0487898 | AT10: 614.0263682 | AU10: 596.1214787 | AV10: 574.4734509 | AW10: 545.7778809 | AX10: 516.1294627 | AY10: 492.5496562 | AZ10: 476.9067082 | BA10: 463.1328261 | BB10: 445.7466132 | BC10: 423.0749047 | BD10: 399.0585387 | BE10: 378.5942974 | BF10: 400.1419136 | BG10: 388.4771728 | BH10: 376.9233428 | BI10: 365.479215 | BJ10: 354.1436039 | BK10: 342.9153465 | BL10: 331.7933011 | BM10: 321.3137748 | BN10: =BN8*BN9/1000 -> 311.4586451 | BO10: 301.6634815 | BP10: 291.9279919 | BQ10: 282.2518889 | BR10: 272.63489 | BS10: 263.0767173 | BT10: 253.5770971 | BU10: 244.1357598 | BV10: 234.7524397 | BW10: 225.4268747 | BX10: 216.1588064 | BY10: 206.9479795 | BZ10: 197.7941418 | CA10: 188.6970444 | CB10: 179.6564409 | CC10: 170.6720878 | CD10: 161.743744 | CE10: 152.871171 | CF10: 144.0541323 | CG10: 135.2923941 | CH10: 126.585724 | CI10: 117.9338921 | CJ10: 109.3366702 | CK10: 100.7938316 | CL10: 92.30515149
A12: Industrial Forecasts
A13: Volume TJ
A14: B1 | B14: ='DNSP data'!B4/1000 -> 1601.262871 | C14: ='DNSP data'!C4/1000 -> 1618.005319 | D14: ='DNSP data'!D4/1000 -> 1642.692598 | E14: ='DNSP data'!E4/1000 -> 1714.543627 | F14: ='DNSP data'!F4/1000 -> 1919.597164 | G14: ='DNSP data'!G4/1000 -> 1865.5887 | H14: ='DNSP data'!H4/1000 -> 1997.991674 | I14: ='DNSP data'!I4/1000 -> 1935.206814 | J14: ='DNSP data'!J4/1000 -> 1847.301623 | K14: ='DNSP data'!K4/1000 -> 2077.214047 | L14: ='DNSP data'!L4/1000 -> 2140.84011 | M14: ='DNSP data'!M4/1000 -> 2199.444915 | N14: ='DNSP data'!N4/1000 -> 2164.480426 | O14: ='DNSP data'!O4/1000 -> 2153.961654 | P14: ='DNSP data'!P4/1000 -> 2143.169005 | Q14: ='DNSP data'!Q4/1000 -> 2132.430465 | R14: ='DNSP data'!R4/1000 -> 2121.745765 | S14: ='DNSP data'!S4/1000 -> 2111.114634 | T14: =T19*T24/1000 -> 2002.543059 | U14: 1921.546298 | V14: 1864.743212 | W14: 1802.646797 | X14: 1739.750807 | Y14: 1695.244163 | Z14: 1626.494125 | AA14: 1543.755418 | AB14: 1444.54904 | AC14: 1313.64584 | AD14: 1174.758123 | AE14: 1034.221928 | AF14: 890.2662339 | AG14: 751.6792307 | AH14: 623.5369615 | AI14: 526.1724731 | AJ14: 436.8970135 | AK14: 354.734003 | AL14: 283.3442292 | AM14: 216.9650427 | AN14: 159.7133206 | AO14: 112.8180099 | AP14: 78.76282841 | AQ14: 68.52434971 | AR14: 61.51597579 | AS14: 59.49877039 | AT14: 57.88279652 | AU14: 56.29769877 | AV14: 53.49686434 | AW14: 37.03132372 | AX14: 34.09070655 | AY14: 32.71511273 | AZ14: 29.94705288 | BA14: 28.89886537 | BB14: 24.63372592 | BC14: 18.42673946 | BD14: 10.76367623 | BE14: 0 | BF14: 0 | BG14: 0 | BH14: 0 | BI14: 0 | BJ14: 0 | BK14: 0 | BL14: 0 | BM14: 0 | BN14: 0 | BO14: 0 | BP14: 0 | BQ14: 0 | BR14: 0 | BS14: 0 | BT14: 0 | BU14: 0 | BV14: 0 | BW14: 0 | BX14: 0 | BY14: 0 | BZ14: 0 | CA14: 0 | CB14: 0 | CC14: 0 | CD14: 0 | CE14: 0 | CF14: =CF19*CF24/1000 -> 0 | CG14: 0 | CH14: 0 | CI14: 0 | CJ14: 0 | CK14: 0 | CL14: 0
A15: A1 | B15: ='DNSP data'!B6/1000 -> 12180.68054 | C15: ='DNSP data'!C6/1000 -> 11141.98586 | D15: ='DNSP data'!D6/1000 -> 11561.70359 | E15: ='DNSP data'!E6/1000 -> 11398.21581 | F15: ='DNSP data'!F6/1000 -> 10777.96142 | G15: ='DNSP data'!G6/1000 -> 10338.17915 | H15: ='DNSP data'!H6/1000 -> 11178.0435 | I15: ='DNSP data'!I6/1000 -> 10889.19719 | J15: ='DNSP data'!J6/1000 -> 11717.847 | K15: ='DNSP data'!K6/1000 -> 12321.87174 | L15: ='DNSP data'!L6/1000 -> 11853.73587 | M15: ='DNSP data'!M6/1000 -> 12497.535 | N15: ='DNSP data'!N6/1000 -> 12150.33117 | O15: ='DNSP data'!O6/1000 -> 13178.43132 | P15: ='DNSP data'!P6/1000 -> 13378.6592 | Q15: ='DNSP data'!Q6/1000 -> 13876.85065 | R15: ='DNSP data'!R6/1000 -> 13854.51134 | S15: ='DNSP data'!S6/1000 -> 13821.12832 | T15: 12862.02458 | U15: 12591.41144 | V15: 12515.32013 | W15: 12386.2149 | X15: 12251.87791 | Y15: 12261.71961 | Z15: 12060.45042 | AA15: 11733.75396 | AB15: 11254.30418 | AC15: 10493.73132 | AD15: 9633.99583 | AE15: 8714.227616 | AF15: 7706.043524 | AG15: 6686.065183 | AH15: 5701.898258 | AI15: 4950.366618 | AJ15: 4229.766932 | AK15: 3537.064917 | AL15: 2916.000524 | AM15: 2310.806093 | AN15: 1762.83866 | AO15: 1290.008783 | AP15: 932.0237926 | AQ15: 838.9884277 | AR15: 780.1075974 | AS15: 783.2282563 | AT15: 792.5936817 | AU15: 802.4571636 | AV15: 793.2301538 | AW15: 570.9230295 | AX15: 547.4420465 | AY15: 548.5981827 | AZ15: 525.6813834 | BA15: 531.5792209 | BB15: 474.8282008 | BC15: 372.3595657 | BD15: 228.5313555 | BE15: 0 | BF15: 0 | BG15: 0 | BH15: 0 | BI15: 0 | BJ15: 0 | BK15: 0 | BL15: 0 | BM15: 0 | BN15: 0 | BO15: 0 | BP15: 0 | BQ15: 0 | BR15: 0 | BS15: 0 | BT15: 0 | BU15: 0 | BV15: 0 | BW15: 0 | BX15: 0 | BY15: 0 | BZ15: 0 | CA15: 0 | CB15: 0 | CC15: 0 | CD15: 0 | CE15: 0 | CF15: 0 | CG15: 0 | CH15: 0 | CI15: 0 | CJ15: 0 | CK15: 0 | CL15: 0
A16: A2 | B16: ='DNSP data'!B7/1000 -> 2110.136686 | C16: ='DNSP data'!C7/1000 -> 1965.168272 | D16: ='DNSP data'!D7/1000 -> 1880.703203 | E16: ='DNSP data'!E7/1000 -> 1854.028603 | F16: ='DNSP data'!F7/1000 -> 1819.923627 | G16: ='DNSP data'!G7/1000 -> 1814.45347 | H16: ='DNSP data'!H7/1000 -> 1834.569369 | I16: ='DNSP data'!I7/1000 -> 1848.741121 | J16: ='DNSP data'!J7/1000 -> 1735.995787 | K16: ='DNSP data'!K7/1000 -> 1841.567721 | L16: ='DNSP data'!L7/1000 -> 1879.069055 | M16: ='DNSP data'!M7/1000 -> 1879.40309 | N16: ='DNSP data'!N7/1000 -> 1897.993261 | O16: ='DNSP data'!O7/1000 -> 1899.848298 | P16: ='DNSP data'!P7/1000 -> 1886.418189 | Q16: ='DNSP data'!Q7/1000 -> 1882.250462 | R16: ='DNSP data'!R7/1000 -> 1877.35066 | S16: ='DNSP data'!S7/1000 -> 1872.523343 | T16: 1742.400394 | U16: 1679.389626 | V16: 1646.010504 | W16: 1605.724265 | X16: 1566.105083 | Y16: 1547.019486 | Z16: 1500.400558 | AA16: 1438.974195 | AB16: 1360.086955 | AC16: 1249.425641 | AD16: 1130.399428 | AE16: 1007.829073 | AF16: 878.1070203 | AG16: 750.4698309 | AH16: 630.2652792 | AI16: 538.8068507 | AJ16: 453.1013077 | AK16: 372.8313259 | AL16: 302.6019031 | AM16: 236.3327757 | AN16: 177.7992377 | AO16: 128.2868008 | AP16: 91.31844982 | AQ16: 80.94217369 | AR16: 74.1018292 | AS16: 73.29712428 | AT16: 73.1326616 | AU16: 73.0173019 | AV16: 71.1299418 | AW16: 50.40657153 | AX16: 47.59162411 | AY16: 46.98787691 | AZ16: 44.39308413 | BA16: 44.26592103 | BB16: 38.96492446 | BC16: 30.08898084 | BD16: 18.18370157 | BE16: 0 | BF16: 0 | BG16: 0 | BH16: 0 | BI16: 0 | BJ16: 0 | BK16: 0 | BL16: 0 | BM16: 0 | BN16: 0 | BO16: 0 | BP16: 0 | BQ16: 0 | BR16: 0 | BS16: 0 | BT16: 0 | BU16: 0 | BV16: 0 | BW16: 0 | BX16: 0 | BY16: 0 | BZ16: 0 | CA16: 0 | CB16: 0 | CC16: 0 | CD16: 0 | CE16: 0 | CF16: 0 | CG16: 0 | CH16: 0 | CI16: 0 | CJ16: 0 | CK16: 0 | CL16: 0
A18: Customers
